Workbook

Sheet Sight1
A1: PROGRAM FOR ASTRONOMICAL
A2: SIGHT REDUCTION
A4: Assumed Position (AP)
C5: (deg) | D5: (min) | E5: (decimal)
A6: LAT: (N, S) | B6: N | C6: 47 | D6: 0 | E6: =IF(OR(LEFT(B6,1)="S",LEFT(B6,1)="s"),-(C6+D6/60),C6+D6/60) -> 47
A7: LON: (E, W) | B7: W | C7: 71 | D7: 8.4 | E7: =IF(OR(LEFT(B7,1)="E",LEFT(B7,1)="e"),-(C7+D7/60),C7+D7/60) -> 71.14
A9: Time of observation
A10: Date: | B10: 1987-07-28
C11: (hours) | D11: (min) | E11: (sec)
A12: WT | C12: 22 | D12: 50 | E12: 48 | F12: =TIME(C12,D12,E12) -> 0.9519444444
A13: WE: (f, s) | B13: f | D13: 0 | E13: 4 | F13: =IF(OR(LEFT(B13,1)="F",LEFT(B13,1)="f"),-TIME(,D13,E13),TIME(,D13,E13)) -> -4.62962963e-05
A14: ZT | C14: =HOUR(F14) -> 22 | D14: =MINUTE(F14) -> 50 | E14: =SECOND(F14) -> 44 | F14: =SUM(F12:F13) -> 0.9518981481
A15: ZD: (E, W) | B15: W | C15: 4 | F15: =IF(OR(LEFT(B15,1)="E",LEFT(B15,1)="e"),-TIME(C15,,),TIME(C15,,)) -> 0.1666666667
A16: UT: | C16: =IF(F16<0,23-HOUR(-F16),HOUR(F16)) -> 2 | D16: =IF(F16<0,59-MINUTE(-F16),MINUTE(F16)) -> 50 | E16: =IF(F16<0,60-SECOND(-F16),SECOND(F16)) -> 44 | F16: =SUM(F14:F15) -> 1.118564815 | G16: =(min1_/60)+(sec1_/3600) -> 0.8455555556
A17: UT Date | B17: =IF(F16>=1,VALUE(B10)+1,IF(F16<0,VALUE(B10)-1,VALUE(B10))) -> 1987-07-29
A19: Observed celestial body | E19: Click here for Nautical Almanac
A20: Name: | B20: Arcturus | E20: Star/Sun-Planet/Moon: | G20: 1
C21: (deg) | D21: (min) | E21: (decimal)
A22: Dec: (N, S) | B22: N | C22: 19 | D22: 14.9 | E22: =IF(OR(LEFT(B22,1)="S",LEFT(B22,1)="s"),-(C22+D22/60),C22+D22/60) -> 19.24833333 | F22: declination
A23: d: (+, -) | B23: 0 | D23: =IF(OR(B22="S",B22="s"),-d_corr1_*60,d_corr1_*60) -> 0 | E23: =IF(OR(LEFT(B22,1)="S",LEFT(B22,1)="s"),-(d1_*min_sec1/60),d1_*min_sec1/60) -> 0 | F23: declination corr.
A24: Corr. Dec.: | B24: =B22 -> N | C24: =ABS(ROUNDDOWN(E24,0)) -> 19 | D24: =(ABS(E24)-C24)*60 -> 14.9 | E24: =tab_DEC1+d_corr1_ -> 19.24833333 | F24: corrected dec.
A26: SHA: | C26: 146 | D26: 13.5 | E26: =C26+D26/60 -> 146.225 | F26: 0 if not star
A27: GHAg (UT hours): | C27: 336 | D27: 11.8 | E27: =C27+D27/60 -> 336.1966667 | F27: GHA Aries or others
A28: UT min-sec incr: | C28: =ROUNDDOWN(minsec_corr1,0) -> 12 | D28: =(minsec_corr1-C28)*60 -> 43.11389058 | E28: =IF(G20=1,min_sec1*15.0416667,IF(G20=2,min_sec1*15,IF(G20=3,min_sec1*14.316667,))) -> 12.71856484 | F28: min-sec incr (calculated)
A29: v: (+, -) | B29: 0 | D29: =v_corr1*60 -> 0 | E29: =v1_*min_sec1/60 -> 0 | F29: GHA corr for planets
A30: GHAy | C30: =ROUNDDOWN(GHAy1,0) -> 348 | D30: =(GHAy1-C30)*60 -> 54.91389058 | E30: =SUM(E27:E29) -> 348.9152315 | F30: GHA Aries or others
A31: LHAy | E31: =GHAy1-LON1_ -> 277.7752315 | F31: LHA Aries | S31: CONVERTER dd.mm.ss to decimal
A32: GHA=GHAy+SHA | E32: =SUM(E26:E29) -> 495.1402315 | S32: Deg | T32: min | U32: sec
A33: GHA corrected: | C33: =ROUNDDOWN(E33,0) -> 135 | D33: =(E33-C33)*60 -> 8.41389058 | E33: =IF(GHAo1_>=360,(GHAo1_-360),GHAo1_) -> 135.1402315 | F33: Note for midday sights | S33: 148 | T33: 36.8 | U33: 0
S34: Decimal: | T34: =S33+(T33/60)+(U33/3600) -> 148.6133333
A35: LHA=GHA-LON: | E35: =GHA1_-LON1_ -> 64.00023151
A36: LHA corrected: | C36: =ROUNDDOWN(E36,0) -> 64 | D36: =(E36-C36)*60 -> 0.01389058 | E36: =IF(LHAo1_>=360,LHAo1_-360,(IF(LHAo1_<0,360+LHAo1_,LHAo1_))) -> 64.00023151 | S36: CONVERTER decimal to dd.mm.ss
S37: Decimal: | T37: 0.9983
A38: Sextant observed altitude | S38: Deg | T38: min | U38: sec
A39: Hs: | C39: 31 | D39: 43.75 | E39: =C39+(D39/60) -> 31.72916667 | F39: measured altitude | S39: =ROUNDDOWN(T37,0) -> 0 | T39: =ROUNDDOWN(60*(T37-ROUNDDOWN(T37,0)),0) -> 59 | U39: =60*(60*(T37-ROUNDDOWN(T37,0))-T39) -> 53.88
A40: index corr.: (+, -) | D40: 0.3 | E40: =D40/60 -> 0.005 | F40: sextant 0° correction
A41: H.eye (ft,m): | B41: ft | S41: GHA INTERPOLATOR for UT min and sec increment
B42: 0 | D42: =IF(B41="ft",-0.97*SQRT(B42),IF(B41="m",-1.76*SQRT(B42),)) -> 0 | E42: =D42/60 -> 0 | F42: height of eye correction | U42: deg | V42: min | W42: decimal
A43: Dip short of horizon: | D43: 0 | E43: =D43/60 -> 0 | F43: when using shoreline horizon | S43: UT 1st hour GHA: | U43: 336 | V43: 11.8 | W43: =U43+V43/60 -> 336.1966667
A44: Ha: | C44: =ROUNDDOWN(E44,0) -> 31 | D44: =(E44-C44)*60 -> 44.05 | E44: =SUM(E39:E43) -> 31.73416667 | S44: UT 2nd hour GHA: | U44: 351 | V44: 14.2 | W44: =U44+V44/60 -> 351.2366667 | AD44: =(W44-W43)*AC44 -> 0
A45: Alt corr: | D45: =IF(Ha1_<15,-(34.133+4.197*Ha1_+0.00428*Ha1_^2)/(1+0.505*Ha1_+0.0845*Ha1_^2),-(0.97127/TAN(RADIANS(Ha1_))-(0.00137/(TAN(RADIANS(Ha1_)))^3))) -> -1.564732494 | E45: =D45/60 -> -0.02607887491 | F45: refraction correction
A46: Additional correction for non-std temperature and pressure | F46: supp refraction corr | U46: min | V46: sec | W46: decimal
A47: Temp (°C): | B47: 10 | F47: f factor: | G47: =(Press_mb1/1010)*(283/(273+Temp_C1)) -> 1 | S47: UT min-sec incr: | U47: =min1_ -> 50 | V47: =sec1_ -> 44 | W47: =U47/60+V47/3600 -> 0.8455555556
A48: Press. (mb): | B48: 1010
A49: Add'l corr: | D49: =std_hcorr1*(f1_-1) -> 0 | E49: =TP_corr1/60 -> 0 | U49: deg | V49: min | W49: decimal
S50: GHA increment: | U50: =ROUNDDOWN(W50,0) -> 12 | V50: =(W50-U50)*60 -> 43.02933333 | W50: =(W44-W43)*W47 -> 12.71715556
A51: Special corrections (Sun/Moon/March/Venus)
B52: Limb | C52: S.D. | S52: DIP-SHORT-OF-HORIZON CALCULATOR
A53: Sun: | B53: L | C53: 0 | D53: =IF(B53="L",IF(C53>0,(C53+0.14657*COS(RADIANS(Ha1_+Alt_corr1+tem_press1))),),IF(B53="U",IF(C53>0,(-C53+0.14657*COS(RADIANS(Ha1_+Alt_corr1+tem_press1))),))) -> 0 | E53: =D53/60 -> 0 | F53: for Sun sight | S53: Height: | T53: ft | U53: 10
A54: Moon: | B54: L | C54: 0 | D54: =IF(B54="L",C54,IF(B54="U",-C54,0)) -> 0 | E54: =D54/60 -> 0 | F54: for Moon sight | S54: Dist. to horiz (nmi): | U54: 3.6
A55: Moon HP: | B55: 0 | D55: =B55*COS(RADIANS(Ha1_+Alt_corr1+tem_press1)) -> 0 | E55: =D55/60 -> 0 | F55: moon parallax
A56: March/Venus Add'l corr: | D56: 0 | E56: =D56/60 -> 0 | F56: for Mach/Venus sight | S56: DIPshort (min): | U56: =IF(T53="ft",-60*DEGREES(ATAN((hf1_/(6076.1*ds1_))+(ds1_/8268))),IF(T53="m",-60*DEGREES(ATAN((hf1_/(1852*ds1_))+(ds1_/8268))),)) -> -3.06845713
A57: Observed ALTITUDE
A58: Ho: | C58: =ROUNDDOWN(E58,0) -> 31 | D58: =(E58-C58)*60 -> 42.48526751 | E58: =SUM(E44:E56) -> 31.70808779 | F58: Corrected observed altitude | S58: ALTITUDE REFRACTION CORRECTION
U59: deg | V59: min | W59: decimal
A60: Calculated ALTITUDE from AP: | S60: Altitude (Ha): | U60: 16 | V60: 56.4 | W60: =U60+V60/60 -> 16.94
S61: Correction (min): | U61: =IF(W60<15,-(34.133+4.197*W60+0.00428*W60^2)/(1+0.505*W60+0.0845*W60^2),-(0.97127/TAN(RADIANS(W60))-(0.00137/(TAN(RADIANS(W60)))^3))) -> -3.140337422
C62: (deg) | D62: (min) | E62: (decimal)
A63: Hc: | C63: =ROUNDDOWN(E63,0) -> 31 | D63: =(E63-C63)*60 -> 33.44888609 | E63: =DEGREES(ASIN(SIN(RADIANS(LAT1_))*SIN(RADIANS(DEC1_))+COS(RADIANS(LAT1_))*COS(RADIANS(DEC1_))*COS(RADIANS(LHA1_)))) -> 31.55748143 | S63: TEMPERATURE CONVERSION (°F to °C)
A64: Calculated North AZIMUTH from AP: | S64: Temp °F: | T64: 59 | U64: Temp °C: | V64: =(T64-32)*5/9 -> 15
A66: AZ north (degrees): | E66: =IF(LHA1_>=180,Alt_AZ1,(360-Alt_AZ1)) -> 264.7581079 | F66: True north azimuth | S66: PRESSURE CONVERSION (inches Hg to mb)
A67: Offset of COP (nmi): | E67: =(HO1_-HC1_)*60 -> 9.036381412 | F67: Toward(+) Away(-) | I67: Check for updates: | L67: http://pchev-astronav-en.blogspot.ca/ | S67: in Hg: | T67: 29.92 | U67: mb: | V67: =T67*33.8638866667 -> 1013.207489
S69: LONGITUDE TO TIME CONVERSION
S70: Longitude | W70: Time
S71: Degrees | T71: Minutes | U71: Seconds | W71: Hours | X71: Minutes | Y71: Seconds
A72: Case of Latitude by Polaris sight | S72: 224 | T72: 48.25 | U72: 0 | W72: =INT(S72/15) -> 14 | X72: =INT((S72/15-INT(S72/15))*60+T72/15) -> 59 | Y72: =MOD(T72,15)*4+U72/15 -> 13
A73: Lat = Ho - correction
A74: Correction = -(90-Déclination)xCos(LHA) + (90-Declination)xABS(Sin(LHA))xSin(ABS(Zn)) | S74: TIME TO LONGITUDE CONVERSION
A75: Zn relative to True N: | C75: =IF(OR(LEFT(body1,7)="Polaris",LEFT(body1,7)="polaris"),IF(AZ_nord1>180,360-AZ_nord1,AZ_nord1),0) -> 0 | S75: Time | W75: Longitude
C76: deg | D76: min | S76: Hours | T76: Minutes | U76: Seconds | W76: Degrees | X76: Minutes | Y76: Seconds
A77: Latitude | C77: =ROUNDDOWN(E77,0) -> 0 | D77: =(E77-C77)*60 -> 0 | E77: =IF(OR(LEFT(body1,7)="Polaris",LEFT(body1,7)="polaris"),HO1_-(90-tab_DEC1)*COS(RADIANS(LHA1_))+(90-tab_DEC1)*ABS(SIN(RADIANS(LHA1_)))*SIN(RADIANS(ABS(C75))),0) -> 0 | S77: 14 | T77: 59 | U77: 13 | W77: =S77*15+INT(T77/4) -> 224 | X77: =MOD(T77,4)*15+U77/4 -> 48.25
W78: =S77*15+INT(T77/4) -> 224 | X78: =MOD(T77,4)*15+INT(U77/4) -> 48 | Y78: =((U77/4)-INT(U77/4))*60 -> 15
A80: Altitude AZIMUTH: | E80: =IF(ABS(1-ABS(F80))<0.000000000001,IF(F80<0,DEGREES(ACOS(-1)),DEGREES(ACOS(1))),DEGREES(ACOS(F80))) -> 95.24189209 | F80: =(SIN(RADIANS(DEC1_))-(SIN(RADIANS(LAT1_))*SIN(RADIANS(HC1_))))/(COS(RADIANS(LAT1_))*COS(RADIANS(HC1_))) -> -0.09136070174
A81: Time AZIMUTH | E81: =DEGREES(ATAN(SIN(RADIANS(LHA1_))/(COS(RADIANS(LAT1_))*TAN(RADIANS(DEC1_))-SIN(RADIANS(LAT1_))*COS(RADIANS(LHA1_))))) -> -84.75810791

Sheet Sight2
A1: PROGRAM FOR ASTRONOMICAL
A2: SIGHT REDUCTION
A4: Assumed Position (AP)
C5: (deg) | D5: (min) | E5: (decimal)
A6: LAT: (N, S) | B6: N | C6: 47 | D6: 0 | E6: =IF(OR(LEFT(B6,1)="S",LEFT(B6,1)="s"),-(C6+D6/60),C6+D6/60) -> 47
A7: LON: (E, W) | B7: W | C7: 71 | D7: 38.9 | E7: =IF(OR(LEFT(B7,1)="E",LEFT(B7,1)="e"),-(C7+D7/60),C7+D7/60) -> 71.64833333
A9: Time of observation
A10: Date: | B10: 1987-07-28
C11: (hours) | D11: (min) | E11: (sec)
A12: WT | C12: 22 | D12: 56 | E12: 51 | F12: =TIME(C12,D12,E12) -> 0.9561458333
A13: WE: (f, s) | B13: f | D13: 0 | E13: 4 | F13: =IF(OR(LEFT(B13,1)="F",LEFT(B13,1)="f"),-TIME(,D13,E13),TIME(,D13,E13)) -> -4.62962963e-05
A14: ZT | C14: =HOUR(F14) -> 22 | D14: =MINUTE(F14) -> 56 | E14: =SECOND(F14) -> 47 | F14: =SUM(F12:F13) -> 0.956099537
A15: ZD: (E, W) | B15: W | C15: 4 | F15: =IF(OR(LEFT(B15,1)="E",LEFT(B15,1)="e"),-TIME(C15,,),TIME(C15,,)) -> 0.1666666667
A16: UT: | C16: =IF(F16<0,23-HOUR(-F16),HOUR(F16)) -> 2 | D16: =IF(F16<0,59-MINUTE(-F16),MINUTE(F16)) -> 56 | E16: =IF(F16<0,60-SECOND(-F16),SECOND(F16)) -> 47 | F16: =SUM(F14:F15) -> 1.122766204 | G16: =(min2_/60)+(sec2_/3600) -> 0.9463888889
A17: UT Date | B17: =IF(F16>=1,VALUE(B10)+1,IF(F16<0,VALUE(B10)-1,VALUE(B10))) -> 1987-07-29
A19: Observed celestial body | E19: Click here for Nautical Almanac
A20: Name: | B20: Saturne | E20: Star/Sun-Planet/Moon: | G20: 2
C21: (deg) | D21: (min) | E21: (decimal)
A22: Dec: (N, S) | B22: S | C22: 21 | D22: 5.9 | E22: =IF(OR(LEFT(B22,1)="S",LEFT(B22,1)="s"),-(C22+D22/60),C22+D22/60) -> -21.09833333 | F22: declination
A23: d: (+, -) | B23: 0 | D23: =IF(OR(B22="S",B22="s"),-d_corr2_*60,d_corr2_*60) -> 0 | E23: =IF(OR(LEFT(B22,1)="S",LEFT(B22,1)="s"),-(d2_*min_sec2/60),d2_*min_sec2/60) -> 0 | F23: declination corr.
A24: Corr. Dec.: | B24: =B22 -> S | C24: =ABS(ROUNDDOWN(E24,0)) -> 21 | D24: =(ABS(E24)-C24)*60 -> 5.9 | E24: =tab_DEC2+d_corr2_ -> -21.09833333 | F24: corrected dec.
A26: SHA: | C26: 0 | D26: 0 | E26: =C26+D26/60 -> 0 | F26: 0 if not star
A27: GHAg (UT hours): | C27: 82 | D27: 24.7 | E27: =C27+D27/60 -> 82.41166667 | F27: GHA Aries or others
A28: UT min-sec: | C28: =ROUNDDOWN(minsec_corr2,0) -> 14 | D28: =(minsec_corr2-C28)*60 -> 11.75 | E28: =IF(G20=1,min_sec2*15.0416667,IF(G20=2,min_sec2*15,IF(G20=3,min_sec2*14.316667,))) -> 14.19583333 | F28: min-sec incr (calculated)
A29: v: (+, -) | B29: 2.6 | D29: =v_corr2*60 -> 2.460611111 | E29: =v2_*min_sec2/60 -> 0.04101018519 | F29: GHA corr for planets
A30: GHAy | C30: =ROUNDDOWN(GHAy2,0) -> 96 | D30: =(GHAy2-C30)*60 -> 38.91061111 | E30: =SUM(E27:E29) -> 96.64851019 | F30: GHA Aries or others
A31: LHAy | E31: =GHAy2-LON2_ -> 25.00017685 | F31: LHA Aries | S31: CONVERTER dd.mm.ss to decimal
A32: GHA=GHAy+SHA | E32: =SUM(E26:E29) -> 96.64851019 | S32: Deg | T32: min | U32: sec
A33: GHA corrected: | C33: =ROUNDDOWN(E33,0) -> 96 | D33: =(E33-C33)*60 -> 38.91061111 | E33: =IF(GHAo2_>=360,(GHAo2_-360),GHAo2_) -> 96.64851019 | F33: Note for midday sights | S33: 148 | T33: 36.8 | U33: 0
S34: Decimal: | T34: =S33+(T33/60)+(U33/3600) -> 148.6133333
A35: LHA=GHA-LON: | E35: =GHA2_-LON2_ -> 25.00017685
A36: LHA corrected: | C36: =ROUNDDOWN(E36,0) -> 25 | D36: =(E36-C36)*60 -> 0.01061111111 | E36: =IF(LHAo2_>=360,LHAo2_-360,(IF(LHAo2_<0,360+LHAo2_,LHAo2_))) -> 25.00017685 | S36: CONVERTER decimal to dd.mm.ss
S37: Decimal: | T37: 0.0483
A38: Sextant observed altitude | S38: Deg | T38: min | U38: sec
A39: Hs: | C39: 18 | D39: 21.3 | E39: =C39+D39/60 -> 18.355 | F39: measured altitude | S39: =ROUNDDOWN(T37,0) -> 0 | T39: =ROUNDDOWN(60*(T37-ROUNDDOWN(T37,0)),0) -> 2 | U39: =60*(60*(T37-ROUNDDOWN(T37,0))-T39) -> 53.88
A40: index corr.: (+, -) | D40: 0.3 | E40: =D40/60 -> 0.005 | F40: sextant 0° correction
A41: H.eye (ft,m): | B41: ft | S41: GHA INTERPOLATOR for UT min and sec increment
B42: 0 | D42: =IF(B41="ft",-0.97*SQRT(B42),IF(B41="m",-1.76*SQRT(B42),)) -> 0 | E42: =D42/60 -> 0 | F42: height of eye correction | U42: deg | V42: min | W42: decimal
A43: Dip short of horizon: | D43: 0 | E43: =D43/60 -> 0 | F43: when using shoreline horizon | S43: UT 1st hour GHA: | U43: 82 | V43: 24.7 | W43: =U43+V43/60 -> 82.41166667
A44: Ha: | C44: =ROUNDDOWN(E44,0) -> 18 | D44: =(E44-C44)*60 -> 21.6 | E44: =SUM(E39:E43) -> 18.36 | S44: UT 2nd hour GHA: | U44: 97 | V44: 27.3 | W44: =U44+V44/60 -> 97.455
A45: Alt corr: | D45: =IF(Ha2_<15,-(34.133+4.197*Ha2_+0.00428*Ha2_^2)/(1+0.505*Ha2_+0.0845*Ha2_^2),-(0.97127/TAN(RADIANS(Ha2_))-(0.00137/(TAN(RADIANS(Ha2_)))^3))) -> -2.889087378 | E45: =D45/60 -> -0.04815145631 | F45: refraction correction
A46: Additional correction for non-std temperature and pressure | F46: supp refraction corr | U46: min | V46: sec | W46: decimal
A47: Temp (°C): | B47: 10 | F47: f factor: | G47: =(Press_mb2/1010)*(283/(273+Temp_C2)) -> 1 | S47: UT min-sec incr: | U47: =min2_ -> 56 | V47: =sec2_ -> 47 | W47: =U47/60+V47/3600 -> 0.9463888889
A48: Press. (mb): | B48: 1010
A49: Add'l corr: | D49: =std_hcorr2*(f2_-1) -> 0 | E49: =TP_corr2/60 -> 0 | U49: deg | V49: min | W49: decimal
S50: GHA increment: | U50: =ROUNDDOWN(W50,0) -> 14 | V50: =(W50-U50)*60 -> 14.21061111 | W50: =(W44-W43)*W47 -> 14.23684352
A51: Special corrections (Sun/Moon/March/Venus)
B52: Limb | C52: S.D. | S52: DIP-SHORT-OF-HORIZON CALCULATOR
A53: Sun: | B53: L | C53: 0 | D53: =IF(B53="L",IF(C53>0,(C53+0.14657*COS(RADIANS(Ha2_+Alt_corr2+Alt_corr2))),),IF(B53="U",IF(C53>0,(-C53+0.14657*COS(RADIANS(Ha2_+Alt_corr2+tem_press2))),))) -> 0 | E53: =D53/60 -> 0 | F53: for Sun sight | S53: Height: | T53: ft | U53: 7
A54: Moon: | B54: L | C54: 0 | D54: =IF(B54="L",C54,IF(B54="U",-C54,0)) -> 0 | E54: =D54/60 -> 0 | F54: for Moon sight | S54: Dist. to horiz (nmi): | U54: 3.6
A55: Moon HP: | B55: 0 | D55: =B55*COS(RADIANS(Ha2_+Alt_corr2+tem_press2)) -> 0 | E55: =D55/60 -> 0 | F55: moon parallax
A56: March/Venus Add'l corr: | D56: 0 | E56: =D56/60 -> 0 | F56: for Mach/Venus sight | S56: DIPshort (min): | U56: =IF(T53="ft",-60*DEGREES(ATAN((hf2_/(6076.1*ds2_))+(ds2_/8268))),IF(T53="m",-60*DEGREES(ATAN((hf2_/(1852*ds2_))+(ds2_/8268))),)) -> -2.596972621
A57: Observed ALTITUDE
A58: Ho: | C58: =ROUNDDOWN(E58,0) -> 18 | D58: =(E58-C58)*60 -> 18.71091262 | E58: =SUM(E44:E56) -> 18.31184854 | F58: corrected observed altitude | S58: ALTITUDE REFRACTION CORRECTION
U59: deg | V59: min | W59: decimal
A60: Calculated ALTITUDE from AP: | S60: Altitude (Ha): | U60: 16 | V60: 56.4 | W60: =U60+V60/60 -> 16.94
S61: Correction (min): | U61: =IF(W60<15,-(34.133+4.197*W60+0.00428*W60^2)/(1+0.505*W60+0.0845*W60^2),-(0.97127/TAN(RADIANS(W60))-(0.00137/(TAN(RADIANS(W60)))^3))) -> -3.140337422
C62: (deg) | D62: (min) | E62: (decimal)
A63: Hc: | C63: =ROUNDDOWN(E63,0) -> 18 | D63: =(E63-C63)*60 -> 15.85308919 | E63: =DEGREES(ASIN(SIN(RADIANS(LAT2_))*SIN(RADIANS(DEC2_))+COS(RADIANS(LAT2_))*COS(RADIANS(DEC2_))*COS(RADIANS(LHA2_)))) -> 18.26421815 | S63: TEMPERATURE CONVERSION (°F to °C)
A64: Calculated North AZIMUTH from AP: | S64: Temp °F: | T64: 59 | U64: Temp °C: | V64: =(T64-32)*5/9 -> 15
A66: AZ north: | E66: =IF(LHA2_>=180,Alt_AZ2,(360-Alt_AZ2)) -> 204.5324054 | F66: True north azimuth | S66: PRESSURE CONVERSION (inches Hg to mb)
A67: Offset of COP (nmi) | E67: =(HO2_-HC2_)*60 -> 2.857823432 | F67: Toward(+) Away(-) | S67: in Hg: | T67: 29.92 | U67: mb: | V67: =T67*33.8638866667 -> 1013.207489
S69: LONGITUDE TO TIME CONVERSION
S70: Longitude | W70: Time
S71: Degrees | T71: Minutes | U71: Seconds | W71: Hours | X71: Minutes | Y71: Seconds
A72: Case of Latitude by Polaris sight | S72: 224 | T72: 48.25 | U72: 0 | W72: =INT(S72/15) -> 14 | X72: =INT((S72/15-INT(S72/15))*60+T72/15) -> 59 | Y72: =MOD(T72,15)*4+U72/15 -> 13
A73: Lat = Ho - correction
A74: Correction = -(90-Déclination)xCos(LHA) + (90-Declination)xABS(Sin(LHA))xSin(ABS(Zn)) | S74: TIME TO LONGITUDE CONVERSION
A75: Zn relative to True N: | C75: =IF(OR(LEFT(body2,7)="Polaris",LEFT(body2,7)="polaris"),IF(AZ_nord2>180,360-AZ_nord2,AZ_nord2),0) -> 0 | S75: Time | W75: Longitude
C76: deg | D76: min | S76: Hours | T76: Minutes | U76: Seconds | W76: Degrees | X76: Minutes | Y76: Seconds
A77: Latitude | C77: =ROUNDDOWN(E77,0) -> 0 | D77: =(E77-C77)*60 -> 0 | E77: =IF(OR(LEFT(body2,7)="Polaris",LEFT(body2,7)="polaris"),HO2_-(90-tab_DEC2)*COS(RADIANS(LHA2_))+(90-tab_DEC2)*ABS(SIN(RADIANS(LHA2_)))*SIN(RADIANS(ABS(C75))),0) -> 0 | S77: 14 | T77: 59 | U77: 13 | W77: =S77*15+INT(T77/4) -> 224 | X77: =MOD(T77,4)*15+U77/4 -> 48.25
W78: =S77*15+INT(T77/4) -> 224 | X78: =MOD(T77,4)*15+INT(U77/4) -> 48 | Y78: =((U77/4)-INT(U77/4))*60 -> 15
A80: Altitude AZIMUTH: | E80: =IF(ABS(1-ABS(F80))<0.000000000001,IF(F80<0,DEGREES(ACOS(-1)),DEGREES(ACOS(1))),DEGREES(ACOS(F80))) -> 155.4675946 | F80: =(SIN(RADIANS(DEC2_))-(SIN(RADIANS(LAT2_))*SIN(RADIANS(HC2_))))/(COS(RADIANS(LAT2_))*COS(RADIANS(HC2_))) -> -0.9097265831
A81: Time AZIMUTH | E81: =DEGREES(ATAN(SIN(RADIANS(LHA2_))/(COS(RADIANS(LAT2_))*TAN(RADIANS(DEC2_))-SIN(RADIANS(LAT2_))*COS(RADIANS(LHA2_))))) -> -24.53240536

Sheet Sight3
A1: PROGRAM FOR ASTRONOMICAL
A2: SIGHT REDUCTION
A4: Assumed Position (AP)
C5: (deg) | D5: (min) | E5: (decimal)
A6: LAT: (N, S) | B6: N | C6: 47 | D6: 0 | E6: =IF(OR(LEFT(B6,1)="S",LEFT(B6,1)="s"),-(C6+D6/60),C6+D6/60) -> 47
A7: LON: (E, W) | B7: W | C7: 71 | D7: 12.2 | E7: =IF(OR(LEFT(B7,1)="E",LEFT(B7,1)="e"),-(C7+D7/60),C7+D7/60) -> 71.20333333
A9: Time of observation
A10: Date: | B10: 1987-07-28
C11: (hours) | D11: (min) | E11: (sec)
A12: WT | C12: 22 | D12: 58 | E12: 8 | F12: =TIME(C12,D12,E12) -> 0.957037037
A13: WE: (f, s) | B13: f | D13: 0 | E13: 4 | F13: =IF(OR(LEFT(B13,1)="F",LEFT(B13,1)="f"),-TIME(,D13,E13),TIME(,D13,E13)) -> -4.62962963e-05
A14: ZT | C14: =HOUR(F14) -> 22 | D14: =MINUTE(F14) -> 58 | E14: =SECOND(F14) -> 4 | F14: =SUM(F12:F13) -> 0.9569907407
A15: ZD: (E, W) | B15: W | C15: 4 | F15: =IF(OR(LEFT(B15,1)="E",LEFT(B15,1)="e"),-TIME(C15,,),TIME(C15,,)) -> 0.1666666667
A16: UT: | C16: =IF(F16<0,23-HOUR(-F16),HOUR(F16)) -> 2 | D16: =IF(F16<0,59-MINUTE(-F16),MINUTE(F16)) -> 58 | E16: =IF(F16<0,60-SECOND(-F16),SECOND(F16)) -> 4 | F16: =SUM(F14:F15) -> 1.123657407 | G16: =(min3_/60)+(sec3_/3600) -> 0.9677777778
A17: UT Date | B17: =IF(F16>=1,VALUE(B10)+1,IF(F16<0,VALUE(B10)-1,VALUE(B10))) -> 1987-07-29
A19: Observed celestial body | E19: Click here for Nautical Almanac
A20: Name: | B20: Altaïr | E20: Star/Sun-Planet/Moon: | G20: 1
C21: (deg) | D21: (min) | E21: (decimal)
A22: Dec: (N, S) | B22: N | C22: 8 | D22: 50 | E22: =IF(OR(LEFT(B22,1)="S",LEFT(B22,1)="s"),-(C22+D22/60),C22+D22/60) -> 8.833333333 | F22: declination
A23: d: (+, -) | B23: 0 | D23: =IF(OR(B22="S",B22="s"),-d_corr3_*60,d_corr3_*60) -> 0 | E23: =IF(OR(LEFT(B22,1)="S",LEFT(B22,1)="s"),-(d3_*min_sec3/60),d3_*min_sec3/60) -> 0 | F23: declination corr.
A24: Corr. Dec.: | B24: =B22 -> N | C24: =ABS(ROUNDDOWN(E24,0)) -> 8 | D24: =(ABS(E24)-C24)*60 -> 50 | E24: =tab_DEC3+d_corr3_ -> 8.833333333 | F24: corrected dec.
A26: SHA: | C26: 62 | D26: 27 | E26: =C26+D26/60 -> 62.45 | F26: 0 if not star
A27: GHAg (UT hours): | C27: 336 | D27: 11.8 | E27: =C27+D27/60 -> 336.1966667 | F27: GHA Aries or others
A28: UT min-sec: | C28: =ROUNDDOWN(minsec_corr3,0) -> 14 | D28: =(minsec_corr3-C28)*60 -> 33.41944638 | E28: =IF(G20=1,min_sec3*15.0416667,IF(G20=2,min_sec3*15,IF(G20=3,min_sec3*14.316667,))) -> 14.55699077 | F28: min-sec incr (calculated)
A29: v: (+, -) | B29: 0 | D29: =v_corr3*60 -> 0 | E29: =v3_*min_sec3/60 -> 0 | F29: GHA corr for planets
A30: GHAy | C30: =ROUNDDOWN(GHAy3,0) -> 350 | D30: =(GHAy3-C30)*60 -> 45.21944638 | E30: =SUM(E27:E29) -> 350.7536574 | F30: GHA Aries or others
A31: LHAy | E31: =GHAy3-LON3_ -> 279.5503241 | F31: LHA Aries | S31: CONVERTER dd.mm.ss to decimal
A32: GHA=GHAy+SHA | E32: =SUM(E26:E29) -> 413.2036574 | S32: Deg | T32: min | U32: sec
A33: GHA corrected: | C33: =ROUNDDOWN(E33,0) -> 53 | D33: =(E33-C33)*60 -> 12.21944638 | E33: =IF(GHAo3_>=360,(GHAo3_-360),GHAo3_) -> 53.20365744 | F33: Note for midday sights | S33: 148 | T33: 36.8 | U33: 0
S34: Decimal: | T34: =S33+(T33/60)+(U33/3600) -> 148.6133333
A35: LHA=GHA-LON: | E35: =GHA3_-LON3_ -> -17.99967589
A36: LHA corrected: | C36: =ROUNDDOWN(E36,0) -> 342 | D36: =(E36-C36)*60 -> 0.01944638 | E36: =IF(LHAo3_>=360,LHAo3_-360,(IF(LHAo3_<0,360+LHAo3_,LHAo3_))) -> 342.0003241 | S36: CONVERTER decimal to dd.mm.ss
S37: Decimal: | T37: 0.0483
A38: Sextant observed altitude | S38: Deg | T38: min | U38: sec
A39: Hs: | C39: 48 | D39: 57.1 | E39: =C39+D39/60 -> 48.95166667 | F39: measured altitude | S39: =ROUNDDOWN(T37,0) -> 0 | T39: =ROUNDDOWN(60*(T37-ROUNDDOWN(T37,0)),0) -> 2 | U39: =60*(60*(T37-ROUNDDOWN(T37,0))-T39) -> 53.88
A40: index corr.: (+, -) | D40: 0.3 | E40: =D40/60 -> 0.005 | F40: sextant 0° correction
A41: H.eye (ft,m): | B41: ft | S41: GHA INTERPOLATOR for UT min and sec increment
B42: 0 | D42: =IF(B41="ft",-0.97*SQRT(B42),IF(B41="m",-1.76*SQRT(B42),)) -> 0 | E42: =D42/60 -> 0 | F42: height of eye correction | U42: deg | V42: min | W42: decimal
A43: Dip short of horizon: | D43: 0 | E43: =D43/60 -> 0 | F43: when using shoreline horizon | S43: UT 1st hour GHA: | U43: 336 | V43: 11.8 | W43: =U43+V43/60 -> 336.1966667
A44: Ha: | C44: =ROUNDDOWN(E44,0) -> 48 | D44: =(E44-C44)*60 -> 57.4 | E44: =SUM(E39:E43) -> 48.95666667 | S44: UT 2nd hour GHA: | U44: 351 | V44: 14.2 | W44: =U44+V44/60 -> 351.2366667
A45: Alt corr: | D45: =IF(Ha3_<15,-(34.133+4.197*Ha3_+0.00428*Ha3_^2)/(1+0.505*Ha3_+0.0845*Ha3_^2),-(0.97127/TAN(RADIANS(Ha3_))-(0.00137/(TAN(RADIANS(Ha3_)))^3))) -> -0.8446985869 | E45: =D45/60 -> -0.01407830978 | F45: refraction correction
A46: Additional correction for non-std temperature and pressure | F46: supp refraction corr | U46: min | V46: sec | W46: decimal
A47: Temp (°C): | B47: 10 | F47: f factor: | G47: =(Press_mb3/1010)*(283/(273+Temp_C3)) -> 1 | S47: UT min-sec incr: | U47: =min3_ -> 58 | V47: =sec3_ -> 4 | W47: =U47/60+V47/3600 -> 0.9677777778
A48: Press. (mb): | B48: 1010
A49: Add'l corr: | D49: =std_hcorr3*(f3_-1) -> 0 | E49: =TP_corr3/60 -> 0 | U49: deg | V49: min | W49: decimal
S50: GHA increment: | U50: =ROUNDDOWN(W50,0) -> 14 | V50: =(W50-U50)*60 -> 33.32266667 | W50: =(W44-W43)*W47 -> 14.55537778
A51: Special corrections (Sun/Moon/March/Venus)
B52: Limb | C52: S.D. | S52: DIP-SHORT-OF-HORIZON CALCULATOR
A53: Sun: | B53: L | C53: 0 | D53: =IF(B53="L",IF(C53>0,(C53+0.14657*COS(RADIANS(Ha3_+Alt_corr3+tem_press3))),),IF(B53="U",IF(C53>0,(-C53+0.14657*COS(RADIANS(Ha3_+Alt_corr3+tem_press3))),))) -> 0 | E53: =D53/60 -> 0 | F53: for Sun sight | S53: Height: | T53: ft | U53: 8
A54: Moon: | B54: L | C54: 0 | D54: =IF(B54="L",C54,IF(B54="U",-C54,0)) -> 0 | E54: =D54/60 -> 0 | F54: for Moon sight | S54: Dist. to horiz (nmi): | U54: 3.6
A55: Moon HP: | B55: 0 | D55: =B55*COS(RADIANS(Ha3_+Alt_corr3+tem_press3)) -> 0 | E55: =D55/60 -> 0 | F55: moon parallax
A56: March/Venus Add'l corr: | D56: 0 | E56: =D56/60 -> 0 | F56: for Mach/Venus sight | S56: DIPshort (min): | U56: =IF(T53="ft",-60*DEGREES(ATAN((hf3_/(6076.1*ds3_))+(ds3_/8268))),IF(T53="m",-60*DEGREES(ATAN((hf3_/(1852*ds3_))+(ds3_/8268))),)) -> -2.754134136
A57: Observed ALTITUDE
A58: Ho: | C58: =ROUNDDOWN(E58,0) -> 48 | D58: =(E58-C58)*60 -> 56.55530141 | E58: =SUM(E44:E56) -> 48.94258836 | F58: corrected value | S58: ALTITUDE REFRACTION CORRECTION
U59: deg | V59: min | W59: decimal
A60: Calculated ALTITUDE from AP: | S60: Altitude (Ha): | U60: 16 | V60: 56.4 | W60: =U60+V60/60 -> 16.94
S61: Correction (min): | U61: =IF(W60<15,-(34.133+4.197*W60+0.00428*W60^2)/(1+0.505*W60+0.0845*W60^2),-(0.97127/TAN(RADIANS(W60))-(0.00137/(TAN(RADIANS(W60)))^3))) -> -3.140337422
C62: (deg) | D62: (min) | E62: (decimal)
A63: Hc: | C63: =ROUNDDOWN(E63,0) -> 48 | D63: =(E63-C63)*60 -> 52.27920956 | E63: =DEGREES(ASIN(SIN(RADIANS(LAT3_))*SIN(RADIANS(DEC3_))+COS(RADIANS(LAT3_))*COS(RADIANS(DEC3_))*COS(RADIANS(LHA3_)))) -> 48.87132016 | S63: TEMPERATURE CONVERSION (°F to °C)
A64: Calculated North AZIMUTH from AP: | S64: Temp °F: | T64: 68 | U64: Temp °C: | V64: =(T64-32)*5/9 -> 20
A66: AZ north: | E66: =IF(LHA3_>=180,Alt_AZ3,(360-Alt_AZ3)) -> 152.3397853 | F66: True north azimuth | S66: PRESSURE CONVERSION (inches Hg to mb)
A67: Offset of COP (nmi) | E67: =(HO3_-HC3_)*60 -> 4.276091851 | F67: Toward(+) Away(-) | S67: in Hg: | T67: 30 | U67: mb: | V67: =T67*33.8638866667 -> 1015.9166
S69: LONGITUDE TO TIME CONVERSION
S70: Longitude | W70: Time
S71: Degrees | T71: Minutes | U71: Seconds | W71: Hours | X71: Minutes | Y71: Seconds
A72: Case of Latitude by Polaris sight | S72: 224 | T72: 48.25 | U72: 0 | W72: =INT(S72/15) -> 14 | X72: =INT((S72/15-INT(S72/15))*60+T72/15) -> 59 | Y72: =MOD(T72,15)*4+U72/15 -> 13
A73: Lat = Ho - correction
A74: Correction = -(90-Déclination)xCos(LHA) + (90-Declination)xABS(Sin(LHA))xSin(ABS(Zn)) | S74: TIME TO LONGITUDE CONVERSION
A75: Zn relative to True N: | C75: =IF(OR(LEFT(body3,7)="Polaris",LEFT(body3,7)="polaris"),IF(AZ_nord3>180,360-AZ_nord3,AZ_nord3),0) -> 0 | S75: Time | W75: Longitude
C76: deg | D76: min | S76: Hours | T76: Minutes | U76: Seconds | W76: Degrees | X76: Minutes | Y76: Seconds
A77: Latitude | C77: =ROUNDDOWN(E77,0) -> 0 | D77: =(E77-C77)*60 -> 0 | E77: =IF(OR(LEFT(body3,7)="Polaris",LEFT(body3,7)="polaris"),HO3_-(90-tab_DEC3)*COS(RADIANS(LHA3_))+(90-tab_DEC3)*ABS(SIN(RADIANS(LHA3_)))*SIN(RADIANS(ABS(C75))),0) -> 0 | S77: 14 | T77: 59 | U77: 13 | W77: =S77*15+INT(T77/4) -> 224 | X77: =MOD(T77,4)*15+U77/4 -> 48.25
W78: =S77*15+INT(T77/4) -> 224 | X78: =MOD(T77,4)*15+INT(U77/4) -> 48 | Y78: =((U77/4)-INT(U77/4))*60 -> 15
A80: Altitude AZIMUTH: | E80: =IF(ABS(1-ABS(F80))<0.000000000001,IF(F80<0,DEGREES(ACOS(-1)),DEGREES(ACOS(1))),DEGREES(ACOS(F80))) -> 152.3397853 | F80: =(SIN(RADIANS(DEC3_))-(SIN(RADIANS(LAT3_))*SIN(RADIANS(HC3_))))/(COS(RADIANS(LAT3_))*COS(RADIANS(HC3_))) -> -0.8857161914
A81: Time AZIMUTH | E81: =DEGREES(ATAN(SIN(RADIANS(LHA3_))/(COS(RADIANS(LAT3_))*TAN(RADIANS(DEC3_))-SIN(RADIANS(LAT3_))*COS(RADIANS(LHA3_))))) -> 27.6602147

Sheet LOP plot
A1: CIRCLE OF POSITION, INTERCEPT and OFFSET plots | S1: Find intersection of COPs by linear bestfit approximation
A2: for various sights | S2: n=0: x=my+b n=1: y=mx+b
S3: Click on available COPs
W4: m | X4: b | Y4: n
A5: Scales: the LONgitude scale is adjusted for the LATitude | V5: LOP1: | W5: =_m1 -> 0.1386471528 | X5: =_b1 -> 64.84557399 | Y5: =_n1 -> 0
A6: to preserve conformity of distance and azimuth, | V6: LOP2: | W6: =_m2 -> 0.3152466649 | X6: =_b2 -> 24.360803 | Y6: =_n2 -> 1
A7: for a distortion free mapping. | V7: LOP3: | W7: =_m3 -> -0.3665574918 | X7: =_b3 -> 73.02052891 | Y7: =_n3 -> 1
U10: deg | V10: min | W10: decimal
S11: Intersection COP1-COP2
S12: LAT | T12: =IF(W12<0,"S","N") -> N | U12: =ROUNDDOWN(ABS(W12),0) -> 46 | V12: =(ABS(W12)-U12)*60 -> 51.0585413 | W12: 46.85097569
S13: LON | T13: =IF(W13<0,"E","W") -> W | U13: =ROUNDDOWN(ABS(W13),0) -> 71 | V13: =(ABS(W13)-U13)*60 -> 20.49052323 | W13: 71.34150872
A14: "min" and "max" values of the Lat and Lon scales | S14: Intersection COP1-COP3
A15: LAT | B15: LON | D15: scale factor: | F15: 0.5 | S15: LAT | T15: =IF(W15<0,"S","N") -> N | U15: =ROUNDDOWN(ABS(W15),0) -> 46 | V15: =(ABS(W15)-U15)*60 -> 52.11528986 | W15: 46.86858816
A16: =Latc-scale+offV0 -> 46.4 | B16: =D16+offH -> 70.6 | D16: =Lonc-scale -> 70.5 | E16: =((D17-D16)/COS(RADIANS(Latc))) -> 1.466279186 | S16: LON | T16: =IF(W16<0,"E","W") -> W | U16: =ROUNDDOWN(ABS(W16),0) -> 71 | V16: 20.63325801 | W16: 71.34388763
A17: =Latc+scale+offV0 -> 47.4 | B17: =D16+E16+offH -> 72.06627919 | D17: =Lonc+scale -> 71.5 | E17: =COS(RADIANS(Latc)) -> 0.6819983601 | S17: Intersection COP2-COP3 | Y17: Three-points fix solution (3 COPs required)
S18: LAT | T18: =IF(W18<0,"S","N") -> N | U18: =ROUNDDOWN(ABS(W18),0) -> 46 | V18: =(ABS(W18)-U18)*60 -> 51.57453762 | W18: 46.85957563 | Y18: LAT | Z18: =IF(AC18<0,"S","N") -> N | AA18: =ROUNDDOWN(ABS(AC18),0) -> 46 | AB18: =(ABS(AC18)-AA18)*60 -> 51.58278959 | AC18: 46.85971316
F19: Chart-center offset: | S19: LON | T19: =IF(W19<0,"E","W") -> W | U19: =ROUNDDOWN(ABS(W19),0) -> 71 | V19: 22.12732507 | W19: 71.36878875 | Y19: LON | Z19: =IF(AC19<0,"E","W") -> W | AA19: =ROUNDDOWN(ABS(AC19),0) -> 71 | AB19: =(ABS(AC19)-AA19)*60 -> 21.08370211 | AC19: 71.35139504
G20: -0.1
F22: 0.1 | S22: Meridian passage sight position ("Sight1")
A23: Graph centered on sight: | D23: 1 | S23: LAT | T23: =IF(W23<0,"S","N") -> N | U23: =ROUNDDOWN(ABS(W23),0) -> 0 | V23: =(ABS(W23)-U23)*60 -> 0
A24: Latc | B24: Lonc | S24: LON | T24: =IF(W24<0,"E","W") -> W | U24: =ROUNDDOWN(ABS(W24),0) -> 0 | V24: 0
A25: =IF(sight_n=1,ROUND(LAT1_,0),IF(sight_n=2,ROUND(Sight2!LAT2_,0),IF(sight_n=3,ROUND(Sight3!LAT3_,0),))) -> 47 | B25: =IF(sight_n=1,ROUND(LON1_,0),IF(sight_n=2,ROUND(Sight2!LON2_,0),IF(sight_n=3,ROUND(Sight3!LON3_,0),))) -> 71 | S25: Meridian passage sight position ("Sight2")
S26: LAT | T26: =IF(W26<0,"S","N") -> N | U26: =ROUNDDOWN(ABS(W26),0) -> 0 | V26: =(ABS(W26)-U26)*60 -> 0
A27: spinbuttons | B27: Offsets | S27: LON | T27: =IF(W27<0,"E","W") -> W | U27: =ROUNDDOWN(ABS(W27),0) -> 0 | V27: =(ABS(W27)-U27)*60 -> 0
A28: 2 | B28: -0.1 | S28: Meridian passage sight position ("Sight3") | Y28: Average meridian passage position ("Sights 1, 2, 3")
A29: 2 | B29: 0.1 | S29: LAT | T29: =IF(W29<0,"S","N") -> N | U29: =ROUNDDOWN(ABS(W29),0) -> 0 | V29: =(ABS(W29)-U29)*60 -> 0 | Y29: LAT | Z29: =IF(AC29<0,"S","N") -> N | AA29: =ROUNDDOWN(ABS(AC29),0) -> 0 | AB29: =(ABS(AC29)-AA29)*60 -> 0
S30: LON | T30: =IF(W30<0,"E","W") -> W | U30: =ROUNDDOWN(ABS(W30),0) -> 0 | V30: =(ABS(W30)-U30)*60 -> 0 | Y30: LON | Z30: =IF(AC30<0,"E","W") -> W | AA30: =ROUNDDOWN(ABS(AC30),0) -> 0 | AB30: =(ABS(AC30)-AA30)*60 -> 0
A33: Assumed Position 1 | I33: Assumed Position 2 | Q33: Assumed Position 3
A34: LAT1 | B34: LON1 | I34: LAT2 | J34: LON2 | Q34: LAT3 | R34: LON3
A35: =LAT1_ -> 47 | B35: =LON1_ -> 71.14 | I35: =Sight2!LAT2_ -> 47 | J35: =Sight2!LON2_ -> 71.64833333 | Q35: =Sight3!LAT3_ -> 47 | R35: =Sight3!LON3_ -> 71.20333333
A36: Running: | B36: Speed(kt) | C36: Course | D36: DT(hr) | E36: (min) | F36: (sec) | G36: DT (decimal) | I36: Running: | J36: Speed(kt) | K36: Course | L36: DT(hr) | M36: (min) | N36: (sec) | O36: DT (decimal) | Q36: Running: | R36: Speed(kt) | S36: Course | T36: DT(hr) | U36: (min) | V36: (sec) | W36: DT (decimal)
B37: 0 | C37: 0 | D37: 0 | E37: 0 | F37: 0 | G37: =D37+(E37/60)+(F37/3600) -> 0 | J37: 0 | K37: 0 | L37: 0 | M37: 0 | N37: 0 | O37: =L37+(M37/60)+(N37/3600) -> 0 | R37: 0 | S37: 0 | T37: 0 | U37: 0 | V37: 0 | W37: =T37+(U37/60)+(V37/3600) -> 0
A38: RLAT1 | B38: RLON1 | D38: DRLat1 | E38: DRLon1 | I38: RLAT2 | J38: RLON2 | L38: DRLat2 | M38: DRLon2 | Q38: RLAT3 | R38: RLON3 | T38: DRLat3 | U38: DRLon3
A39: =LAT1_+DRLat1 -> 47 | B39: =LON1_+DRLon1 -> 71.14 | D39: =Speed1*DT1_*SIN(RADIANS(Course1+90))/60 -> 0 | E39: =Speed1*DT1_*COS(RADIANS(Course1+90))/(60*COS(RADIANS(LAT1_))) -> 0 | I39: =Sight2!LAT2_+DRLat2 -> 47 | J39: =Sight2!LON2_+DRLon2 -> 71.64833333 | L39: =Speed2*DT2_*SIN(RADIANS(Course2+90))/60 -> 0 | M39: =Speed2*DT2_*COS(RADIANS(Course2+90))/(60*COS(RADIANS(Sight2!LAT2_))) -> 0 | Q39: =Sight3!LAT3_+DRLat3 -> 47 | R39: =Sight3!LON3_+DRLon3 -> 71.20333333 | T39: =Speed3*DT3_*SIN(RADIANS(Course3+90))/60 -> 0 | U39: =Speed3*DT3_*COS(RADIANS(Course3+90))/(60*COS(RADIANS(Sight3!LAT3_))) -> 0
A41: =body1 -> Arcturus | I41: =body2 -> Saturne | Q41: =body3 -> Altaïr
A42: DEC1 | B42: GHA1 | D42: UT1 | I42: DEC2 | J42: GHA2 | L42: UT2 | Q42: DEC3 | R42: GHA3 | T42: UT3
A43: =DEC1_ -> 19.24833333 | B43: =GHA1_ -> 135.1402315 | D43: =hr1_ -> 2 | E43: =min1_ -> 50 | F43: =sec1_ -> 44 | I43: =Sight2!DEC2_ -> -21.09833333 | J43: =Sight2!GHA2_ -> 96.64851019 | L43: =Sight2!hr2_ -> 2 | M43: =Sight2!min2_ -> 56 | N43: =Sight2!sec2_ -> 47 | Q43: =Sight3!DEC3_ -> 8.833333333 | R43: =Sight3!GHA3_ -> 53.20365744 | T43: =Sight3!hr3_ -> 2 | U43: =Sight3!min3_ -> 58 | V43: =Sight3!sec3_ -> 4
B44: =IF(GHA1_>180,GHA1_-360,GHA1_) -> 135.1402315 | J44: =IF(Sight2!GHA2_>180,Sight2!GHA2_-360,Sight2!GHA2_) -> 96.64851019 | R44: =IF(Sight3!GHA3_>180,Sight3!GHA3_-360,Sight3!GHA3_) -> 53.20365744
A45: Plot of the azimuth line of body 1, from the assumed pos. | I45: Plot of the azimuth line of body 2, from the assumed pos. | Q45: Plot of the azimuth line of body 3, from the assumed pos.
A46: Azimuth1 | C46: length | D46: x | E46: y | I46: Azimuth2 | K46: length | L46: x | M46: y | Q46: Azimuth3 | S46: length | T46: x | U46: y
A47: =AZ_nord1 -> 264.7581079 | C47: 1 | D47: =RLON1_+C47*COS(RADIANS((A47+90)))/COS(RADIANS(LAT1_)) -> 72.60014701 | E47: =RLAT1_+C47*SIN(RADIANS(A47+90)) -> 46.9086393 | I47: =Sight2!AZ_nord2 -> 204.5324054 | K47: 1 | L47: =RLON2_+K47*COS(RADIANS(I47+90))/COS(RADIANS(Sight2!LAT2_)) -> 72.25714394 | M47: =RLAT2_+K47*SIN(RADIANS(I47+90)) -> 46.09027342 | Q47: =Sight3!AZ_nord3 -> 152.3397853 | S47: 1 | T47: =RLON3_+S47*COS(RADIANS(Q47+90))/COS(RADIANS(Sight3!LAT3_)) -> 70.52264676 | U47: =RLAT3_+S47*SIN(RADIANS(Q47+90)) -> 46.11428381
D48: =RLON1_-C47*COS(RADIANS((A47+90)))/COS(RADIANS(LAT1_)) -> 69.67985299 | E48: =RLAT1_-C47*SIN(RADIANS(A47+90)) -> 47.0913607 | L48: =RLON2_-K47*COS(RADIANS((I47+90)))/COS(RADIANS(Sight2!LAT2_)) -> 71.03952273 | M48: =RLAT2_-K47*SIN(RADIANS(I47+90)) -> 47.90972658 | T48: =RLON3_-S47*COS(RADIANS((Q47+90)))/COS(RADIANS(Sight3!LAT3_)) -> 71.88401991 | U48: =RLAT3_-S47*SIN(RADIANS(Q47+90)) -> 47.88571619
A51: Calc. Altitude (Hc1) | D51: Obs. Altitude (Ho1) | I51: Calc. Altitude (Hc2) | L51: Obs. Altitude (Ho2) | Q51: Calc. Altitude (Hc3) | T51: Obs. Altitude (Ho3)
A52: =HC1_ -> 31.55748143 | D52: =HO1_ -> 31.70808779 | I52: =Sight2!HC2_ -> 18.26421815 | L52: =Sight2!HO2_ -> 18.31184854 | Q52: =Sight3!HC3_ -> 48.87132016 | T52: =Sight3!HO3_ -> 48.94258836
A54: Altitude difference | D54: Distance to body (nmi, deg, rad) | I54: Altitude difference | L54: Distance to body (nmi, deg, rad) | Q54: Altitude difference | T54: Distance to body (nmi, deg, rad)
A55: =D52-A52 -> 0.1506063569 | D55: =IF(LonB1=LonLP1,IF(LatB1-LatLP1<0,-(90-D52)*60,(90-D52)*60),IF((LonB1-LonLP1)<0,-(90-D52)*60,(90-D52)*60)) -> 3497.514732 | E55: =D55/60 -> 58.29191221 | F55: =RADIANS(E55) -> 1.017385795 | I55: =L52-I52 -> 0.04763039054 | L55: =IF(LonB2=LonLP2,IF(LatB2-LatLP2<0,-(90-L52)*60,(90-L52)*60),IF((LonB2-LonLP2)<0,-(90-L52)*60,(90-L52)*60)) -> 4301.289087 | M55: =L55/60 -> 71.68815146 | N55: =RADIANS(M55) -> 1.251194278 | Q55: =T52-Q52 -> 0.07126819751 | T55: =IF(LonB3=LonLP3,IF(LatB3-LatLP3<0,-(90-T52)*60,(90-T52)*60),IF((LonB3-LonLP3)<0,-(90-T52)*60,(90-T52)*60)) -> -2463.444699 | U55: =T55/60 -> -41.05741164 | V55: =RADIANS(U55) -> -0.7165870155
A56: Distance from AP to COP1 (nmi) | I56: Distance from AP to COP2 (nmi) | T56: Distance from AP to COP3 (nmi)
A57: =A55*60 -> 9.036381412 | I57: =I55*60 -> 2.857823432 | T57: =Q55*60 -> 4.276091851
A59: Position of COP1 on azimuth line (your position for meridian sight) | I59: Position of COP2 on azimuth line | Q59: Position of COP3 on azimuth line
B60: (decimal) | J60: (decimal) | R60: (decimal)
A61: LatLP1 | B61: =DRLat1+LatLP1 -> 46.9862405 | C61: =IF(ABS(LAT1_+A55*SIN(RADIANS(90+A47)))<0.000000000001,0,LAT1_+A55*SIN(RADIANS(90+A47))) -> 46.9862405 | I61: LatLP2 | J61: =DRLat2+LatLP2 -> 46.95666937 | K61: =IF(ABS(Sight2!LAT2_+I55*SIN(RADIANS(90+I47)))<0.000000000001,0,Sight2!LAT2_+I55*SIN(RADIANS(90+I47))) -> 46.95666937 | Q61: LatLP3 | R61: =DRLat3+LatLP3 -> 46.9368766 | S61: =IF(ABS(Sight3!LAT3_+Q55*SIN(RADIANS(90+Q47)))<0.000000000001,0,Sight3!LAT3_+Q55*SIN(RADIANS(90+Q47))) -> 46.9368766
A62: LonLP1 | B62: =DRLon1+LonLP1 -> 71.35990742 | C62: =IF(ABS(LON1_+(A55/COS(RADIANS(LAT1_)))*COS(RADIANS(90+A47)))<0.000000000001,0,LON1_+(A55/COS(RADIANS(LAT1_)))*COS(RADIANS(90+A47))) -> 71.35990742 | I62: LonLP2 | J62: =DRLon2+LonLP2 -> 71.67733122 | K62: =IF(ABS(Sight2!LON2_+(I55/COS(RADIANS(Sight2!LAT2_)))*COS(RADIANS(90+I47)))<0.000000000001,0,Sight2!LON2_+(I55/COS(RADIANS(Sight2!LAT2_)))*COS(RADIANS(90+I47))) -> 71.67733122 | Q62: LonLP3 | R62: =DRLon3+LonLP3 -> 71.15482203 | S62: =IF(ABS(Sight3!LON3_+(Q55/COS(RADIANS(Sight3!LAT3_)))*COS(RADIANS(90+Q47)))<0.000000000001,0,Sight3!LON3_+(Q55/COS(RADIANS(Sight3!LAT3_)))*COS(RADIANS(90+Q47))) -> 71.15482203
A64: Plot of body 1 circle of position (COP1) | I64: Plot of body 2 circle of position (COP2) | Q64: Plot of body 3 circle of position (COP3)
A65: 0.2 | I65: 0.2 | Q65: 0.2
A72: Positioning star indicator on Az line 1 | I72: Positioning star indicator on Az line 2 | Q72: Positioning star indicator on Az line 3
A73: -Tan (Az) | B73: Dx | C73: Dy | D73: X* | E73: Y* | I73: -Tan (Az) | J73: Dx | K73: Dy | L73: X* | M73: Y* | Q73: -Tan (Az) | R73: Dx | S73: Dy | T73: X* | U73: Y*
A74: =IF(OR(AZN1_<0.01,AZN1_>359.99),0.001,IF((ABS(AZN1_-180))<0.01,0.001,-TAN(RADIANS(AZN1_)))) -> -10.89984914 | B74: =IF(AZN1_>180,xmax-RLON1_,xmin-RLON1_) -> 0.9262791856 | C74: =B74/A74*COS(RADIANS(Latc)) -> -0.05795684671 | D74: =RLON1_+B74 -> 72.06627919 | E74: =RLAT1_+C74 -> 46.94204315 | I74: =IF(OR(AZN2_<0.01,AZN2_>359.99),0.001,IF((ABS(AZN2_-180))<0.01,0.001,-TAN(RADIANS(AZN2_)))) -> -0.4564094752 | J74: =IF(AZN2_>180,xmax-RLON2_,xmin-RLON2_) -> 0.4179458523 | K74: =J74/I74*COS(RADIANS(Latc)) -> -0.624523375 | L74: =RLON2_+J74 -> 72.06627919 | M74: =RLAT2_+K74 -> 46.37547662 | Q74: =IF(OR(AZN3_<0.01,AZN3_>359.99),0.001,IF((ABS(AZN3_-180))<0.01,0.001,-TAN(RADIANS(AZN3_)))) -> 0.5241262772 | R74: =IF(AZN3_>180,xmax-RLON3_,xmin-RLON3_) -> -0.6033333333 | S74: =R74/Q74*COS(RADIANS(Latc)) -> -0.7850633746 | T74: =RLON3_+R74 -> 70.6 | U74: =RLAT3_+S74 -> 46.21493663
B75: =IF(AND(OR(AZN1_>270,AZN1_<=90),E74>ymax),C75*A74/COS(RADIANS(Latc)),IF(AND(AND(AZN1_>90,AZN1_<=270),E74<ymin),C75*A74/COS(RADIANS(Latc)),B74)) -> 0.9262791856 | C75: =IF(AND(OR(AZN1_>270,AZN1_<=90),E74>ymax),ymax-RLAT1_,IF(AND(AND(AZN1_>90,AZN1_<=270),E74<ymin),ymin-RLAT1_,C74)) -> -0.05795684671 | D75: =RLON1_+B75 -> 72.06627919 | E75: =RLAT1_+C75 -> 46.94204315 | J75: =IF(AND(OR(AZN2_>270,AZN2_<=90),M74>ymax),K75*I74/COS(RADIANS(Latc)),IF(AND(AND(AZN2_>90,AZN2_<=270),M74<ymin),K75*I74/COS(RADIANS(Latc)),J74)) -> 0.4015342282 | K75: =IF(AND(OR(AZN2_>270,AZN2_<=90),M74>ymax),ymax-RLAT2_,IF(AND(AND(AZN2_>90,AZN2_<=270),M74<ymin),ymin-RLAT2_,K74)) -> -0.6 | L75: =RLON2_+J75 -> 72.04986756 | M75: =RLAT2_+K75 -> 46.4 | R75: =IF(AND(OR(AZN3_>270,AZN3_<=90),U74>ymax),S75*Q74/COS(RADIANS(Latc)),IF(AND(AND(AZN3_>90,AZN3_<=270),U74<ymin),S75*Q74/COS(RADIANS(Latc)),R74)) -> -0.4611092705 | S75: =IF(AND(OR(AZN3_>270,AZN3_<=90),U74>ymax),ymax-RLAT3_,IF(AND(AND(AZN3_>90,AZN3_<=270),U74<ymin),ymin-RLAT3_,S74)) -> -0.6 | T75: =RLON3_+R75 -> 70.74222406 | U75: =RLAT3_+S75 -> 46.4

Sheet data (hidden)
B1: ChBox15 (COP1) | D1: ChBox16 (COP2) | F1: ChBox17 (COP3) | H1: ChBox1 (Sight1) | J1: ChBox1 (Sight2) | L1: ChBox1 (Sight3)
A2: status | B2: TRUE | D2: TRUE | F2: TRUE | H2: FALSE | J2: FALSE | L2: FALSE
C4: deg | D4: min
A5: Lon1 | B5: W | C5: 71 | D5: 8.4
A7: Lon2 | B7: W | C7: 71 | D7: 38.9
A9: Lon3 | B9: W | C9: 71 | D9: 12.2

Sheet CALC1 (hidden)
A1: Plot of local meridian circle | E1: Plot of LHA meridian | K1: Plot of North AZIMUT | N1: Plot of the EQUATOR | Q1: South Pole view | T1: Declination circle | X1: Zenith view | AA1: Altitude circle | AE1: Plot of circle of position (COP1) for body 1 | AK1: slope and offset for linear approx. at Lat or Lon near intersection (n=0: x=my+b; n=1: y=mx+b)
A2: 0 | B2: =COS(RADIANS(A2)) -> 1 | C2: =SIN(RADIANS(A2)) -> 0 | E2: 90 | F2: =COS(RADIANS(E2))*COS(RADIANS(LHA1_)) -> 2.685326419e-17 | G2: =SIN(RADIANS(E2)) -> 1 | H2: =F2*COS(RADIANS(90-LAT1_))-G2*SIN(RADIANS(90-LAT1_)) -> -0.6819983601 | I2: =F2*SIN(RADIANS(90-LAT1_))+G2*COS(RADIANS(90-LAT1_)) -> 0.7313537016 | K2: =COS(RADIANS(E2))*COS(RADIANS(AZ_nord1-180)) -> 5.596521129e-18 | N2: =1.1*COS(RADIANS(90-LAT1_)) -> 0.8044890718 | O2: =1.1*SIN(RADIANS(90-LAT1_)) -> 0.7501981961 | Q2: 0 | R2: 0 | T2: 0 | U2: =COS(RADIANS(DEC1_))*COS(RADIANS(T2)) -> 0.9440986103 | V2: =COS(RADIANS(DEC1_))*SIN(RADIANS(T2)) -> 0 | X2: 0 | Y2: 0 | AA2: 0 | AB2: =COS(RADIANS(HC1_))*COS(RADIANS(AA2)) -> 0.8521155437 | AC2: =COS(RADIANS(HC1_))*SIN(RADIANS(AA2)) -> 0 | AE2: Azimut from body to PLOP1 (great circle) | AK2: m | AL2: b | AM2: n
A3: =SUM(A2+2) -> 2 | B3: 0.999390827 | C3: 0.0348994967 | E3: =SUM(E2-2) -> 88 | F3: =COS(RADIANS(E3))*COS(RADIANS(LHAo1_)) -> 0.01529880565 | G3: 0.999390827 | H3: -0.6703940669 | I3: 0.7413419411 | K3: 0.003188442509 | N3: =1.1*COS(RADIANS(270-LAT1_)) -> -0.8044890718 | O3: =1.1*SIN(RADIANS(270-LAT1_)) -> -0.7501981961 | T3: =SUM(T2+2) -> 2 | U3: 0.9435234909 | V3: =COS(RADIANS(DEC1_))*SIN(RADIANS(T3)) -> 0.03294856634 | AA3: =SUM(AA2+2) -> 2 | AB3: 0.851596458 | AC3: 0.02973840361 | AE3: acos | AF3: AZ(deg) | AJ3: LOP1: | AK3: 0.1386471528 | AL3: 64.84557399 | AM3: 0
A4: 4 | B4: 0.9975640503 | C4: 0.06975647374 | E4: 86 | F4: 0.03057897206 | G4: 0.9975640503 | H4: -0.6579730019 | I4: 0.7504269696 | K4: 0.006373000392 | Q4: Zénith | T4: 4 | U4: 0.9417988335 | V4: 0.06585698992 | X4: North Pole | AA4: 4 | AB4: 0.8500398331 | AC4: 0.05944057555 | AE4: =ACOS(IF(AG4>0,IF((ABS(1-AG4))<0.000000000001,1,AG4),IF((ABS(1+AG4))<0.000000000001,-1,AG4))) -> 0.802875246 | AF4: =DEGREES(AE4) -> 46.00136307 | AG4: =(SIN(RADIANS(LatLP1))-(SIN(RADIANS(LatB1))*SIN(RADIANS(HO1_))))/(COS(RADIANS(LatB1))*COS(RADIANS(HO1_))) -> 0.6946412571
A5: 6 | B5: 0.9945218954 | C5: 0.1045284633 | E5: 84 | F5: 0.0458218827 | G5: 0.9945218954 | H5: -0.6447502982 | I5: 0.7585977184 | K5: 0.009549793756 | N5: Plot of POLES | Q5: 0 | R5: =COS(RADIANS(LAT1_)) -> 0.6819983601 | T5: 6 | U5: 0.9389267393 | V5: 0.09868517691 | X5: 0 | Y5: =COS(RADIANS(LAT1_)) -> 0.6819983601 | AA5: 6 | AB5: 0.8474475656 | AC5: 0.08907032831 | AE5: Azimut North from body to PLOP1 (rad-deg)
A6: 8 | B6: 0.9902680687 | C6: 0.139173101 | E6: 82 | F6: 0.06100896644 | G6: 0.9902680687 | H6: -0.6307420655 | I6: 0.7658442327 | K6: 0.01271495217 | N6: =1.1*COS(RADIANS(180-LAT1_)) -> -0.7501981961 | O6: =1.1*SIN(RADIANS(180-LAT1_)) -> 0.8044890718 | T6: 8 | U6: 0.9349107075 | V6: 0.1313931312 | AA6: 8 | AB6: 0.8438228138 | AC6: 0.1185915626 | AE6: =IF(AND(LatB1=0,LatLP1=0),IF((LonLP1-LonB1)>0,3*PI()/2,PI()/2),IF(LonLP1=LonB1,IF((LatLP1-LatB1)>0,0,PI()),IF((LonLP1-LonB1)<0,AE4,2*PI()-AE4))) -> 0.802875246 | AF6: =IF(DEGREES(ZB1Nr)>=360,DEGREES(ZB1Nr)-360,IF(LonLP1-LonB1>180,DEGREES(2*PI()-ZB1Nr),IF(LonLP1-LonB1<-180,DEGREES(2*PI()-ZB1Nr),DEGREES(ZB1Nr)))) -> 46.00136307
A7: 10 | B7: 0.984807753 | C7: 0.1736481777 | E7: 80 | F7: 0.07612172015 | G7: 0.984807753 | H7: -0.6159653707 | I7: 0.7721576839 | K7: 0.01586461937 | N7: =1.1*COS(RADIANS(-LAT1_)) -> 0.7501981961 | O7: =1.1*SIN(RADIANS(-LAT1_)) -> -0.8044890718 | Q7: Zénith line + label | S7: nadir | T7: 10 | U7: 0.929755631 | V7: 0.1639410032 | X7: Z meridian | AA7: 10 | AB7: 0.8391699939 | AC7: 0.1479683113 | AE7: D | AF7: acosLatv | AG7: LatV | AH7: cs/sndLov | AI7: ifdLov | AJ7: dLoV | AK7: DV | AL7: DVx | AM7: asindLovx | AN7: dLoVx | AO7: AzNB-LOP | AP7: Latx | AQ7: DRLatx | AR7: GHAx | AS7: GHAxcor | AT7: DRLonx | AU7: linLat1 | AV7: linLon1
A8: 12 | B8: 0.9781476007 | C8: 0.2079116908 | E8: 78 | F8: 0.09114173127 | G8: 0.9781476007 | H8: -0.6004382171 | I8: 0.7775303798 | K8: 0.01899495797 | Q8: 0 | R8: 0 | T8: 12 | U8: 0.9234677905 | V8: 0.1962891384 | X8: 0 | Y8: -1 | AA8: 12 | AB8: 0.8334947747 | AC8: 0.1771647835 | AE8: =IF(AO8=0,RADIANS(90-HO1_),IF(AO8=180,-RADIANS(90-HO1_),IF(AO8<180,-RADIANS(90-HO1_),RADIANS(90-HO1_)))) -> -1.017385795 | AF8: =ACOS(COS(RADIANS(LatB1))*SIN(RADIANS(AO8))) -> 0.8712245172 | AG8: =IF(OR(AO8=0,AO8=180),RADIANS((LatLP1+LatB1)/2),IF(AND(LatB1=0,LatLP1=0),0,IF(LatB1>=0,AF8,-AF8))) -> 0.8712245172 | AH8: =IF(COS(RADIANS(AO8))/SIN(AG8)>0,IF(1-COS(RADIANS(AO8))/SIN(AG8)<0.000000000001,1,COS(RADIANS(AO8))/SIN(AG8)),IF(1+COS(RADIANS(AO8))/SIN(AG8)<0.000000000001,-1,COS(RADIANS(AO8))/SIN(AG8))) -> 0.955849307 | AI8: =IF(AND(AO8<=180,AO8>0),IF(AH8=1,-PI()/2,IF(AH8=-1,PI()/2,-ASIN(AH8))),IF(AH8=1,PI()/2,IF(AH8=-1,-PI()/2,ASIN(AH8)))) -> -1.272536528 | AJ8: =IF(OR(OR(AO8=0,AO8=180),AND(LatB1<>LatLP1,OR(AO8=90,AO8=270))),0,IF(AND(LatB1=0,LatLP1=0),RADIANS((LonLP1-LonB1)/2),AI8)) -> -1.272536528 | AK8: =IF(AJ8=0,AG8-RADIANS(LatB1),ASIN(COS(RADIANS(LatB1))*SIN(AJ8))) -> -1.125344318 | AL8: =AE8-AK8 -> 0.1079585226 | AM8: =ASIN(SIN(AL8)/COS(RADIANS(AP8))) -> 0.1667573782 | AN8: =IF(AL8>PI()/2,PI()-AM8,IF(AL8<-PI()/2,-PI()-AM8,AM8)) -> 0.1667573782 | AO8: =IF(AO9-dZB1_<0,360+(AO9-dZB1_),IF(AO9-dZB1_>=360,AO9-dZB1_-360,AO9-dZB1_)) -> 43.00136307 | AP8: =IF(OR(AO8=0,AO8=180),LatB1+DEGREES(AE8),DEGREES(ASIN(SIN(AG8)*COS(AL8)))) -> 49.52273019 | AQ8: =DRLat1+AP8 -> 49.52273019 | AR8: =IF(OR(LatB1=90,LatB1=-90),AR9-dZB1_,IF(OR(AO8=0,AO8=180),LonB1,LonB1+DEGREES(AJ8)+DEGREES(AN8))) -> 71.78375314 | AS8: =IF(AR8<0,360+AR8,AR8) -> 71.78375314 | AT8: =IF(AS8-GHAx1>180,cLOP1+(AS8-GHAx1-360),IF(AS8-GHAx1<-180,cLOP1+(AS8-GHAx1+360),cLOP1+(AS8-GHAx1))) -> 71.78375314 | AV8: 71.71175953
A9: 14 | B9: 0.9702957263 | C9: 0.2419218956 | E9: 76 | F9: 0.1060507002 | G9: 0.9702957263 | H9: -0.5841795219 | I9: 0.7819557747 | K9: 0.02210215415 | N9: Plot of Declination | Q9: 0 | R9: 1 | T9: 14 | U9: 0.9160548468 | V9: 0.2283981254 | X9: 0 | Y9: 1 | AA9: 14 | AB9: 0.8268040704 | AC9: 0.2061454076 | AE9: -1.017385795 | AF9: 0.8680754466 | AG9: 0.8680754466 | AH9: =IF(COS(RADIANS(AO9))/SIN(AG9)>0,IF(1-COS(RADIANS(AO9))/SIN(AG9)<0.000000000001,1,COS(RADIANS(AO9))/SIN(AG9)),IF(1+COS(RADIANS(AO9))/SIN(AG9)<0.000000000001,-1,COS(RADIANS(AO9))/SIN(AG9))) -> 0.9552682736 | AI9: =IF(AND(AO9<=180,AO9>0),IF(AH9=1,-PI()/2,IF(AH9=-1,PI()/2,-ASIN(AH9))),IF(AH9=1,PI()/2,IF(AH9=-1,-PI()/2,ASIN(AH9)))) -> -1.270565581 | AJ9: -1.270565581 | AK9: -1.12407287 | AL9: =AE9-AK9 -> 0.1066870744 | AM9: 0.1642115995 | AN9: =IF(AL9>PI()/2,PI()-AM9,IF(AL9<-PI()/2,-PI()-AM9,AM9)) -> 0.1642115995 | AO9: 43.20136307 | AP9: 49.35393609 | AQ9: 49.35393609 | AR9: 71.75081773 | AS9: =IF(AR9<0,360+AR9,AR9) -> 71.75081773 | AT9: 71.75081773 | AV9: 71.68835671
A10: 16 | B10: 0.9612616959 | C10: 0.2756373558 | E10: 74 | F10: 0.1208304627 | G10: 0.9612616959 | H10: -0.567209094 | I10: 0.785428477 | K10: 0.02518242225 | N10: =COS(RADIANS(DEC1_+90-LAT1_)) -> 0.4656402634 | O10: =SIN(RADIANS(DEC1_+90-LAT1_)) -> 0.8849740929 | Q10: 0 | R10: 1.1 | S10: -1.1 | T10: 16 | U10: 0.9075258313 | V10: 0.2602288446 | AA10: 16 | AB10: 0.8191060327 | AC10: 0.2348748753 | AE10: -1.017385795 | AF10: 0.8649283021 | AG10: 0.8649283021 | AH10: 0.9546803928 | AI10: -1.268584095 | AJ10: -1.268584095 | AK10: -1.122789863 | AL10: 0.1054040679 | AM10: 0.1616674852 | AN10: 0.1616674852 | AO10: 43.40136307 | AP10: 49.18509389 | AQ10: 49.18509389 | AR10: 71.71858149 | AS10: 71.71858149 | AT10: 71.71858149 | AV10: 71.66494722
A11: 18 | B11: 0.9510565163 | C11: 0.3090169944 | E11: 72 | F11: 0.135463012 | G11: 0.9510565163 | H11: -0.5495476092 | I11: 0.7879442556 | K11: 0.02823200946 | N11: =COS(RADIANS(270-DEC1_-LAT1_)) -> -0.9152997633 | O11: =SIN(RADIANS(270-DEC1_-LAT1_)) -> -0.402773315 | T11: 18 | U11: 0.8978911354 | V11: 0.291742515 | X11: Azimut line + label | AA11: 18 | AB11: 0.8104100405 | AC11: 0.2633181842 | AE11: -1.017385795 | AF11: 0.8617831064 | AG11: 0.8617831064 | AH11: 0.9540855718 | AI11: -1.266591953 | AJ11: -1.266591953 | AK11: -1.121495187 | AL11: 0.1041093915 | AM11: 0.1591247864 | AN11: 0.1591247864 | AO11: 43.60136307 | AP11: 49.01620467 | AQ11: 49.01620467 | AR11: 71.6870369 | AS11: 71.6870369 | AT11: 71.6870369 | AV11: 71.64153121
A12: 20 | B12: 0.9396926208 | C12: 0.3420201433 | E12: 70 | F12: 0.1499305203 | G12: 0.9396926208 | H12: -0.5312165853 | I12: 0.7895000456 | K12: 0.0312472003 | Q12: LHA line + label | T12: 20 | U12: 0.8871624974 | V12: 0.322900742 | X12: 0 | Y12: 0 | AA12: 20 | AB12: 0.8007266885 | AC12: 0.2914406804 | AE12: -1.017385795 | AF12: 0.8586398825 | AG12: 0.8586398825 | AH12: 0.9534837164 | AI12: -1.264589036 | AJ12: -1.264589036 | AK12: -1.120188728 | AL12: 0.1028029326 | AM12: 0.1565832553 | AN12: 0.1565832553 | AO12: 43.80136307 | AP12: 48.84726949 | AQ12: 48.84726949 | AR12: 71.65617659 | AS12: 71.65617659 | AT12: 71.65617659 | AV12: 71.61810883
A13: 22 | B13: 0.9271838546 | C13: 0.3746065934 | E13: 68 | F13: 0.1642153615 | G13: 0.9271838546 | H13: -0.5122383558 | I13: 0.7900939514 | K13: 0.03422432125 | N13: Plot of Calculated ALTITUDE | Q13: 0 | R13: 0 | T13: 22 | U13: 0.8753529886 | V13: 0.3536655643 | X13: =COS(RADIANS(90-AZ_nord1)) -> -0.995817866 | Y13: =SIN(RADIANS(90-AZ_nord1)) -> -0.09136070174 | AA13: 22 | AB13: 0.7900677744 | AC13: 0.319208101 | AE13: -1.017385795 | AF13: 0.8554986538 | AG13: 0.8554986538 | AH13: 0.9528747304 | AI13: -1.262575223 | AJ13: -1.262575223 | AK13: -1.118870372 | AL13: 0.1014845765 | AM13: 0.1540426442 | AN13: 0.1540426442 | AO13: 44.00136307 | AP13: 48.67828941 | AQ13: 48.67828941 | AR13: 71.62599329 | AS13: 71.62599329 | AT13: 71.62599329 | AV13: 71.59468022
A14: 24 | B14: 0.9135454576 | C14: 0.4067366431 | E14: 66 | F14: 0.1783001315 | G14: 0.9135454576 | H14: -0.4926360428 | I14: 0.7897252493 | K14: 0.03715974514 | N14: =COS(RADIANS(HC1_)) -> 0.8521155437 | O14: =SIN(RADIANS(HC1_)) -> 0.5233537046 | Q14: =COS(RADIANS(90+LHA1_)) -> -0.8987958176 | R14: =SIN(RADIANS(90+LHA1_)) -> 0.4383675151 | T14: 24 | U14: 0.862476997 | V14: 0.3839994995 | X14: =1.1*COS(RADIANS(90-AZ_nord1)) -> -1.095399653 | Y14: =1.1*SIN(RADIANS(90-AZ_nord1)) -> -0.1004967719 | AA14: 24 | AB14: 0.7784462844 | AC14: 0.3465866158 | AE14: -1.017385795 | AF14: 0.8523594439 | AG14: 0.8523594439 | AH14: 0.9522585165 | AI14: -1.260550392 | AJ14: -1.260550392 | AK14: -1.117540003 | AL14: 0.1001542073 | AM14: 0.1515027065 | AN14: 0.1515027065 | AO14: 44.20136307 | AP14: 48.50926546 | AQ14: 48.50926546 | AR14: 71.59647986 | AS14: 71.59647986 | AT14: 71.59647986 | AV14: 71.57124553
A15: 26 | B15: 0.8987940463 | C15: 0.4383711468 | E15: 64 | F15: 0.1921676703 | G15: 0.8987940463 | H15: -0.4724335286 | I15: 0.7883943888 | K15: 0.04004989559 | N15: =COS(RADIANS(180-HC1_)) -> -0.8521155437 | O15: =SIN(RADIANS(180-HC1_)) -> 0.5233537046 | Q15: =1.1*COS(RADIANS(90+LHA1_)) -> -0.9886753993 | R15: =1.1*SIN(RADIANS(90+LHA1_)) -> 0.4822042666 | T15: 26 | U15: 0.8485502101 | V15: 0.4138655905 | AA15: 26 | AB15: 0.7658763775 | AC15: 0.3735428681 | AE15: -1.017385795 | AF15: 0.8492222768 | AG15: 0.8492222768 | AH15: 0.9516349753 | AI15: -1.258514419 | AJ15: -1.258514419 | AK15: -1.116197503 | AL15: 0.09881170762 | AM15: 0.1489631956 | AN15: 0.1489631956 | AO15: 44.40136307 | AP15: 48.34019866 | AQ15: 48.34019866 | AR15: 71.56762927 | AS15: 71.56762927 | AT15: 71.56762927 | AV15: 71.5478049
A16: 28 | B16: 0.8829475929 | C16: 0.4694715628 | E16: 62 | F16: 0.2058010824 | G16: 0.8829475929 | H16: -0.4516554269 | I16: 0.7861029911 | K16: 0.04289125142 | T16: 28 | U16: 0.8335895954 | V16: 0.44322745 | AA16: 28 | AB16: 0.7523733682 | AC16: 0.400044016 | AE16: -1.017385795 | AF16: 0.8460871767 | AG16: 0.8460871767 | AH16: 0.9510040059 | AI16: -1.256467179 | AJ16: -1.256467179 | AK16: -1.114842754 | AL16: 0.09745695832 | AM16: 0.1464238657 | AN16: 0.1464238657 | AO16: 44.60136307 | AP16: 48.17109003 | AQ16: 48.17109003 | AR16: 71.5394346 | AS16: 71.5394346 | AT16: 71.5394346 | AV16: 71.52435847
A17: 30 | B17: 0.8660254038 | C17: 0.5 | E17: 60 | F17: 0.2191837576 | G17: 0.8660254038 | H17: -0.4303270527 | I17: 0.782853848 | K17: 0.04568035087 | N17: Zénith | Q17: Greenwich line + label | T17: 30 | U17: 0.8176133802 | V17: 0.4720493052 | X17: Cardinal points | AA17: 30 | AB17: 0.7379537078 | AC17: 0.4260577719 | AE17: -1.017385795 | AF17: 0.8429541685 | AG17: 0.8429541685 | AH17: 0.9503655057 | AI17: -1.254408545 | AJ17: -1.254408545 | AK17: -1.113475634 | AL17: 0.09608983874 | AM17: 0.1438844711 | AN17: 0.1438844711 | AO17: 44.80136307 | AP17: 48.00194057 | AQ17: 48.00194057 | AR17: 71.51188904 | AS17: 71.51188904 | AT17: 71.51188904 | AV17: 71.50090638
A18: 32 | B18: 0.8480480962 | C18: 0.5299192642 | E18: 58 | F18: 0.2322993911 | G18: 0.8480480962 | H18: -0.4084743913 | I18: 0.778650918 | K18: 0.04841379585 | N18: 0 | O18: 1.2 | Q18: 0 | R18: 0 | T18: 32 | U18: 0.8006410291 | V18: 0.5002960409 | X18: -1.15 | Y18: 0 | Z18: W | AA18: 32 | AB18: 0.7226349646 | AC18: 0.451552442 | AE18: -1.017385795 | AF18: 0.839823277 | AG18: 0.839823277 | AH18: 0.9497193704 | AI18: -1.252338389 | AJ18: -1.252338389 | AK18: -1.112096022 | AL18: 0.09471022663 | AM18: 0.1413447666 | AN18: 0.1413447666 | AO18: 45.00136307 | AP18: 47.83275125 | AQ18: 47.83275125 | AR18: 71.4849859 | AS18: 71.4849859 | AT18: 71.4849859 | AV18: 71.47744876
A19: 34 | B19: 0.8290375726 | C19: 0.5591929035 | E19: 56 | F19: 0.2451320036 | G19: 0.8290375726 | H19: -0.3861240667 | I19: 0.7734993219 | K19: 0.05108825607 | Q19: =COS(RADIANS(90-LON1_)) -> 0.9463112653 | R19: =SIN(RADIANS(90-LON1_)) -> 0.3232568471 | T19: 34 | U19: 0.7826932201 | V19: 0.5279332431 | X19: 0 | Y19: 1.15 | Z19: N | AA19: 34 | AB19: 0.7064358019 | AC19: 0.476496965 | AE19: -1.017385795 | AF19: 0.8366945275 | AG19: 0.8366945275 | AH19: 0.9490654937 | AI19: -1.25025658 | AJ19: -1.25025658 | AK19: -1.110703793 | AL19: 0.09331799806 | AM19: 0.1388045072 | AN19: 0.1388045072 | AO19: 45.20136307 | AP19: 47.66352305 | AQ19: 47.66352305 | AR19: 71.45871858 | AS19: 71.45871858 | AT19: 71.45871858 | AV19: 71.45398575
A20: 36 | B20: 0.8090169944 | C20: 0.5877852523 | E20: 54 | F20: 0.2576659605 | G20: 0.8090169944 | H20: -0.3633033095 | I20: 0.767405336 | K20: 0.05370047312 | N20: Horizon | Q20: =-COS(RADIANS(90-LON1_)) -> -0.9463112653 | R20: =-SIN(RADIANS(90-LON1_)) -> -0.3232568471 | T20: 36 | U20: 0.7637918201 | V20: 0.5549272398 | X20: 1.15 | Y20: 0 | Z20: E | AA20: 36 | AB20: 0.6893759561 | AC20: 0.5008609499 | AE20: -1.017385795 | AF20: 0.8335679459 | AG20: 0.8335679459 | AH20: 0.9484037676 | AI20: -1.248162988 | AJ20: -1.248162988 | AK20: -1.109298823 | AL20: 0.09191302746 | AM20: 0.136263448 | AN20: 0.136263448 | AO20: 45.40136307 | AP20: 47.49425694 | AQ20: 47.49425694 | AR20: 71.4330806 | AS20: 71.4330806 | AT20: 71.4330806 | AV20: 71.43051749
A21: 38 | B21: 0.7880107536 | C21: 0.6156614753 | E21: 52 | F21: 0.2698859911 | G21: 0.7880107536 | H21: -0.3400399231 | I21: 0.7603763849 | K21: 0.05624726442 | N21: 1.3 | O21: 0 | Q21: =1.1*COS(RADIANS(90-LON1_)) -> 1.040942392 | R21: =1.1*SIN(RADIANS(90-LON1_)) -> 0.3555825318 | T21: 38 | U21: 0.7439598574 | V21: 0.5812451433 | X21: 0 | Y21: -1.15 | Z21: S | AA21: 38 | AB21: 0.6714762118 | AC21: 0.5246147128 | AE21: -1.017385795 | AF21: 0.830443558 | AG21: 0.830443558 | AH21: 0.9477340823 | AI21: -1.246057479 | AJ21: -1.246057479 | AK21: -1.107880983 | AL21: 0.09049518757 | AM21: 0.1337213444 | AN21: 0.1337213444 | AO21: 45.60136307 | AP21: 47.32495385 | AQ21: 47.32495385 | AR21: 71.40806559 | AS21: 71.40806559 | AT21: 71.40806559 | AV21: 71.4070441
A22: 40 | B22: 0.7660444431 | C22: 0.6427876097 | E22: 50 | F22: 0.2817772072 | G22: 0.7660444431 | H22: -0.3163622504 | I22: 0.7524210323 | K22: 0.05872552709 | N22: -1.3 | O22: 0 | Q22: =-1.1*COS(RADIANS(90-LON1_)) -> -1.040942392 | R22: =-1.1*SIN(RADIANS(90-LON1_)) -> -0.3555825318 | T22: 40 | U22: 0.7232214942 | V22: 0.606854889 | AA22: 40 | AB22: 0.6527583772 | AC22: 0.5477293135 | AE22: -1.017385795 | AF22: 0.8273213904 | AG22: 0.8273213904 | AH22: 0.9470563262 | AI22: -1.243939918 | AJ22: -1.243939918 | AK22: -1.106450145 | AL22: 0.08906434942 | AM22: 0.1311779518 | AN22: 0.1311779518 | AO22: 45.80136307 | AP22: 47.15561473 | AQ22: 47.15561473 | AR22: 71.38366725 | AS22: 71.38366725 | AT22: 71.38366725 | AV22: 71.38356571
A23: 42 | B23: 0.7431448255 | C23: 0.6691306064 | E23: 48 | F23: 0.2933251212 | G23: 0.7431448255 | H23: -0.2922991391 | I23: 0.7435489706 | K23: 0.06113224176 | T23: 42 | U23: 0.701601997 | V23: 0.6317252756 | X23: Azimut North 1 | AA23: 42 | AB23: 0.633245257 | AC23: 0.5701765905 | AE23: -1.017385795 | AF23: 0.8242014698 | AG23: 0.8242014698 | AH23: 0.9463703854 | AI23: -1.241810168 | AJ23: -1.241810168 | AK23: -1.105006178 | AL23: 0.0876203823 | AM23: 0.1286330256 | AN23: 0.1286330256 | AO23: =IF(ZB1N>=360,ZB1N-360,ZB1N) -> 46.00136307 | AP23: 46.9862405 | AQ23: 46.9862405 | AR23: =IF(OR(LatB1=90,LatB1=-90),LonLP1,IF(OR(AO23=0,AO23=180),LonB1,LonB1+DEGREES(AJ23)+DEGREES(AN23))) -> 71.3598794 | AS23: 71.3598794 | AT23: =IF(DRLon1+LON1_<0,DRLon1+GHAx1-360,DRLon1+GHAx1) -> 71.3598794 | AV23: 71.36008246
A24: 44 | B24: 0.7193398003 | C24: 0.6946583705 | E24: 46 | F24: 0.3045156637 | G24: 0.7193398003 | H24: -0.2678799063 | I24: 0.733771009 | K24: 0.0634644762 | N24: N | Q24: Sun line + label | T24: 44 | U24: 0.6791277058 | V24: 0.6558260022 | X24: =AZ_nord1 -> 264.7581079 | AA24: 44 | AB24: 0.6129606251 | AC24: 0.5919291951 | AE24: -1.017385795 | AF24: 0.8210838234 | AG24: 0.8210838234 | AH24: 0.9456761445 | AI24: -1.239668091 | AJ24: -1.239668091 | AK24: -1.103548949 | AL24: 0.08616315375 | AM24: 0.1260863214 | AN24: 0.1260863214 | AO24: =IF(AO23+dZB1_<0,360+(AO23+dZB1_),IF(AO23+dZB1_>=360,AO23+dZB1_-360,AO23+dZB1_)) -> 46.20136307 | AP24: 46.81683207 | AQ24: 46.81683207 | AR24: =IF(OR(LatB1=90,LatB1=-90),AR23+dZB1_,IF(OR(AO24=0,AO24=180),LonB1,LonB1+DEGREES(AJ24)+DEGREES(AN24))) -> 71.33669598 | AS24: 71.33669598 | AT24: =IF(AS24-GHAx1>180,cLOP1+(AS24-GHAx1-360),IF(AS24-GHAx1<-180,cLOP1+(AS24-GHAx1+360),cLOP1+(AS24-GHAx1))) -> 71.33669598 | AV24: 71.33659446
A25: 46 | B25: 0.6946583705 | C25: 0.7193398003 | E25: 44 | F25: 0.3153352008 | G25: 0.6946583705 | H25: -0.2431343031 | I25: 0.7230990604 | K25: 0.06571938895 | N25: S | Q25: 0 | R25: 0 | T25: 46 | U25: 0.6558260022 | V25: 0.6791277058 | AA25: 46 | AB25: 0.5919291951 | AC25: 0.6129606251 | AE25: -1.017385795 | AF25: 0.8179684787 | AG25: 0.8179684787 | AH25: 0.9449734858 | AI25: -1.237513546 | AJ25: -1.237513546 | AK25: -1.102078325 | AL25: 0.08469252951 | AM25: 0.1235375944 | AN25: 0.1235375944 | AO25: 46.40136307 | AP25: 46.64739036 | AQ25: 46.64739036 | AR25: 71.31411098 | AS25: 71.31411098 | AT25: 71.31411098 | AV25: 71.31310185
A26: 48 | B26: 0.6691306064 | C26: 0.7431448255 | E26: 42 | F26: 0.3257705505 | G26: 0.6691306064 | H26: -0.2180924782 | I26: 0.711546127 | K26: 0.06789423275 | N26: E | Q26: =COS(RADIANS(270-LON1_+UTday1*360)) -> -0.4764939663 | R26: =SIN(RADIANS(270-LON1_+UTday1*360)) -> -0.8791777409 | T26: 48 | U26: 0.6317252756 | V26: 0.701601997 | AA26: 48 | AB26: 0.5701765905 | AC26: 0.633245257 | AE26: -1.017385795 | AF26: 0.8148554637 | AG26: 0.8148554637 | AH26: 0.9442622896 | AI26: -1.235346393 | AJ26: -1.235346393 | AK26: -1.100594169 | AL26: 0.08320837352 | AM26: 0.1209865998 | AN26: 0.1209865998 | AO26: 46.60136307 | AP26: 46.47791624 | AQ26: 46.47791624 | AR26: 71.29211851 | AS26: 71.29211851 | AT26: 71.29211851 | AV26: 71.28960474
A27: 50 | B27: 0.6427876097 | C27: 0.7660444431 | E27: 40 | F27: 0.335808999 | G27: 0.6427876097 | H27: -0.1927849412 | I27: 0.6991262843 | K27: 0.06998635789 | N27: W | Q27: =1.1*COS(RADIANS(270-LON1_+UTday1*360)) -> -0.5241433629 | R27: =1.1*SIN(RADIANS(270-LON1_+UTday1*360)) -> -0.967095515 | T27: 50 | U27: 0.606854889 | V27: 0.7232214942 | AA27: 50 | AB27: 0.5477293135 | AC27: 0.6527583772 | AE27: -1.017385795 | AF27: 0.8117448067 | AG27: 0.8117448067 | AH27: 0.9435424343 | AI27: -1.233166486 | AJ27: -1.233166486 | AK27: -1.099096343 | AL27: 0.08171054788 | AM27: 0.1184330928 | AN27: 0.1184330928 | AO27: 46.80136307 | AP27: 46.30841061 | AQ27: 46.30841061 | AR27: 71.27071278 | AS27: 71.27071278 | AT27: 71.27071278 | AV27: 71.26610327
A28: 52 | B28: 0.6156614753 | C28: 0.7880107536 | E28: 38 | F28: 0.3454383159 | G28: 0.6156614753 | H28: -0.1672425255 | I28: 0.6858546639 | K28: 0.07199321543 | N28: f | T28: 52 | U28: 0.5812451433 | V28: 0.7439598574 | AA28: 52 | AB28: 0.5246147128 | AC28: 0.6714762118 | AE28: -1.017385795 | AF28: 0.8086365364 | AG28: 0.8086365364 | AH28: 0.942813796 | AI28: -1.230973681 | AJ28: -1.230973681 | AK28: -1.097584708 | AL28: 0.08019891284 | AM28: 0.1158768279 | AN28: 0.1158768279 | AO28: 47.00136307 | AP28: 46.13887433 | AQ28: 46.13887433 | AR28: 71.24988808 | AS28: 71.24988808 | AT28: 71.24988808 | AV28: 71.24259755
A29: 54 | B29: 0.5877852523 | C29: 0.8090169944 | E29: 36 | F29: 0.3546467695 | G29: 0.5877852523 | H29: -0.1414963505 | I29: 0.6717474352 | K29: 0.07391236033 | N29: s | Q29: GHAy line + label | T29: 54 | U29: 0.5549272398 | V29: 0.7637918201 | AA29: 54 | AB29: 0.5008609499 | AC29: 0.6893759561 | AE29: -1.017385795 | AF29: 0.805530682 | AG29: 0.805530682 | AH29: 0.9420762488 | AI29: -1.22876783 | AJ29: -1.22876783 | AK29: -1.096059122 | AL29: 0.07867332673 | AM29: 0.1133175599 | AN29: 0.1133175599 | AO29: 47.20136307 | AP29: 45.96930827 | AQ29: 45.96930827 | AR29: 71.22963879 | AS29: 71.22963879 | AT29: 71.22963879 | AV29: 71.2190877
A30: 56 | B30: 0.5591929035 | C30: 0.8290375726 | E30: 34 | F30: 0.3634231406 | G30: 0.5591929035 | H30: -0.115577784 | I30: 0.6568217858 | K30: 0.0757414544 | N30: U | Q30: 0 | R30: 0 | T30: 56 | U30: 0.5279332431 | V30: 0.7826932201 | AA30: 56 | AB30: 0.476496965 | AC30: 0.7064358019 | AE30: -1.017385795 | AF30: 0.8024272731 | AG30: 0.8024272731 | AH30: 0.9413296644 | AI30: -1.226548783 | AJ30: -1.226548783 | AK30: -1.094519441 | AL30: 0.07713364598 | AM30: 0.1107550427 | AN30: 0.1107550427 | AO30: 47.40136307 | AP30: 45.79971327 | AQ30: 45.79971327 | AR30: 71.20995938 | AS30: 71.20995938 | AT30: 71.20995938 | AV30: 71.19557383
A31: 58 | B31: 0.5299192642 | C31: 0.8480480962 | E31: 32 | F31: 0.3717567366 | G31: 0.5299192642 | H31: -0.08951840375 | I31: 0.6410959002 | K31: 0.07747826918 | N31: L | Q31: =COS(RADIANS(90-LON1_+GHAy1)) -> 0.9908064166 | R31: =SIN(RADIANS(90-LON1_+GHAy1)) -> 0.1352872677 | T31: 58 | U31: 0.5002960409 | V31: 0.8006410291 | AA31: 58 | AB31: 0.451552442 | AC31: 0.7226349646 | AE31: -1.017385795 | AF31: 0.7993263396 | AG31: 0.7993263396 | AH31: 0.9405739124 | AI31: -1.22431639 | AJ31: -1.22431639 | AK31: -1.09296552 | AL31: 0.07557972509 | AM31: 0.10818903 | AN31: 0.10818903 | AO31: 47.60136307 | AP31: 45.63009018 | AQ31: 45.63009018 | AR31: 71.1908444 | AS31: 71.1908444 | AT31: 71.1908444 | AV31: 71.17205608
A32: 60 | B32: 0.5 | C32: 0.8660254038 | E32: 30 | F32: 0.3796374043 | G32: 0.5 | H32: -0.06334995914 | I32: 0.6245889379 | K32: 0.07912068862 | N32: ft | Q32: =1.15*COS(RADIANS(90-LON1_+GHAy1)) -> 1.139427379 | R32: =1.15*SIN(RADIANS(90-LON1_+GHAy1)) -> 0.1555803578 | T32: 60 | U32: 0.4720493052 | V32: 0.8176133802 | AA32: 60 | AB32: 0.4260577719 | AC32: 0.7379537078 | AE32: -1.017385795 | AF32: 0.796227912 | AG32: 0.796227912 | AH32: 0.9398088602 | AI32: -1.222070496 | AJ32: -1.222070496 | AK32: -1.091397212 | AL32: 0.07401141656 | AM32: 0.1056192752 | AN32: 0.1056192752 | AO32: 47.80136307 | AP32: 45.46043983 | AQ32: 45.46043983 | AR32: 71.1722885 | AS32: 71.1722885 | AT32: 71.1722885 | AV32: 71.14853454
A33: 62 | B33: 0.4694715628 | C33: 0.8829475929 | E33: 28 | F33: 0.3870555423 | G33: 0.4694715628 | H33: -0.03710433235 | I33: 0.6073210103 | K33: 0.08066671169 | N33: m | T33: 62 | U33: 0.44322745 | V33: 0.8335895954 | AA33: 62 | AB33: 0.400044016 | AC33: 0.7523733682 | AE33: -1.017385795 | AF33: 0.7931320212 | AG33: 0.7931320212 | AH33: 0.9390343727 | AI33: -1.219810948 | AJ33: -1.219810948 | AK33: -1.089814366 | AL33: 0.0724285709 | AM33: 0.103045531 | AN33: 0.103045531 | AO33: 48.00136307 | AP33: 45.29076304 | AQ33: 45.29076304 | AR33: 71.1542864 | AS33: 71.1542864 | AT33: 71.1542864 | AV33: 71.12500933
A34: 64 | B34: =COS(RADIANS(A34)) -> 0.4383711468 | C34: =SIN(RADIANS(A34)) -> 0.8987940463 | E34: 26 | F34: 0.3940021127 | G34: =SIN(RADIANS(E34)) -> 0.4383711468 | H34: =F34*COS(RADIANS(90-LAT1_))-G34*SIN(RADIANS(90-LAT1_)) -> -0.01081349966 | I34: =F34*SIN(RADIANS(90-LAT1_))+G34*COS(RADIANS(90-LAT1_)) -> 0.5893131556 | K34: =COS(RADIANS(E34))*COS(RADIANS(AZ_nord1-180)) -> 0.08211445479 | Q34: Horizontal axis | T34: 64 | U34: =COS(RADIANS(DEC1_))*COS(RADIANS(T34)) -> 0.4138655905 | V34: 0.8485502101 | AA34: 64 | AB34: =COS(RADIANS(HC1_))*COS(RADIANS(AA34)) -> 0.3735428681 | AC34: =COS(RADIANS(HC1_))*SIN(RADIANS(AA34)) -> 0.7658763775 | AE34: -1.017385795 | AF34: 0.7900386984 | AG34: 0.7900386984 | AH34: 0.9382503125 | AI34: -1.217537588 | AJ34: -1.217537588 | AK34: -1.088216832 | AL34: 0.0708310366 | AM34: 0.1004675494 | AN34: 0.1004675494 | AO34: 48.20136307 | AP34: 45.12106063 | AQ34: 45.12106063 | AR34: 71.13683291 | AS34: 71.13683291 | AT34: 71.13683291 | AV34: 71.10148058
A35: =SUM(A34+2) -> 66 | B35: 0.4067366431 | C35: 0.9135454576 | E35: =SUM(E34-2) -> 24 | F35: =COS(RADIANS(E35))*COS(RADIANS(LHAo1_)) -> 0.4004686522 | G35: 0.4067366431 | H35: 0.01549050762 | I35: 0.5705873136 | K35: 0.08346215408 | Q35: -1.3 | R35: 0 | T35: =SUM(T34+2) -> 66 | U35: 0.3839994995 | V35: =COS(RADIANS(DEC1_))*SIN(RADIANS(T35)) -> 0.862476997 | AA35: =SUM(AA34+2) -> 66 | AB35: 0.3465866158 | AC35: 0.7784462844 | AE35: -1.017385795 | AF35: 0.7869479756 | AG35: 0.7869479756 | AH35: 0.9374565399 | AI35: -1.215250255 | AJ35: -1.215250255 | AK35: -1.086604455 | AL35: 0.06921866008 | AM35: 0.09788508222 | AN35: 0.09788508222 | AO35: 48.40136307 | AP35: 44.95133341 | AQ35: 44.95133341 | AR35: 71.11992291 | AS35: 71.11992291 | AT35: 71.11992291 | AV35: 71.07794838
A36: 68 | B36: 0.3746065934 | C36: 0.9271838546 | E36: 22 | F36: 0.4064472824 | G36: 0.3746065934 | H36: 0.0417756421 | I36: 0.5511662988 | K36: 0.0847081676 | Q36: 1.3 | R36: 0 | T36: 68 | U36: 0.3536655643 | V36: 0.8753529886 | AA36: 68 | AB36: 0.319208101 | AC36: 0.7900677744 | AE36: -1.017385795 | AF36: 0.7838598848 | AG36: 0.7838598848 | AH36: 0.9366529125 | AI36: -1.21294879 | AJ36: -1.21294879 | AK36: -1.084977081 | AL36: 0.06759128568 | AM36: 0.09529788014 | AN36: 0.09529788014 | AO36: 48.60136307 | AP36: 44.78158216 | AQ36: 44.78158216 | AR36: 71.10355138 | AS36: 71.10355138 | AT36: 71.10355138 | AV36: 71.05441285
A37: 70 | B37: 0.3420201433 | C37: 0.9396926208 | E37: 20 | F37: 0.4119307191 | G37: 0.3420201433 | H37: 0.0680098794 | I37: 0.5310737728 | K37: 0.08585097726 | T37: 70 | U37: 0.322900742 | V37: 0.8871624974 | AA37: 70 | AB37: 0.2914406804 | AC37: 0.8007266885 | AE37: -1.017385795 | AF37: 0.7807744588 | AG37: 0.7807744588 | AH37: 0.9358392857 | AI37: -1.210633029 | AJ37: -1.210633029 | AK37: -1.083334551 | AL37: 0.06594875561 | AM37: 0.09270569334 | AN37: 0.09270569334 | AO37: 48.80136307 | AP37: 44.61180767 | AQ37: 44.61180767 | AR37: 71.08771336 | AS37: 71.08771336 | AT37: 71.08771336 | AV37: 71.03087411
A38: 72 | B38: 0.3090169944 | C38: 0.9510565163 | E38: 18 | F38: 0.4169122818 | G38: 0.3090169944 | H38: 0.09416125714 | I38: 0.5103342152 | K38: 0.08688919073 | Q38: Hour marks | T38: 72 | U38: 0.291742515 | V38: 0.8978911354 | AA38: 72 | AB38: 0.2633181842 | AC38: 0.8104100405 | AE38: -1.017385795 | AF38: 0.7776917308 | AG38: 0.7776917308 | AH38: 0.935015512 | AI38: -1.208302806 | AJ38: -1.208302806 | AK38: -1.081676705 | AL38: 0.06429090995 | AM38: 0.09010827118 | AN38: 0.09010827118 | AO38: 49.00136307 | AP38: 44.44201073 | AQ38: 44.44201073 | AR38: 71.07240397 | AS38: 71.07240397 | AT38: 71.07240397 | AV38: 71.00733224
A39: 74 | B39: 0.2756373558 | C39: 0.9612616959 | E39: 16 | F39: 0.421385901 | G39: 0.2756373558 | H39: 0.1201979139 | I39: 0.4889728939 | K39: 0.0878215431 | M39: 0 | N39: =COS(RADIANS(90+M39)) -> 6.125742275e-17 | O39: =SIN(RADIANS(90+M39)) -> 1 | P39: 0 | Q39: =COS(RADIANS(90+P39)) -> 6.125742275e-17 | R39: =SIN(RADIANS(90+P39)) -> 1 | T39: 74 | U39: 0.2602288446 | V39: 0.9075258313 | AA39: 74 | AB39: 0.2348748753 | AC39: 0.8191060327
A40: 76 | B40: 0.2419218956 | C40: 0.9702957263 | E40: 14 | F40: 0.4253461265 | G40: 0.2419218956 | H40: 0.146088128 | I40: 0.4670158345 | K40: 0.08864689845 | M40: =SUM(M39+5) -> 5 | N40: =COS(RADIANS(90+M40)) -> -0.08715574275 | O40: =SIN(RADIANS(90+M40)) -> 0.9961946981 | P40: =SUM(P39+15) -> 15 | Q40: =COS(RADIANS(90+P40)) -> -0.2588190451 | R40: =SIN(RADIANS(90+P40)) -> 0.9659258263 | T40: 76 | U40: 0.2283981254 | V40: 0.9160548468 | AA40: 76 | AB40: 0.2061454076 | AC40: 0.8268040704 | AE40: For testing (and removing) potential ambiguities, using great-circle equations
A41: 78 | B41: 0.2079116908 | C41: 0.9781476007 | E41: 12 | F41: 0.4287881331 | G41: 0.2079116908 | H41: 0.1718003562 | I41: 0.4444897883 | K41: 0.08936425121 | M41: =SUM(M40+5) -> 10 | N41: -0.1736481777 | O41: 0.984807753 | P41: =SUM(P40+15) -> 30 | Q41: -0.5 | R41: 0.8660254038 | T41: 78 | U41: 0.1962891384 | V41: 0.9234677905 | AA41: 78 | AB41: 0.1771647835 | AC41: 0.8334947747 | AE41: Lat1 | AF41: Lon1 | AG41: Lat2 | AH41: Lon2 | AI41: ZN | AJ41: D | AK41: Latv | AL41: Cos/SinDlov | AM41: DLov | AN41: Dv | AO41: Dvx | AP41: DLovx | AQ41: Latx | AR41: Lonx
A42: 80 | B42: 0.1736481777 | C42: 0.984807753 | E42: 10 | F42: 0.4317077276 | G42: 0.1736481777 | H42: 0.1973032722 | I42: 0.4214221997 | K42: 0.0899727274 | M42: 15 | N42: -0.2588190451 | O42: 0.9659258263 | P42: 45 | Q42: -0.7071067812 | R42: 0.7071067812 | T42: 80 | U42: 0.1639410032 | V42: 0.929755631 | AA42: 80 | AB42: 0.1479683113 | AC42: 0.8391699939 | AE42: 60 | AF42: -50 | AG42: 43 | AH42: 132 | AI42: =DEGREES(ACOS((SIN(RADIANS(AG42))-(SIN(RADIANS(AE42))*SIN(RADIANS(90-ABS(AJ44)))))/(COS(RADIANS(AE42))*COS(RADIANS(90-ABS(AJ44)))))) -> 1.501128769 | AJ42: =DEGREES(ACOS(SIN(RADIANS(AE42))*SIN(RADIANS(AG42))+COS(RADIANS(AE42))*COS(RADIANS(AG42))*COS(RADIANS(AH42-AF42)))) -> 76.98690069 | AK42: =DEGREES(ACOS(COS(RADIANS(AE42))*SIN(RADIANS(AI44)))) -> 89.24950002 | AL42: =COS(RADIANS(AI44))/SIN(RADIANS(AK43)) -> 0.9997425737 | AM42: =DEGREES(ASIN(AL42)) -> 88.69990999 | AN42: =DEGREES(ASIN(COS(RADIANS(AE42))*SIN(RADIANS(AM44)))) -> -29.99148477 | AO42: =AJ44-AN43 -> -46.99541592 | AP42: =DEGREES(ASIN(SIN(RADIANS(AO42))/COS(RADIANS(AQ42)))) -> -89.30009001 | AQ42: =DEGREES(ASIN(SIN(RADIANS(AK43))*COS(RADIANS(AO42)))) -> 43 | AR42: =IF(AF42=AH42,AF42,AF42+AM44+AP43) -> -228
A43: 82 | B43: 0.139173101 | C43: 0.9902680687 | E43: 8 | F43: 0.4341013526 | G43: 0.139173101 | H43: 0.2225658045 | I43: 0.3978411731 | K43: 0.09047158567 | M43: 20 | N43: -0.3420201433 | O43: 0.9396926208 | P43: 60 | Q43: -0.8660254038 | R43: 0.5 | T43: 82 | U43: 0.1313931312 | V43: 0.9349107075 | AA43: 82 | AB43: 0.1185915626 | AC43: 0.8438228138 | AI43: =IF(AND(AE42=0,AG42=0),IF(AH42-AF42>0,270,90),IF(AF42=AH42,IF(AG42-AE42>=0,0,180),IF(AI42<0,180+AI42,IF(AH42-AF42<0,AI42,360-AI42)))) -> 358.4988712 | AJ43: =IF(AF42=AH42,IF(AG42-AE42<0,-AJ42,AJ42),IF(AH42-AF42<0,-AJ42,AJ42)) -> 76.98690069 | AK43: =IF(OR(AI44=0,AI44=180),(AE42+AG42)/2,IF(AND(AE42=0,AG42=0),0,IF(AE42>=0,AK42,-AK42))) -> 89.24950002 | AM43: =IF(AND(AI44<=180,AI44>0),IF(AL42=1,-90,IF(AL42=-1,90,-DEGREES(ASIN(AL42)))),IF(AL42=1,90,IF(AL42=-1,-90,DEGREES(ASIN(AL42))))) -> -88.69990999 | AN43: =IF(AM44=0,AK43-AE42,AN42) -> -29.99148477 | AP43: =IF(AO42>90,180-AP42,IF(AO42<-90,-AP42-180,AP42)) -> -89.30009001 | AQ43: =IF(AF42=AH42,AE42+AJ43,AQ42) -> 43 | AR43: =IF(AR42>=360,AR42-360,IF(AR42>180,AR42-360,IF(AR42<-180,AR42+360,AR42))) -> 132
A44: 84 | B44: 0.1045284633 | C44: 0.9945218954 | E44: 6 | F44: 0.435966092 | G44: 0.1045284633 | H44: 0.2475571746 | I44: 0.3737754383 | K44: 0.09086021826 | M44: 25 | N44: -0.4226182617 | O44: 0.906307787 | P44: 75 | Q44: -0.9659258263 | R44: 0.2588190451 | T44: 84 | U44: 0.09868517691 | V44: 0.9389267393 | AA44: 84 | AB44: 0.08907032831 | AC44: 0.8474475656 | AI44: =IF(AH42-AF42>180,360-AI43,IF(AH42-AF42<-180,360-AI43,AI43)) -> 1.501128769 | AJ44: =IF(ABS(AH42-AF42)>180,-AJ43,AJ43) -> -76.98690069 | AM44: =IF(OR(AF42=AH42,AND(AE42<>AG42,OR(AI44=90,AI44=270))),0,IF(AND(AE42=0,AG42=0),(AH42-AF42)/2,AM43)) -> -88.69990999
A45: 86 | B45: 0.06975647374 | C45: 0.9975640503 | E45: 4 | F45: 0.4372996739 | G45: 0.06975647374 | H45: 0.2722469345 | I45: 0.3492543157 | K45: 0.09113815167 | M45: 30 | N45: -0.5 | O45: 0.8660254038 | P45: 90 | Q45: -1 | R45: 1.225148455e-16 | T45: 86 | U45: 0.06585698992 | V45: 0.9417988335 | AA45: 86 | AB45: 0.05944057555 | AC45: 0.8500398331
A46: 88 | B46: 0.0348994967 | C46: 0.999390827 | E46: 2 | F46: 0.4381004735 | G46: 0.0348994967 | H46: 0.2966050034 | I46: 0.3243076805 | K46: 0.09130504727 | M46: 35 | N46: -0.5735764364 | O46: 0.8191520443 | P46: 105 | Q46: -0.9659258263 | R46: -0.2588190451 | T46: 88 | U46: 0.03294856634 | V46: 0.9435234909 | AA46: 88 | AB46: 0.02973840361 | AC46: 0.851596458
A47: 90 | B47: 6.125742275e-17 | C47: 1 | E47: 0 | F47: 0.4383675151 | G47: 0 | H47: 0.3206017048 | I47: 0.2989659264 | K47: 0.09136070174 | M47: 40 | N47: -0.6427876097 | O47: 0.7660444431 | P47: 120 | Q47: -0.8660254038 | R47: -0.5 | T47: 90 | U47: 5.783304768e-17 | V47: 0.9440986103 | AA47: 90 | AB47: 5.219840209e-17 | AC47: 0.8521155437
A48: 92 | B48: -0.0348994967 | C48: 0.999390827 | E48: -2 | F48: 0.4381004735 | G48: -0.0348994967 | H48: 0.3442078025 | I48: 0.2732599283 | K48: 0.09130504727 | M48: 45 | N48: -0.7071067812 | O48: 0.7071067812 | P48: 135 | Q48: -0.7071067812 | R48: -0.7071067812 | T48: 92 | U48: -0.03294856634 | V48: 0.9435234909 | AA48: 92 | AB48: -0.02973840361 | AC48: 0.851596458
A49: 94 | B49: -0.06975647374 | C49: 0.9975640503 | E49: -4 | F49: 0.4372996739 | G49: -0.06975647374 | H49: 0.3673945359 | I49: 0.2472210052 | K49: 0.09113815167 | M49: 50 | N49: -0.7660444431 | O49: 0.6427876097 | P49: 150 | Q49: -0.5 | R49: -0.8660254038 | T49: 94 | U49: -0.06585698992 | V49: 0.9417988335 | AA49: 94 | AB49: -0.05944057555 | AC49: 0.8500398331
A50: 96 | B50: -0.1045284633 | C50: 0.9945218954 | E50: -6 | F50: 0.435966092 | G50: -0.1045284633 | H50: 0.3901336557 | I50: 0.2208808813 | K50: 0.09086021826 | M50: 55 | N50: -0.8191520443 | O50: 0.5735764364 | P50: 165 | Q50: -0.2588190451 | R50: -0.9659258263 | T50: 96 | U50: -0.09868517691 | V50: 0.9389267393 | AA50: 96 | AB50: -0.08907032831 | AC50: 0.8474475656
A51: 98 | B51: -0.139173101 | C51: 0.9902680687 | E51: -8 | F51: 0.4341013526 | G51: -0.139173101 | H51: 0.4123974577 | I51: 0.194271648 | K51: 0.09047158567 | M51: 60 | N51: -0.8660254038 | O51: 0.5 | P51: 180 | Q51: -1.837722682e-16 | R51: -1 | T51: 98 | U51: -0.1313931312 | V51: 0.9349107075 | AA51: 98 | AB51: -0.1185915626 | AC51: 0.8438228138
A52: 100 | B52: -0.1736481777 | C52: 0.984807753 | E52: -10 | F52: 0.4317077276 | G52: -0.1736481777 | H52: 0.434158817 | I52: 0.1674257247 | K52: 0.0899727274 | M52: 65 | N52: -0.906307787 | O52: 0.4226182617 | P52: 195 | Q52: 0.2588190451 | R52: -0.9659258263 | T52: 100 | U52: -0.1639410032 | V52: 0.929755631 | AA52: 100 | AB52: -0.1479683113 | AC52: 0.8391699939
A53: 102 | B53: -0.2079116908 | C53: 0.9781476007 | E53: -12 | F53: 0.4287881331 | G53: -0.2079116908 | H53: 0.4553912206 | I53: 0.1403758189 | K53: 0.08936425121 | M53: 70 | N53: -0.9396926208 | O53: 0.3420201433 | P53: 210 | Q53: 0.5 | R53: -0.8660254038 | T53: 102 | U53: -0.1962891384 | V53: 0.9234677905 | AA53: 102 | AB53: -0.1771647835 | AC53: 0.8334947747
A54: 104 | B54: -0.2419218956 | C54: 0.9702957263 | E54: -14 | F54: 0.4253461265 | G54: -0.2419218956 | H54: 0.4760688001 | I54: 0.1131548868 | K54: 0.08864689845 | M54: 75 | N54: -0.9659258263 | O54: 0.2588190451 | P54: 225 | Q54: 0.7071067812 | R54: -0.7071067812 | T54: 104 | U54: -0.2283981254 | V54: 0.9160548468 | AA54: 104 | AB54: -0.2061454076 | AC54: 0.8268040704
A55: 106 | B55: -0.2756373558 | C55: 0.9612616959 | E55: -16 | F55: 0.421385901 | G55: -0.2756373558 | H55: 0.4961663632 | I55: 0.08579609297 | K55: 0.0878215431 | M55: 80 | N55: -0.984807753 | O55: 0.1736481777 | P55: 240 | Q55: 0.8660254038 | R55: -0.5 | T55: 106 | U55: -0.2602288446 | V55: 0.9075258313 | AA55: 106 | AB55: -0.2348748753 | AC55: 0.8191060327
A56: 108 | B56: -0.3090169944 | C56: 0.9510565163 | E56: -18 | F56: 0.4169122818 | G56: -0.3090169944 | H56: 0.5156594239 | I56: 0.05833276976 | K56: 0.08688919073 | M56: 85 | N56: -0.9961946981 | O56: 0.08715574275 | P56: 255 | Q56: 0.9659258263 | R56: -0.2588190451 | T56: 108 | U56: -0.291742515 | V56: 0.8978911354 | AA56: 108 | AB56: -0.2633181842 | AC56: 0.8104100405
A57: 110 | B57: -0.3420201433 | C57: 0.9396926208 | E57: -20 | F57: 0.4119307191 | G57: -0.3420201433 | H57: 0.5345242331 | I57: 0.03079837707 | K57: 0.08585097726 | M57: 90 | N57: -1 | O57: 1.225148455e-16 | P57: 270 | Q57: 1 | R57: -2.45029691e-16 | T57: 110 | U57: -0.322900742 | V57: 0.8871624974 | AA57: 110 | AB57: -0.2914406804 | AC57: 0.8007266885
A58: 112 | B58: -0.3746065934 | C58: 0.9271838546 | E58: -22 | F58: 0.4064472824 | G58: -0.3746065934 | H58: 0.5527378069 | I58: 0.003226461289 | K58: 0.0847081676 | M58: 95 | N58: -0.9961946981 | O58: -0.08715574275 | P58: 285 | Q58: 0.9659258263 | R58: 0.2588190451 | T58: 112 | U58: -0.3536655643 | V58: 0.8753529886 | AA58: 112 | AB58: -0.319208101 | AC58: 0.7900677744
A59: 114 | B59: -0.4067366431 | C59: 0.9135454576 | E59: -24 | F59: 0.4004686522 | G59: -0.4067366431 | H59: 0.5702779547 | I59: -0.02434938543 | K59: 0.08346215408 | M59: 100 | N59: -0.984807753 | O59: -0.1736481777 | P59: 300 | Q59: 0.8660254038 | R59: 0.5 | T59: 114 | U59: -0.3839994995 | V59: 0.862476997 | AA59: 114 | AB59: -0.3465866158 | AC59: 0.7784462844
A60: 116 | B60: -0.4383711468 | C60: 0.8987940463 | E60: -26 | F60: 0.3940021127 | G60: -0.4383711468 | H60: 0.5871233068 | I60: -0.05189556618 | K60: 0.08211445479 | M60: 105 | N60: -0.9659258263 | O60: -0.2588190451 | P60: 315 | Q60: 0.7071067812 | R60: 0.7071067812 | T60: 116 | U60: -0.4138655905 | V60: 0.8485502101 | AA60: 116 | AB60: -0.3735428681 | AC60: 0.7658763775
A61: 118 | B61: -0.4694715628 | C61: 0.8829475929 | E61: -28 | F61: 0.3870555423 | G61: -0.4694715628 | H61: 0.6032533395 | I61: -0.07937852018 | K61: 0.08066671169 | M61: 110 | N61: -0.9396926208 | O61: -0.3420201433 | P61: 330 | Q61: 0.5 | R61: 0.8660254038 | T61: 118 | U61: -0.44322745 | V61: 0.8335895954 | AA61: 118 | AB61: -0.400044016 | AC61: 0.7523733682
A62: 120 | B62: -0.5 | C62: 0.8660254038 | E62: -30 | F62: 0.3796374043 | G62: -0.5 | H62: 0.6186484009 | I62: -0.1067647637 | K62: 0.07912068862 | M62: 115 | N62: -0.906307787 | O62: -0.4226182617 | P62: 345 | Q62: 0.2588190451 | R62: 0.9659258263 | T62: 120 | U62: -0.4720493052 | V62: 0.8176133802 | AA62: 120 | AB62: -0.4260577719 | AC62: 0.7379537078
A63: 122 | B63: -0.5299192642 | C63: 0.8480480962 | E63: -32 | F63: 0.3717567366 | G63: -0.5299192642 | H63: 0.6332897346 | I63: -0.1340209307 | K63: 0.07747826918 | M63: 120 | N63: -0.8660254038 | O63: -0.5 | T63: 122 | U63: -0.5002960409 | V63: 0.8006410291 | AA63: 122 | AB63: -0.451552442 | AC63: 0.7226349646
A64: 124 | B64: -0.5591929035 | C64: 0.8290375726 | E64: -34 | F64: 0.3634231406 | G64: -0.5591929035 | H64: 0.6471595023 | I64: -0.161113814 | K64: 0.0757414544 | M64: 125 | N64: -0.8191520443 | O64: -0.5735764364 | T64: 124 | U64: -0.5279332431 | V64: 0.7826932201 | AA64: 124 | AB64: -0.476496965 | AC64: 0.7064358019
A65: 126 | B65: -0.5877852523 | C65: 0.8090169944 | E65: -36 | F65: 0.3546467695 | G65: -0.5877852523 | H65: 0.6602408058 | I65: -0.1880104048 | K65: 0.07391236033 | M65: 130 | N65: -0.7660444431 | O65: -0.6427876097 | T65: 126 | U65: -0.5549272398 | V65: 0.7637918201 | AA65: 126 | AB65: -0.5008609499 | AC65: 0.6893759561
A66: 128 | B66: =COS(RADIANS(A66)) -> -0.6156614753 | C66: =SIN(RADIANS(A66)) -> 0.7880107536 | E66: -38 | F66: 0.3454383159 | G66: =SIN(RADIANS(E66)) -> -0.6156614753 | H66: =F66*COS(RADIANS(90-LAT1_))-G66*SIN(RADIANS(90-LAT1_)) -> 0.6725177076 | I66: =F66*SIN(RADIANS(90-LAT1_))+G66*COS(RADIANS(90-LAT1_)) -> -0.2146779339 | K66: =COS(RADIANS(E66))*COS(RADIANS(AZ_nord1-180)) -> 0.07199321543 | M66: 135 | N66: -0.7071067812 | O66: -0.7071067812 | T66: 128 | U66: =COS(RADIANS(DEC1_))*COS(RADIANS(T66)) -> -0.5812451433 | V66: 0.7439598574 | AA66: 128 | AB66: =COS(RADIANS(HC1_))*COS(RADIANS(AA66)) -> -0.5246147128 | AC66: =COS(RADIANS(HC1_))*SIN(RADIANS(AA66)) -> 0.6714762118
A67: =SUM(A66+2) -> 130 | B67: -0.6427876097 | C67: 0.7660444431 | E67: =SUM(E66-2) -> -40 | F67: =COS(RADIANS(E67))*COS(RADIANS(LHAo1_)) -> 0.335808999 | G67: -0.6427876097 | H67: 0.6839752501 | I67: -0.2410839111 | K67: 0.06998635789 | M67: 140 | N67: -0.6427876097 | O67: -0.7660444431 | T67: 130 | U67: -0.606854889 | V67: =COS(RADIANS(DEC1_))*SIN(RADIANS(T67)) -> 0.7232214942 | AA67: 130 | AB67: -0.5477293135 | AC67: 0.6527583772
A68: 132 | B68: -0.6691306064 | C68: 0.7431448255 | E68: -42 | F68: 0.3257705505 | G68: -0.6691306064 | H68: 0.6945994742 | I68: -0.2671961646 | K68: 0.06789423275 | M68: 145 | N68: -0.5735764364 | O68: -0.8191520443 | T68: 132 | U68: -0.6317252756 | V68: 0.701601997 | AA68: 132 | AB68: -0.5701765905 | AC68: 0.633245257
A69: 134 | B69: -0.6946583705 | C69: 0.7193398003 | E69: -44 | F69: 0.3153352008 | G69: -0.6946583705 | H69: 0.7043774358 | I69: -0.2929828808 | K69: 0.06571938895 | M69: 150 | N69: -0.5 | O69: -0.8660254038 | T69: 134 | U69: -0.6558260022 | V69: 0.6791277058 | AA69: 134 | AB69: -0.5919291951 | AC69: 0.6129606251
A70: 136 | B70: -0.7193398003 | C70: 0.6946583705 | E70: -46 | F70: 0.3045156637 | G70: -0.7193398003 | H70: 0.713297222 | I70: -0.3184126424 | K70: 0.0634644762 | M70: 155 | N70: -0.4226182617 | O70: -0.906307787 | T70: 136 | U70: -0.6791277058 | V70: 0.6558260022 | AA70: 136 | AB70: -0.6129606251 | AC70: 0.5919291951
A71: 138 | B71: -0.7431448255 | C71: 0.6691306064 | E71: -48 | F71: 0.2933251212 | G71: -0.7431448255 | H71: 0.7213479654 | I71: -0.3434544673 | K71: 0.06113224176 | M71: 160 | N71: -0.3420201433 | O71: -0.9396926208 | T71: 138 | U71: -0.701601997 | V71: 0.6317252756 | AA71: 138 | AB71: -0.633245257 | AC71: 0.5701765905
A72: 140 | B72: -0.7660444431 | C72: 0.6427876097 | E72: -50 | F72: 0.2817772072 | G72: -0.7660444431 | H72: 0.7285198575 | I72: -0.3680778459 | K72: 0.05872552709 | M72: 165 | N72: -0.2588190451 | O72: -0.9659258263 | T72: 140 | U72: -0.7232214942 | V72: 0.606854889 | AA72: 140 | AB72: -0.6527583772 | AC72: 0.5477293135
A73: 142 | B73: -0.7880107536 | C73: 0.6156614753 | E73: -52 | F73: 0.2698859911 | G73: -0.7880107536 | H73: 0.7348041603 | I73: -0.3922527782 | K73: 0.05624726442 | M73: 170 | N73: -0.1736481777 | O73: -0.984807753 | T73: 142 | U73: -0.7439598574 | V73: 0.5812451433 | AA73: 142 | AB73: -0.6714762118 | AC73: 0.5246147128
A74: 144 | B74: -0.8090169944 | C74: 0.5877852523 | E74: -54 | F74: 0.2576659605 | G74: -0.8090169944 | H74: 0.7401932174 | I74: -0.415949811 | K74: 0.05370047312 | M74: 175 | N74: -0.08715574275 | O74: -0.9961946981 | T74: 144 | U74: -0.7637918201 | V74: 0.5549272398 | AA74: 144 | AB74: -0.6893759561 | AC74: 0.5008609499
A75: 146 | B75: -0.8290375726 | C75: 0.5591929035 | E75: -56 | F75: 0.2451320036 | G75: -0.8290375726 | H75: 0.7446804631 | I75: -0.439140073 | K75: 0.05108825607 | M75: 180 | N75: -1.837722682e-16 | O75: -1 | T75: 146 | U75: -0.7826932201 | V75: 0.5279332431 | AA75: 146 | AB75: -0.7064358019 | AC75: 0.476496965
A76: 148 | B76: -0.8480480962 | C76: 0.5299192642 | E76: -58 | F76: 0.2322993911 | G76: -0.8480480962 | H76: 0.7482604304 | I76: -0.4617953105 | K76: 0.04841379585 | M76: 185 | N76: 0.08715574275 | O76: -0.9961946981 | T76: 148 | U76: -0.8006410291 | V76: 0.5002960409 | AA76: 148 | AB76: -0.7226349646 | AC76: 0.451552442
A77: 150 | B77: -0.8660254038 | C77: 0.5 | E77: -60 | F77: 0.2191837576 | G77: -0.8660254038 | H77: 0.7509287576 | I77: -0.4838879215 | K77: 0.04568035087 | M77: 190 | N77: 0.1736481777 | O77: -0.984807753 | T77: 150 | U77: -0.8176133802 | V77: 0.4720493052 | AA77: 150 | AB77: -0.7379537078 | AC77: 0.4260577719
A78: 152 | B78: -0.8829475929 | C78: 0.4694715628 | E78: -62 | F78: 0.2058010824 | G78: -0.8829475929 | H78: 0.7526821938 | I78: -0.5053909897 | K78: 0.04289125142 | M78: 195 | N78: 0.2588190451 | O78: -0.9659258263 | T78: 152 | U78: -0.8335895954 | V78: 0.44322745 | AA78: 152 | AB78: -0.7523733682 | AC78: 0.400044016
A79: 154 | B79: -0.8987940463 | C79: 0.4383711468 | E79: -64 | F79: 0.1921676703 | G79: -0.8987940463 | H79: 0.7535186026 | I79: -0.5262783167 | K79: 0.04004989559 | M79: 200 | N79: 0.3420201433 | O79: -0.9396926208 | T79: 154 | U79: -0.8485502101 | V79: 0.4138655905 | AA79: 154 | AB79: -0.7658763775 | AC79: 0.3735428681
A80: 156 | B80: -0.9135454576 | C80: 0.4067366431 | E80: -66 | F80: 0.1783001315 | G80: -0.9135454576 | H80: 0.7534369651 | I80: -0.5465244547 | K80: 0.03715974514 | M80: 205 | N80: 0.4226182617 | O80: -0.906307787 | T80: 156 | U80: -0.862476997 | V80: 0.3839994995 | AA80: 156 | AB80: -0.7784462844 | AC80: 0.3465866158
A81: 158 | B81: -0.9271838546 | C81: 0.3746065934 | E81: -68 | F81: 0.1642153615 | G81: -0.9271838546 | H81: 0.7524373808 | I81: -0.5661047369 | K81: 0.03422432125 | M81: 210 | N81: 0.5 | O81: -0.8660254038 | T81: 158 | U81: -0.8753529886 | V81: 0.3536655643 | AA81: 158 | AB81: -0.7900677744 | AC81: 0.319208101
A82: 160 | B82: -0.9396926208 | C82: 0.3420201433 | E82: -70 | F82: 0.1499305203 | G82: -0.9396926208 | H82: 0.7505210674 | I82: -0.5849953076 | K82: 0.0312472003 | M82: 215 | N82: 0.5735764364 | O82: -0.8191520443 | T82: 160 | U82: -0.8871624974 | V82: 0.322900742 | AA82: 160 | AB82: -0.8007266885 | AC82: 0.2914406804
A83: 162 | B83: -0.9510565163 | C83: 0.3090169944 | E83: -72 | F83: 0.135463012 | G83: -0.9510565163 | H83: 0.7476903597 | I83: -0.6031731516 | K83: 0.02823200946 | M83: 220 | N83: 0.6427876097 | O83: -0.7660444431 | T83: 162 | U83: -0.8978911354 | V83: 0.291742515 | AA83: 162 | AB83: -0.8104100405 | AC83: 0.2633181842
A84: 164 | B84: -0.9612616959 | C84: 0.2756373558 | E84: -74 | F84: 0.1208304627 | G84: -0.9612616959 | H84: 0.7439487064 | I84: -0.6206161221 | K84: 0.02518242225 | M84: 225 | N84: 0.7071067812 | O84: -0.7071067812 | T84: 164 | U84: -0.9075258313 | V84: 0.2602288446 | AA84: 164 | AB84: -0.8191060327 | AC84: 0.2348748753
A85: 166 | B85: -0.9702957263 | C85: 0.2419218956 | E85: -76 | F85: 0.1060507002 | G85: -0.9702957263 | H85: 0.7393006663 | I85: -0.6373029674 | K85: 0.02210215415 | M85: 230 | N85: 0.7660444431 | O85: -0.6427876097 | T85: 166 | U85: -0.9160548468 | V85: 0.2283981254 | AA85: 166 | AB85: -0.8268040704 | AC85: 0.2061454076
A86: 168 | B86: -0.9781476007 | C86: 0.2079116908 | E86: -78 | F86: 0.09114173127 | G86: -0.9781476007 | H86: 0.7337519021 | I86: -0.6532133573 | K86: 0.01899495797 | M86: 235 | N86: 0.8191520443 | O86: -0.5735764364 | T86: 168 | U86: -0.9234677905 | V86: 0.1962891384 | AA86: 168 | AB86: -0.8334947747 | AC86: 0.1771647835
A87: 170 | B87: -0.984807753 | C87: 0.1736481777 | E87: -80 | F87: 0.07612172015 | G87: -0.984807753 | H87: 0.7273091743 | I87: -0.6683279072 | K87: 0.01586461937 | M87: 240 | N87: 0.8660254038 | O87: -0.5 | T87: 170 | U87: -0.929755631 | V87: 0.1639410032 | AA87: 170 | AB87: -0.8391699939 | AC87: 0.1479683113
A88: 172 | B88: -0.9902680687 | C88: 0.139173101 | E88: -82 | F88: 0.06100896644 | G88: -0.9902680687 | H88: 0.7199803323 | I88: -0.6826282026 | K88: 0.01271495217 | M88: 245 | N88: 0.906307787 | O88: -0.4226182617 | T88: 172 | U88: -0.9349107075 | V88: 0.1313931312 | AA88: 172 | AB88: -0.8438228138 | AC88: 0.1185915626
A89: 174 | B89: -0.9945218954 | C89: 0.1045284633 | E89: -84 | F89: 0.0458218827 | G89: -0.9945218954 | H89: 0.7117743052 | I89: -0.6960968207 | K89: 0.009549793756 | M89: 250 | N89: 0.9396926208 | O89: -0.3420201433 | T89: 174 | U89: -0.9389267393 | V89: 0.09868517691 | AA89: 174 | AB89: -0.8474475656 | AC89: 0.08907032831
A90: 176 | B90: -0.9975640503 | C90: 0.06975647374 | E90: -86 | F90: 0.03057897206 | G90: -0.9975640503 | H90: 0.7027010907 | I90: -0.708717352 | K90: 0.006373000392 | M90: 255 | N90: 0.9659258263 | O90: -0.2588190451 | T90: 176 | U90: -0.9417988335 | V90: 0.06585698992 | AA90: 176 | AB90: -0.8500398331 | AC90: 0.05944057555
A91: 178 | B91: -0.999390827 | C91: 0.0348994967 | E91: -88 | F91: 0.01529880565 | G91: -0.999390827 | H91: 0.6927717432 | I91: -0.7204744203 | K91: 0.003188442509 | M91: 260 | N91: 0.984807753 | O91: -0.1736481777 | T91: 178 | U91: -0.9435234909 | V91: 0.03294856634 | AA91: 178 | AB91: -0.851596458 | AC91: 0.02973840361
A92: 180 | B92: -1 | C92: 1.225148455e-16 | E92: -90 | F92: 2.685326419e-17 | G92: -1 | H92: 0.6819983601 | I92: -0.7313537016 | K92: 5.596521129e-18 | M92: 265 | N92: 0.9961946981 | O92: -0.08715574275 | T92: 180 | U92: -0.9440986103 | V92: 1.156660954e-16 | AA92: 180 | AB92: -0.8521155437 | AC92: 1.043968042e-16
A93: 182 | B93: -0.999390827 | C93: -0.0348994967 | E93: -92 | F93: -0.01529880565 | G93: -0.999390827 | H93: 0.6703940669 | I93: -0.7413419411 | K93: -0.003188442509 | M93: 270 | N93: 1 | O93: -2.45029691e-16 | T93: 182 | U93: -0.9435234909 | V93: -0.03294856634 | AA93: 182 | AB93: -0.851596458 | AC93: -0.02973840361
A94: 184 | B94: -0.9975640503 | C94: -0.06975647374 | E94: -94 | F94: -0.03057897206 | G94: -0.9975640503 | H94: 0.6579730019 | I94: -0.7504269696 | K94: -0.006373000392 | M94: 275 | N94: 0.9961946981 | O94: 0.08715574275 | T94: 184 | U94: -0.9417988335 | V94: -0.06585698992 | AA94: 184 | AB94: -0.8500398331 | AC94: -0.05944057555
A95: 186 | B95: -0.9945218954 | C95: -0.1045284633 | E95: -96 | F95: -0.0458218827 | G95: -0.9945218954 | H95: 0.6447502982 | I95: -0.7585977184 | K95: -0.009549793756 | M95: 280 | N95: 0.984807753 | O95: 0.1736481777 | T95: 186 | U95: -0.9389267393 | V95: -0.09868517691 | AA95: 186 | AB95: -0.8474475656 | AC95: -0.08907032831
A96: 188 | B96: -0.9902680687 | C96: -0.139173101 | E96: -98 | F96: -0.06100896644 | G96: -0.9902680687 | H96: 0.6307420655 | I96: -0.7658442327 | K96: -0.01271495217 | M96: 285 | N96: 0.9659258263 | O96: 0.2588190451 | T96: 188 | U96: -0.9349107075 | V96: -0.1313931312 | AA96: 188 | AB96: -0.8438228138 | AC96: -0.1185915626
A97: 190 | B97: -0.984807753 | C97: -0.1736481777 | E97: -100 | F97: -0.07612172015 | G97: -0.984807753 | H97: 0.6159653707 | I97: -0.7721576839 | K97: -0.01586461937 | M97: 290 | N97: 0.9396926208 | O97: 0.3420201433 | T97: 190 | U97: -0.929755631 | V97: -0.1639410032 | AA97: 190 | AB97: -0.8391699939 | AC97: -0.1479683113
A98: 192 | B98: =COS(RADIANS(A98)) -> -0.9781476007 | C98: =SIN(RADIANS(A98)) -> -0.2079116908 | E98: -102 | F98: -0.09114173127 | G98: =SIN(RADIANS(E98)) -> -0.9781476007 | H98: =F98*COS(RADIANS(90-LAT1_))-G98*SIN(RADIANS(90-LAT1_)) -> 0.6004382171 | I98: =F98*SIN(RADIANS(90-LAT1_))+G98*COS(RADIANS(90-LAT1_)) -> -0.7775303798 | K98: =COS(RADIANS(E98))*COS(RADIANS(AZ_nord1-180)) -> -0.01899495797 | M98: 295 | N98: 0.906307787 | O98: 0.4226182617 | T98: 192 | U98: =COS(RADIANS(DEC1_))*COS(RADIANS(T98)) -> -0.9234677905 | V98: -0.1962891384 | AA98: 192 | AB98: =COS(RADIANS(HC1_))*COS(RADIANS(AA98)) -> -0.8334947747 | AC98: =COS(RADIANS(HC1_))*SIN(RADIANS(AA98)) -> -0.1771647835
A99: =SUM(A98+2) -> 194 | B99: -0.9702957263 | C99: -0.2419218956 | E99: =SUM(E98-2) -> -104 | F99: =COS(RADIANS(E99))*COS(RADIANS(LHAo1_)) -> -0.1060507002 | G99: -0.9702957263 | H99: 0.5841795219 | I99: -0.7819557747 | K99: -0.02210215415 | M99: 300 | N99: 0.8660254038 | O99: 0.5 | T99: =SUM(T98+2) -> 194 | U99: -0.9160548468 | V99: =COS(RADIANS(DEC1_))*SIN(RADIANS(T99)) -> -0.2283981254 | AA99: =SUM(AA98+2) -> 194 | AB99: -0.8268040704 | AC99: -0.2061454076
A100: 196 | B100: -0.9612616959 | C100: -0.2756373558 | E100: -106 | F100: -0.1208304627 | G100: -0.9612616959 | H100: 0.567209094 | I100: -0.785428477 | K100: -0.02518242225 | M100: 305 | N100: 0.8191520443 | O100: 0.5735764364 | T100: 196 | U100: -0.9075258313 | V100: -0.2602288446 | AA100: 196 | AB100: -0.8191060327 | AC100: -0.2348748753
A101: 198 | B101: -0.9510565163 | C101: -0.3090169944 | E101: -108 | F101: -0.135463012 | G101: -0.9510565163 | H101: 0.5495476092 | I101: -0.7879442556 | K101: -0.02823200946 | M101: 310 | N101: 0.7660444431 | O101: 0.6427876097 | T101: 198 | U101: -0.8978911354 | V101: -0.291742515 | AA101: 198 | AB101: -0.8104100405 | AC101: -0.2633181842
A102: 200 | B102: -0.9396926208 | C102: -0.3420201433 | E102: -110 | F102: -0.1499305203 | G102: -0.9396926208 | H102: 0.5312165853 | I102: -0.7895000456 | K102: -0.0312472003 | M102: 315 | N102: 0.7071067812 | O102: 0.7071067812 | T102: 200 | U102: -0.8871624974 | V102: -0.322900742 | AA102: 200 | AB102: -0.8007266885 | AC102: -0.2914406804
A103: 202 | B103: -0.9271838546 | C103: -0.3746065934 | E103: -112 | F103: -0.1642153615 | G103: -0.9271838546 | H103: 0.5122383558 | I103: -0.7900939514 | K103: -0.03422432125 | M103: 320 | N103: 0.6427876097 | O103: 0.7660444431 | T103: 202 | U103: -0.8753529886 | V103: -0.3536655643 | AA103: 202 | AB103: -0.7900677744 | AC103: -0.319208101
A104: 204 | B104: -0.9135454576 | C104: -0.4067366431 | E104: -114 | F104: -0.1783001315 | G104: -0.9135454576 | H104: 0.4926360428 | I104: -0.7897252493 | K104: -0.03715974514 | M104: 325 | N104: =COS(RADIANS(90+M104)) -> 0.5735764364 | O104: =SIN(RADIANS(90+M104)) -> 0.8191520443 | T104: 204 | U104: -0.862476997 | V104: -0.3839994995 | AA104: 204 | AB104: -0.7784462844 | AC104: -0.3465866158
A105: 206 | B105: -0.8987940463 | C105: -0.4383711468 | E105: -116 | F105: -0.1921676703 | G105: -0.8987940463 | H105: 0.4724335286 | I105: -0.7883943888 | K105: -0.04004989559 | M105: =SUM(M104+5) -> 330 | N105: 0.5 | O105: 0.8660254038 | T105: 206 | U105: -0.8485502101 | V105: -0.4138655905 | AA105: 206 | AB105: -0.7658763775 | AC105: -0.3735428681
A106: 208 | B106: -0.8829475929 | C106: -0.4694715628 | E106: -118 | F106: -0.2058010824 | G106: -0.8829475929 | H106: 0.4516554269 | I106: -0.7861029911 | K106: -0.04289125142 | M106: 335 | N106: 0.4226182617 | O106: 0.906307787 | T106: 208 | U106: -0.8335895954 | V106: -0.44322745 | AA106: 208 | AB106: -0.7523733682 | AC106: -0.400044016
A107: 210 | B107: -0.8660254038 | C107: -0.5 | E107: -120 | F107: -0.2191837576 | G107: -0.8660254038 | H107: 0.4303270527 | I107: -0.782853848 | K107: -0.04568035087 | M107: 340 | N107: 0.3420201433 | O107: 0.9396926208 | T107: 210 | U107: -0.8176133802 | V107: -0.4720493052 | AA107: 210 | AB107: -0.7379537078 | AC107: -0.4260577719
A108: 212 | B108: -0.8480480962 | C108: -0.5299192642 | E108: -122 | F108: -0.2322993911 | G108: -0.8480480962 | H108: 0.4084743913 | I108: -0.778650918 | K108: -0.04841379585 | M108: 345 | N108: 0.2588190451 | O108: 0.9659258263 | T108: 212 | U108: -0.8006410291 | V108: -0.5002960409 | AA108: 212 | AB108: -0.7226349646 | AC108: -0.451552442
A109: 214 | B109: -0.8290375726 | C109: -0.5591929035 | E109: -124 | F109: -0.2451320036 | G109: -0.8290375726 | H109: 0.3861240667 | I109: -0.7734993219 | K109: -0.05108825607 | M109: 350 | N109: 0.1736481777 | O109: 0.984807753 | T109: 214 | U109: -0.7826932201 | V109: -0.5279332431 | AA109: 214 | AB109: -0.7064358019 | AC109: -0.476496965
A110: 216 | B110: -0.8090169944 | C110: -0.5877852523 | E110: -126 | F110: -0.2576659605 | G110: -0.8090169944 | H110: 0.3633033095 | I110: -0.767405336 | K110: -0.05370047312 | M110: 355 | N110: 0.08715574275 | O110: 0.9961946981 | T110: 216 | U110: -0.7637918201 | V110: -0.5549272398 | AA110: 216 | AB110: -0.6893759561 | AC110: -0.5008609499
A111: 218 | B111: -0.7880107536 | C111: -0.6156614753 | E111: -128 | F111: -0.2698859911 | G111: -0.7880107536 | H111: 0.3400399231 | I111: -0.7603763849 | K111: -0.05624726442 | T111: 218 | U111: -0.7439598574 | V111: -0.5812451433 | AA111: 218 | AB111: -0.6714762118 | AC111: -0.5246147128
A112: 220 | B112: -0.7660444431 | C112: -0.6427876097 | E112: -130 | F112: -0.2817772072 | G112: -0.7660444431 | H112: 0.3163622504 | I112: -0.7524210323 | K112: -0.05872552709 | T112: 220 | U112: -0.7232214942 | V112: -0.606854889 | AA112: 220 | AB112: -0.6527583772 | AC112: -0.5477293135
A113: 222 | B113: -0.7431448255 | C113: -0.6691306064 | E113: -132 | F113: -0.2933251212 | G113: -0.7431448255 | H113: 0.2922991391 | I113: -0.7435489706 | K113: -0.06113224176 | T113: 222 | U113: -0.701601997 | V113: -0.6317252756 | AA113: 222 | AB113: -0.633245257 | AC113: -0.5701765905
A114: 224 | B114: -0.7193398003 | C114: -0.6946583705 | E114: -134 | F114: -0.3045156637 | G114: -0.7193398003 | H114: 0.2678799063 | I114: -0.733771009 | K114: -0.0634644762 | T114: 224 | U114: -0.6791277058 | V114: -0.6558260022 | AA114: 224 | AB114: -0.6129606251 | AC114: -0.5919291951
A115: 226 | B115: -0.6946583705 | C115: -0.7193398003 | E115: -136 | F115: -0.3153352008 | G115: -0.6946583705 | H115: 0.2431343031 | I115: -0.7230990604 | K115: -0.06571938895 | T115: 226 | U115: -0.6558260022 | V115: -0.6791277058 | AA115: 226 | AB115: -0.5919291951 | AC115: -0.6129606251
A116: 228 | B116: -0.6691306064 | C116: -0.7431448255 | E116: -138 | F116: -0.3257705505 | G116: -0.6691306064 | H116: 0.2180924782 | I116: -0.711546127 | K116: -0.06789423275 | T116: 228 | U116: -0.6317252756 | V116: -0.701601997 | AA116: 228 | AB116: -0.5701765905 | AC116: -0.633245257
A117: 230 | B117: -0.6427876097 | C117: -0.7660444431 | E117: -140 | F117: -0.335808999 | G117: -0.6427876097 | H117: 0.1927849412 | I117: -0.6991262843 | K117: -0.06998635789 | T117: 230 | U117: -0.606854889 | V117: -0.7232214942 | AA117: 230 | AB117: -0.5477293135 | AC117: -0.6527583772
A118: 232 | B118: -0.6156614753 | C118: -0.7880107536 | E118: -142 | F118: -0.3454383159 | G118: -0.6156614753 | H118: 0.1672425255 | I118: -0.6858546639 | K118: -0.07199321543 | T118: 232 | U118: -0.5812451433 | V118: -0.7439598574 | AA118: 232 | AB118: -0.5246147128 | AC118: -0.6714762118
A119: 234 | B119: -0.5877852523 | C119: -0.8090169944 | E119: -144 | F119: -0.3546467695 | G119: -0.5877852523 | H119: 0.1414963505 | I119: -0.6717474352 | K119: -0.07391236033 | T119: 234 | U119: -0.5549272398 | V119: -0.7637918201 | AA119: 234 | AB119: -0.5008609499 | AC119: -0.6893759561
A120: 236 | B120: -0.5591929035 | C120: -0.8290375726 | E120: -146 | F120: -0.3634231406 | G120: -0.5591929035 | H120: 0.115577784 | I120: -0.6568217858 | K120: -0.0757414544 | T120: 236 | U120: -0.5279332431 | V120: -0.7826932201 | AA120: 236 | AB120: -0.476496965 | AC120: -0.7064358019
A121: 238 | B121: -0.5299192642 | C121: -0.8480480962 | E121: -148 | F121: -0.3717567366 | G121: -0.5299192642 | H121: 0.08951840375 | I121: -0.6410959002 | K121: -0.07747826918 | T121: 238 | U121: -0.5002960409 | V121: -0.8006410291 | AA121: 238 | AB121: -0.451552442 | AC121: -0.7226349646
A122: 240 | B122: -0.5 | C122: -0.8660254038 | E122: -150 | F122: -0.3796374043 | G122: -0.5 | H122: 0.06334995914 | I122: -0.6245889379 | K122: -0.07912068862 | T122: 240 | U122: -0.4720493052 | V122: -0.8176133802 | AA122: 240 | AB122: -0.4260577719 | AC122: -0.7379537078
A123: 242 | B123: -0.4694715628 | C123: -0.8829475929 | E123: -152 | F123: -0.3870555423 | G123: -0.4694715628 | H123: 0.03710433235 | I123: -0.6073210103 | K123: -0.08066671169 | T123: 242 | U123: -0.44322745 | V123: -0.8335895954 | AA123: 242 | AB123: -0.400044016 | AC123: -0.7523733682
A124: 244 | B124: -0.4383711468 | C124: -0.8987940463 | E124: -154 | F124: -0.3940021127 | G124: -0.4383711468 | H124: 0.01081349966 | I124: -0.5893131556 | K124: -0.08211445479 | T124: 244 | U124: -0.4138655905 | V124: -0.8485502101 | AA124: 244 | AB124: -0.3735428681 | AC124: -0.7658763775
A125: 246 | B125: -0.4067366431 | C125: -0.9135454576 | E125: -156 | F125: -0.4004686522 | G125: -0.4067366431 | H125: -0.01549050762 | I125: -0.5705873136 | K125: -0.08346215408 | T125: 246 | U125: -0.3839994995 | V125: -0.862476997 | AA125: 246 | AB125: -0.3465866158 | AC125: -0.7784462844
A126: 248 | B126: -0.3746065934 | C126: -0.9271838546 | E126: -158 | F126: -0.4064472824 | G126: -0.3746065934 | H126: -0.0417756421 | I126: -0.5511662988 | K126: -0.0847081676 | T126: 248 | U126: -0.3536655643 | V126: -0.8753529886 | AA126: 248 | AB126: -0.319208101 | AC126: -0.7900677744
A127: 250 | B127: -0.3420201433 | C127: -0.9396926208 | E127: -160 | F127: -0.4119307191 | G127: -0.3420201433 | H127: -0.0680098794 | I127: -0.5310737728 | K127: -0.08585097726 | T127: 250 | U127: -0.322900742 | V127: -0.8871624974 | AA127: 250 | AB127: -0.2914406804 | AC127: -0.8007266885
A128: 252 | B128: -0.3090169944 | C128: -0.9510565163 | E128: -162 | F128: -0.4169122818 | G128: -0.3090169944 | H128: -0.09416125714 | I128: -0.5103342152 | K128: -0.08688919073 | T128: 252 | U128: -0.291742515 | V128: -0.8978911354 | AA128: 252 | AB128: -0.2633181842 | AC128: -0.8104100405
A129: 254 | B129: -0.2756373558 | C129: -0.9612616959 | E129: -164 | F129: -0.421385901 | G129: -0.2756373558 | H129: -0.1201979139 | I129: -0.4889728939 | K129: -0.0878215431 | T129: 254 | U129: -0.2602288446 | V129: -0.9075258313 | AA129: 254 | AB129: -0.2348748753 | AC129: -0.8191060327
A130: 256 | B130: =COS(RADIANS(A130)) -> -0.2419218956 | C130: =SIN(RADIANS(A130)) -> -0.9702957263 | E130: -166 | F130: -0.4253461265 | G130: =SIN(RADIANS(E130)) -> -0.2419218956 | H130: =F130*COS(RADIANS(90-LAT1_))-G130*SIN(RADIANS(90-LAT1_)) -> -0.146088128 | I130: =F130*SIN(RADIANS(90-LAT1_))+G130*COS(RADIANS(90-LAT1_)) -> -0.4670158345 | K130: =COS(RADIANS(E130))*COS(RADIANS(AZ_nord1-180)) -> -0.08864689845 | T130: 256 | U130: =COS(RADIANS(DEC1_))*COS(RADIANS(T130)) -> -0.2283981254 | V130: -0.9160548468 | AA130: 256 | AB130: =COS(RADIANS(HC1_))*COS(RADIANS(AA130)) -> -0.2061454076 | AC130: =COS(RADIANS(HC1_))*SIN(RADIANS(AA130)) -> -0.8268040704
A131: =SUM(A130+2) -> 258 | B131: -0.2079116908 | C131: -0.9781476007 | E131: =SUM(E130-2) -> -168 | F131: =COS(RADIANS(E131))*COS(RADIANS(LHAo1_)) -> -0.4287881331 | G131: -0.2079116908 | H131: -0.1718003562 | I131: -0.4444897883 | K131: -0.08936425121 | T131: 258 | U131: -0.1962891384 | V131: =COS(RADIANS(DEC1_))*SIN(RADIANS(T131)) -> -0.9234677905 | AA131: 258 | AB131: -0.1771647835 | AC131: -0.8334947747
A132: 260 | B132: -0.1736481777 | C132: -0.984807753 | E132: -170 | F132: -0.4317077276 | G132: -0.1736481777 | H132: -0.1973032722 | I132: -0.4214221997 | K132: -0.0899727274 | T132: 260 | U132: -0.1639410032 | V132: -0.929755631 | AA132: 260 | AB132: -0.1479683113 | AC132: -0.8391699939
A133: 262 | B133: -0.139173101 | C133: -0.9902680687 | E133: -172 | F133: -0.4341013526 | G133: -0.139173101 | H133: -0.2225658045 | I133: -0.3978411731 | K133: -0.09047158567 | T133: 262 | U133: -0.1313931312 | V133: -0.9349107075 | AA133: 262 | AB133: -0.1185915626 | AC133: -0.8438228138
A134: 264 | B134: -0.1045284633 | C134: -0.9945218954 | E134: -174 | F134: -0.435966092 | G134: -0.1045284633 | H134: -0.2475571746 | I134: -0.3737754383 | K134: -0.09086021826 | T134: 264 | U134: -0.09868517691 | V134: -0.9389267393 | AA134: 264 | AB134: -0.08907032831 | AC134: -0.8474475656
A135: 266 | B135: -0.06975647374 | C135: -0.9975640503 | E135: -176 | F135: -0.4372996739 | G135: -0.06975647374 | H135: -0.2722469345 | I135: -0.3492543157 | K135: -0.09113815167 | T135: 266 | U135: -0.06585698992 | V135: -0.9417988335 | AA135: 266 | AB135: -0.05944057555 | AC135: -0.8500398331
A136: 268 | B136: -0.0348994967 | C136: -0.999390827 | E136: -178 | F136: -0.4381004735 | G136: -0.0348994967 | H136: -0.2966050034 | I136: -0.3243076805 | K136: -0.09130504727 | T136: 268 | U136: -0.03294856634 | V136: -0.9435234909 | AA136: 268 | AB136: -0.02973840361 | AC136: -0.851596458
A137: 270 | B137: -1.837722682e-16 | C137: -1 | E137: -180 | F137: -0.4383675151 | G137: -1.225148455e-16 | H137: -0.3206017048 | I137: -0.2989659264 | K137: -0.09136070174 | T137: 270 | U137: -1.734991431e-16 | V137: -0.9440986103 | AA137: 270 | AB137: -1.565952063e-16 | AC137: -0.8521155437
A138: 272 | B138: 0.0348994967 | C138: -0.999390827 | E138: -182 | F138: -0.4381004735 | G138: 0.0348994967 | H138: -0.3442078025 | I138: -0.2732599283 | K138: -0.09130504727 | T138: 272 | U138: 0.03294856634 | V138: -0.9435234909 | AA138: 272 | AB138: 0.02973840361 | AC138: -0.851596458
A139: 274 | B139: 0.06975647374 | C139: -0.9975640503 | E139: -184 | F139: -0.4372996739 | G139: 0.06975647374 | H139: -0.3673945359 | I139: -0.2472210052 | K139: -0.09113815167 | T139: 274 | U139: 0.06585698992 | V139: -0.9417988335 | AA139: 274 | AB139: 0.05944057555 | AC139: -0.8500398331
A140: 276 | B140: 0.1045284633 | C140: -0.9945218954 | E140: -186 | F140: -0.435966092 | G140: 0.1045284633 | H140: -0.3901336557 | I140: -0.2208808813 | K140: -0.09086021826 | T140: 276 | U140: 0.09868517691 | V140: -0.9389267393 | AA140: 276 | AB140: 0.08907032831 | AC140: -0.8474475656
A141: 278 | B141: 0.139173101 | C141: -0.9902680687 | E141: -188 | F141: -0.4341013526 | G141: 0.139173101 | H141: -0.4123974577 | I141: -0.194271648 | K141: -0.09047158567 | T141: 278 | U141: 0.1313931312 | V141: -0.9349107075 | AA141: 278 | AB141: 0.1185915626 | AC141: -0.8438228138
A142: 280 | B142: 0.1736481777 | C142: -0.984807753 | E142: -190 | F142: -0.4317077276 | G142: 0.1736481777 | H142: -0.434158817 | I142: -0.1674257247 | K142: -0.0899727274 | T142: 280 | U142: 0.1639410032 | V142: -0.929755631 | AA142: 280 | AB142: 0.1479683113 | AC142: -0.8391699939
A143: 282 | B143: 0.2079116908 | C143: -0.9781476007 | E143: -192 | F143: -0.4287881331 | G143: 0.2079116908 | H143: -0.4553912206 | I143: -0.1403758189 | K143: -0.08936425121 | T143: 282 | U143: 0.1962891384 | V143: -0.9234677905 | AA143: 282 | AB143: 0.1771647835 | AC143: -0.8334947747
A144: 284 | B144: 0.2419218956 | C144: -0.9702957263 | E144: -194 | F144: -0.4253461265 | G144: 0.2419218956 | H144: -0.4760688001 | I144: -0.1131548868 | K144: -0.08864689845 | T144: 284 | U144: 0.2283981254 | V144: -0.9160548468 | AA144: 284 | AB144: 0.2061454076 | AC144: -0.8268040704
A145: 286 | B145: 0.2756373558 | C145: -0.9612616959 | E145: -196 | F145: -0.421385901 | G145: 0.2756373558 | H145: -0.4961663632 | I145: -0.08579609297 | K145: -0.0878215431 | T145: 286 | U145: 0.2602288446 | V145: -0.9075258313 | AA145: 286 | AB145: 0.2348748753 | AC145: -0.8191060327
A146: 288 | B146: 0.3090169944 | C146: -0.9510565163 | E146: -198 | F146: -0.4169122818 | G146: 0.3090169944 | H146: -0.5156594239 | I146: -0.05833276976 | K146: -0.08688919073 | T146: 288 | U146: 0.291742515 | V146: -0.8978911354 | AA146: 288 | AB146: 0.2633181842 | AC146: -0.8104100405
A147: 290 | B147: 0.3420201433 | C147: -0.9396926208 | E147: -200 | F147: -0.4119307191 | G147: 0.3420201433 | H147: -0.5345242331 | I147: -0.03079837707 | K147: -0.08585097726 | T147: 290 | U147: 0.322900742 | V147: -0.8871624974 | AA147: 290 | AB147: 0.2914406804 | AC147: -0.8007266885
A148: 292 | B148: 0.3746065934 | C148: -0.9271838546 | E148: -202 | F148: -0.4064472824 | G148: 0.3746065934 | H148: -0.5527378069 | I148: -0.003226461289 | K148: -0.0847081676 | T148: 292 | U148: 0.3536655643 | V148: -0.8753529886 | AA148: 292 | AB148: 0.319208101 | AC148: -0.7900677744
A149: 294 | B149: 0.4067366431 | C149: -0.9135454576 | E149: -204 | F149: -0.4004686522 | G149: 0.4067366431 | H149: -0.5702779547 | I149: 0.02434938543 | K149: -0.08346215408 | T149: 294 | U149: 0.3839994995 | V149: -0.862476997 | AA149: 294 | AB149: 0.3465866158 | AC149: -0.7784462844
A150: 296 | B150: 0.4383711468 | C150: -0.8987940463 | E150: -206 | F150: -0.3940021127 | G150: 0.4383711468 | H150: -0.5871233068 | I150: 0.05189556618 | K150: -0.08211445479 | T150: 296 | U150: 0.4138655905 | V150: -0.8485502101 | AA150: 296 | AB150: 0.3735428681 | AC150: -0.7658763775
A151: 298 | B151: 0.4694715628 | C151: -0.8829475929 | E151: -208 | F151: -0.3870555423 | G151: 0.4694715628 | H151: -0.6032533395 | I151: 0.07937852018 | K151: -0.08066671169 | T151: 298 | U151: 0.44322745 | V151: -0.8335895954 | AA151: 298 | AB151: 0.400044016 | AC151: -0.7523733682
A152: 300 | B152: 0.5 | C152: -0.8660254038 | E152: -210 | F152: -0.3796374043 | G152: 0.5 | H152: -0.6186484009 | I152: 0.1067647637 | K152: -0.07912068862 | T152: 300 | U152: 0.4720493052 | V152: -0.8176133802 | AA152: 300 | AB152: 0.4260577719 | AC152: -0.7379537078
A153: 302 | B153: 0.5299192642 | C153: -0.8480480962 | E153: -212 | F153: -0.3717567366 | G153: 0.5299192642 | H153: -0.6332897346 | I153: 0.1340209307 | K153: -0.07747826918 | T153: 302 | U153: 0.5002960409 | V153: -0.8006410291 | AA153: 302 | AB153: 0.451552442 | AC153: -0.7226349646
A154: 304 | B154: 0.5591929035 | C154: -0.8290375726 | E154: -214 | F154: -0.3634231406 | G154: 0.5591929035 | H154: -0.6471595023 | I154: 0.161113814 | K154: -0.0757414544 | T154: 304 | U154: 0.5279332431 | V154: -0.7826932201 | AA154: 304 | AB154: 0.476496965 | AC154: -0.7064358019
A155: 306 | B155: 0.5877852523 | C155: -0.8090169944 | E155: -216 | F155: -0.3546467695 | G155: 0.5877852523 | H155: -0.6602408058 | I155: 0.1880104048 | K155: -0.07391236033 | T155: 306 | U155: 0.5549272398 | V155: -0.7637918201 | AA155: 306 | AB155: 0.5008609499 | AC155: -0.6893759561
A156: 308 | B156: 0.6156614753 | C156: -0.7880107536 | E156: -218 | F156: -0.3454383159 | G156: 0.6156614753 | H156: -0.6725177076 | I156: 0.2146779339 | K156: -0.07199321543 | T156: 308 | U156: 0.5812451433 | V156: -0.7439598574 | AA156: 308 | AB156: 0.5246147128 | AC156: -0.6714762118
A157: 310 | B157: 0.6427876097 | C157: -0.7660444431 | E157: -220 | F157: -0.335808999 | G157: 0.6427876097 | H157: -0.6839752501 | I157: 0.2410839111 | K157: -0.06998635789 | T157: 310 | U157: 0.606854889 | V157: -0.7232214942 | AA157: 310 | AB157: 0.5477293135 | AC157: -0.6527583772
A158: 312 | B158: 0.6691306064 | C158: -0.7431448255 | E158: -222 | F158: -0.3257705505 | G158: 0.6691306064 | H158: -0.6945994742 | I158: 0.2671961646 | K158: -0.06789423275 | T158: 312 | U158: 0.6317252756 | V158: -0.701601997 | AA158: 312 | AB158: 0.5701765905 | AC158: -0.633245257
A159: 314 | B159: 0.6946583705 | C159: -0.7193398003 | E159: -224 | F159: -0.3153352008 | G159: 0.6946583705 | H159: -0.7043774358 | I159: 0.2929828808 | K159: -0.06571938895 | T159: 314 | U159: 0.6558260022 | V159: -0.6791277058 | AA159: 314 | AB159: 0.5919291951 | AC159: -0.6129606251
A160: 316 | B160: 0.7193398003 | C160: -0.6946583705 | E160: -226 | F160: -0.3045156637 | G160: 0.7193398003 | H160: -0.713297222 | I160: 0.3184126424 | K160: -0.0634644762 | T160: 316 | U160: 0.6791277058 | V160: -0.6558260022 | AA160: 316 | AB160: 0.6129606251 | AC160: -0.5919291951
A161: 318 | B161: 0.7431448255 | C161: -0.6691306064 | E161: -228 | F161: -0.2933251212 | G161: 0.7431448255 | H161: -0.7213479654 | I161: 0.3434544673 | K161: -0.06113224176 | T161: 318 | U161: 0.701601997 | V161: -0.6317252756 | AA161: 318 | AB161: 0.633245257 | AC161: -0.5701765905
A162: 320 | B162: =COS(RADIANS(A162)) -> 0.7660444431 | C162: =SIN(RADIANS(A162)) -> -0.6427876097 | E162: -230 | F162: -0.2817772072 | G162: =SIN(RADIANS(E162)) -> 0.7660444431 | H162: =F162*COS(RADIANS(90-LAT1_))-G162*SIN(RADIANS(90-LAT1_)) -> -0.7285198575 | I162: =F162*SIN(RADIANS(90-LAT1_))+G162*COS(RADIANS(90-LAT1_)) -> 0.3680778459 | K162: =COS(RADIANS(E162))*COS(RADIANS(AZ_nord1-180)) -> -0.05872552709 | T162: 320 | U162: =COS(RADIANS(DEC1_))*COS(RADIANS(T162)) -> 0.7232214942 | V162: -0.606854889 | AA162: 320 | AB162: =COS(RADIANS(HC1_))*COS(RADIANS(AA162)) -> 0.6527583772 | AC162: =COS(RADIANS(HC1_))*SIN(RADIANS(AA162)) -> -0.5477293135
A163: =SUM(A162+2) -> 322 | B163: 0.7880107536 | C163: -0.6156614753 | E163: =SUM(E162-2) -> -232 | F163: =COS(RADIANS(E163))*COS(RADIANS(LHAo1_)) -> -0.2698859911 | G163: 0.7880107536 | H163: -0.7348041603 | I163: 0.3922527782 | K163: -0.05624726442 | T163: =SUM(T162+2) -> 322 | U163: 0.7439598574 | V163: =COS(RADIANS(DEC1_))*SIN(RADIANS(T163)) -> -0.5812451433 | AA163: =SUM(AA162+2) -> 322 | AB163: 0.6714762118 | AC163: -0.5246147128
A164: 324 | B164: 0.8090169944 | C164: -0.5877852523 | E164: -234 | F164: -0.2576659605 | G164: 0.8090169944 | H164: -0.7401932174 | I164: 0.415949811 | K164: -0.05370047312 | T164: 324 | U164: 0.7637918201 | V164: -0.5549272398 | AA164: 324 | AB164: 0.6893759561 | AC164: -0.5008609499
A165: 326 | B165: 0.8290375726 | C165: -0.5591929035 | E165: -236 | F165: -0.2451320036 | G165: 0.8290375726 | H165: -0.7446804631 | I165: 0.439140073 | K165: -0.05108825607 | T165: 326 | U165: 0.7826932201 | V165: -0.5279332431 | AA165: 326 | AB165: 0.7064358019 | AC165: -0.476496965
A166: 328 | B166: 0.8480480962 | C166: -0.5299192642 | E166: -238 | F166: -0.2322993911 | G166: 0.8480480962 | H166: -0.7482604304 | I166: 0.4617953105 | K166: -0.04841379585 | T166: 328 | U166: 0.8006410291 | V166: -0.5002960409 | AA166: 328 | AB166: 0.7226349646 | AC166: -0.451552442
A167: 330 | B167: 0.8660254038 | C167: -0.5 | E167: -240 | F167: -0.2191837576 | G167: 0.8660254038 | H167: -0.7509287576 | I167: 0.4838879215 | K167: -0.04568035087 | T167: 330 | U167: 0.8176133802 | V167: -0.4720493052 | AA167: 330 | AB167: 0.7379537078 | AC167: -0.4260577719
A168: 332 | B168: 0.8829475929 | C168: -0.4694715628 | E168: -242 | F168: -0.2058010824 | G168: 0.8829475929 | H168: -0.7526821938 | I168: 0.5053909897 | K168: -0.04289125142 | T168: 332 | U168: 0.8335895954 | V168: -0.44322745 | AA168: 332 | AB168: 0.7523733682 | AC168: -0.400044016
A169: 334 | B169: 0.8987940463 | C169: -0.4383711468 | E169: -244 | F169: -0.1921676703 | G169: 0.8987940463 | H169: -0.7535186026 | I169: 0.5262783167 | K169: -0.04004989559 | T169: 334 | U169: 0.8485502101 | V169: -0.4138655905 | AA169: 334 | AB169: 0.7658763775 | AC169: -0.3735428681
A170: 336 | B170: 0.9135454576 | C170: -0.4067366431 | E170: -246 | F170: -0.1783001315 | G170: 0.9135454576 | H170: -0.7534369651 | I170: 0.5465244547 | K170: -0.03715974514 | T170: 336 | U170: 0.862476997 | V170: -0.3839994995 | AA170: 336 | AB170: 0.7784462844 | AC170: -0.3465866158
A171: 338 | B171: 0.9271838546 | C171: -0.3746065934 | E171: -248 | F171: -0.1642153615 | G171: 0.9271838546 | H171: -0.7524373808 | I171: 0.5661047369 | K171: -0.03422432125 | T171: 338 | U171: 0.8753529886 | V171: -0.3536655643 | AA171: 338 | AB171: 0.7900677744 | AC171: -0.319208101
A172: 340 | B172: 0.9396926208 | C172: -0.3420201433 | E172: -250 | F172: -0.1499305203 | G172: 0.9396926208 | H172: -0.7505210674 | I172: 0.5849953076 | K172: -0.0312472003 | T172: 340 | U172: 0.8871624974 | V172: -0.322900742 | AA172: 340 | AB172: 0.8007266885 | AC172: -0.2914406804
A173: 342 | B173: 0.9510565163 | C173: -0.3090169944 | E173: -252 | F173: -0.135463012 | G173: 0.9510565163 | H173: -0.7476903597 | I173: 0.6031731516 | K173: -0.02823200946 | T173: 342 | U173: 0.8978911354 | V173: -0.291742515 | AA173: 342 | AB173: 0.8104100405 | AC173: -0.2633181842
A174: 344 | B174: 0.9612616959 | C174: -0.2756373558 | E174: -254 | F174: -0.1208304627 | G174: 0.9612616959 | H174: -0.7439487064 | I174: 0.6206161221 | K174: -0.02518242225 | T174: 344 | U174: 0.9075258313 | V174: -0.2602288446 | AA174: 344 | AB174: 0.8191060327 | AC174: -0.2348748753
A175: 346 | B175: 0.9702957263 | C175: -0.2419218956 | E175: -256 | F175: -0.1060507002 | G175: 0.9702957263 | H175: -0.7393006663 | I175: 0.6373029674 | K175: -0.02210215415 | T175: 346 | U175: 0.9160548468 | V175: -0.2283981254 | AA175: 346 | AB175: 0.8268040704 | AC175: -0.2061454076
A176: 348 | B176: 0.9781476007 | C176: -0.2079116908 | E176: -258 | F176: -0.09114173127 | G176: 0.9781476007 | H176: -0.7337519021 | I176: 0.6532133573 | K176: -0.01899495797 | T176: 348 | U176: 0.9234677905 | V176: -0.1962891384 | AA176: 348 | AB176: 0.8334947747 | AC176: -0.1771647835
A177: 350 | B177: 0.984807753 | C177: -0.1736481777 | E177: -260 | F177: -0.07612172015 | G177: 0.984807753 | H177: -0.7273091743 | I177: 0.6683279072 | K177: -0.01586461937 | T177: 350 | U177: 0.929755631 | V177: -0.1639410032 | AA177: 350 | AB177: 0.8391699939 | AC177: -0.1479683113
A178: 352 | B178: 0.9902680687 | C178: -0.139173101 | E178: -262 | F178: -0.06100896644 | G178: 0.9902680687 | H178: -0.7199803323 | I178: 0.6826282026 | K178: -0.01271495217 | T178: 352 | U178: 0.9349107075 | V178: -0.1313931312 | AA178: 352 | AB178: 0.8438228138 | AC178: -0.1185915626
A179: 354 | B179: 0.9945218954 | C179: -0.1045284633 | E179: -264 | F179: -0.0458218827 | G179: 0.9945218954 | H179: -0.7117743052 | I179: 0.6960968207 | K179: -0.009549793756 | T179: 354 | U179: 0.9389267393 | V179: -0.09868517691 | AA179: 354 | AB179: 0.8474475656 | AC179: -0.08907032831
A180: 356 | B180: 0.9975640503 | C180: -0.06975647374 | E180: -266 | F180: -0.03057897206 | G180: 0.9975640503 | H180: -0.7027010907 | I180: 0.708717352 | K180: -0.006373000392 | T180: 356 | U180: 0.9417988335 | V180: -0.06585698992 | AA180: 356 | AB180: 0.8500398331 | AC180: -0.05944057555
A181: 358 | B181: 0.999390827 | C181: -0.0348994967 | E181: -268 | F181: -0.01529880565 | G181: 0.999390827 | H181: -0.6927717432 | I181: 0.7204744203 | K181: -0.003188442509 | T181: 358 | U181: 0.9435234909 | V181: -0.03294856634 | AA181: 358 | AB181: 0.851596458 | AC181: -0.02973840361
A182: 360 | B182: 1 | C182: -2.45029691e-16 | E182: -270 | F182: -8.055979257e-17 | G182: 1 | H182: -0.6819983601 | I182: 0.7313537016 | K182: -1.678956339e-17 | T182: 360 | U182: 0.9440986103 | V182: -2.313321907e-16 | AA182: 360 | AB182: 0.8521155437 | AC182: -2.087936084e-16

Sheet CALC2 (hidden)
A1: Plot of local meridian circle | E1: Plot of LHA meridian | K1: Plot of North AZIMUT | N1: Plot of the EQUATOR | Q1: South Pole view | T1: Declination circle | X1: Zenith view | AA1: Altitude circle | AE1: Plot of circle of position (COP2) for body 2 | AK1: slope and offset for linear approx. at Lat or Lon near intersection (n=0: x=my+b; n=1: y=mx+b)
A2: 0 | B2: =COS(RADIANS(A2)) -> 1 | C2: =SIN(RADIANS(A2)) -> 0 | E2: 90 | F2: =COS(RADIANS(E2))*COS(RADIANS(Sight2!LHA2_)) -> 5.551799934e-17 | G2: =SIN(RADIANS(E2)) -> 1 | H2: =F2*COS(RADIANS(90-Sight2!LAT2_))-G2*SIN(RADIANS(90-Sight2!LAT2_)) -> -0.6819983601 | I2: =F2*SIN(RADIANS(90-Sight2!LAT2_))+G2*COS(RADIANS(90-Sight2!LAT2_)) -> 0.7313537016 | K2: =COS(RADIANS(E2))*COS(RADIANS(Sight2!AZ_nord2-180)) -> 5.572750588e-17 | N2: =1.1*COS(RADIANS(90-Sight2!LAT2_)) -> 0.8044890718 | O2: =1.1*SIN(RADIANS(90-Sight2!LAT2_)) -> 0.7501981961 | Q2: 0 | R2: 0 | T2: 0 | U2: =COS(RADIANS(Sight2!DEC2_))*COS(RADIANS(T2)) -> 0.9329640063 | V2: =COS(RADIANS(Sight2!DEC2_))*SIN(RADIANS(T2)) -> 0 | X2: 0 | Y2: 0 | AA2: 0 | AB2: =COS(RADIANS(Sight2!HC2_))*COS(RADIANS(AA2)) -> 0.9496213842 | AC2: =COS(RADIANS(Sight2!HC2_))*SIN(RADIANS(AA2)) -> 0 | AE2: Azimut from body to PLOP1 (great circle) | AK2: m | AL2: b | AM2: n
A3: =SUM(A2+2) -> 2 | B3: 0.999390827 | C3: 0.0348994967 | E3: =SUM(E2-2) -> 88 | F3: =COS(RADIANS(E3))*COS(RADIANS(Sight2!LHA2_)) -> 0.0316296401 | G3: =SIN(RADIANS(E3)) -> 0.999390827 | H3: =F3*COS(RADIANS(90-Sight2!LAT2_))-G3*SIN(RADIANS(90-Sight2!LAT2_)) -> -0.6584504507 | I3: =F3*SIN(RADIANS(90-Sight2!LAT2_))+G3*COS(RADIANS(90-Sight2!LAT2_)) -> 0.7524795434 | K3: =COS(RADIANS(E3))*COS(RADIANS(Sight2!AZ_nord2-180)) -> 0.03174899989 | N3: =1.1*COS(RADIANS(270-Sight2!LAT2_)) -> -0.8044890718 | O3: =1.1*SIN(RADIANS(270-Sight2!LAT2_)) -> -0.7501981961 | T3: =SUM(T2+2) -> 2 | U3: =COS(RADIANS(Sight2!DEC2_))*COS(RADIANS(T3)) -> 0.9323956698 | V3: =COS(RADIANS(Sight2!DEC2_))*SIN(RADIANS(T3)) -> 0.03255997426 | AA3: =SUM(AA2+2) -> 2 | AB3: =COS(RADIANS(Sight2!HC2_))*COS(RADIANS(AA3)) -> 0.9490429006 | AC3: =COS(RADIANS(Sight2!HC2_))*SIN(RADIANS(AA3)) -> 0.03314130837 | AE3: acos | AF3: AZ(deg) | AJ3: LOP2: | AK3: 0.3152466649 | AL3: 24.360803 | AM3: 1
A4: 4 | B4: 0.9975640503 | C4: 0.06975647374 | E4: 86 | F4: =COS(RADIANS(E4))*COS(RADIANS(Sight2!LHA2_)) -> 0.06322074435 | G4: 0.9975640503 | H4: =F4*COS(RADIANS(90-Sight2!LAT2_))-G4*SIN(RADIANS(90-Sight2!LAT2_)) -> -0.6341003209 | I4: =F4*SIN(RADIANS(90-Sight2!LAT2_))+G4*COS(RADIANS(90-Sight2!LAT2_)) -> 0.7726886047 | K4: =COS(RADIANS(E4))*COS(RADIANS(Sight2!AZ_nord2-180)) -> 0.06345931851 | Q4: Zénith | T4: 4 | U4: =COS(RADIANS(Sight2!DEC2_))*COS(RADIANS(T4)) -> 0.9306913529 | V4: =COS(RADIANS(Sight2!DEC2_))*SIN(RADIANS(T4)) -> 0.06508027921 | X4: North Pole | AA4: 4 | AB4: =COS(RADIANS(Sight2!HC2_))*COS(RADIANS(AA4)) -> 0.9473081543 | AC4: =COS(RADIANS(Sight2!HC2_))*SIN(RADIANS(AA4)) -> 0.06624223916 | AE4: =ACOS(IF(AG4>0,IF((ABS(1-AG4))<0.000000000001,1,AG4),IF((ABS(1+AG4))<0.000000000001,-1,AG4))) -> 0.3083821604 | AF4: =DEGREES(AE4) -> 17.66899627 | AG4: =(SIN(RADIANS(LatLP2))-(SIN(RADIANS(LatB2))*SIN(RADIANS(Sight2!HO2_))))/(COS(RADIANS(LatB2))*COS(RADIANS(Sight2!HO2_))) -> 0.9528258593
A5: 6 | B5: 0.9945218954 | C5: 0.1045284633 | E5: 84 | F5: =COS(RADIANS(E5))*COS(RADIANS(Sight2!LHA2_)) -> 0.09473482387 | G5: 0.9945218954 | H5: =F5*COS(RADIANS(90-Sight2!LAT2_))-G5*SIN(RADIANS(90-Sight2!LAT2_)) -> -0.6089776376 | I5: =F5*SIN(RADIANS(90-Sight2!LAT2_))+G5*COS(RADIANS(90-Sight2!LAT2_)) -> 0.791956264 | K5: =COS(RADIANS(E5))*COS(RADIANS(Sight2!AZ_nord2-180)) -> 0.09509232172 | N5: Plot of POLES | Q5: 0 | R5: =COS(RADIANS(Sight2!LAT2_)) -> 0.6819983601 | T5: 6 | U5: =COS(RADIANS(Sight2!DEC2_))*COS(RADIANS(T5)) -> 0.9278531319 | V5: =COS(RADIANS(Sight2!DEC2_))*SIN(RADIANS(T5)) -> 0.09752129386 | X5: 0 | Y5: =COS(RADIANS(Sight2!LAT2_)) -> 0.6819983601 | AA5: 6 | AB5: =COS(RADIANS(Sight2!HC2_))*COS(RADIANS(AA5)) -> 0.9444192589 | AC5: =COS(RADIANS(Sight2!HC2_))*SIN(RADIANS(AA5)) -> 0.09926246398 | AE5: Azimut North from body to PLOP2 (rad-deg)
A6: 8 | B6: 0.9902680687 | C6: 0.139173101 | E6: 82 | F6: =COS(RADIANS(E6))*COS(RADIANS(Sight2!LHA2_)) -> 0.1261334836 | G6: 0.9902680687 | H6: =F6*COS(RADIANS(90-Sight2!LAT2_))-G6*SIN(RADIANS(90-Sight2!LAT2_)) -> -0.5831130088 | I6: =F6*SIN(RADIANS(90-Sight2!LAT2_))+G6*COS(RADIANS(90-Sight2!LAT2_)) -> 0.8102590466 | K6: =COS(RADIANS(E6))*COS(RADIANS(Sight2!AZ_nord2-180)) -> 0.1266094696 | N6: =1.1*COS(RADIANS(180-Sight2!LAT2_)) -> -0.7501981961 | O6: =1.1*SIN(RADIANS(180-Sight2!LAT2_)) -> 0.8044890718 | T6: 8 | U6: =COS(RADIANS(Sight2!DEC2_))*COS(RADIANS(T6)) -> 0.9238844647 | V6: =COS(RADIANS(Sight2!DEC2_))*SIN(RADIANS(T6)) -> 0.1298434938 | AA6: 8 | AB6: =COS(RADIANS(Sight2!HC2_))*COS(RADIANS(AA6)) -> 0.9403797342 | AC6: =COS(RADIANS(Sight2!HC2_))*SIN(RADIANS(AA6)) -> 0.1321617528 | AE6: =IF(AND(LatB2=0,LatLP2=0),IF((LonLP2-LonB2)>0,3*PI()/2,PI()/2),IF(LonLP2=LonB2,IF((LatLP2-LatB2)>0,0,PI()),IF((LonLP2-LonB2)<0,AE4,2*PI()-AE4))) -> 0.3083821604 | AF6: =IF(DEGREES(ZB2Nr)>=360,DEGREES(ZB2Nr)-360,IF(LonLP2-LonB2>180,DEGREES(2*PI()-ZB2Nr),IF(LonLP2-LonB2<-180,DEGREES(2*PI()-ZB2Nr),DEGREES(ZB2Nr)))) -> 17.66899627
A7: 10 | B7: 0.984807753 | C7: 0.1736481777 | E7: 80 | F7: =COS(RADIANS(E7))*COS(RADIANS(Sight2!LHA2_)) -> 0.1573784691 | G7: 0.984807753 | H7: =F7*COS(RADIANS(90-Sight2!LAT2_))-G7*SIN(RADIANS(90-Sight2!LAT2_)) -> -0.5565379466 | I7: =F7*SIN(RADIANS(90-Sight2!LAT2_))+G7*COS(RADIANS(90-Sight2!LAT2_)) -> 0.8275746534 | K7: =COS(RADIANS(E7))*COS(RADIANS(Sight2!AZ_nord2-180)) -> 0.1579723633 | N7: =1.1*COS(RADIANS(-Sight2!LAT2_)) -> 0.7501981961 | O7: =1.1*SIN(RADIANS(-Sight2!LAT2_)) -> -0.8044890718 | Q7: Zénith line + label | S7: nadir | T7: 10 | U7: =COS(RADIANS(Sight2!DEC2_))*COS(RADIANS(T7)) -> 0.9187901867 | V7: =COS(RADIANS(Sight2!DEC2_))*SIN(RADIANS(T7)) -> 0.1620074995 | X7: Z meridian | AA7: 10 | AB7: =COS(RADIANS(Sight2!HC2_))*COS(RADIANS(AA7)) -> 0.9351945016 | AC7: =COS(RADIANS(Sight2!HC2_))*SIN(RADIANS(AA7)) -> 0.1649000228 | AE7: D | AF7: acosLatv | AG7: LatV | AH7: cs/sndLov | AI7: ifdLov | AJ7: dLoV | AK7: DV | AL7: DVx | AM7: asindLovx | AN7: dLoVx | AO7: AzNB-LOP | AP7: Latx | AQ7: DRLatx | AR7: GHAx | AS7: GHAxcor | AT7: DRLonx | AU7: linLat2 | AV7: linLon2
A8: 12 | B8: 0.9781476007 | C8: 0.2079116908 | E8: 78 | F8: =COS(RADIANS(E8))*COS(RADIANS(Sight2!LHA2_)) -> 0.1884317132 | G8: 0.9781476007 | H8: =F8*COS(RADIANS(90-Sight2!LAT2_))-G8*SIN(RADIANS(90-Sight2!LAT2_)) -> -0.5292848287 | I8: =F8*SIN(RADIANS(90-Sight2!LAT2_))+G8*COS(RADIANS(90-Sight2!LAT2_)) -> 0.8438819879 | K8: =COS(RADIANS(E8))*COS(RADIANS(Sight2!AZ_nord2-180)) -> 0.1891427921 | Q8: 0 | R8: 0 | T8: 12 | U8: =COS(RADIANS(Sight2!DEC2_))*COS(RADIANS(T8)) -> 0.9125765043 | V8: =COS(RADIANS(Sight2!DEC2_))*SIN(RADIANS(T8)) -> 0.193974124 | X8: 0 | Y8: -1 | AA8: 12 | AB8: =COS(RADIANS(Sight2!HC2_))*COS(RADIANS(AA8)) -> 0.9288698786 | AC8: =COS(RADIANS(Sight2!HC2_))*SIN(RADIANS(AA8)) -> 0.1974373876 | AE8: =IF(AO8=0,RADIANS(90-Sight2!HO2_),IF(AO8=180,-RADIANS(90-Sight2!HO2_),IF(AO8<180,-RADIANS(90-Sight2!HO2_),RADIANS(90-Sight2!HO2_)))) -> -1.251194278 | AF8: =ACOS(COS(RADIANS(LatB2))*SIN(RADIANS(AO8))) -> 1.332282615 | AG8: =IF(OR(AO8=0,AO8=180),RADIANS((LatLP2+LatB2)/2),IF(AND(LatB2=0,LatLP2=0),0,IF(LatB2>=0,AF8,-AF8))) -> -1.332282615 | AH8: =IF(COS(RADIANS(AO8))/SIN(AG8)>0,IF(1-COS(RADIANS(AO8))/SIN(AG8)<0.000000000001,1,COS(RADIANS(AO8))/SIN(AG8)),IF(1+COS(RADIANS(AO8))/SIN(AG8)<0.000000000001,-1,COS(RADIANS(AO8))/SIN(AG8))) -> -0.9955898777 | AI8: =IF(AND(AO8<=180,AO8>0),IF(AH8=1,-PI()/2,IF(AH8=-1,PI()/2,-ASIN(AH8))),IF(AH8=1,PI()/2,IF(AH8=-1,-PI()/2,ASIN(AH8)))) -> 1.47684562 | AJ8: =IF(OR(OR(AO8=0,AO8=180),AND(LatB2<>LatLP2,OR(AO8=90,AO8=270))),0,IF(AND(LatB2=0,LatLP2=0),RADIANS((LonLP2-LonB2)/2),AI8)) -> 1.47684562 | AK8: =IF(AJ8=0,AG8-RADIANS(LatB2),ASIN(COS(RADIANS(LatB2))*SIN(AJ8))) -> 1.191295088 | AL8: =AE8-AK8 -> -2.442489366 | AM8: =ASIN(SIN(AL8)/COS(RADIANS(AP8))) -> -1.296853889 | AN8: =IF(AL8>PI()/2,PI()-AM8,IF(AL8<-PI()/2,-PI()-AM8,AM8)) -> -1.844738765 | AO8: =IF(AO9-dZB2_<0,360+(AO9-dZB2_),IF(AO9-dZB2_>=360,AO9-dZB2_-360,AO9-dZB2_)) -> 14.66899627 | AP8: =IF(OR(AO8=0,AO8=180),LatB2+DEGREES(AE8),DEGREES(ASIN(SIN(AG8)*COS(AL8)))) -> 48.05190378 | AQ8: =DRLat2+AP8 -> 48.05190378 | AR8: =IF(OR(LatB2=90,LatB2=-90),AR9-dZB2_,IF(OR(AO8=0,AO8=180),LonB2,LonB2+DEGREES(AJ8)+DEGREES(AN8))) -> 75.56978565 | AS8: =IF(AR8<0,360+AR8,AR8) -> 75.56978565 | AT8: =IF(AS8-GHAx2>180,cLOP2+(AS8-GHAx2-360),IF(AS8-GHAx2<-180,cLOP2+(AS8-GHAx2+360),cLOP2+(AS8-GHAx2))) -> 75.56978565 | AU8: 48.18392589
A9: 14 | B9: 0.9702957263 | C9: 0.2419218956 | E9: 76 | F9: =COS(RADIANS(E9))*COS(RADIANS(Sight2!LHA2_)) -> 0.2192553823 | G9: 0.9702957263 | H9: =F9*COS(RADIANS(90-Sight2!LAT2_))-G9*SIN(RADIANS(90-Sight2!LAT2_)) -> -0.5013868587 | I9: =F9*SIN(RADIANS(90-Sight2!LAT2_))+G9*COS(RADIANS(90-Sight2!LAT2_)) -> 0.8591611822 | K9: =COS(RADIANS(E9))*COS(RADIANS(Sight2!AZ_nord2-180)) -> 0.2200827795 | N9: Plot of Declination | Q9: 0 | R9: 1 | T9: 14 | U9: =COS(RADIANS(Sight2!DEC2_))*COS(RADIANS(T9)) -> 0.9052509881 | V9: =COS(RADIANS(Sight2!DEC2_))*SIN(RADIANS(T9)) -> 0.2257044209 | X9: 0 | Y9: 1 | AA9: 14 | AB9: =COS(RADIANS(Sight2!HC2_))*COS(RADIANS(AA9)) -> 0.9214135707 | AC9: =COS(RADIANS(Sight2!HC2_))*SIN(RADIANS(AA9)) -> 0.2297342054 | AE9: =IF(AO9=0,RADIANS(90-Sight2!HO2_),IF(AO9=180,-RADIANS(90-Sight2!HO2_),IF(AO9<180,-RADIANS(90-Sight2!HO2_),RADIANS(90-Sight2!HO2_)))) -> -1.251194278 | AF9: 1.329040523 | AG9: -1.329040523 | AH9: =IF(COS(RADIANS(AO9))/SIN(AG9)>0,IF(1-COS(RADIANS(AO9))/SIN(AG9)<0.000000000001,1,COS(RADIANS(AO9))/SIN(AG9)),IF(1+COS(RADIANS(AO9))/SIN(AG9)<0.000000000001,-1,COS(RADIANS(AO9))/SIN(AG9))) -> -0.9954640486 | AI9: =IF(AND(AO9<=180,AO9>0),IF(AH9=1,-PI()/2,IF(AH9=-1,PI()/2,-ASIN(AH9))),IF(AH9=1,PI()/2,IF(AH9=-1,-PI()/2,ASIN(AH9)))) -> 1.47551375 | AJ9: 1.47551375 | AK9: 1.190978325 | AL9: =AE9-AK9 -> -2.442172602 | AM9: -1.293555224 | AN9: =IF(AL9>PI()/2,PI()-AM9,IF(AL9<-PI()/2,-PI()-AM9,AM9)) -> -1.84803743 | AO9: 14.86899627 | AP9: 47.98439254 | AQ9: 47.98439254 | AR9: 75.30447558 | AS9: =IF(AR9<0,360+AR9,AR9) -> 75.30447558 | AT9: 75.30447558 | AU9: 48.10028777
A10: 16 | B10: 0.9612616959 | C10: 0.2756373558 | E10: 74 | F10: =COS(RADIANS(E10))*COS(RADIANS(Sight2!LHA2_)) -> 0.2498119224 | G10: 0.9612616959 | H10: =F10*COS(RADIANS(90-Sight2!LAT2_))-G10*SIN(RADIANS(90-Sight2!LAT2_)) -> -0.4728780261 | I10: =F10*SIN(RADIANS(90-Sight2!LAT2_))+G10*COS(RADIANS(90-Sight2!LAT2_)) -> 0.873393621 | K10: =COS(RADIANS(E10))*COS(RADIANS(Sight2!AZ_nord2-180)) -> 0.2507546299 | N10: =COS(RADIANS(Sight2!DEC2_+90-Sight2!LAT2_)) -> 0.9278254037 | O10: =SIN(RADIANS(Sight2!DEC2_+90-Sight2!LAT2_)) -> 0.3730147721 | Q10: 0 | R10: 1.1 | S10: -1.1 | T10: 16 | U10: =COS(RADIANS(Sight2!DEC2_))*COS(RADIANS(T10)) -> 0.896822563 | V10: =COS(RADIANS(Sight2!DEC2_))*SIN(RADIANS(T10)) -> 0.2571597318 | AA10: 16 | AB10: =COS(RADIANS(Sight2!HC2_))*COS(RADIANS(AA10)) -> 0.9128346623 | AC10: =COS(RADIANS(Sight2!HC2_))*SIN(RADIANS(AA10)) -> 0.2617511274 | AE10: =IF(AO10=0,RADIANS(90-Sight2!HO2_),IF(AO10=180,-RADIANS(90-Sight2!HO2_),IF(AO10<180,-RADIANS(90-Sight2!HO2_),RADIANS(90-Sight2!HO2_)))) -> -1.251194278 | AF10: 1.325798844 | AG10: -1.325798844 | AH10: -0.9953362481 | AI10: 1.47417975 | AJ10: 1.47417975 | AK10: 1.190656855 | AL10: -2.441851133 | AM10: -1.290272798 | AN10: -1.851319855 | AO10: 15.06899627 | AP10: 47.91607777 | AQ10: 47.91607777 | AR10: 75.03997386 | AS10: 75.03997386 | AT10: 75.03997386 | AU10: 48.01690449
A11: 18 | B11: 0.9510565163 | C11: 0.3090169944 | E11: 72 | F11: =COS(RADIANS(E11))*COS(RADIANS(Sight2!LHA2_)) -> 0.2800641052 | G11: 0.9510565163 | H11: =F11*COS(RADIANS(90-Sight2!LAT2_))-G11*SIN(RADIANS(90-Sight2!LAT2_)) -> -0.4437930644 | I11: =F11*SIN(RADIANS(90-Sight2!LAT2_))+G11*COS(RADIANS(90-Sight2!LAT2_)) -> 0.8865619641 | K11: =COS(RADIANS(E11))*COS(RADIANS(Sight2!AZ_nord2-180)) -> 0.2811209744 | N11: =COS(RADIANS(270-Sight2!DEC2_-Sight2!LAT2_)) -> -0.4368279553 | O11: =SIN(RADIANS(270-Sight2!DEC2_-Sight2!LAT2_)) -> -0.8995450725 | T11: 18 | U11: =COS(RADIANS(Sight2!DEC2_))*COS(RADIANS(T11)) -> 0.8873014977 | V11: =COS(RADIANS(Sight2!DEC2_))*SIN(RADIANS(T11)) -> 0.2883017331 | X11: Azimut line + label | AA11: 18 | AB11: =COS(RADIANS(Sight2!HC2_))*COS(RADIANS(AA11)) -> 0.9031436055 | AC11: =COS(RADIANS(Sight2!HC2_))*SIN(RADIANS(AA11)) -> 0.293449146 | AE11: =IF(AO11=0,RADIANS(90-Sight2!HO2_),IF(AO11=180,-RADIANS(90-Sight2!HO2_),IF(AO11<180,-RADIANS(90-Sight2!HO2_),RADIANS(90-Sight2!HO2_)))) -> -1.251194278 | AF11: 1.322557585 | AG11: -1.322557585 | AH11: -0.9952064648 | AI11: 1.472843585 | AJ11: 1.472843585 | AK11: 1.190330663 | AL11: -2.44152494 | AM11: -1.287006742 | AN11: -1.854585912 | AO11: 15.26899627 | AP11: 47.84696337 | AQ11: 47.84696337 | AR11: 74.77628603 | AS11: 74.77628603 | AT11: 74.77628603 | AU11: 47.93377778
A12: 20 | B12: 0.9396926208 | C12: 0.3420201433 | E12: 70 | F12: =COS(RADIANS(E12))*COS(RADIANS(Sight2!LHA2_)) -> 0.3099750731 | G12: 0.9396926208 | H12: =F12*COS(RADIANS(90-Sight2!LAT2_))-G12*SIN(RADIANS(90-Sight2!LAT2_)) -> -0.4141674092 | I12: =F12*SIN(RADIANS(90-Sight2!LAT2_))+G12*COS(RADIANS(90-Sight2!LAT2_)) -> 0.8986501681 | K12: =COS(RADIANS(E12))*COS(RADIANS(Sight2!AZ_nord2-180)) -> 0.3111448163 | Q12: LHA line + label | T12: 20 | U12: =COS(RADIANS(Sight2!DEC2_))*COS(RADIANS(T12)) -> 0.8766993922 | V12: =COS(RADIANS(Sight2!DEC2_))*SIN(RADIANS(T12)) -> 0.3190924832 | X12: 0 | Y12: 0 | AA12: 20 | AB12: =COS(RADIANS(Sight2!HC2_))*COS(RADIANS(AA12)) -> 0.8923522073 | AC12: =COS(RADIANS(Sight2!HC2_))*SIN(RADIANS(AA12)) -> 0.3247896419 | AE12: =IF(AO12=0,RADIANS(90-Sight2!HO2_),IF(AO12=180,-RADIANS(90-Sight2!HO2_),IF(AO12<180,-RADIANS(90-Sight2!HO2_),RADIANS(90-Sight2!HO2_)))) -> -1.251194278 | AF12: 1.319316751 | AG12: -1.319316751 | AH12: -0.9950746869 | AI12: 1.471505224 | AJ12: 1.471505224 | AK12: 1.189999729 | AL12: -2.441194006 | AM12: -1.283757182 | AN12: -1.857835472 | AO12: 15.46899627 | AP12: 47.77705329 | AQ12: 47.77705329 | AR12: 74.51341748 | AS12: 74.51341748 | AT12: 74.51341748 | AU12: 47.85090935
A13: 22 | B13: 0.9271838546 | C13: 0.3746065934 | E13: 68 | F13: =COS(RADIANS(E13))*COS(RADIANS(Sight2!LHA2_)) -> 0.339508384 | G13: 0.9271838546 | H13: =F13*COS(RADIANS(90-Sight2!LAT2_))-G13*SIN(RADIANS(90-Sight2!LAT2_)) -> -0.3840371549 | I13: =F13*SIN(RADIANS(90-Sight2!LAT2_))+G13*COS(RADIANS(90-Sight2!LAT2_)) -> 0.9096435052 | K13: =COS(RADIANS(E13))*COS(RADIANS(Sight2!AZ_nord2-180)) -> 0.3407895762 | N13: Plot of Calculated ALTITUDE | Q13: 0 | R13: 0 | T13: 22 | U13: =COS(RADIANS(Sight2!DEC2_))*COS(RADIANS(T13)) -> 0.8650291635 | V13: =COS(RADIANS(Sight2!DEC2_))*SIN(RADIANS(T13)) -> 0.3494944682 | X13: =COS(RADIANS(90-Sight2!AZ_nord2)) -> -0.4152078324 | Y13: =SIN(RADIANS(90-Sight2!AZ_nord2)) -> -0.9097265831 | AA13: 22 | AB13: =COS(RADIANS(Sight2!HC2_))*COS(RADIANS(AA13)) -> 0.8804736154 | AC13: =COS(RADIANS(Sight2!HC2_))*SIN(RADIANS(AA13)) -> 0.3557344318 | AE13: =IF(AO13=0,RADIANS(90-Sight2!HO2_),IF(AO13=180,-RADIANS(90-Sight2!HO2_),IF(AO13<180,-RADIANS(90-Sight2!HO2_),RADIANS(90-Sight2!HO2_)))) -> -1.251194278 | AF13: 1.316076349 | AG13: -1.316076349 | AH13: -0.9949409025 | AI13: 1.470164632 | AJ13: 1.470164632 | AK13: 1.189664036 | AL13: -2.440858313 | AM13: -1.280524243 | AN13: -1.861068411 | AO13: 15.66899627 | AP13: 47.70635147 | AQ13: 47.70635147 | AR13: 74.25137344 | AS13: 74.25137344 | AT13: 74.25137344 | AU13: 47.76830084
A14: 24 | B14: 0.9135454576 | C14: 0.4067366431 | E14: 66 | F14: =COS(RADIANS(E14))*COS(RADIANS(Sight2!LHA2_)) -> 0.3686280563 | G14: 0.9135454576 | H14: =F14*COS(RADIANS(90-Sight2!LAT2_))-G14*SIN(RADIANS(90-Sight2!LAT2_)) -> -0.3534390104 | I14: =F14*SIN(RADIANS(90-Sight2!LAT2_))+G14*COS(RADIANS(90-Sight2!LAT2_)) -> 0.9195285819 | K14: =COS(RADIANS(E14))*COS(RADIANS(Sight2!AZ_nord2-180)) -> 0.3700191365 | N14: =COS(RADIANS(Sight2!HC2_)) -> 0.9496213842 | O14: =SIN(RADIANS(Sight2!HC2_)) -> 0.3133994681 | Q14: =COS(RADIANS(90+Sight2!LHA2_)) -> -0.4226210592 | R14: =SIN(RADIANS(90+Sight2!LHA2_)) -> 0.9063064826 | T14: 24 | U14: =COS(RADIANS(Sight2!DEC2_))*COS(RADIANS(T14)) -> 0.8523050301 | V14: =COS(RADIANS(Sight2!DEC2_))*SIN(RADIANS(T14)) -> 0.379470648 | X14: =1.1*COS(RADIANS(90-Sight2!AZ_nord2)) -> -0.4567286156 | Y14: =1.1*SIN(RADIANS(90-Sight2!AZ_nord2)) -> -1.000699241 | AA14: 24 | AB14: =COS(RADIANS(Sight2!HC2_))*COS(RADIANS(AA14)) -> 0.8675223021 | AC14: =COS(RADIANS(Sight2!HC2_))*SIN(RADIANS(AA14)) -> 0.386245814 | AE14: =IF(AO14=0,RADIANS(90-Sight2!HO2_),IF(AO14=180,-RADIANS(90-Sight2!HO2_),IF(AO14<180,-RADIANS(90-Sight2!HO2_),RADIANS(90-Sight2!HO2_)))) -> -1.251194278 | AF14: 1.312836387 | AG14: -1.312836387 | AH14: -0.9948050996 | AI14: 1.468821776 | AJ14: 1.468821776 | AK14: 1.189323565 | AL14: -2.440517843 | AM14: -1.277308046 | AN14: -1.864284607 | AO14: 15.86899627 | AP14: 47.63486188 | AQ14: 47.63486188 | AR14: 73.99015899 | AS14: 73.99015899 | AT14: 73.99015899 | AU14: 47.68595385
A15: 26 | B15: 0.8987940463 | C15: 0.4383711468 | E15: 64 | F15: =COS(RADIANS(E15))*COS(RADIANS(Sight2!LHA2_)) -> 0.3972986121 | G15: 0.8987940463 | H15: =F15*COS(RADIANS(90-Sight2!LAT2_))-G15*SIN(RADIANS(90-Sight2!LAT2_)) -> -0.322410255 | I15: =F15*SIN(RADIANS(90-Sight2!LAT2_))+G15*COS(RADIANS(90-Sight2!LAT2_)) -> 0.9282933547 | K15: =COS(RADIANS(E15))*COS(RADIANS(Sight2!AZ_nord2-180)) -> 0.3987978855 | N15: =COS(RADIANS(180-Sight2!HC2_)) -> -0.9496213842 | O15: =SIN(RADIANS(180-Sight2!HC2_)) -> 0.3133994681 | Q15: =1.1*COS(RADIANS(90+Sight2!LHA2_)) -> -0.4648831651 | R15: =1.1*SIN(RADIANS(90+Sight2!LHA2_)) -> 0.9969371308 | T15: 26 | U15: =COS(RADIANS(Sight2!DEC2_))*COS(RADIANS(T15)) -> 0.8385424943 | V15: =COS(RADIANS(Sight2!DEC2_))*SIN(RADIANS(T15)) -> 0.4089845014 | AA15: 26 | AB15: =COS(RADIANS(Sight2!HC2_))*COS(RADIANS(AA15)) -> 0.8535140464 | AC15: =COS(RADIANS(Sight2!HC2_))*SIN(RADIANS(AA15)) -> 0.4162866152 | AE15: =IF(AO15=0,RADIANS(90-Sight2!HO2_),IF(AO15=180,-RADIANS(90-Sight2!HO2_),IF(AO15<180,-RADIANS(90-Sight2!HO2_),RADIANS(90-Sight2!HO2_)))) -> -1.251194278 | AF15: 1.30959687 | AG15: -1.30959687 | AH15: -0.9946672658 | AI15: 1.467476622 | AJ15: 1.467476622 | AK15: 1.188978298 | AL15: -2.440172576 | AM15: -1.274108712 | AN15: -1.867483941 | AO15: 16.06899627 | AP15: 47.56258852 | AQ15: 47.56258852 | AR15: 73.72977904 | AS15: 73.72977904 | AT15: 73.72977904 | AU15: 47.60386994
A16: 28 | B16: 0.8829475929 | C16: 0.4694715628 | E16: 62 | F16: =COS(RADIANS(E16))*COS(RADIANS(Sight2!LHA2_)) -> 0.4254851207 | G16: 0.8829475929 | H16: =F16*COS(RADIANS(90-Sight2!LAT2_))-G16*SIN(RADIANS(90-Sight2!LAT2_)) -> -0.2909886923 | I16: =F16*SIN(RADIANS(90-Sight2!LAT2_))+G16*COS(RADIANS(90-Sight2!LAT2_)) -> 0.9359271449 | K16: =COS(RADIANS(E16))*COS(RADIANS(Sight2!AZ_nord2-180)) -> 0.4270907607 | T16: 28 | U16: =COS(RADIANS(Sight2!DEC2_))*COS(RADIANS(T16)) -> 0.8237583236 | V16: =COS(RADIANS(Sight2!DEC2_))*SIN(RADIANS(T16)) -> 0.4380000701 | AA16: 28 | AB16: =COS(RADIANS(Sight2!HC2_))*COS(RADIANS(AA16)) -> 0.8384659153 | AC16: =COS(RADIANS(Sight2!HC2_))*SIN(RADIANS(AA16)) -> 0.4458202353 | AE16: =IF(AO16=0,RADIANS(90-Sight2!HO2_),IF(AO16=180,-RADIANS(90-Sight2!HO2_),IF(AO16<180,-RADIANS(90-Sight2!HO2_),RADIANS(90-Sight2!HO2_)))) -> -1.251194278 | AF16: 1.306357805 | AG16: -1.306357805 | AH16: -0.9945273886 | AI16: 1.466129137 | AJ16: 1.466129137 | AK16: 1.188628216 | AL16: -2.439822494 | AM16: -1.270926358 | AN16: -1.870666296 | AO16: 16.26899627 | AP16: 47.48953538 | AQ16: 47.48953538 | AR16: 73.47023834 | AS16: 73.47023834 | AT16: 73.47023834 | AU16: 47.5220506
A17: 30 | B17: 0.8660254038 | C17: 0.5 | E17: 60 | F17: =COS(RADIANS(E17))*COS(RADIANS(Sight2!LHA2_)) -> 0.4531532413 | G17: 0.8660254038 | H17: =F17*COS(RADIANS(90-Sight2!LAT2_))-G17*SIN(RADIANS(90-Sight2!LAT2_)) -> -0.2592126047 | I17: =F17*SIN(RADIANS(90-Sight2!LAT2_))+G17*COS(RADIANS(90-Sight2!LAT2_)) -> 0.9424206522 | K17: =COS(RADIANS(E17))*COS(RADIANS(Sight2!AZ_nord2-180)) -> 0.4548632915 | N17: Zénith | Q17: Greenwich line + label | T17: 30 | U17: =COS(RADIANS(Sight2!DEC2_))*COS(RADIANS(T17)) -> 0.8079705303 | V17: =COS(RADIANS(Sight2!DEC2_))*SIN(RADIANS(T17)) -> 0.4664820032 | X17: Cardinal points | AA17: 30 | AB17: =COS(RADIANS(Sight2!HC2_))*COS(RADIANS(AA17)) -> 0.8223962427 | AC17: =COS(RADIANS(Sight2!HC2_))*SIN(RADIANS(AA17)) -> 0.4748106921 | AE17: =IF(AO17=0,RADIANS(90-Sight2!HO2_),IF(AO17=180,-RADIANS(90-Sight2!HO2_),IF(AO17<180,-RADIANS(90-Sight2!HO2_),RADIANS(90-Sight2!HO2_)))) -> -1.251194278 | AF17: 1.3031192 | AG17: -1.3031192 | AH17: -0.9943854553 | AI17: 1.464779286 | AJ17: 1.464779286 | AK17: 1.188273299 | AL17: -2.439467577 | AM17: -1.267761097 | AN17: -1.873831557 | AO17: 16.46899627 | AP17: 47.4157065 | AQ17: 47.4157065 | AR17: 73.21154149 | AS17: 73.21154149 | AT17: 73.21154149 | AU17: 47.44049728
A18: 32 | B18: 0.8480480962 | C18: 0.5299192642 | E18: 58 | F18: =COS(RADIANS(E18))*COS(RADIANS(Sight2!LHA2_)) -> 0.4802692644 | G18: 0.8480480962 | H18: =F18*COS(RADIANS(90-Sight2!LAT2_))-G18*SIN(RADIANS(90-Sight2!LAT2_)) -> -0.2271207065 | I18: =F18*SIN(RADIANS(90-Sight2!LAT2_))+G18*COS(RADIANS(90-Sight2!LAT2_)) -> 0.947765965 | K18: =COS(RADIANS(E18))*COS(RADIANS(Sight2!AZ_nord2-180)) -> 0.4820816415 | N18: 0 | O18: 1.2 | Q18: 0 | R18: 0 | T18: 32 | U18: =COS(RADIANS(Sight2!DEC2_))*COS(RADIANS(T18)) -> 0.7911983493 | V18: =COS(RADIANS(Sight2!DEC2_))*SIN(RADIANS(T18)) -> 0.4943955998 | X18: -1.15 | Y18: 0 | Z18: W | AA18: 32 | AB18: =COS(RADIANS(Sight2!HC2_))*COS(RADIANS(AA18)) -> 0.805324607 | AC18: =COS(RADIANS(Sight2!HC2_))*SIN(RADIANS(AA18)) -> 0.5032226652 | AE18: =IF(AO18=0,RADIANS(90-Sight2!HO2_),IF(AO18=180,-RADIANS(90-Sight2!HO2_),IF(AO18<180,-RADIANS(90-Sight2!HO2_),RADIANS(90-Sight2!HO2_)))) -> -1.251194278 | AF18: 1.29988106 | AG18: -1.29988106 | AH18: -0.994241453 | AI18: 1.463427036 | AJ18: 1.463427036 | AK18: 1.187913528 | AL18: -2.439107806 | AM18: -1.264613041 | AN18: -1.876979613 | AO18: 16.66899627 | AP18: 47.3411059 | AQ18: 47.3411059 | AR18: 72.95369294 | AS18: 72.95369294 | AT18: 72.95369294 | AU18: 47.35921139
A19: 34 | B19: 0.8290375726 | C19: 0.5591929035 | E19: 56 | F19: =COS(RADIANS(E19))*COS(RADIANS(Sight2!LHA2_)) -> 0.5068001534 | G19: 0.8290375726 | H19: =F19*COS(RADIANS(90-Sight2!LAT2_))-G19*SIN(RADIANS(90-Sight2!LAT2_)) -> -0.1947520967 | I19: =F19*SIN(RADIANS(90-Sight2!LAT2_))+G19*COS(RADIANS(90-Sight2!LAT2_)) -> 0.951956571 | K19: =COS(RADIANS(E19))*COS(RADIANS(Sight2!AZ_nord2-180)) -> 0.5087126493 | Q19: =COS(RADIANS(90-Sight2!LON2_)) -> 0.9491419479 | R19: =SIN(RADIANS(90-Sight2!LON2_)) -> 0.3148484759 | T19: 34 | U19: =COS(RADIANS(Sight2!DEC2_))*COS(RADIANS(T19)) -> 0.7734622151 | V19: =COS(RADIANS(Sight2!DEC2_))*SIN(RADIANS(T19)) -> 0.5217068515 | X19: 0 | Y19: 1.15 | Z19: N | AA19: 34 | AB19: =COS(RADIANS(Sight2!HC2_))*COS(RADIANS(AA19)) -> 0.7872718072 | AC19: =COS(RADIANS(Sight2!HC2_))*SIN(RADIANS(AA19)) -> 0.5310215391 | AE19: =IF(AO19=0,RADIANS(90-Sight2!HO2_),IF(AO19=180,-RADIANS(90-Sight2!HO2_),IF(AO19<180,-RADIANS(90-Sight2!HO2_),RADIANS(90-Sight2!HO2_)))) -> -1.251194278 | AF19: 1.296643392 | AG19: -1.296643392 | AH19: -0.9940953685 | AI19: 1.462072351 | AJ19: 1.462072351 | AK19: 1.187548883 | AL19: -2.438743161 | AM19: -1.2614823 | AN19: -1.880110353 | AO19: 16.86899627 | AP19: 47.26573764 | AQ19: 47.26573764 | AR19: 72.69669697 | AS19: 72.69669697 | AT19: 72.69669697 | AU19: 47.27819427
A20: 36 | B20: 0.8090169944 | C20: 0.5877852523 | E20: 54 | F20: =COS(RADIANS(E20))*COS(RADIANS(Sight2!LHA2_)) -> 0.5327135845 | G20: 0.8090169944 | H20: =F20*COS(RADIANS(90-Sight2!LAT2_))-G20*SIN(RADIANS(90-Sight2!LAT2_)) -> -0.1621462115 | I20: =F20*SIN(RADIANS(90-Sight2!LAT2_))+G20*COS(RADIANS(90-Sight2!LAT2_)) -> 0.9549873645 | K20: =COS(RADIANS(E20))*COS(RADIANS(Sight2!AZ_nord2-180)) -> 0.5347238691 | N20: Horizon | Q20: =-COS(RADIANS(90-Sight2!LON2_)) -> -0.9491419479 | R20: =-SIN(RADIANS(90-Sight2!LON2_)) -> -0.3148484759 | T20: 36 | U20: =COS(RADIANS(Sight2!DEC2_))*COS(RADIANS(T20)) -> 0.7547837362 | V20: =COS(RADIANS(Sight2!DEC2_))*SIN(RADIANS(T20)) -> 0.5483824838 | X20: 1.15 | Y20: 0 | Z20: E | AA20: 36 | AB20: =COS(RADIANS(Sight2!HC2_))*COS(RADIANS(AA20)) -> 0.7682598381 | AC20: =COS(RADIANS(Sight2!HC2_))*SIN(RADIANS(AA20)) -> 0.5581734449 | AE20: =IF(AO20=0,RADIANS(90-Sight2!HO2_),IF(AO20=180,-RADIANS(90-Sight2!HO2_),IF(AO20<180,-RADIANS(90-Sight2!HO2_),RADIANS(90-Sight2!HO2_)))) -> -1.251194278 | AF20: 1.293406203 | AG20: -1.293406203 | AH20: -0.9939471884 | AI20: 1.460715197 | AJ20: 1.460715197 | AK20: 1.187179344 | AL20: -2.438373622 | AM20: -1.258368981 | AN20: -1.883223672 | AO20: 17.06899627 | AP20: 47.18960577 | AQ20: 47.18960577 | AR20: 72.44055773 | AS20: 72.44055773 | AT20: 72.44055773 | AU20: 47.19744722
A21: 38 | B21: 0.7880107536 | C21: 0.6156614753 | E21: 52 | F21: =COS(RADIANS(E21))*COS(RADIANS(Sight2!LHA2_)) -> 0.5579779861 | G21: 0.7880107536 | H21: =F21*COS(RADIANS(90-Sight2!LAT2_))-G21*SIN(RADIANS(90-Sight2!LAT2_)) -> -0.1293427761 | I21: =F21*SIN(RADIANS(90-Sight2!LAT2_))+G21*COS(RADIANS(90-Sight2!LAT2_)) -> 0.9568546531 | K21: =COS(RADIANS(E21))*COS(RADIANS(Sight2!AZ_nord2-180)) -> 0.5600836103 | N21: 1.3 | O21: 0 | Q21: =1.1*COS(RADIANS(90-Sight2!LON2_)) -> 1.044056143 | R21: =1.1*SIN(RADIANS(90-Sight2!LON2_)) -> 0.3463333235 | T21: 38 | U21: =COS(RADIANS(Sight2!DEC2_))*COS(RADIANS(T21)) -> 0.7351856697 | V21: =COS(RADIANS(Sight2!DEC2_))*SIN(RADIANS(T21)) -> 0.5743899966 | X21: 0 | Y21: -1.15 | Z21: S | AA21: 38 | AB21: =COS(RADIANS(Sight2!HC2_))*COS(RADIANS(AA21)) -> 0.7483118626 | AC21: =COS(RADIANS(Sight2!HC2_))*SIN(RADIANS(AA21)) -> 0.5846453024 | AE21: =IF(AO21=0,RADIANS(90-Sight2!HO2_),IF(AO21=180,-RADIANS(90-Sight2!HO2_),IF(AO21<180,-RADIANS(90-Sight2!HO2_),RADIANS(90-Sight2!HO2_)))) -> -1.251194278 | AF21: 1.2901695 | AG21: -1.2901695 | AH21: -0.9937968991 | AI21: 1.459355539 | AJ21: 1.459355539 | AK21: 1.18680489 | AL21: -2.437999168 | AM21: -1.255273188 | AN21: -1.886319465 | AO21: 17.26899627 | AP21: 47.11271438 | AQ21: 47.11271438 | AR21: 72.18527921 | AS21: 72.18527921 | AT21: 72.18527921 | AU21: 47.11697152
A22: 40 | B22: 0.7660444431 | C22: 0.6427876097 | E22: 50 | F22: =COS(RADIANS(E22))*COS(RADIANS(Sight2!LHA2_)) -> 0.5825625776 | G22: 0.7660444431 | H22: =F22*COS(RADIANS(90-Sight2!LAT2_))-G22*SIN(RADIANS(90-Sight2!LAT2_)) -> -0.09638175641 | I22: =F22*SIN(RADIANS(90-Sight2!LAT2_))+G22*COS(RADIANS(90-Sight2!LAT2_)) -> 0.9575561616 | K22: =COS(RADIANS(E22))*COS(RADIANS(Sight2!AZ_nord2-180)) -> 0.5847609758 | N22: -1.3 | O22: 0 | Q22: =-1.1*COS(RADIANS(90-Sight2!LON2_)) -> -1.044056143 | R22: =-1.1*SIN(RADIANS(90-Sight2!LON2_)) -> -0.3463333235 | T22: 40 | U22: =COS(RADIANS(Sight2!DEC2_))*COS(RADIANS(T22)) -> 0.7146918927 | V22: =COS(RADIANS(Sight2!DEC2_))*SIN(RADIANS(T22)) -> 0.5996977035 | AA22: 40 | AB22: =COS(RADIANS(Sight2!HC2_))*COS(RADIANS(AA22)) -> 0.7274521845 | AC22: =COS(RADIANS(Sight2!HC2_))*SIN(RADIANS(AA22)) -> 0.6104048597 | AE22: =IF(AO22=0,RADIANS(90-Sight2!HO2_),IF(AO22=180,-RADIANS(90-Sight2!HO2_),IF(AO22<180,-RADIANS(90-Sight2!HO2_),RADIANS(90-Sight2!HO2_)))) -> -1.251194278 | AF22: 1.286933291 | AG22: -1.286933291 | AH22: -0.9936444868 | AI22: 1.457993342 | AJ22: 1.457993342 | AK22: 1.186425501 | AL22: -2.437619778 | AM22: -1.252195024 | AN22: -1.88939763 | AO22: 17.46899627 | AP22: 47.03506755 | AQ22: 47.03506755 | AR22: 71.93086522 | AS22: 71.93086522 | AT22: 71.93086522 | AU22: 47.03676836
A23: 42 | B23: 0.7431448255 | C23: 0.6691306064 | E23: 48 | F23: =COS(RADIANS(E23))*COS(RADIANS(Sight2!LHA2_)) -> 0.6064374062 | G23: 0.7431448255 | H23: =F23*COS(RADIANS(90-Sight2!LAT2_))-G23*SIN(RADIANS(90-Sight2!LAT2_)) -> -0.06330331042 | I23: =F23*SIN(RADIANS(90-Sight2!LAT2_))+G23*COS(RADIANS(90-Sight2!LAT2_)) -> 0.9570910355 | K23: =COS(RADIANS(E23))*COS(RADIANS(Sight2!AZ_nord2-180)) -> 0.6087259001 | T23: 42 | U23: =COS(RADIANS(Sight2!DEC2_))*COS(RADIANS(T23)) -> 0.6933273736 | V23: =COS(RADIANS(Sight2!DEC2_))*SIN(RADIANS(T23)) -> 0.6242747713 | X23: Azimut North 2 | AA23: 42 | AB23: =COS(RADIANS(Sight2!HC2_))*COS(RADIANS(AA23)) -> 0.7057062179 | AC23: =COS(RADIANS(Sight2!HC2_))*SIN(RADIANS(AA23)) -> 0.6354207326 | AE23: =IF(AO23=0,RADIANS(90-Sight2!HO2_),IF(AO23=180,-RADIANS(90-Sight2!HO2_),IF(AO23<180,-RADIANS(90-Sight2!HO2_),RADIANS(90-Sight2!HO2_)))) -> -1.251194278 | AF23: 1.283697581 | AG23: -1.283697581 | AH23: -0.9934899375 | AI23: 1.45662857 | AJ23: 1.45662857 | AK23: 1.186041155 | AL23: -2.437235432 | AM23: -1.249134587 | AN23: -1.892458066 | AO23: =IF(ZB2N>=360,ZB2N-360,ZB2N) -> 17.66899627 | AP23: 46.95666937 | AQ23: 46.95666937 | AR23: =IF(OR(LatB2=90,LatB2=-90),LonLP2,IF(OR(AO23=0,AO23=180),LonB2,LonB2+DEGREES(AJ23)+DEGREES(AN23))) -> 71.67731947 | AS23: 71.67731947 | AT23: =IF(DRLon2+Sight2!LON2_<0,DRLon2+GHAx2-360,DRLon2+GHAx2) -> 71.67731947 | AU23: 46.95683891
A24: 44 | B24: 0.7193398003 | C24: 0.6946583705 | E24: 46 | F24: =COS(RADIANS(E24))*COS(RADIANS(Sight2!LHA2_)) -> 0.6295733843 | G24: 0.7193398003 | H24: =F24*COS(RADIANS(90-Sight2!LAT2_))-G24*SIN(RADIANS(90-Sight2!LAT2_)) -> -0.0301477391 | I24: =F24*SIN(RADIANS(90-Sight2!LAT2_))+G24*COS(RADIANS(90-Sight2!LAT2_)) -> 0.9554598413 | K24: =COS(RADIANS(E24))*COS(RADIANS(Sight2!AZ_nord2-180)) -> 0.6319491858 | Q24: Sun line + label | T24: 44 | U24: =COS(RADIANS(Sight2!DEC2_))*COS(RADIANS(T24)) -> 0.671118142 | V24: =COS(RADIANS(Sight2!DEC2_))*SIN(RADIANS(T24)) -> 0.6480912563 | X24: =Sight2!AZ_nord2 -> 204.5324054 | AA24: 44 | AB24: =COS(RADIANS(Sight2!HC2_))*COS(RADIANS(AA24)) -> 0.6831004569 | AC24: =COS(RADIANS(Sight2!HC2_))*SIN(RADIANS(AA24)) -> 0.6596624433 | AE24: =IF(AO24=0,RADIANS(90-Sight2!HO2_),IF(AO24=180,-RADIANS(90-Sight2!HO2_),IF(AO24<180,-RADIANS(90-Sight2!HO2_),RADIANS(90-Sight2!HO2_)))) -> -1.251194278 | AF24: 1.280462378 | AG24: -1.280462378 | AH24: -0.9933332367 | AI24: 1.455261189 | AJ24: 1.455261189 | AK24: 1.185651831 | AL24: -2.436846108 | AM24: -1.246091976 | AN24: -1.895500678 | AO24: =IF(AO23+dZB2_<0,360+(AO23+dZB2_),IF(AO23+dZB2_>=360,AO23+dZB2_-360,AO23+dZB2_)) -> 17.86899627 | AP24: 46.87752395 | AQ24: 46.87752395 | AR24: =IF(OR(LatB2=90,LatB2=-90),AR23+dZB2_,IF(OR(AO24=0,AO24=180),LonB2,LonB2+DEGREES(AJ24)+DEGREES(AN24))) -> 71.42464549 | AS24: 71.42464549 | AT24: =IF(AS24-GHAx2>180,cLOP2+(AS24-GHAx2-360),IF(AS24-GHAx2<-180,cLOP2+(AS24-GHAx2+360),cLOP2+(AS24-GHAx2))) -> 71.42464549 | AU24: 46.87718428
A25: 46 | B25: 0.6946583705 | C25: 0.7193398003 | E25: 44 | F25: =COS(RADIANS(E25))*COS(RADIANS(Sight2!LHA2_)) -> 0.6519423242 | G25: 0.6946583705 | H25: =F25*COS(RADIANS(90-Sight2!LAT2_))-G25*SIN(RADIANS(90-Sight2!LAT2_)) -> 0.003044562596 | I25: =F25*SIN(RADIANS(90-Sight2!LAT2_))+G25*COS(RADIANS(90-Sight2!LAT2_)) -> 0.9526645666 | K25: =COS(RADIANS(E25))*COS(RADIANS(Sight2!AZ_nord2-180)) -> 0.6544025386 | Q25: 0 | R25: 0 | T25: 46 | U25: =COS(RADIANS(Sight2!DEC2_))*COS(RADIANS(T25)) -> 0.6480912563 | V25: =COS(RADIANS(Sight2!DEC2_))*SIN(RADIANS(T25)) -> 0.671118142 | AA25: 46 | AB25: =COS(RADIANS(Sight2!HC2_))*COS(RADIANS(AA25)) -> 0.6596624433 | AC25: =COS(RADIANS(Sight2!HC2_))*SIN(RADIANS(AA25)) -> 0.6831004569 | AE25: =IF(AO25=0,RADIANS(90-Sight2!HO2_),IF(AO25=180,-RADIANS(90-Sight2!HO2_),IF(AO25<180,-RADIANS(90-Sight2!HO2_),RADIANS(90-Sight2!HO2_)))) -> -1.251194278 | AF25: 1.277227688 | AG25: -1.277227688 | AH25: -0.9931743702 | AI25: 1.453891161 | AJ25: 1.453891161 | AK25: 1.185257507 | AL25: -2.436451784 | AM25: -1.243067285 | AN25: -1.898525369 | AO25: 18.06899627 | AP25: 46.79763541 | AQ25: 46.79763541 | AR25: 71.17284667 | AS25: 71.17284667 | AT25: 71.17284667 | AU25: 46.79780554
A26: 48 | B26: 0.6691306064 | C26: 0.7431448255 | E26: 42 | F26: =COS(RADIANS(E26))*COS(RADIANS(Sight2!LHA2_)) -> 0.6735169728 | G26: 0.6691306064 | H26: =F26*COS(RADIANS(90-Sight2!LAT2_))-G26*SIN(RADIANS(90-Sight2!LAT2_)) -> 0.03623315496 | I26: =F26*SIN(RADIANS(90-Sight2!LAT2_))+G26*COS(RADIANS(90-Sight2!LAT2_)) -> 0.9487086168 | K26: =COS(RADIANS(E26))*COS(RADIANS(Sight2!AZ_nord2-180)) -> 0.6760586028 | Q26: =COS(RADIANS(270-Sight2!LON2_+UTday2*360)) -> -0.4610130948 | R26: =SIN(RADIANS(270-Sight2!LON2_+UTday2*360)) -> -0.8873933324 | T26: 48 | U26: =COS(RADIANS(Sight2!DEC2_))*COS(RADIANS(T26)) -> 0.6242747713 | V26: =COS(RADIANS(Sight2!DEC2_))*SIN(RADIANS(T26)) -> 0.6933273736 | AA26: 48 | AB26: =COS(RADIANS(Sight2!HC2_))*COS(RADIANS(AA26)) -> 0.6354207326 | AC26: =COS(RADIANS(Sight2!HC2_))*SIN(RADIANS(AA26)) -> 0.7057062179 | AE26: =IF(AO26=0,RADIANS(90-Sight2!HO2_),IF(AO26=180,-RADIANS(90-Sight2!HO2_),IF(AO26<180,-RADIANS(90-Sight2!HO2_),RADIANS(90-Sight2!HO2_)))) -> -1.251194278 | AF26: 1.27399352 | AG26: -1.27399352 | AH26: -0.993013323 | AI26: 1.452518452 | AJ26: 1.452518452 | AK26: 1.184858161 | AL26: -2.436052439 | AM26: -1.240060606 | AN26: -1.901532047 | AO26: 18.26899627 | AP26: 46.71700787 | AQ26: 46.71700787 | AR26: 70.92192624 | AS26: 70.92192624 | AT26: 70.92192624 | AU26: 46.71870371
A27: 50 | B27: 0.6427876097 | C27: 0.7660444431 | E27: 40 | F27: =COS(RADIANS(E27))*COS(RADIANS(Sight2!LHA2_)) -> 0.6942710447 | G27: 0.6427876097 | H27: =F27*COS(RADIANS(90-Sight2!LAT2_))-G27*SIN(RADIANS(90-Sight2!LAT2_)) -> 0.06937760281 | I27: =F27*SIN(RADIANS(90-Sight2!LAT2_))+G27*COS(RADIANS(90-Sight2!LAT2_)) -> 0.9435968116 | K27: =COS(RADIANS(E27))*COS(RADIANS(Sight2!AZ_nord2-180)) -> 0.6968909937 | Q27: =1.1*COS(RADIANS(270-Sight2!LON2_+UTday2*360)) -> -0.5071144043 | R27: =1.1*SIN(RADIANS(270-Sight2!LON2_+UTday2*360)) -> -0.9761326657 | T27: 50 | U27: =COS(RADIANS(Sight2!DEC2_))*COS(RADIANS(T27)) -> 0.5996977035 | V27: =COS(RADIANS(Sight2!DEC2_))*SIN(RADIANS(T27)) -> 0.7146918927 | AA27: 50 | AB27: =COS(RADIANS(Sight2!HC2_))*COS(RADIANS(AA27)) -> 0.6104048597 | AC27: =COS(RADIANS(Sight2!HC2_))*SIN(RADIANS(AA27)) -> 0.7274521845 | AE27: =IF(AO27=0,RADIANS(90-Sight2!HO2_),IF(AO27=180,-RADIANS(90-Sight2!HO2_),IF(AO27<180,-RADIANS(90-Sight2!HO2_),RADIANS(90-Sight2!HO2_)))) -> -1.251194278 | AF27: 1.27075988 | AG27: -1.27075988 | AH27: -0.9928500802 | AI27: 1.451143025 | AJ27: 1.451143025 | AK27: 1.184453771 | AL27: -2.435648049 | AM27: -1.237072031 | AN27: -1.904520623 | AO27: 18.46899627 | AP27: 46.63564546 | AQ27: 46.63564546 | AR27: 70.67188732 | AS27: 70.67188732 | AT27: 70.67188732 | AU27: 46.63987978
A28: 52 | B28: 0.6156614753 | C28: 0.7880107536 | E28: 38 | F28: =COS(RADIANS(E28))*COS(RADIANS(Sight2!LHA2_)) -> 0.7141792543 | G28: 0.6156614753 | H28: =F28*COS(RADIANS(90-Sight2!LAT2_))-G28*SIN(RADIANS(90-Sight2!LAT2_)) -> 0.1024375247 | I28: =F28*SIN(RADIANS(90-Sight2!LAT2_))+G28*COS(RADIANS(90-Sight2!LAT2_)) -> 0.9373353792 | K28: =COS(RADIANS(E28))*COS(RADIANS(Sight2!AZ_nord2-180)) -> 0.7168743303 | T28: 52 | U28: =COS(RADIANS(Sight2!DEC2_))*COS(RADIANS(T28)) -> 0.5743899966 | V28: =COS(RADIANS(Sight2!DEC2_))*SIN(RADIANS(T28)) -> 0.7351856697 | AA28: 52 | AB28: =COS(RADIANS(Sight2!HC2_))*COS(RADIANS(AA28)) -> 0.5846453024 | AC28: =COS(RADIANS(Sight2!HC2_))*SIN(RADIANS(AA28)) -> 0.7483118626 | AE28: =IF(AO28=0,RADIANS(90-Sight2!HO2_),IF(AO28=180,-RADIANS(90-Sight2!HO2_),IF(AO28<180,-RADIANS(90-Sight2!HO2_),RADIANS(90-Sight2!HO2_)))) -> -1.251194278 | AF28: 1.267526775 | AG28: -1.267526775 | AH28: -0.9926846266 | AI28: 1.449764843 | AJ28: 1.449764843 | AK28: 1.184044314 | AL28: -2.435238592 | AM28: -1.234101647 | AN28: -1.907491007 | AO28: 18.66899627 | AP28: 46.55355231 | AQ28: 46.55355231 | AR28: 70.42273285 | AS28: 70.42273285 | AT28: 70.42273285 | AU28: 46.56133466
A29: 54 | B29: 0.5877852523 | C29: 0.8090169944 | E29: 36 | F29: =COS(RADIANS(E29))*COS(RADIANS(Sight2!LHA2_)) -> 0.7332173465 | G29: 0.5877852523 | H29: =F29*COS(RADIANS(90-Sight2!LAT2_))-G29*SIN(RADIANS(90-Sight2!LAT2_)) -> 0.1353726423 | I29: =F29*SIN(RADIANS(90-Sight2!LAT2_))+G29*COS(RADIANS(90-Sight2!LAT2_)) -> 0.9299319479 | K29: =COS(RADIANS(E29))*COS(RADIANS(Sight2!AZ_nord2-180)) -> 0.7359842659 | Q29: GHAy line + label | T29: 54 | U29: =COS(RADIANS(Sight2!DEC2_))*COS(RADIANS(T29)) -> 0.5483824838 | V29: =COS(RADIANS(Sight2!DEC2_))*SIN(RADIANS(T29)) -> 0.7547837362 | AA29: 54 | AB29: =COS(RADIANS(Sight2!HC2_))*COS(RADIANS(AA29)) -> 0.5581734449 | AC29: =COS(RADIANS(Sight2!HC2_))*SIN(RADIANS(AA29)) -> 0.7682598381 | AE29: =IF(AO29=0,RADIANS(90-Sight2!HO2_),IF(AO29=180,-RADIANS(90-Sight2!HO2_),IF(AO29<180,-RADIANS(90-Sight2!HO2_),RADIANS(90-Sight2!HO2_)))) -> -1.251194278 | AF29: 1.264294212 | AG29: -1.264294212 | AH29: -0.9925169466 | AI29: 1.44838387 | AJ29: 1.44838387 | AK29: 1.183629767 | AL29: -2.434824045 | AM29: -1.23114954 | AN29: -1.910443114 | AO29: 18.86899627 | AP29: 46.47073258 | AQ29: 46.47073258 | AR29: 70.17446566 | AS29: 70.17446566 | AT29: 70.17446566 | AU29: 46.48306926
A30: 56 | B30: 0.5591929035 | C30: 0.8290375726 | E30: 34 | F30: =COS(RADIANS(E30))*COS(RADIANS(Sight2!LHA2_)) -> 0.7513621263 | G30: 0.5591929035 | H30: =F30*COS(RADIANS(90-Sight2!LAT2_))-G30*SIN(RADIANS(90-Sight2!LAT2_)) -> 0.1681428292 | I30: =F30*SIN(RADIANS(90-Sight2!LAT2_))+G30*COS(RADIANS(90-Sight2!LAT2_)) -> 0.9213955378 | K30: =COS(RADIANS(E30))*COS(RADIANS(Sight2!AZ_nord2-180)) -> 0.7541975181 | Q30: 0 | R30: 0 | T30: 56 | U30: =COS(RADIANS(Sight2!DEC2_))*COS(RADIANS(T30)) -> 0.5217068515 | V30: =COS(RADIANS(Sight2!DEC2_))*SIN(RADIANS(T30)) -> 0.7734622151 | AA30: 56 | AB30: =COS(RADIANS(Sight2!HC2_))*COS(RADIANS(AA30)) -> 0.5310215391 | AC30: =COS(RADIANS(Sight2!HC2_))*SIN(RADIANS(AA30)) -> 0.7872718072 | AE30: =IF(AO30=0,RADIANS(90-Sight2!HO2_),IF(AO30=180,-RADIANS(90-Sight2!HO2_),IF(AO30<180,-RADIANS(90-Sight2!HO2_),RADIANS(90-Sight2!HO2_)))) -> -1.251194278 | AF30: 1.261062199 | AG30: -1.261062199 | AH30: -0.9923470246 | AI30: 1.447000069 | AJ30: 1.447000069 | AK30: 1.183210107 | AL30: -2.434404384 | AM30: -1.228215794 | AN30: -1.91337686 | AO30: 19.06899627 | AP30: 46.38719041 | AQ30: 46.38719041 | AR30: 69.92708841 | AS30: 69.92708841 | AT30: 69.92708841 | AU30: 46.4050844
A31: 58 | B31: 0.5299192642 | C31: 0.8480480962 | E31: 32 | F31: =COS(RADIANS(E31))*COS(RADIANS(Sight2!LHA2_)) -> 0.7685914871 | G31: 0.5299192642 | H31: =F31*COS(RADIANS(90-Sight2!LAT2_))-G31*SIN(RADIANS(90-Sight2!LAT2_)) -> 0.2007081599 | I31: =F31*SIN(RADIANS(90-Sight2!LAT2_))+G31*COS(RADIANS(90-Sight2!LAT2_)) -> 0.9117365492 | K31: =COS(RADIANS(E31))*COS(RADIANS(Sight2!AZ_nord2-180)) -> 0.7714918968 | Q31: =COS(RADIANS(90-Sight2!LON2_+GHAy2)) -> -0.4226210592 | R31: =SIN(RADIANS(90-Sight2!LON2_+GHAy2)) -> 0.9063064826 | T31: 58 | U31: =COS(RADIANS(Sight2!DEC2_))*COS(RADIANS(T31)) -> 0.4943955998 | V31: =COS(RADIANS(Sight2!DEC2_))*SIN(RADIANS(T31)) -> 0.7911983493 | AA31: 58 | AB31: =COS(RADIANS(Sight2!HC2_))*COS(RADIANS(AA31)) -> 0.5032226652 | AC31: =COS(RADIANS(Sight2!HC2_))*SIN(RADIANS(AA31)) -> 0.805324607 | AE31: =IF(AO31=0,RADIANS(90-Sight2!HO2_),IF(AO31=180,-RADIANS(90-Sight2!HO2_),IF(AO31<180,-RADIANS(90-Sight2!HO2_),RADIANS(90-Sight2!HO2_)))) -> -1.251194278 | AF31: 1.257830743 | AG31: -1.257830743 | AH31: -0.9921748446 | AI31: 1.445613403 | AJ31: 1.445613403 | AK31: 1.182785309 | AL31: -2.433979587 | AM31: -1.225300489 | AN31: -1.916292164 | AO31: 19.26899627 | AP31: 46.30292995 | AQ31: 46.30292995 | AR31: 69.68060364 | AS31: 69.68060364 | AT31: 69.68060364 | AU31: 46.3273809
A32: 60 | B32: 0.5 | C32: 0.8660254038 | E32: 30 | F32: =COS(RADIANS(E32))*COS(RADIANS(Sight2!LHA2_)) -> 0.7848844375 | G32: 0.5 | H32: =F32*COS(RADIANS(90-Sight2!LAT2_))-G32*SIN(RADIANS(90-Sight2!LAT2_)) -> 0.2330289587 | I32: =F32*SIN(RADIANS(90-Sight2!LAT2_))+G32*COS(RADIANS(90-Sight2!LAT2_)) -> 0.90096675 | K32: =COS(RADIANS(E32))*COS(RADIANS(Sight2!AZ_nord2-180)) -> 0.7878463314 | Q32: =1.15*COS(RADIANS(90-Sight2!LON2_+GHAy2)) -> -0.4860142181 | R32: =1.15*SIN(RADIANS(90-Sight2!LON2_+GHAy2)) -> 1.042252455 | T32: 60 | U32: =COS(RADIANS(Sight2!DEC2_))*COS(RADIANS(T32)) -> 0.4664820032 | V32: =COS(RADIANS(Sight2!DEC2_))*SIN(RADIANS(T32)) -> 0.8079705303 | AA32: 60 | AB32: =COS(RADIANS(Sight2!HC2_))*COS(RADIANS(AA32)) -> 0.4748106921 | AC32: =COS(RADIANS(Sight2!HC2_))*SIN(RADIANS(AA32)) -> 0.8223962427 | AE32: =IF(AO32=0,RADIANS(90-Sight2!HO2_),IF(AO32=180,-RADIANS(90-Sight2!HO2_),IF(AO32<180,-RADIANS(90-Sight2!HO2_),RADIANS(90-Sight2!HO2_)))) -> -1.251194278 | AF32: 1.254599852 | AG32: -1.254599852 | AH32: -0.9920003904 | AI32: 1.444223833 | AJ32: 1.444223833 | AK32: 1.182355351 | AL32: -2.433549628 | AM32: -1.222403706 | AN32: -1.919188947 | AO32: 19.46899627 | AP32: 46.21795535 | AQ32: 46.21795535 | AR32: 69.43501374 | AS32: 69.43501374 | AT32: 69.43501374 | AU32: 46.24995951
A33: 62 | B33: 0.4694715628 | C33: 0.8829475929 | E33: 28 | F33: =COS(RADIANS(E33))*COS(RADIANS(Sight2!LHA2_)) -> 0.8002211272 | G33: 0.4694715628 | H33: =F33*COS(RADIANS(90-Sight2!LAT2_))-G33*SIN(RADIANS(90-Sight2!LAT2_)) -> 0.2650658476 | I33: =F33*SIN(RADIANS(90-Sight2!LAT2_))+G33*COS(RADIANS(90-Sight2!LAT2_)) -> 0.8890992617 | K33: =COS(RADIANS(E33))*COS(RADIANS(Sight2!AZ_nord2-180)) -> 0.8032408967 | T33: 62 | U33: =COS(RADIANS(Sight2!DEC2_))*COS(RADIANS(T33)) -> 0.4380000701 | V33: =COS(RADIANS(Sight2!DEC2_))*SIN(RADIANS(T33)) -> 0.8237583236 | AA33: 62 | AB33: =COS(RADIANS(Sight2!HC2_))*COS(RADIANS(AA33)) -> 0.4458202353 | AC33: =COS(RADIANS(Sight2!HC2_))*SIN(RADIANS(AA33)) -> 0.8384659153 | AE33: =IF(AO33=0,RADIANS(90-Sight2!HO2_),IF(AO33=180,-RADIANS(90-Sight2!HO2_),IF(AO33<180,-RADIANS(90-Sight2!HO2_),RADIANS(90-Sight2!HO2_)))) -> -1.251194278 | AF33: 1.251369532 | AG33: -1.251369532 | AH33: -0.9918236454 | AI33: 1.442831323 | AJ33: 1.442831323 | AK33: 1.181920207 | AL33: -2.433114484 | AM33: -1.219525522 | AN33: -1.922067131 | AO33: 19.66899627 | AP33: 46.13227079 | AQ33: 46.13227079 | AR33: 69.19032099 | AS33: 69.19032099 | AT33: 69.19032099 | AU33: 46.17282093
A34: 64 | B34: 0.4383711468 | C34: 0.8987940463 | E34: 26 | F34: =COS(RADIANS(E34))*COS(RADIANS(Sight2!LHA2_)) -> 0.8145828706 | G34: 0.4383711468 | H34: =F34*COS(RADIANS(90-Sight2!LAT2_))-G34*SIN(RADIANS(90-Sight2!LAT2_)) -> 0.2967797945 | I34: =F34*SIN(RADIANS(90-Sight2!LAT2_))+G34*COS(RADIANS(90-Sight2!LAT2_)) -> 0.8761485428 | K34: =COS(RADIANS(E34))*COS(RADIANS(Sight2!AZ_nord2-180)) -> 0.8176568366 | Q34: Horizontal axis | T34: 64 | U34: =COS(RADIANS(Sight2!DEC2_))*COS(RADIANS(T34)) -> 0.4089845014 | V34: =COS(RADIANS(Sight2!DEC2_))*SIN(RADIANS(T34)) -> 0.8385424943 | AA34: 64 | AB34: =COS(RADIANS(Sight2!HC2_))*COS(RADIANS(AA34)) -> 0.4162866152 | AC34: =COS(RADIANS(Sight2!HC2_))*SIN(RADIANS(AA34)) -> 0.8535140464 | AE34: =IF(AO34=0,RADIANS(90-Sight2!HO2_),IF(AO34=180,-RADIANS(90-Sight2!HO2_),IF(AO34<180,-RADIANS(90-Sight2!HO2_),RADIANS(90-Sight2!HO2_)))) -> -1.251194278 | AF34: 1.248139792 | AG34: -1.248139792 | AH34: -0.991644593 | AI34: 1.441435835 | AJ34: 1.441435835 | AK34: 1.181479852 | AL34: -2.43267413 | AM34: -1.216666012 | AN34: -1.924926642 | AO34: 19.86899627 | AP34: 46.04588041 | AQ34: 46.04588041 | AR34: 68.94652751 | AS34: 68.94652751 | AT34: 68.94652751 | AU34: 46.09596585
A35: 66 | B35: 0.4067366431 | C35: 0.9135454576 | E35: 24 | F35: =COS(RADIANS(E35))*COS(RADIANS(Sight2!LHA2_)) -> 0.8279521704 | G35: 0.4067366431 | H35: =F35*COS(RADIANS(90-Sight2!LAT2_))-G35*SIN(RADIANS(90-Sight2!LAT2_)) -> 0.328132161 | I35: =F35*SIN(RADIANS(90-Sight2!LAT2_))+G35*COS(RADIANS(90-Sight2!LAT2_)) -> 0.8621303719 | K35: =COS(RADIANS(E35))*COS(RADIANS(Sight2!AZ_nord2-180)) -> 0.8310765877 | Q35: -1.3 | R35: 0 | T35: =SUM(T34+2) -> 66 | U35: =COS(RADIANS(Sight2!DEC2_))*COS(RADIANS(T35)) -> 0.379470648 | V35: =COS(RADIANS(Sight2!DEC2_))*SIN(RADIANS(T35)) -> 0.8523050301 | AA35: 66 | AB35: =COS(RADIANS(Sight2!HC2_))*COS(RADIANS(AA35)) -> 0.386245814 | AC35: =COS(RADIANS(Sight2!HC2_))*SIN(RADIANS(AA35)) -> 0.8675223021 | AE35: =IF(AO35=0,RADIANS(90-Sight2!HO2_),IF(AO35=180,-RADIANS(90-Sight2!HO2_),IF(AO35<180,-RADIANS(90-Sight2!HO2_),RADIANS(90-Sight2!HO2_)))) -> -1.251194278 | AF35: 1.244910639 | AG35: -1.244910639 | AH35: -0.9914632161 | AI35: 1.440037329 | AJ35: 1.440037329 | AK35: 1.181034263 | AL35: -2.432228541 | AM35: -1.213825248 | AN35: -1.927767405 | AO35: 20.06899627 | AP35: 45.95878838 | AQ35: 45.95878838 | AR35: 68.70363529 | AS35: 68.70363529 | AT35: 68.70363529 | AU35: 46.01939489
A36: 68 | B36: 0.3746065934 | C36: 0.9271838546 | E36: 22 | F36: =COS(RADIANS(E36))*COS(RADIANS(Sight2!LHA2_)) -> 0.8403127379 | G36: 0.3746065934 | H36: =F36*COS(RADIANS(90-Sight2!LAT2_))-G36*SIN(RADIANS(90-Sight2!LAT2_)) -> 0.359084749 | I36: =F36*SIN(RADIANS(90-Sight2!LAT2_))+G36*COS(RADIANS(90-Sight2!LAT2_)) -> 0.8470618279 | K36: =COS(RADIANS(E36))*COS(RADIANS(Sight2!AZ_nord2-180)) -> 0.8434837999 | Q36: 1.3 | R36: 0 | T36: 68 | U36: =COS(RADIANS(Sight2!DEC2_))*COS(RADIANS(T36)) -> 0.3494944682 | V36: =COS(RADIANS(Sight2!DEC2_))*SIN(RADIANS(T36)) -> 0.8650291635 | AA36: 68 | AB36: =COS(RADIANS(Sight2!HC2_))*COS(RADIANS(AA36)) -> 0.3557344318 | AC36: =COS(RADIANS(Sight2!HC2_))*SIN(RADIANS(AA36)) -> 0.8804736154 | AE36: =IF(AO36=0,RADIANS(90-Sight2!HO2_),IF(AO36=180,-RADIANS(90-Sight2!HO2_),IF(AO36<180,-RADIANS(90-Sight2!HO2_),RADIANS(90-Sight2!HO2_)))) -> -1.251194278 | AF36: 1.24168208 | AG36: -1.24168208 | AH36: -0.9912794975 | AI36: 1.438635769 | AJ36: 1.438635769 | AK36: 1.180583413 | AL36: -2.43177769 | AM36: -1.211003302 | AN36: -1.930589351 | AO36: 20.26899627 | AP36: 45.87099887 | AQ36: 45.87099887 | AR36: 68.4616462 | AS36: 68.4616462 | AT36: 68.4616462 | AU36: 45.94310863
A37: 70 | B37: 0.3420201433 | C37: 0.9396926208 | E37: 20 | F37: =COS(RADIANS(E37))*COS(RADIANS(Sight2!LHA2_)) -> 0.8516495138 | G37: 0.3420201433 | H37: =F37*COS(RADIANS(90-Sight2!LAT2_))-G37*SIN(RADIANS(90-Sight2!LAT2_)) -> 0.3895998476 | I37: =F37*SIN(RADIANS(90-Sight2!LAT2_))+G37*COS(RADIANS(90-Sight2!LAT2_)) -> 0.8309612696 | K37: =COS(RADIANS(E37))*COS(RADIANS(Sight2!AZ_nord2-180)) -> 0.854863357 | T37: 70 | U37: =COS(RADIANS(Sight2!DEC2_))*COS(RADIANS(T37)) -> 0.3190924832 | V37: =COS(RADIANS(Sight2!DEC2_))*SIN(RADIANS(T37)) -> 0.8766993922 | AA37: 70 | AB37: =COS(RADIANS(Sight2!HC2_))*COS(RADIANS(AA37)) -> 0.3247896419 | AC37: =COS(RADIANS(Sight2!HC2_))*SIN(RADIANS(AA37)) -> 0.8923522073 | AE37: =IF(AO37=0,RADIANS(90-Sight2!HO2_),IF(AO37=180,-RADIANS(90-Sight2!HO2_),IF(AO37<180,-RADIANS(90-Sight2!HO2_),RADIANS(90-Sight2!HO2_)))) -> -1.251194278 | AF37: 1.238454123 | AG37: -1.238454123 | AH37: -0.9910934197 | AI37: 1.437231114 | AJ37: 1.437231114 | AK37: 1.180127276 | AL37: -2.431321553 | AM37: -1.208200244 | AN37: -1.93339241 | AO37: 20.46899627 | AP37: 45.78251604 | AQ37: 45.78251604 | AR37: 68.22056197 | AS37: 68.22056197 | AT37: 68.22056197 | AU37: 45.86710763
A38: 72 | B38: 0.3090169944 | C38: 0.9510565163 | E38: 18 | F38: =COS(RADIANS(E38))*COS(RADIANS(Sight2!LHA2_)) -> 0.861948686 | G38: 0.3090169944 | H38: =F38*COS(RADIANS(90-Sight2!LAT2_))-G38*SIN(RADIANS(90-Sight2!LAT2_)) -> 0.4196402787 | I38: =F38*SIN(RADIANS(90-Sight2!LAT2_))+G38*COS(RADIANS(90-Sight2!LAT2_)) -> 0.813848313 | K38: =COS(RADIANS(E38))*COS(RADIANS(Sight2!AZ_nord2-180)) -> 0.8652013949 | Q38: Hour marks | T38: 72 | U38: =COS(RADIANS(Sight2!DEC2_))*COS(RADIANS(T38)) -> 0.2883017331 | V38: =COS(RADIANS(Sight2!DEC2_))*SIN(RADIANS(T38)) -> 0.8873014977 | AA38: 72 | AB38: =COS(RADIANS(Sight2!HC2_))*COS(RADIANS(AA38)) -> 0.293449146 | AC38: =COS(RADIANS(Sight2!HC2_))*SIN(RADIANS(AA38)) -> 0.9031436055 | AE38: =IF(AO38=0,RADIANS(90-Sight2!HO2_),IF(AO38=180,-RADIANS(90-Sight2!HO2_),IF(AO38<180,-RADIANS(90-Sight2!HO2_),RADIANS(90-Sight2!HO2_)))) -> -1.251194278 | AF38: 1.235226776 | AG38: -1.235226776 | AH38: -0.9909049647 | AI38: 1.435823326 | AJ38: 1.435823326 | AK38: 1.179665826 | AL38: -2.430860104 | AM38: -1.205416139 | AN38: -1.936176515 | AO38: 20.66899627 | AP38: 45.69334404 | AQ38: 45.69334404 | AR38: 67.98038421 | AS38: 67.98038421 | AT38: 67.98038421 | AU38: 45.79139239
A39: 74 | B39: 0.2756373558 | C39: 0.9612616959 | E39: 16 | F39: =COS(RADIANS(E39))*COS(RADIANS(Sight2!LHA2_)) -> 0.8711977065 | G39: 0.2756373558 | H39: =F39*COS(RADIANS(90-Sight2!LAT2_))-G39*SIN(RADIANS(90-Sight2!LAT2_)) -> 0.4491694428 | I39: =F39*SIN(RADIANS(90-Sight2!LAT2_))+G39*COS(RADIANS(90-Sight2!LAT2_)) -> 0.7957438076 | K39: =COS(RADIANS(E39))*COS(RADIANS(Sight2!AZ_nord2-180)) -> 0.8744853181 | M39: 0 | N39: =COS(RADIANS(90+M39)) -> 6.125742275e-17 | O39: =SIN(RADIANS(90+M39)) -> 1 | P39: 0 | Q39: =COS(RADIANS(90+P39)) -> 6.125742275e-17 | R39: =SIN(RADIANS(90+P39)) -> 1 | T39: 74 | U39: =COS(RADIANS(Sight2!DEC2_))*COS(RADIANS(T39)) -> 0.2571597318 | V39: =COS(RADIANS(Sight2!DEC2_))*SIN(RADIANS(T39)) -> 0.896822563 | AA39: 74 | AB39: =COS(RADIANS(Sight2!HC2_))*COS(RADIANS(AA39)) -> 0.2617511274 | AC39: =COS(RADIANS(Sight2!HC2_))*SIN(RADIANS(AA39)) -> 0.9128346623
A40: 76 | B40: 0.2419218956 | C40: 0.9702957263 | E40: 14 | F40: =COS(RADIANS(E40))*COS(RADIANS(Sight2!LHA2_)) -> 0.8793853067 | G40: 0.2419218956 | H40: =F40*COS(RADIANS(90-Sight2!LAT2_))-G40*SIN(RADIANS(90-Sight2!LAT2_)) -> 0.4781513632 | I40: =F40*SIN(RADIANS(90-Sight2!LAT2_))+G40*COS(RADIANS(90-Sight2!LAT2_)) -> 0.7766698109 | K40: =COS(RADIANS(E40))*COS(RADIANS(Sight2!AZ_nord2-180)) -> 0.8827038156 | M40: =SUM(M39+5) -> 5 | N40: =COS(RADIANS(90+M40)) -> -0.08715574275 | O40: =SIN(RADIANS(90+M40)) -> 0.9961946981 | P40: =SUM(P39+15) -> 15 | Q40: =COS(RADIANS(90+P40)) -> -0.2588190451 | R40: =SIN(RADIANS(90+P40)) -> 0.9659258263 | T40: 76 | U40: =COS(RADIANS(Sight2!DEC2_))*COS(RADIANS(T40)) -> 0.2257044209 | V40: =COS(RADIANS(Sight2!DEC2_))*SIN(RADIANS(T40)) -> 0.9052509881 | AA40: 76 | AB40: =COS(RADIANS(Sight2!HC2_))*COS(RADIANS(AA40)) -> 0.2297342054 | AC40: =COS(RADIANS(Sight2!HC2_))*SIN(RADIANS(AA40)) -> 0.9214135707
A41: 78 | B41: 0.2079116908 | C41: 0.9781476007 | E41: 12 | F41: =COS(RADIANS(E41))*COS(RADIANS(Sight2!LHA2_)) -> 0.8865015114 | G41: 0.2079116908 | H41: =F41*COS(RADIANS(90-Sight2!LAT2_))-G41*SIN(RADIANS(90-Sight2!LAT2_)) -> 0.5065507297 | I41: =F41*SIN(RADIANS(90-Sight2!LAT2_))+G41*COS(RADIANS(90-Sight2!LAT2_)) -> 0.7566495617 | K41: =COS(RADIANS(E41))*COS(RADIANS(Sight2!AZ_nord2-180)) -> 0.8898468745 | M41: =SUM(M40+5) -> 10 | N41: -0.1736481777 | O41: 0.984807753 | P41: =SUM(P40+15) -> 30 | Q41: -0.5 | R41: 0.8660254038 | T41: 78 | U41: =COS(RADIANS(Sight2!DEC2_))*COS(RADIANS(T41)) -> 0.193974124 | V41: =COS(RADIANS(Sight2!DEC2_))*SIN(RADIANS(T41)) -> 0.9125765043 | AA41: 78 | AB41: =COS(RADIANS(Sight2!HC2_))*COS(RADIANS(AA41)) -> 0.1974373876 | AC41: =COS(RADIANS(Sight2!HC2_))*SIN(RADIANS(AA41)) -> 0.9288698786
A42: 80 | B42: 0.1736481777 | C42: 0.984807753 | E42: 10 | F42: =COS(RADIANS(E42))*COS(RADIANS(Sight2!LHA2_)) -> 0.8925376506 | G42: 0.1736481777 | H42: =F42*COS(RADIANS(90-Sight2!LAT2_))-G42*SIN(RADIANS(90-Sight2!LAT2_)) -> 0.5343329422 | I42: =F42*SIN(RADIANS(90-Sight2!LAT2_))+G42*COS(RADIANS(90-Sight2!LAT2_)) -> 0.7357074515 | K42: =COS(RADIANS(E42))*COS(RADIANS(Sight2!AZ_nord2-180)) -> 0.8959057921 | M42: 15 | N42: -0.2588190451 | O42: 0.9659258263 | P42: 45 | Q42: -0.7071067812 | R42: 0.7071067812 | T42: 80 | U42: =COS(RADIANS(Sight2!DEC2_))*COS(RADIANS(T42)) -> 0.1620074995 | V42: =COS(RADIANS(Sight2!DEC2_))*SIN(RADIANS(T42)) -> 0.9187901867 | AA42: 80 | AB42: =COS(RADIANS(Sight2!HC2_))*COS(RADIANS(AA42)) -> 0.1649000228 | AC42: =COS(RADIANS(Sight2!HC2_))*SIN(RADIANS(AA42)) -> 0.9351945016
A43: 82 | B43: 0.139173101 | C43: 0.9902680687 | E43: 8 | F43: =COS(RADIANS(E43))*COS(RADIANS(Sight2!LHA2_)) -> 0.8974863702 | G43: 0.139173101 | H43: =F43*COS(RADIANS(90-Sight2!LAT2_))-G43*SIN(RADIANS(90-Sight2!LAT2_)) -> 0.5614641524 | I43: =F43*SIN(RADIANS(90-Sight2!LAT2_))+G43*COS(RADIANS(90-Sight2!LAT2_)) -> 0.7138689952 | K43: =COS(RADIANS(E43))*COS(RADIANS(Sight2!AZ_nord2-180)) -> 0.9008731865 | M43: 20 | N43: -0.3420201433 | O43: 0.9396926208 | P43: 60 | Q43: -0.8660254038 | R43: 0.5 | T43: 82 | U43: =COS(RADIANS(Sight2!DEC2_))*COS(RADIANS(T43)) -> 0.1298434938 | V43: =COS(RADIANS(Sight2!DEC2_))*SIN(RADIANS(T43)) -> 0.9238844647 | AA43: 82 | AB43: =COS(RADIANS(Sight2!HC2_))*COS(RADIANS(AA43)) -> 0.1321617528 | AC43: =COS(RADIANS(Sight2!HC2_))*SIN(RADIANS(AA43)) -> 0.9403797342
A44: 84 | B44: 0.1045284633 | C44: 0.9945218954 | E44: 6 | F44: =COS(RADIANS(E44))*COS(RADIANS(Sight2!LHA2_)) -> 0.9013416408 | G44: 0.1045284633 | H44: =F44*COS(RADIANS(90-Sight2!LAT2_))-G44*SIN(RADIANS(90-Sight2!LAT2_)) -> 0.5879113049 | I44: =F44*SIN(RADIANS(90-Sight2!LAT2_))+G44*COS(RADIANS(90-Sight2!LAT2_)) -> 0.6911607994 | K44: =COS(RADIANS(E44))*COS(RADIANS(Sight2!AZ_nord2-180)) -> 0.9047430057 | M44: 25 | N44: -0.4226182617 | O44: 0.906307787 | P44: 75 | Q44: -0.9659258263 | R44: 0.2588190451 | T44: 84 | U44: =COS(RADIANS(Sight2!DEC2_))*COS(RADIANS(T44)) -> 0.09752129386 | V44: =COS(RADIANS(Sight2!DEC2_))*SIN(RADIANS(T44)) -> 0.9278531319 | AA44: 84 | AB44: =COS(RADIANS(Sight2!HC2_))*COS(RADIANS(AA44)) -> 0.09926246398 | AC44: =COS(RADIANS(Sight2!HC2_))*SIN(RADIANS(AA44)) -> 0.9444192589
A45: 86 | B45: 0.06975647374 | C45: 0.9975640503 | E45: 4 | F45: =COS(RADIANS(E45))*COS(RADIANS(Sight2!LHA2_)) -> 0.9040987655 | G45: 0.06975647374 | H45: =F45*COS(RADIANS(90-Sight2!LAT2_))-G45*SIN(RADIANS(90-Sight2!LAT2_)) -> 0.6136421781 | I45: =F45*SIN(RADIANS(90-Sight2!LAT2_))+G45*COS(RADIANS(90-Sight2!LAT2_)) -> 0.6676105307 | K45: =COS(RADIANS(E45))*COS(RADIANS(Sight2!AZ_nord2-180)) -> 0.9075105348 | M45: 30 | N45: -0.5 | O45: 0.8660254038 | P45: 90 | Q45: -1 | R45: 1.225148455e-16 | T45: 86 | U45: =COS(RADIANS(Sight2!DEC2_))*COS(RADIANS(T45)) -> 0.06508027921 | V45: =COS(RADIANS(Sight2!DEC2_))*SIN(RADIANS(T45)) -> 0.9306913529 | AA45: 86 | AB45: =COS(RADIANS(Sight2!HC2_))*COS(RADIANS(AA45)) -> 0.06624223916 | AC45: =COS(RADIANS(Sight2!HC2_))*SIN(RADIANS(AA45)) -> 0.9473081543
A46: 88 | B46: 0.0348994967 | C46: 0.999390827 | E46: 2 | F46: =COS(RADIANS(E46))*COS(RADIANS(Sight2!LHA2_)) -> 0.9057543851 | G46: 0.0348994967 | H46: =F46*COS(RADIANS(90-Sight2!LAT2_))-G46*SIN(RADIANS(90-Sight2!LAT2_)) -> 0.6386254228 | I46: =F46*SIN(RADIANS(90-Sight2!LAT2_))+G46*COS(RADIANS(90-Sight2!LAT2_)) -> 0.6432468814 | K46: =COS(RADIANS(E46))*COS(RADIANS(Sight2!AZ_nord2-180)) -> 0.9091724022 | M46: 35 | N46: -0.5735764364 | O46: 0.8191520443 | P46: 105 | Q46: -0.9659258263 | R46: -0.2588190451 | T46: 88 | U46: =COS(RADIANS(Sight2!DEC2_))*COS(RADIANS(T46)) -> 0.03255997426 | V46: =COS(RADIANS(Sight2!DEC2_))*SIN(RADIANS(T46)) -> 0.9323956698 | AA46: 88 | AB46: =COS(RADIANS(Sight2!HC2_))*COS(RADIANS(AA46)) -> 0.03314130837 | AC46: =COS(RADIANS(Sight2!HC2_))*SIN(RADIANS(AA46)) -> 0.9490429006
A47: 90 | B47: 6.125742275e-17 | C47: 1 | E47: 0 | F47: =COS(RADIANS(E47))*COS(RADIANS(Sight2!LHA2_)) -> 0.9063064826 | G47: 0 | H47: =F47*COS(RADIANS(90-Sight2!LAT2_))-G47*SIN(RADIANS(90-Sight2!LAT2_)) -> 0.6628306008 | I47: =F47*SIN(RADIANS(90-Sight2!LAT2_))+G47*COS(RADIANS(90-Sight2!LAT2_)) -> 0.6180995348 | K47: =COS(RADIANS(E47))*COS(RADIANS(Sight2!AZ_nord2-180)) -> 0.9097265831 | M47: 40 | N47: -0.6427876097 | O47: 0.7660444431 | P47: 120 | Q47: -0.8660254038 | R47: -0.5 | T47: 90 | U47: =COS(RADIANS(Sight2!DEC2_))*COS(RADIANS(T47)) -> 5.715097054e-17 | V47: =COS(RADIANS(Sight2!DEC2_))*SIN(RADIANS(T47)) -> 0.9329640063 | AA47: 90 | AB47: =COS(RADIANS(Sight2!HC2_))*COS(RADIANS(AA47)) -> 5.817135858e-17 | AC47: =COS(RADIANS(Sight2!HC2_))*SIN(RADIANS(AA47)) -> 0.9496213842
A48: 92 | B48: -0.0348994967 | C48: 0.999390827 | E48: -2 | F48: =COS(RADIANS(E48))*COS(RADIANS(Sight2!LHA2_)) -> 0.9057543851 | G48: -0.0348994967 | H48: =F48*COS(RADIANS(90-Sight2!LAT2_))-G48*SIN(RADIANS(90-Sight2!LAT2_)) -> 0.6862282218 | I48: =F48*SIN(RADIANS(90-Sight2!LAT2_))+G48*COS(RADIANS(90-Sight2!LAT2_)) -> 0.5921991292 | K48: =COS(RADIANS(E48))*COS(RADIANS(Sight2!AZ_nord2-180)) -> 0.9091724022 | M48: 45 | N48: -0.7071067812 | O48: 0.7071067812 | P48: 135 | Q48: -0.7071067812 | R48: -0.7071067812 | T48: 92 | U48: =COS(RADIANS(Sight2!DEC2_))*COS(RADIANS(T48)) -> -0.03255997426 | V48: =COS(RADIANS(Sight2!DEC2_))*SIN(RADIANS(T48)) -> 0.9323956698 | AA48: 92 | AB48: =COS(RADIANS(Sight2!HC2_))*COS(RADIANS(AA48)) -> -0.03314130837 | AC48: =COS(RADIANS(Sight2!HC2_))*SIN(RADIANS(AA48)) -> 0.9490429006
A49: 94 | B49: -0.06975647374 | C49: 0.9975640503 | E49: -4 | F49: =COS(RADIANS(E49))*COS(RADIANS(Sight2!LHA2_)) -> 0.9040987655 | G49: -0.06975647374 | H49: =F49*COS(RADIANS(90-Sight2!LAT2_))-G49*SIN(RADIANS(90-Sight2!LAT2_)) -> 0.7087897795 | I49: =F49*SIN(RADIANS(90-Sight2!LAT2_))+G49*COS(RADIANS(90-Sight2!LAT2_)) -> 0.5655772201 | K49: =COS(RADIANS(E49))*COS(RADIANS(Sight2!AZ_nord2-180)) -> 0.9075105348 | M49: 50 | N49: -0.7660444431 | O49: 0.6427876097 | P49: 150 | Q49: -0.5 | R49: -0.8660254038 | T49: 94 | U49: =COS(RADIANS(Sight2!DEC2_))*COS(RADIANS(T49)) -> -0.06508027921 | V49: =COS(RADIANS(Sight2!DEC2_))*SIN(RADIANS(T49)) -> 0.9306913529 | AA49: 94 | AB49: =COS(RADIANS(Sight2!HC2_))*COS(RADIANS(AA49)) -> -0.06624223916 | AC49: =COS(RADIANS(Sight2!HC2_))*SIN(RADIANS(AA49)) -> 0.9473081543
A50: 96 | B50: -0.1045284633 | C50: 0.9945218954 | E50: -6 | F50: =COS(RADIANS(E50))*COS(RADIANS(Sight2!LHA2_)) -> 0.9013416408 | G50: -0.1045284633 | H50: =F50*COS(RADIANS(90-Sight2!LAT2_))-G50*SIN(RADIANS(90-Sight2!LAT2_)) -> 0.730487786 | I50: =F50*SIN(RADIANS(90-Sight2!LAT2_))+G50*COS(RADIANS(90-Sight2!LAT2_)) -> 0.5382662424 | K50: =COS(RADIANS(E50))*COS(RADIANS(Sight2!AZ_nord2-180)) -> 0.9047430057 | M50: 55 | N50: -0.8191520443 | O50: 0.5735764364 | P50: 165 | Q50: -0.2588190451 | R50: -0.9659258263 | T50: 96 | U50: =COS(RADIANS(Sight2!DEC2_))*COS(RADIANS(T50)) -> -0.09752129386 | V50: =COS(RADIANS(Sight2!DEC2_))*SIN(RADIANS(T50)) -> 0.9278531319 | AA50: 96 | AB50: =COS(RADIANS(Sight2!HC2_))*COS(RADIANS(AA50)) -> -0.09926246398 | AC50: =COS(RADIANS(Sight2!HC2_))*SIN(RADIANS(AA50)) -> 0.9444192589
A51: 98 | B51: -0.139173101 | C51: 0.9902680687 | E51: -8 | F51: =COS(RADIANS(E51))*COS(RADIANS(Sight2!LHA2_)) -> 0.8974863702 | G51: -0.139173101 | H51: =F51*COS(RADIANS(90-Sight2!LAT2_))-G51*SIN(RADIANS(90-Sight2!LAT2_)) -> 0.7512958056 | I51: =F51*SIN(RADIANS(90-Sight2!LAT2_))+G51*COS(RADIANS(90-Sight2!LAT2_)) -> 0.5102994701 | K51: =COS(RADIANS(E51))*COS(RADIANS(Sight2!AZ_nord2-180)) -> 0.9008731865 | M51: 60 | N51: -0.8660254038 | O51: 0.5 | P51: 180 | Q51: -1.837722682e-16 | R51: -1 | T51: 98 | U51: =COS(RADIANS(Sight2!DEC2_))*COS(RADIANS(T51)) -> -0.1298434938 | V51: =COS(RADIANS(Sight2!DEC2_))*SIN(RADIANS(T51)) -> 0.9238844647 | AA51: 98 | AB51: =COS(RADIANS(Sight2!HC2_))*COS(RADIANS(AA51)) -> -0.1321617528 | AC51: =COS(RADIANS(Sight2!HC2_))*SIN(RADIANS(AA51)) -> 0.9403797342
A52: 100 | B52: -0.1736481777 | C52: 0.984807753 | E52: -10 | F52: =COS(RADIANS(E52))*COS(RADIANS(Sight2!LHA2_)) -> 0.8925376506 | G52: -0.1736481777 | H52: =F52*COS(RADIANS(90-Sight2!LAT2_))-G52*SIN(RADIANS(90-Sight2!LAT2_)) -> 0.771188487 | I52: =F52*SIN(RADIANS(90-Sight2!LAT2_))+G52*COS(RADIANS(90-Sight2!LAT2_)) -> 0.4817109765 | K52: =COS(RADIANS(E52))*COS(RADIANS(Sight2!AZ_nord2-180)) -> 0.8959057921 | M52: 65 | N52: -0.906307787 | O52: 0.4226182617 | P52: 195 | Q52: 0.2588190451 | R52: -0.9659258263 | T52: 100 | U52: =COS(RADIANS(Sight2!DEC2_))*COS(RADIANS(T52)) -> -0.1620074995 | V52: =COS(RADIANS(Sight2!DEC2_))*SIN(RADIANS(T52)) -> 0.9187901867 | AA52: 100 | AB52: =COS(RADIANS(Sight2!HC2_))*COS(RADIANS(AA52)) -> -0.1649000228 | AC52: =COS(RADIANS(Sight2!HC2_))*SIN(RADIANS(AA52)) -> 0.9351945016
A53: 102 | B53: -0.2079116908 | C53: 0.9781476007 | E53: -12 | F53: =COS(RADIANS(E53))*COS(RADIANS(Sight2!LHA2_)) -> 0.8865015114 | G53: -0.2079116908 | H53: =F53*COS(RADIANS(90-Sight2!LAT2_))-G53*SIN(RADIANS(90-Sight2!LAT2_)) -> 0.7901415941 | I53: =F53*SIN(RADIANS(90-Sight2!LAT2_))+G53*COS(RADIANS(90-Sight2!LAT2_)) -> 0.4525355923 | K53: =COS(RADIANS(E53))*COS(RADIANS(Sight2!AZ_nord2-180)) -> 0.8898468745 | M53: 70 | N53: -0.9396926208 | O53: 0.3420201433 | P53: 210 | Q53: 0.5 | R53: -0.8660254038 | T53: 102 | U53: =COS(RADIANS(Sight2!DEC2_))*COS(RADIANS(T53)) -> -0.193974124 | V53: =COS(RADIANS(Sight2!DEC2_))*SIN(RADIANS(T53)) -> 0.9125765043 | AA53: 102 | AB53: =COS(RADIANS(Sight2!HC2_))*COS(RADIANS(AA53)) -> -0.1974373876 | AC53: =COS(RADIANS(Sight2!HC2_))*SIN(RADIANS(AA53)) -> 0.9288698786
A54: 104 | B54: -0.2419218956 | C54: 0.9702957263 | E54: -14 | F54: =COS(RADIANS(E54))*COS(RADIANS(Sight2!LHA2_)) -> 0.8793853067 | G54: -0.2419218956 | H54: =F54*COS(RADIANS(90-Sight2!LAT2_))-G54*SIN(RADIANS(90-Sight2!LAT2_)) -> 0.8081320353 | I54: =F54*SIN(RADIANS(90-Sight2!LAT2_))+G54*COS(RADIANS(90-Sight2!LAT2_)) -> 0.4228088632 | K54: =COS(RADIANS(E54))*COS(RADIANS(Sight2!AZ_nord2-180)) -> 0.8827038156 | M54: 75 | N54: -0.9659258263 | O54: 0.2588190451 | P54: 225 | Q54: 0.7071067812 | R54: -0.7071067812 | T54: 104 | U54: =COS(RADIANS(Sight2!DEC2_))*COS(RADIANS(T54)) -> -0.2257044209 | V54: =COS(RADIANS(Sight2!DEC2_))*SIN(RADIANS(T54)) -> 0.9052509881 | AA54: 104 | AB54: =COS(RADIANS(Sight2!HC2_))*COS(RADIANS(AA54)) -> -0.2297342054 | AC54: =COS(RADIANS(Sight2!HC2_))*SIN(RADIANS(AA54)) -> 0.9214135707
A55: 106 | B55: -0.2756373558 | C55: 0.9612616959 | E55: -16 | F55: =COS(RADIANS(E55))*COS(RADIANS(Sight2!LHA2_)) -> 0.8711977065 | G55: -0.2756373558 | H55: =F55*COS(RADIANS(90-Sight2!LAT2_))-G55*SIN(RADIANS(90-Sight2!LAT2_)) -> 0.8251378921 | I55: =F55*SIN(RADIANS(90-Sight2!LAT2_))+G55*COS(RADIANS(90-Sight2!LAT2_)) -> 0.3925670066 | K55: =COS(RADIANS(E55))*COS(RADIANS(Sight2!AZ_nord2-180)) -> 0.8744853181 | M55: 80 | N55: -0.984807753 | O55: 0.1736481777 | P55: 240 | Q55: 0.8660254038 | R55: -0.5 | T55: 106 | U55: =COS(RADIANS(Sight2!DEC2_))*COS(RADIANS(T55)) -> -0.2571597318 | V55: =COS(RADIANS(Sight2!DEC2_))*SIN(RADIANS(T55)) -> 0.896822563 | AA55: 106 | AB55: =COS(RADIANS(Sight2!HC2_))*COS(RADIANS(AA55)) -> -0.2617511274 | AC55: =COS(RADIANS(Sight2!HC2_))*SIN(RADIANS(AA55)) -> 0.9128346623
A56: 108 | B56: -0.3090169944 | C56: 0.9510565163 | E56: -18 | F56: =COS(RADIANS(E56))*COS(RADIANS(Sight2!LHA2_)) -> 0.861948686 | G56: -0.3090169944 | H56: =F56*COS(RADIANS(90-Sight2!LAT2_))-G56*SIN(RADIANS(90-Sight2!LAT2_)) -> 0.8411384455 | I56: =F56*SIN(RADIANS(90-Sight2!LAT2_))+G56*COS(RADIANS(90-Sight2!LAT2_)) -> 0.3618468676 | K56: =COS(RADIANS(E56))*COS(RADIANS(Sight2!AZ_nord2-180)) -> 0.8652013949 | M56: 85 | N56: -0.9961946981 | O56: 0.08715574275 | P56: 255 | Q56: 0.9659258263 | R56: -0.2588190451 | T56: 108 | U56: =COS(RADIANS(Sight2!DEC2_))*COS(RADIANS(T56)) -> -0.2883017331 | V56: =COS(RADIANS(Sight2!DEC2_))*SIN(RADIANS(T56)) -> 0.8873014977 | AA56: 108 | AB56: =COS(RADIANS(Sight2!HC2_))*COS(RADIANS(AA56)) -> -0.293449146 | AC56: =COS(RADIANS(Sight2!HC2_))*SIN(RADIANS(AA56)) -> 0.9031436055
A57: 110 | B57: -0.3420201433 | C57: 0.9396926208 | E57: -20 | F57: =COS(RADIANS(E57))*COS(RADIANS(Sight2!LHA2_)) -> 0.8516495138 | G57: -0.3420201433 | H57: =F57*COS(RADIANS(90-Sight2!LAT2_))-G57*SIN(RADIANS(90-Sight2!LAT2_)) -> 0.8561142013 | I57: =F57*SIN(RADIANS(90-Sight2!LAT2_))+G57*COS(RADIANS(90-Sight2!LAT2_)) -> 0.3306858739 | K57: =COS(RADIANS(E57))*COS(RADIANS(Sight2!AZ_nord2-180)) -> 0.854863357 | M57: 90 | N57: -1 | O57: 1.225148455e-16 | P57: 270 | Q57: 1 | R57: -2.45029691e-16 | T57: 110 | U57: =COS(RADIANS(Sight2!DEC2_))*COS(RADIANS(T57)) -> -0.3190924832 | V57: =COS(RADIANS(Sight2!DEC2_))*SIN(RADIANS(T57)) -> 0.8766993922 | AA57: 110 | AB57: =COS(RADIANS(Sight2!HC2_))*COS(RADIANS(AA57)) -> -0.3247896419 | AC57: =COS(RADIANS(Sight2!HC2_))*SIN(RADIANS(AA57)) -> 0.8923522073
A58: 112 | B58: -0.3746065934 | C58: 0.9271838546 | E58: -22 | F58: =COS(RADIANS(E58))*COS(RADIANS(Sight2!LHA2_)) -> 0.8403127379 | G58: -0.3746065934 | H58: =F58*COS(RADIANS(90-Sight2!LAT2_))-G58*SIN(RADIANS(90-Sight2!LAT2_)) -> 0.8700469138 | I58: =F58*SIN(RADIANS(90-Sight2!LAT2_))+G58*COS(RADIANS(90-Sight2!LAT2_)) -> 0.2991219905 | K58: =COS(RADIANS(E58))*COS(RADIANS(Sight2!AZ_nord2-180)) -> 0.8434837999 | M58: 95 | N58: -0.9961946981 | O58: -0.08715574275 | P58: 285 | Q58: 0.9659258263 | R58: 0.2588190451 | T58: 112 | U58: =COS(RADIANS(Sight2!DEC2_))*COS(RADIANS(T58)) -> -0.3494944682 | V58: =COS(RADIANS(Sight2!DEC2_))*SIN(RADIANS(T58)) -> 0.8650291635 | AA58: 112 | AB58: =COS(RADIANS(Sight2!HC2_))*COS(RADIANS(AA58)) -> -0.3557344318 | AC58: =COS(RADIANS(Sight2!HC2_))*SIN(RADIANS(AA58)) -> 0.8804736154
A59: 114 | B59: -0.4067366431 | C59: 0.9135454576 | E59: -24 | F59: =COS(RADIANS(E59))*COS(RADIANS(Sight2!LHA2_)) -> 0.8279521704 | G59: -0.4067366431 | H59: =F59*COS(RADIANS(90-Sight2!LAT2_))-G59*SIN(RADIANS(90-Sight2!LAT2_)) -> 0.8829196081 | I59: =F59*SIN(RADIANS(90-Sight2!LAT2_))+G59*COS(RADIANS(90-Sight2!LAT2_)) -> 0.2671936729 | K59: =COS(RADIANS(E59))*COS(RADIANS(Sight2!AZ_nord2-180)) -> 0.8310765877 | M59: 100 | N59: -0.984807753 | O59: -0.1736481777 | P59: 300 | Q59: 0.8660254038 | R59: 0.5 | T59: 114 | U59: =COS(RADIANS(Sight2!DEC2_))*COS(RADIANS(T59)) -> -0.379470648 | V59: =COS(RADIANS(Sight2!DEC2_))*SIN(RADIANS(T59)) -> 0.8523050301 | AA59: 114 | AB59: =COS(RADIANS(Sight2!HC2_))*COS(RADIANS(AA59)) -> -0.386245814 | AC59: =COS(RADIANS(Sight2!HC2_))*SIN(RADIANS(AA59)) -> 0.8675223021
A60: 116 | B60: -0.4383711468 | C60: 0.8987940463 | E60: -26 | F60: =COS(RADIANS(E60))*COS(RADIANS(Sight2!LHA2_)) -> 0.8145828706 | G60: -0.4383711468 | H60: =F60*COS(RADIANS(90-Sight2!LAT2_))-G60*SIN(RADIANS(90-Sight2!LAT2_)) -> 0.8947166009 | I60: =F60*SIN(RADIANS(90-Sight2!LAT2_))+G60*COS(RADIANS(90-Sight2!LAT2_)) -> 0.234939821 | K60: =COS(RADIANS(E60))*COS(RADIANS(Sight2!AZ_nord2-180)) -> 0.8176568366 | M60: 105 | N60: -0.9659258263 | O60: -0.2588190451 | P60: 315 | Q60: 0.7071067812 | R60: 0.7071067812 | T60: 116 | U60: =COS(RADIANS(Sight2!DEC2_))*COS(RADIANS(T60)) -> -0.4089845014 | V60: =COS(RADIANS(Sight2!DEC2_))*SIN(RADIANS(T60)) -> 0.8385424943 | AA60: 116 | AB60: =COS(RADIANS(Sight2!HC2_))*COS(RADIANS(AA60)) -> -0.4162866152 | AC60: =COS(RADIANS(Sight2!HC2_))*SIN(RADIANS(AA60)) -> 0.8535140464
A61: 118 | B61: -0.4694715628 | C61: 0.8829475929 | E61: -28 | F61: =COS(RADIANS(E61))*COS(RADIANS(Sight2!LHA2_)) -> 0.8002211272 | G61: -0.4694715628 | H61: =F61*COS(RADIANS(90-Sight2!LAT2_))-G61*SIN(RADIANS(90-Sight2!LAT2_)) -> 0.9054235194 | I61: =F61*SIN(RADIANS(90-Sight2!LAT2_))+G61*COS(RADIANS(90-Sight2!LAT2_)) -> 0.2023997312 | K61: =COS(RADIANS(E61))*COS(RADIANS(Sight2!AZ_nord2-180)) -> 0.8032408967 | M61: 110 | N61: -0.9396926208 | O61: -0.3420201433 | P61: 330 | Q61: 0.5 | R61: 0.8660254038 | T61: 118 | U61: =COS(RADIANS(Sight2!DEC2_))*COS(RADIANS(T61)) -> -0.4380000701 | V61: =COS(RADIANS(Sight2!DEC2_))*SIN(RADIANS(T61)) -> 0.8237583236 | AA61: 118 | AB61: =COS(RADIANS(Sight2!HC2_))*COS(RADIANS(AA61)) -> -0.4458202353 | AC61: =COS(RADIANS(Sight2!HC2_))*SIN(RADIANS(AA61)) -> 0.8384659153
A62: 120 | B62: -0.5 | C62: 0.8660254038 | E62: -30 | F62: =COS(RADIANS(E62))*COS(RADIANS(Sight2!LHA2_)) -> 0.7848844375 | G62: -0.5 | H62: =F62*COS(RADIANS(90-Sight2!LAT2_))-G62*SIN(RADIANS(90-Sight2!LAT2_)) -> 0.9150273187 | I62: =F62*SIN(RADIANS(90-Sight2!LAT2_))+G62*COS(RADIANS(90-Sight2!LAT2_)) -> 0.1696130484 | K62: =COS(RADIANS(E62))*COS(RADIANS(Sight2!AZ_nord2-180)) -> 0.7878463314 | M62: 115 | N62: -0.906307787 | O62: -0.4226182617 | P62: 345 | Q62: 0.2588190451 | R62: 0.9659258263 | T62: 120 | U62: =COS(RADIANS(Sight2!DEC2_))*COS(RADIANS(T62)) -> -0.4664820032 | V62: =COS(RADIANS(Sight2!DEC2_))*SIN(RADIANS(T62)) -> 0.8079705303 | AA62: 120 | AB62: =COS(RADIANS(Sight2!HC2_))*COS(RADIANS(AA62)) -> -0.4748106921 | AC62: =COS(RADIANS(Sight2!HC2_))*SIN(RADIANS(AA62)) -> 0.8223962427
A63: 122 | B63: -0.5299192642 | C63: 0.8480480962 | E63: -32 | F63: =COS(RADIANS(E63))*COS(RADIANS(Sight2!LHA2_)) -> 0.7685914871 | G63: -0.5299192642 | H63: =F63*COS(RADIANS(90-Sight2!LAT2_))-G63*SIN(RADIANS(90-Sight2!LAT2_)) -> 0.9235162983 | I63: =F63*SIN(RADIANS(90-Sight2!LAT2_))+G63*COS(RADIANS(90-Sight2!LAT2_)) -> 0.1366197183 | K63: =COS(RADIANS(E63))*COS(RADIANS(Sight2!AZ_nord2-180)) -> 0.7714918968 | M63: 120 | N63: -0.8660254038 | O63: -0.5 | T63: 122 | U63: =COS(RADIANS(Sight2!DEC2_))*COS(RADIANS(T63)) -> -0.4943955998 | V63: =COS(RADIANS(Sight2!DEC2_))*SIN(RADIANS(T63)) -> 0.7911983493 | AA63: 122 | AB63: =COS(RADIANS(Sight2!HC2_))*COS(RADIANS(AA63)) -> -0.5032226652 | AC63: =COS(RADIANS(Sight2!HC2_))*SIN(RADIANS(AA63)) -> 0.805324607
A64: 124 | B64: -0.5591929035 | C64: 0.8290375726 | E64: -34 | F64: =COS(RADIANS(E64))*COS(RADIANS(Sight2!LHA2_)) -> 0.7513621263 | G64: -0.5591929035 | H64: =F64*COS(RADIANS(90-Sight2!LAT2_))-G64*SIN(RADIANS(90-Sight2!LAT2_)) -> 0.9308801154 | I64: =F64*SIN(RADIANS(90-Sight2!LAT2_))+G64*COS(RADIANS(90-Sight2!LAT2_)) -> 0.1034599381 | K64: =COS(RADIANS(E64))*COS(RADIANS(Sight2!AZ_nord2-180)) -> 0.7541975181 | M64: 125 | N64: -0.8191520443 | O64: -0.5735764364 | T64: 124 | U64: =COS(RADIANS(Sight2!DEC2_))*COS(RADIANS(T64)) -> -0.5217068515 | V64: =COS(RADIANS(Sight2!DEC2_))*SIN(RADIANS(T64)) -> 0.7734622151 | AA64: 124 | AB64: =COS(RADIANS(Sight2!HC2_))*COS(RADIANS(AA64)) -> -0.5310215391 | AC64: =COS(RADIANS(Sight2!HC2_))*SIN(RADIANS(AA64)) -> 0.7872718072
A65: 126 | B65: -0.5877852523 | C65: 0.8090169944 | E65: -36 | F65: =COS(RADIANS(E65))*COS(RADIANS(Sight2!LHA2_)) -> 0.7332173465 | G65: -0.5877852523 | H65: =F65*COS(RADIANS(90-Sight2!LAT2_))-G65*SIN(RADIANS(90-Sight2!LAT2_)) -> 0.9371097986 | I65: =F65*SIN(RADIANS(90-Sight2!LAT2_))+G65*COS(RADIANS(90-Sight2!LAT2_)) -> 0.07017410786 | K65: =COS(RADIANS(E65))*COS(RADIANS(Sight2!AZ_nord2-180)) -> 0.7359842659 | M65: 130 | N65: -0.7660444431 | O65: -0.6427876097 | T65: 126 | U65: =COS(RADIANS(Sight2!DEC2_))*COS(RADIANS(T65)) -> -0.5483824838 | V65: =COS(RADIANS(Sight2!DEC2_))*SIN(RADIANS(T65)) -> 0.7547837362 | AA65: 126 | AB65: =COS(RADIANS(Sight2!HC2_))*COS(RADIANS(AA65)) -> -0.5581734449 | AC65: =COS(RADIANS(Sight2!HC2_))*SIN(RADIANS(AA65)) -> 0.7682598381
A66: 128 | B66: =COS(RADIANS(A66)) -> -0.6156614753 | C66: =SIN(RADIANS(A66)) -> 0.7880107536 | E66: -38 | F66: =COS(RADIANS(E66))*COS(RADIANS(Sight2!LHA2_)) -> 0.7141792543 | G66: -0.6156614753 | H66: =F66*COS(RADIANS(90-Sight2!LAT2_))-G66*SIN(RADIANS(90-Sight2!LAT2_)) -> 0.9421977578 | I66: =F66*SIN(RADIANS(90-Sight2!LAT2_))+G66*COS(RADIANS(90-Sight2!LAT2_)) -> 0.03680278131 | K66: =COS(RADIANS(E66))*COS(RADIANS(Sight2!AZ_nord2-180)) -> 0.7168743303 | M66: 135 | N66: -0.7071067812 | O66: -0.7071067812 | T66: 128 | U66: =COS(RADIANS(Sight2!DEC2_))*COS(RADIANS(T66)) -> -0.5743899966 | V66: =COS(RADIANS(Sight2!DEC2_))*SIN(RADIANS(T66)) -> 0.7351856697 | AA66: 128 | AB66: =COS(RADIANS(Sight2!HC2_))*COS(RADIANS(AA66)) -> -0.5846453024 | AC66: =COS(RADIANS(Sight2!HC2_))*SIN(RADIANS(AA66)) -> 0.7483118626
A67: =SUM(A66+2) -> 130 | B67: -0.6427876097 | C67: 0.7660444431 | E67: =SUM(E66-2) -> -40 | F67: =COS(RADIANS(E67))*COS(RADIANS(Sight2!LHA2_)) -> 0.6942710447 | G67: =SIN(RADIANS(E67)) -> -0.6427876097 | H67: =F67*COS(RADIANS(90-Sight2!LAT2_))-G67*SIN(RADIANS(90-Sight2!LAT2_)) -> 0.9461377942 | I67: =F67*SIN(RADIANS(90-Sight2!LAT2_))+G67*COS(RADIANS(90-Sight2!LAT2_)) -> 0.003386616243 | K67: =COS(RADIANS(E67))*COS(RADIANS(Sight2!AZ_nord2-180)) -> 0.6968909937 | M67: 140 | N67: -0.6427876097 | O67: -0.7660444431 | T67: 130 | U67: =COS(RADIANS(Sight2!DEC2_))*COS(RADIANS(T67)) -> -0.5996977035 | V67: =COS(RADIANS(Sight2!DEC2_))*SIN(RADIANS(T67)) -> 0.7146918927 | AA67: =SUM(AA66+2) -> 130 | AB67: =COS(RADIANS(Sight2!HC2_))*COS(RADIANS(AA67)) -> -0.6104048597 | AC67: =COS(RADIANS(Sight2!HC2_))*SIN(RADIANS(AA67)) -> 0.7274521845
A68: 132 | B68: -0.6691306064 | C68: 0.7431448255 | E68: -42 | F68: =COS(RADIANS(E68))*COS(RADIANS(Sight2!LHA2_)) -> 0.6735169728 | G68: -0.6691306064 | H68: =F68*COS(RADIANS(90-Sight2!LAT2_))-G68*SIN(RADIANS(90-Sight2!LAT2_)) -> 0.9489251074 | I68: =F68*SIN(RADIANS(90-Sight2!LAT2_))+G68*COS(RADIANS(90-Sight2!LAT2_)) -> -0.0300336749 | K68: =COS(RADIANS(E68))*COS(RADIANS(Sight2!AZ_nord2-180)) -> 0.6760586028 | M68: 145 | N68: -0.5735764364 | O68: -0.8191520443 | T68: 132 | U68: =COS(RADIANS(Sight2!DEC2_))*COS(RADIANS(T68)) -> -0.6242747713 | V68: =COS(RADIANS(Sight2!DEC2_))*SIN(RADIANS(T68)) -> 0.6933273736 | AA68: 132 | AB68: =COS(RADIANS(Sight2!HC2_))*COS(RADIANS(AA68)) -> -0.6354207326 | AC68: =COS(RADIANS(Sight2!HC2_))*SIN(RADIANS(AA68)) -> 0.7057062179
A69: 134 | B69: -0.6946583705 | C69: 0.7193398003 | E69: -44 | F69: =COS(RADIANS(E69))*COS(RADIANS(Sight2!LHA2_)) -> 0.6519423242 | G69: -0.6946583705 | H69: =F69*COS(RADIANS(90-Sight2!LAT2_))-G69*SIN(RADIANS(90-Sight2!LAT2_)) -> 0.9505563015 | I69: =F69*SIN(RADIANS(90-Sight2!LAT2_))+G69*COS(RADIANS(90-Sight2!LAT2_)) -> -0.06341737463 | K69: =COS(RADIANS(E69))*COS(RADIANS(Sight2!AZ_nord2-180)) -> 0.6544025386 | M69: 150 | N69: -0.5 | O69: -0.8660254038 | T69: 134 | U69: =COS(RADIANS(Sight2!DEC2_))*COS(RADIANS(T69)) -> -0.6480912563 | V69: =COS(RADIANS(Sight2!DEC2_))*SIN(RADIANS(T69)) -> 0.671118142 | AA69: 134 | AB69: =COS(RADIANS(Sight2!HC2_))*COS(RADIANS(AA69)) -> -0.6596624433 | AC69: =COS(RADIANS(Sight2!HC2_))*SIN(RADIANS(AA69)) -> 0.6831004569
A70: 136 | B70: -0.7193398003 | C70: 0.6946583705 | E70: -46 | F70: =COS(RADIANS(E70))*COS(RADIANS(Sight2!LHA2_)) -> 0.6295733843 | G70: -0.7193398003 | H70: =F70*COS(RADIANS(90-Sight2!LAT2_))-G70*SIN(RADIANS(90-Sight2!LAT2_)) -> 0.9510293892 | I70: =F70*SIN(RADIANS(90-Sight2!LAT2_))+G70*COS(RADIANS(90-Sight2!LAT2_)) -> -0.09672381006 | K70: =COS(RADIANS(E70))*COS(RADIANS(Sight2!AZ_nord2-180)) -> 0.6319491858 | M70: 155 | N70: -0.4226182617 | O70: -0.906307787 | T70: 136 | U70: =COS(RADIANS(Sight2!DEC2_))*COS(RADIANS(T70)) -> -0.671118142 | V70: =COS(RADIANS(Sight2!DEC2_))*SIN(RADIANS(T70)) -> 0.6480912563 | AA70: 136 | AB70: =COS(RADIANS(Sight2!HC2_))*COS(RADIANS(AA70)) -> -0.6831004569 | AC70: =COS(RADIANS(Sight2!HC2_))*SIN(RADIANS(AA70)) -> 0.6596624433
A71: 138 | B71: -0.7431448255 | C71: 0.6691306064 | E71: -48 | F71: =COS(RADIANS(E71))*COS(RADIANS(Sight2!LHA2_)) -> 0.6064374062 | G71: -0.7431448255 | H71: =F71*COS(RADIANS(90-Sight2!LAT2_))-G71*SIN(RADIANS(90-Sight2!LAT2_)) -> 0.9503437941 | I71: =F71*SIN(RADIANS(90-Sight2!LAT2_))+G71*COS(RADIANS(90-Sight2!LAT2_)) -> -0.1299124024 | K71: =COS(RADIANS(E71))*COS(RADIANS(Sight2!AZ_nord2-180)) -> 0.6087259001 | M71: 160 | N71: -0.3420201433 | O71: -0.9396926208 | T71: 138 | U71: =COS(RADIANS(Sight2!DEC2_))*COS(RADIANS(T71)) -> -0.6933273736 | V71: =COS(RADIANS(Sight2!DEC2_))*SIN(RADIANS(T71)) -> 0.6242747713 | AA71: 138 | AB71: =COS(RADIANS(Sight2!HC2_))*COS(RADIANS(AA71)) -> -0.7057062179 | AC71: =COS(RADIANS(Sight2!HC2_))*SIN(RADIANS(AA71)) -> 0.6354207326
A72: 140 | B72: -0.7660444431 | C72: 0.6427876097 | E72: -50 | F72: =COS(RADIANS(E72))*COS(RADIANS(Sight2!LHA2_)) -> 0.5825625776 | G72: -0.7660444431 | H72: =F72*COS(RADIANS(90-Sight2!LAT2_))-G72*SIN(RADIANS(90-Sight2!LAT2_)) -> 0.9485003515 | I72: =F72*SIN(RADIANS(90-Sight2!LAT2_))+G72*COS(RADIANS(90-Sight2!LAT2_)) -> -0.1629427165 | K72: =COS(RADIANS(E72))*COS(RADIANS(Sight2!AZ_nord2-180)) -> 0.5847609758 | M72: 165 | N72: -0.2588190451 | O72: -0.9659258263 | T72: 140 | U72: =COS(RADIANS(Sight2!DEC2_))*COS(RADIANS(T72)) -> -0.7146918927 | V72: =COS(RADIANS(Sight2!DEC2_))*SIN(RADIANS(T72)) -> 0.5996977035 | AA72: 140 | AB72: =COS(RADIANS(Sight2!HC2_))*COS(RADIANS(AA72)) -> -0.7274521845 | AC72: =COS(RADIANS(Sight2!HC2_))*SIN(RADIANS(AA72)) -> 0.6104048597
A73: 142 | B73: -0.7880107536 | C73: 0.6156614753 | E73: -52 | F73: =COS(RADIANS(E73))*COS(RADIANS(Sight2!LHA2_)) -> 0.5579779861 | G73: -0.7880107536 | H73: =F73*COS(RADIANS(90-Sight2!LAT2_))-G73*SIN(RADIANS(90-Sight2!LAT2_)) -> 0.9455013073 | I73: =F73*SIN(RADIANS(90-Sight2!LAT2_))+G73*COS(RADIANS(90-Sight2!LAT2_)) -> -0.1957745101 | K73: =COS(RADIANS(E73))*COS(RADIANS(Sight2!AZ_nord2-180)) -> 0.5600836103 | M73: 170 | N73: -0.1736481777 | O73: -0.984807753 | T73: 142 | U73: =COS(RADIANS(Sight2!DEC2_))*COS(RADIANS(T73)) -> -0.7351856697 | V73: =COS(RADIANS(Sight2!DEC2_))*SIN(RADIANS(T73)) -> 0.5743899966 | AA73: 142 | AB73: =COS(RADIANS(Sight2!HC2_))*COS(RADIANS(AA73)) -> -0.7483118626 | AC73: =COS(RADIANS(Sight2!HC2_))*SIN(RADIANS(AA73)) -> 0.5846453024
A74: 144 | B74: -0.8090169944 | C74: 0.5877852523 | E74: -54 | F74: =COS(RADIANS(E74))*COS(RADIANS(Sight2!LHA2_)) -> 0.5327135845 | G74: -0.8090169944 | H74: =F74*COS(RADIANS(90-Sight2!LAT2_))-G74*SIN(RADIANS(90-Sight2!LAT2_)) -> 0.9413503154 | I74: =F74*SIN(RADIANS(90-Sight2!LAT2_))+G74*COS(RADIANS(90-Sight2!LAT2_)) -> -0.2283677825 | K74: =COS(RADIANS(E74))*COS(RADIANS(Sight2!AZ_nord2-180)) -> 0.5347238691 | M74: 175 | N74: -0.08715574275 | O74: -0.9961946981 | T74: 144 | U74: =COS(RADIANS(Sight2!DEC2_))*COS(RADIANS(T74)) -> -0.7547837362 | V74: =COS(RADIANS(Sight2!DEC2_))*SIN(RADIANS(T74)) -> 0.5483824838 | AA74: 144 | AB74: =COS(RADIANS(Sight2!HC2_))*COS(RADIANS(AA74)) -> -0.7682598381 | AC74: =COS(RADIANS(Sight2!HC2_))*SIN(RADIANS(AA74)) -> 0.5581734449
A75: 146 | B75: -0.8290375726 | C75: 0.5591929035 | E75: -56 | F75: =COS(RADIANS(E75))*COS(RADIANS(Sight2!LHA2_)) -> 0.5068001534 | G75: -0.8290375726 | H75: =F75*COS(RADIANS(90-Sight2!LAT2_))-G75*SIN(RADIANS(90-Sight2!LAT2_)) -> 0.9360524331 | I75: =F75*SIN(RADIANS(90-Sight2!LAT2_))+G75*COS(RADIANS(90-Sight2!LAT2_)) -> -0.260682824 | K75: =COS(RADIANS(E75))*COS(RADIANS(Sight2!AZ_nord2-180)) -> 0.5087126493 | M75: 180 | N75: -1.837722682e-16 | O75: -1 | T75: 146 | U75: =COS(RADIANS(Sight2!DEC2_))*COS(RADIANS(T75)) -> -0.7734622151 | V75: =COS(RADIANS(Sight2!DEC2_))*SIN(RADIANS(T75)) -> 0.5217068515 | AA75: 146 | AB75: =COS(RADIANS(Sight2!HC2_))*COS(RADIANS(AA75)) -> -0.7872718072 | AC75: =COS(RADIANS(Sight2!HC2_))*SIN(RADIANS(AA75)) -> 0.5310215391
A76: 148 | B76: -0.8480480962 | C76: 0.5299192642 | E76: -58 | F76: =COS(RADIANS(E76))*COS(RADIANS(Sight2!LHA2_)) -> 0.4802692644 | G76: -0.8480480962 | H76: =F76*COS(RADIANS(90-Sight2!LAT2_))-G76*SIN(RADIANS(90-Sight2!LAT2_)) -> 0.9296141151 | I76: =F76*SIN(RADIANS(90-Sight2!LAT2_))+G76*COS(RADIANS(90-Sight2!LAT2_)) -> -0.2926802636 | K76: =COS(RADIANS(E76))*COS(RADIANS(Sight2!AZ_nord2-180)) -> 0.4820816415 | M76: 185 | N76: 0.08715574275 | O76: -0.9961946981 | T76: 148 | U76: =COS(RADIANS(Sight2!DEC2_))*COS(RADIANS(T76)) -> -0.7911983493 | V76: =COS(RADIANS(Sight2!DEC2_))*SIN(RADIANS(T76)) -> 0.4943955998 | AA76: 148 | AB76: =COS(RADIANS(Sight2!HC2_))*COS(RADIANS(AA76)) -> -0.805324607 | AC76: =COS(RADIANS(Sight2!HC2_))*SIN(RADIANS(AA76)) -> 0.5032226652
A77: 150 | B77: -0.8660254038 | C77: 0.5 | E77: -60 | F77: =COS(RADIANS(E77))*COS(RADIANS(Sight2!LHA2_)) -> 0.4531532413 | G77: -0.8660254038 | H77: =F77*COS(RADIANS(90-Sight2!LAT2_))-G77*SIN(RADIANS(90-Sight2!LAT2_)) -> 0.9220432056 | I77: =F77*SIN(RADIANS(90-Sight2!LAT2_))+G77*COS(RADIANS(90-Sight2!LAT2_)) -> -0.3243211173 | K77: =COS(RADIANS(E77))*COS(RADIANS(Sight2!AZ_nord2-180)) -> 0.4548632915 | M77: 190 | N77: 0.1736481777 | O77: -0.984807753 | T77: 150 | U77: =COS(RADIANS(Sight2!DEC2_))*COS(RADIANS(T77)) -> -0.8079705303 | V77: =COS(RADIANS(Sight2!DEC2_))*SIN(RADIANS(T77)) -> 0.4664820032 | AA77: 150 | AB77: =COS(RADIANS(Sight2!HC2_))*COS(RADIANS(AA77)) -> -0.8223962427 | AC77: =COS(RADIANS(Sight2!HC2_))*SIN(RADIANS(AA77)) -> 0.4748106921
A78: 152 | B78: -0.8829475929 | C78: 0.4694715628 | E78: -62 | F78: =COS(RADIANS(E78))*COS(RADIANS(Sight2!LHA2_)) -> 0.4254851207 | G78: -0.8829475929 | H78: =F78*COS(RADIANS(90-Sight2!LAT2_))-G78*SIN(RADIANS(90-Sight2!LAT2_)) -> 0.9133489284 | I78: =F78*SIN(RADIANS(90-Sight2!LAT2_))+G78*COS(RADIANS(90-Sight2!LAT2_)) -> -0.3555668358 | K78: =COS(RADIANS(E78))*COS(RADIANS(Sight2!AZ_nord2-180)) -> 0.4270907607 | M78: 195 | N78: 0.2588190451 | O78: -0.9659258263 | T78: 152 | U78: =COS(RADIANS(Sight2!DEC2_))*COS(RADIANS(T78)) -> -0.8237583236 | V78: =COS(RADIANS(Sight2!DEC2_))*SIN(RADIANS(T78)) -> 0.4380000701 | AA78: 152 | AB78: =COS(RADIANS(Sight2!HC2_))*COS(RADIANS(AA78)) -> -0.8384659153 | AC78: =COS(RADIANS(Sight2!HC2_))*SIN(RADIANS(AA78)) -> 0.4458202353
A79: 154 | B79: -0.8987940463 | C79: 0.4383711468 | E79: -64 | F79: =COS(RADIANS(E79))*COS(RADIANS(Sight2!LHA2_)) -> 0.3972986121 | G79: -0.8987940463 | H79: =F79*COS(RADIANS(90-Sight2!LAT2_))-G79*SIN(RADIANS(90-Sight2!LAT2_)) -> 0.9035418762 | I79: =F79*SIN(RADIANS(90-Sight2!LAT2_))+G79*COS(RADIANS(90-Sight2!LAT2_)) -> -0.3863793508 | K79: =COS(RADIANS(E79))*COS(RADIANS(Sight2!AZ_nord2-180)) -> 0.3987978855 | M79: 200 | N79: 0.3420201433 | O79: -0.9396926208 | T79: 154 | U79: =COS(RADIANS(Sight2!DEC2_))*COS(RADIANS(T79)) -> -0.8385424943 | V79: =COS(RADIANS(Sight2!DEC2_))*SIN(RADIANS(T79)) -> 0.4089845014 | AA79: 154 | AB79: =COS(RADIANS(Sight2!HC2_))*COS(RADIANS(AA79)) -> -0.8535140464 | AC79: =COS(RADIANS(Sight2!HC2_))*SIN(RADIANS(AA79)) -> 0.4162866152
A80: 156 | B80: -0.9135454576 | C80: 0.4067366431 | E80: -66 | F80: =COS(RADIANS(E80))*COS(RADIANS(Sight2!LHA2_)) -> 0.3686280563 | G80: -0.9135454576 | H80: =F80*COS(RADIANS(90-Sight2!LAT2_))-G80*SIN(RADIANS(90-Sight2!LAT2_)) -> 0.8926339975 | I80: =F80*SIN(RADIANS(90-Sight2!LAT2_))+G80*COS(RADIANS(90-Sight2!LAT2_)) -> -0.4167211222 | K80: =COS(RADIANS(E80))*COS(RADIANS(Sight2!AZ_nord2-180)) -> 0.3700191365 | M80: 205 | N80: 0.4226182617 | O80: -0.906307787 | T80: 156 | U80: =COS(RADIANS(Sight2!DEC2_))*COS(RADIANS(T80)) -> -0.8523050301 | V80: =COS(RADIANS(Sight2!DEC2_))*SIN(RADIANS(T80)) -> 0.379470648 | AA80: 156 | AB80: =COS(RADIANS(Sight2!HC2_))*COS(RADIANS(AA80)) -> -0.8675223021 | AC80: =COS(RADIANS(Sight2!HC2_))*SIN(RADIANS(AA80)) -> 0.386245814
A81: 158 | B81: -0.9271838546 | C81: 0.3746065934 | E81: -68 | F81: =COS(RADIANS(E81))*COS(RADIANS(Sight2!LHA2_)) -> 0.339508384 | G81: -0.9271838546 | H81: =F81*COS(RADIANS(90-Sight2!LAT2_))-G81*SIN(RADIANS(90-Sight2!LAT2_)) -> 0.8806385817 | I81: =F81*SIN(RADIANS(90-Sight2!LAT2_))+G81*COS(RADIANS(90-Sight2!LAT2_)) -> -0.446555183 | K81: =COS(RADIANS(E81))*COS(RADIANS(Sight2!AZ_nord2-180)) -> 0.3407895762 | M81: 210 | N81: 0.5 | O81: -0.8660254038 | T81: 158 | U81: =COS(RADIANS(Sight2!DEC2_))*COS(RADIANS(T81)) -> -0.8650291635 | V81: =COS(RADIANS(Sight2!DEC2_))*SIN(RADIANS(T81)) -> 0.3494944682 | AA81: 158 | AB81: =COS(RADIANS(Sight2!HC2_))*COS(RADIANS(AA81)) -> -0.8804736154 | AC81: =COS(RADIANS(Sight2!HC2_))*SIN(RADIANS(AA81)) -> 0.3557344318
A82: 160 | B82: -0.9396926208 | C82: 0.3420201433 | E82: -70 | F82: =COS(RADIANS(E82))*COS(RADIANS(Sight2!LHA2_)) -> 0.3099750731 | G82: -0.9396926208 | H82: =F82*COS(RADIANS(90-Sight2!LAT2_))-G82*SIN(RADIANS(90-Sight2!LAT2_)) -> 0.8675702434 | I82: =F82*SIN(RADIANS(90-Sight2!LAT2_))+G82*COS(RADIANS(90-Sight2!LAT2_)) -> -0.4758451851 | K82: =COS(RADIANS(E82))*COS(RADIANS(Sight2!AZ_nord2-180)) -> 0.3111448163 | M82: 215 | N82: 0.5735764364 | O82: -0.8191520443 | T82: 160 | U82: =COS(RADIANS(Sight2!DEC2_))*COS(RADIANS(T82)) -> -0.8766993922 | V82: =COS(RADIANS(Sight2!DEC2_))*SIN(RADIANS(T82)) -> 0.3190924832 | AA82: 160 | AB82: =COS(RADIANS(Sight2!HC2_))*COS(RADIANS(AA82)) -> -0.8923522073 | AC82: =COS(RADIANS(Sight2!HC2_))*SIN(RADIANS(AA82)) -> 0.3247896419
A83: 162 | B83: -0.9510565163 | C83: 0.3090169944 | E83: -72 | F83: =COS(RADIANS(E83))*COS(RADIANS(Sight2!LHA2_)) -> 0.2800641052 | G83: -0.9510565163 | H83: =F83*COS(RADIANS(90-Sight2!LAT2_))-G83*SIN(RADIANS(90-Sight2!LAT2_)) -> 0.8534449045 | I83: =F83*SIN(RADIANS(90-Sight2!LAT2_))+G83*COS(RADIANS(90-Sight2!LAT2_)) -> -0.5045554432 | K83: =COS(RADIANS(E83))*COS(RADIANS(Sight2!AZ_nord2-180)) -> 0.2811209744 | M83: 220 | N83: 0.6427876097 | O83: -0.7660444431 | T83: 162 | U83: =COS(RADIANS(Sight2!DEC2_))*COS(RADIANS(T83)) -> -0.8873014977 | V83: =COS(RADIANS(Sight2!DEC2_))*SIN(RADIANS(T83)) -> 0.2883017331 | AA83: 162 | AB83: =COS(RADIANS(Sight2!HC2_))*COS(RADIANS(AA83)) -> -0.9031436055 | AC83: =COS(RADIANS(Sight2!HC2_))*SIN(RADIANS(AA83)) -> 0.293449146
A84: 164 | B84: -0.9612616959 | C84: 0.2756373558 | E84: -74 | F84: =COS(RADIANS(E84))*COS(RADIANS(Sight2!LHA2_)) -> 0.2498119224 | G84: -0.9612616959 | H84: =F84*COS(RADIANS(90-Sight2!LAT2_))-G84*SIN(RADIANS(90-Sight2!LAT2_)) -> 0.8382797744 | I84: =F84*SIN(RADIANS(90-Sight2!LAT2_))+G84*COS(RADIANS(90-Sight2!LAT2_)) -> -0.5326509781 | K84: =COS(RADIANS(E84))*COS(RADIANS(Sight2!AZ_nord2-180)) -> 0.2507546299 | M84: 225 | N84: 0.7071067812 | O84: -0.7071067812 | T84: 164 | U84: =COS(RADIANS(Sight2!DEC2_))*COS(RADIANS(T84)) -> -0.896822563 | V84: =COS(RADIANS(Sight2!DEC2_))*SIN(RADIANS(T84)) -> 0.2571597318 | AA84: 164 | AB84: =COS(RADIANS(Sight2!HC2_))*COS(RADIANS(AA84)) -> -0.9128346623 | AC84: =COS(RADIANS(Sight2!HC2_))*SIN(RADIANS(AA84)) -> 0.2617511274
A85: 166 | B85: -0.9702957263 | C85: 0.2419218956 | E85: -76 | F85: =COS(RADIANS(E85))*COS(RADIANS(Sight2!LHA2_)) -> 0.2192553823 | G85: -0.9702957263 | H85: =F85*COS(RADIANS(90-Sight2!LAT2_))-G85*SIN(RADIANS(90-Sight2!LAT2_)) -> 0.8220933295 | I85: =F85*SIN(RADIANS(90-Sight2!LAT2_))+G85*COS(RADIANS(90-Sight2!LAT2_)) -> -0.5600975599 | K85: =COS(RADIANS(E85))*COS(RADIANS(Sight2!AZ_nord2-180)) -> 0.2200827795 | M85: 230 | N85: 0.7660444431 | O85: -0.6427876097 | T85: 166 | U85: =COS(RADIANS(Sight2!DEC2_))*COS(RADIANS(T85)) -> -0.9052509881 | V85: =COS(RADIANS(Sight2!DEC2_))*SIN(RADIANS(T85)) -> 0.2257044209 | AA85: 166 | AB85: =COS(RADIANS(Sight2!HC2_))*COS(RADIANS(AA85)) -> -0.9214135707 | AC85: =COS(RADIANS(Sight2!HC2_))*SIN(RADIANS(AA85)) -> 0.2297342054
A86: 168 | B86: -0.9781476007 | C86: 0.2079116908 | E86: -78 | F86: =COS(RADIANS(E86))*COS(RADIANS(Sight2!LHA2_)) -> 0.1884317132 | G86: -0.9781476007 | H86: =F86*COS(RADIANS(90-Sight2!LAT2_))-G86*SIN(RADIANS(90-Sight2!LAT2_)) -> 0.8049052905 | I86: =F86*SIN(RADIANS(90-Sight2!LAT2_))+G86*COS(RADIANS(90-Sight2!LAT2_)) -> -0.5868617491 | K86: =COS(RADIANS(E86))*COS(RADIANS(Sight2!AZ_nord2-180)) -> 0.1891427921 | M86: 235 | N86: 0.8191520443 | O86: -0.5735764364 | T86: 168 | U86: =COS(RADIANS(Sight2!DEC2_))*COS(RADIANS(T86)) -> -0.9125765043 | V86: =COS(RADIANS(Sight2!DEC2_))*SIN(RADIANS(T86)) -> 0.193974124 | AA86: 168 | AB86: =COS(RADIANS(Sight2!HC2_))*COS(RADIANS(AA86)) -> -0.9288698786 | AC86: =COS(RADIANS(Sight2!HC2_))*SIN(RADIANS(AA86)) -> 0.1974373876
A87: 170 | B87: -0.984807753 | C87: 0.1736481777 | E87: -80 | F87: =COS(RADIANS(E87))*COS(RADIANS(Sight2!LHA2_)) -> 0.1573784691 | G87: -0.984807753 | H87: =F87*COS(RADIANS(90-Sight2!LAT2_))-G87*SIN(RADIANS(90-Sight2!LAT2_)) -> 0.7867365985 | I87: =F87*SIN(RADIANS(90-Sight2!LAT2_))+G87*COS(RADIANS(90-Sight2!LAT2_)) -> -0.6129109377 | K87: =COS(RADIANS(E87))*COS(RADIANS(Sight2!AZ_nord2-180)) -> 0.1579723633 | M87: 240 | N87: 0.8660254038 | O87: -0.5 | T87: 170 | U87: =COS(RADIANS(Sight2!DEC2_))*COS(RADIANS(T87)) -> -0.9187901867 | V87: =COS(RADIANS(Sight2!DEC2_))*SIN(RADIANS(T87)) -> 0.1620074995 | AA87: 170 | AB87: =COS(RADIANS(Sight2!HC2_))*COS(RADIANS(AA87)) -> -0.9351945016 | AC87: =COS(RADIANS(Sight2!HC2_))*SIN(RADIANS(AA87)) -> 0.1649000228
A88: 172 | B88: -0.9902680687 | C88: 0.139173101 | E88: -82 | F88: =COS(RADIANS(E88))*COS(RADIANS(Sight2!LHA2_)) -> 0.1261334836 | G88: -0.9902680687 | H88: =F88*COS(RADIANS(90-Sight2!LAT2_))-G88*SIN(RADIANS(90-Sight2!LAT2_)) -> 0.767609389 | I88: =F88*SIN(RADIANS(90-Sight2!LAT2_))+G88*COS(RADIANS(90-Sight2!LAT2_)) -> -0.6382133887 | K88: =COS(RADIANS(E88))*COS(RADIANS(Sight2!AZ_nord2-180)) -> 0.1266094696 | M88: 245 | N88: 0.906307787 | O88: -0.4226182617 | T88: 172 | U88: =COS(RADIANS(Sight2!DEC2_))*COS(RADIANS(T88)) -> -0.9238844647 | V88: =COS(RADIANS(Sight2!DEC2_))*SIN(RADIANS(T88)) -> 0.1298434938 | AA88: 172 | AB88: =COS(RADIANS(Sight2!HC2_))*COS(RADIANS(AA88)) -> -0.9403797342 | AC88: =COS(RADIANS(Sight2!HC2_))*SIN(RADIANS(AA88)) -> 0.1321617528
A89: 174 | B89: -0.9945218954 | C89: 0.1045284633 | E89: -84 | F89: =COS(RADIANS(E89))*COS(RADIANS(Sight2!LHA2_)) -> 0.09473482387 | G89: -0.9945218954 | H89: =F89*COS(RADIANS(90-Sight2!LAT2_))-G89*SIN(RADIANS(90-Sight2!LAT2_)) -> 0.7475469658 | I89: =F89*SIN(RADIANS(90-Sight2!LAT2_))+G89*COS(RADIANS(90-Sight2!LAT2_)) -> -0.662738275 | K89: =COS(RADIANS(E89))*COS(RADIANS(Sight2!AZ_nord2-180)) -> 0.09509232172 | M89: 250 | N89: 0.9396926208 | O89: -0.3420201433 | T89: 174 | U89: =COS(RADIANS(Sight2!DEC2_))*COS(RADIANS(T89)) -> -0.9278531319 | V89: =COS(RADIANS(Sight2!DEC2_))*SIN(RADIANS(T89)) -> 0.09752129386 | AA89: 174 | AB89: =COS(RADIANS(Sight2!HC2_))*COS(RADIANS(AA89)) -> -0.9444192589 | AC89: =COS(RADIANS(Sight2!HC2_))*SIN(RADIANS(AA89)) -> 0.09926246398
A90: 176 | B90: -0.9975640503 | C90: 0.06975647374 | E90: -86 | F90: =COS(RADIANS(E90))*COS(RADIANS(Sight2!LHA2_)) -> 0.06322074435 | G90: -0.9975640503 | H90: =F90*COS(RADIANS(90-Sight2!LAT2_))-G90*SIN(RADIANS(90-Sight2!LAT2_)) -> 0.7265737717 | I90: =F90*SIN(RADIANS(90-Sight2!LAT2_))+G90*COS(RADIANS(90-Sight2!LAT2_)) -> -0.6864557168 | K90: =COS(RADIANS(E90))*COS(RADIANS(Sight2!AZ_nord2-180)) -> 0.06345931851 | M90: 255 | N90: 0.9659258263 | O90: -0.2588190451 | T90: 176 | U90: =COS(RADIANS(Sight2!DEC2_))*COS(RADIANS(T90)) -> -0.9306913529 | V90: =COS(RADIANS(Sight2!DEC2_))*SIN(RADIANS(T90)) -> 0.06508027921 | AA90: 176 | AB90: =COS(RADIANS(Sight2!HC2_))*COS(RADIANS(AA90)) -> -0.9473081543 | AC90: =COS(RADIANS(Sight2!HC2_))*SIN(RADIANS(AA90)) -> 0.06624223916
A91: 178 | B91: -0.999390827 | C91: 0.0348994967 | E91: -88 | F91: =COS(RADIANS(E91))*COS(RADIANS(Sight2!LHA2_)) -> 0.0316296401 | G91: -0.999390827 | H91: =F91*COS(RADIANS(90-Sight2!LAT2_))-G91*SIN(RADIANS(90-Sight2!LAT2_)) -> 0.7047153595 | I91: =F91*SIN(RADIANS(90-Sight2!LAT2_))+G91*COS(RADIANS(90-Sight2!LAT2_)) -> -0.709336818 | K91: =COS(RADIANS(E91))*COS(RADIANS(Sight2!AZ_nord2-180)) -> 0.03174899989 | M91: 260 | N91: 0.984807753 | O91: -0.1736481777 | T91: 178 | U91: =COS(RADIANS(Sight2!DEC2_))*COS(RADIANS(T91)) -> -0.9323956698 | V91: =COS(RADIANS(Sight2!DEC2_))*SIN(RADIANS(T91)) -> 0.03255997426 | AA91: 178 | AB91: =COS(RADIANS(Sight2!HC2_))*COS(RADIANS(AA91)) -> -0.9490429006 | AC91: =COS(RADIANS(Sight2!HC2_))*SIN(RADIANS(AA91)) -> 0.03314130837
A92: 180 | B92: -1 | C92: 1.225148455e-16 | E92: -90 | F92: =COS(RADIANS(E92))*COS(RADIANS(Sight2!LHA2_)) -> 5.551799934e-17 | G92: -1 | H92: =F92*COS(RADIANS(90-Sight2!LAT2_))-G92*SIN(RADIANS(90-Sight2!LAT2_)) -> 0.6819983601 | I92: =F92*SIN(RADIANS(90-Sight2!LAT2_))+G92*COS(RADIANS(90-Sight2!LAT2_)) -> -0.7313537016 | K92: =COS(RADIANS(E92))*COS(RADIANS(Sight2!AZ_nord2-180)) -> 5.572750588e-17 | M92: 265 | N92: 0.9961946981 | O92: -0.08715574275 | T92: 180 | U92: =COS(RADIANS(Sight2!DEC2_))*COS(RADIANS(T92)) -> -0.9329640063 | V92: =COS(RADIANS(Sight2!DEC2_))*SIN(RADIANS(T92)) -> 1.143019411e-16 | AA92: 180 | AB92: =COS(RADIANS(Sight2!HC2_))*COS(RADIANS(AA92)) -> -0.9496213842 | AC92: =COS(RADIANS(Sight2!HC2_))*SIN(RADIANS(AA92)) -> 1.163427172e-16
A93: 182 | B93: -0.999390827 | C93: -0.0348994967 | E93: -92 | F93: =COS(RADIANS(E93))*COS(RADIANS(Sight2!LHA2_)) -> -0.0316296401 | G93: -0.999390827 | H93: =F93*COS(RADIANS(90-Sight2!LAT2_))-G93*SIN(RADIANS(90-Sight2!LAT2_)) -> 0.6584504507 | I93: =F93*SIN(RADIANS(90-Sight2!LAT2_))+G93*COS(RADIANS(90-Sight2!LAT2_)) -> -0.7524795434 | K93: =COS(RADIANS(E93))*COS(RADIANS(Sight2!AZ_nord2-180)) -> -0.03174899989 | M93: 270 | N93: 1 | O93: -2.45029691e-16 | T93: 182 | U93: =COS(RADIANS(Sight2!DEC2_))*COS(RADIANS(T93)) -> -0.9323956698 | V93: =COS(RADIANS(Sight2!DEC2_))*SIN(RADIANS(T93)) -> -0.03255997426 | AA93: 182 | AB93: =COS(RADIANS(Sight2!HC2_))*COS(RADIANS(AA93)) -> -0.9490429006 | AC93: =COS(RADIANS(Sight2!HC2_))*SIN(RADIANS(AA93)) -> -0.03314130837
A94: 184 | B94: -0.9975640503 | C94: -0.06975647374 | E94: -94 | F94: =COS(RADIANS(E94))*COS(RADIANS(Sight2!LHA2_)) -> -0.06322074435 | G94: -0.9975640503 | H94: =F94*COS(RADIANS(90-Sight2!LAT2_))-G94*SIN(RADIANS(90-Sight2!LAT2_)) -> 0.6341003209 | I94: =F94*SIN(RADIANS(90-Sight2!LAT2_))+G94*COS(RADIANS(90-Sight2!LAT2_)) -> -0.7726886047 | K94: =COS(RADIANS(E94))*COS(RADIANS(Sight2!AZ_nord2-180)) -> -0.06345931851 | M94: 275 | N94: 0.9961946981 | O94: 0.08715574275 | T94: 184 | U94: =COS(RADIANS(Sight2!DEC2_))*COS(RADIANS(T94)) -> -0.9306913529 | V94: =COS(RADIANS(Sight2!DEC2_))*SIN(RADIANS(T94)) -> -0.06508027921 | AA94: 184 | AB94: =COS(RADIANS(Sight2!HC2_))*COS(RADIANS(AA94)) -> -0.9473081543 | AC94: =COS(RADIANS(Sight2!HC2_))*SIN(RADIANS(AA94)) -> -0.06624223916
A95: 186 | B95: -0.9945218954 | C95: -0.1045284633 | E95: -96 | F95: =COS(RADIANS(E95))*COS(RADIANS(Sight2!LHA2_)) -> -0.09473482387 | G95: -0.9945218954 | H95: =F95*COS(RADIANS(90-Sight2!LAT2_))-G95*SIN(RADIANS(90-Sight2!LAT2_)) -> 0.6089776376 | I95: =F95*SIN(RADIANS(90-Sight2!LAT2_))+G95*COS(RADIANS(90-Sight2!LAT2_)) -> -0.791956264 | K95: =COS(RADIANS(E95))*COS(RADIANS(Sight2!AZ_nord2-180)) -> -0.09509232172 | M95: 280 | N95: 0.984807753 | O95: 0.1736481777 | T95: 186 | U95: =COS(RADIANS(Sight2!DEC2_))*COS(RADIANS(T95)) -> -0.9278531319 | V95: =COS(RADIANS(Sight2!DEC2_))*SIN(RADIANS(T95)) -> -0.09752129386 | AA95: 186 | AB95: =COS(RADIANS(Sight2!HC2_))*COS(RADIANS(AA95)) -> -0.9444192589 | AC95: =COS(RADIANS(Sight2!HC2_))*SIN(RADIANS(AA95)) -> -0.09926246398
A96: 188 | B96: -0.9902680687 | C96: -0.139173101 | E96: -98 | F96: =COS(RADIANS(E96))*COS(RADIANS(Sight2!LHA2_)) -> -0.1261334836 | G96: -0.9902680687 | H96: =F96*COS(RADIANS(90-Sight2!LAT2_))-G96*SIN(RADIANS(90-Sight2!LAT2_)) -> 0.5831130088 | I96: =F96*SIN(RADIANS(90-Sight2!LAT2_))+G96*COS(RADIANS(90-Sight2!LAT2_)) -> -0.8102590466 | K96: =COS(RADIANS(E96))*COS(RADIANS(Sight2!AZ_nord2-180)) -> -0.1266094696 | M96: 285 | N96: 0.9659258263 | O96: 0.2588190451 | T96: 188 | U96: =COS(RADIANS(Sight2!DEC2_))*COS(RADIANS(T96)) -> -0.9238844647 | V96: =COS(RADIANS(Sight2!DEC2_))*SIN(RADIANS(T96)) -> -0.1298434938 | AA96: 188 | AB96: =COS(RADIANS(Sight2!HC2_))*COS(RADIANS(AA96)) -> -0.9403797342 | AC96: =COS(RADIANS(Sight2!HC2_))*SIN(RADIANS(AA96)) -> -0.1321617528
A97: 190 | B97: -0.984807753 | C97: -0.1736481777 | E97: -100 | F97: =COS(RADIANS(E97))*COS(RADIANS(Sight2!LHA2_)) -> -0.1573784691 | G97: -0.984807753 | H97: =F97*COS(RADIANS(90-Sight2!LAT2_))-G97*SIN(RADIANS(90-Sight2!LAT2_)) -> 0.5565379466 | I97: =F97*SIN(RADIANS(90-Sight2!LAT2_))+G97*COS(RADIANS(90-Sight2!LAT2_)) -> -0.8275746534 | K97: =COS(RADIANS(E97))*COS(RADIANS(Sight2!AZ_nord2-180)) -> -0.1579723633 | M97: 290 | N97: 0.9396926208 | O97: 0.3420201433 | T97: 190 | U97: =COS(RADIANS(Sight2!DEC2_))*COS(RADIANS(T97)) -> -0.9187901867 | V97: =COS(RADIANS(Sight2!DEC2_))*SIN(RADIANS(T97)) -> -0.1620074995 | AA97: 190 | AB97: =COS(RADIANS(Sight2!HC2_))*COS(RADIANS(AA97)) -> -0.9351945016 | AC97: =COS(RADIANS(Sight2!HC2_))*SIN(RADIANS(AA97)) -> -0.1649000228
A98: 192 | B98: -0.9781476007 | C98: -0.2079116908 | E98: -102 | F98: =COS(RADIANS(E98))*COS(RADIANS(Sight2!LHA2_)) -> -0.1884317132 | G98: -0.9781476007 | H98: =F98*COS(RADIANS(90-Sight2!LAT2_))-G98*SIN(RADIANS(90-Sight2!LAT2_)) -> 0.5292848287 | I98: =F98*SIN(RADIANS(90-Sight2!LAT2_))+G98*COS(RADIANS(90-Sight2!LAT2_)) -> -0.8438819879 | K98: =COS(RADIANS(E98))*COS(RADIANS(Sight2!AZ_nord2-180)) -> -0.1891427921 | M98: 295 | N98: 0.906307787 | O98: 0.4226182617 | T98: 192 | U98: =COS(RADIANS(Sight2!DEC2_))*COS(RADIANS(T98)) -> -0.9125765043 | V98: =COS(RADIANS(Sight2!DEC2_))*SIN(RADIANS(T98)) -> -0.193974124 | AA98: 192 | AB98: =COS(RADIANS(Sight2!HC2_))*COS(RADIANS(AA98)) -> -0.9288698786 | AC98: =COS(RADIANS(Sight2!HC2_))*SIN(RADIANS(AA98)) -> -0.1974373876
A99: 194 | B99: -0.9702957263 | C99: -0.2419218956 | E99: -104 | F99: =COS(RADIANS(E99))*COS(RADIANS(Sight2!LHA2_)) -> -0.2192553823 | G99: -0.9702957263 | H99: =F99*COS(RADIANS(90-Sight2!LAT2_))-G99*SIN(RADIANS(90-Sight2!LAT2_)) -> 0.5013868587 | I99: =F99*SIN(RADIANS(90-Sight2!LAT2_))+G99*COS(RADIANS(90-Sight2!LAT2_)) -> -0.8591611822 | K99: =COS(RADIANS(E99))*COS(RADIANS(Sight2!AZ_nord2-180)) -> -0.2200827795 | M99: 300 | N99: 0.8660254038 | O99: 0.5 | T99: =SUM(T98+2) -> 194 | U99: =COS(RADIANS(Sight2!DEC2_))*COS(RADIANS(T99)) -> -0.9052509881 | V99: =COS(RADIANS(Sight2!DEC2_))*SIN(RADIANS(T99)) -> -0.2257044209 | AA99: 194 | AB99: =COS(RADIANS(Sight2!HC2_))*COS(RADIANS(AA99)) -> -0.9214135707 | AC99: =COS(RADIANS(Sight2!HC2_))*SIN(RADIANS(AA99)) -> -0.2297342054
A100: 196 | B100: -0.9612616959 | C100: -0.2756373558 | E100: -106 | F100: =COS(RADIANS(E100))*COS(RADIANS(Sight2!LHA2_)) -> -0.2498119224 | G100: -0.9612616959 | H100: =F100*COS(RADIANS(90-Sight2!LAT2_))-G100*SIN(RADIANS(90-Sight2!LAT2_)) -> 0.4728780261 | I100: =F100*SIN(RADIANS(90-Sight2!LAT2_))+G100*COS(RADIANS(90-Sight2!LAT2_)) -> -0.873393621 | K100: =COS(RADIANS(E100))*COS(RADIANS(Sight2!AZ_nord2-180)) -> -0.2507546299 | M100: 305 | N100: 0.8191520443 | O100: 0.5735764364 | T100: 196 | U100: =COS(RADIANS(Sight2!DEC2_))*COS(RADIANS(T100)) -> -0.896822563 | V100: =COS(RADIANS(Sight2!DEC2_))*SIN(RADIANS(T100)) -> -0.2571597318 | AA100: 196 | AB100: =COS(RADIANS(Sight2!HC2_))*COS(RADIANS(AA100)) -> -0.9128346623 | AC100: =COS(RADIANS(Sight2!HC2_))*SIN(RADIANS(AA100)) -> -0.2617511274
A101: 198 | B101: -0.9510565163 | C101: -0.3090169944 | E101: -108 | F101: =COS(RADIANS(E101))*COS(RADIANS(Sight2!LHA2_)) -> -0.2800641052 | G101: -0.9510565163 | H101: =F101*COS(RADIANS(90-Sight2!LAT2_))-G101*SIN(RADIANS(90-Sight2!LAT2_)) -> 0.4437930644 | I101: =F101*SIN(RADIANS(90-Sight2!LAT2_))+G101*COS(RADIANS(90-Sight2!LAT2_)) -> -0.8865619641 | K101: =COS(RADIANS(E101))*COS(RADIANS(Sight2!AZ_nord2-180)) -> -0.2811209744 | M101: 310 | N101: 0.7660444431 | O101: 0.6427876097 | T101: 198 | U101: =COS(RADIANS(Sight2!DEC2_))*COS(RADIANS(T101)) -> -0.8873014977 | V101: =COS(RADIANS(Sight2!DEC2_))*SIN(RADIANS(T101)) -> -0.2883017331 | AA101: 198 | AB101: =COS(RADIANS(Sight2!HC2_))*COS(RADIANS(AA101)) -> -0.9031436055 | AC101: =COS(RADIANS(Sight2!HC2_))*SIN(RADIANS(AA101)) -> -0.293449146
A102: 200 | B102: -0.9396926208 | C102: -0.3420201433 | E102: -110 | F102: =COS(RADIANS(E102))*COS(RADIANS(Sight2!LHA2_)) -> -0.3099750731 | G102: -0.9396926208 | H102: =F102*COS(RADIANS(90-Sight2!LAT2_))-G102*SIN(RADIANS(90-Sight2!LAT2_)) -> 0.4141674092 | I102: =F102*SIN(RADIANS(90-Sight2!LAT2_))+G102*COS(RADIANS(90-Sight2!LAT2_)) -> -0.8986501681 | K102: =COS(RADIANS(E102))*COS(RADIANS(Sight2!AZ_nord2-180)) -> -0.3111448163 | M102: 315 | N102: 0.7071067812 | O102: 0.7071067812 | T102: 200 | U102: =COS(RADIANS(Sight2!DEC2_))*COS(RADIANS(T102)) -> -0.8766993922 | V102: =COS(RADIANS(Sight2!DEC2_))*SIN(RADIANS(T102)) -> -0.3190924832 | AA102: 200 | AB102: =COS(RADIANS(Sight2!HC2_))*COS(RADIANS(AA102)) -> -0.8923522073 | AC102: =COS(RADIANS(Sight2!HC2_))*SIN(RADIANS(AA102)) -> -0.3247896419
A103: 202 | B103: -0.9271838546 | C103: -0.3746065934 | E103: -112 | F103: =COS(RADIANS(E103))*COS(RADIANS(Sight2!LHA2_)) -> -0.339508384 | G103: -0.9271838546 | H103: =F103*COS(RADIANS(90-Sight2!LAT2_))-G103*SIN(RADIANS(90-Sight2!LAT2_)) -> 0.3840371549 | I103: =F103*SIN(RADIANS(90-Sight2!LAT2_))+G103*COS(RADIANS(90-Sight2!LAT2_)) -> -0.9096435052 | K103: =COS(RADIANS(E103))*COS(RADIANS(Sight2!AZ_nord2-180)) -> -0.3407895762 | M103: 320 | N103: 0.6427876097 | O103: 0.7660444431 | T103: 202 | U103: =COS(RADIANS(Sight2!DEC2_))*COS(RADIANS(T103)) -> -0.8650291635 | V103: =COS(RADIANS(Sight2!DEC2_))*SIN(RADIANS(T103)) -> -0.3494944682 | AA103: 202 | AB103: =COS(RADIANS(Sight2!HC2_))*COS(RADIANS(AA103)) -> -0.8804736154 | AC103: =COS(RADIANS(Sight2!HC2_))*SIN(RADIANS(AA103)) -> -0.3557344318
A104: 204 | B104: -0.9135454576 | C104: -0.4067366431 | E104: -114 | F104: =COS(RADIANS(E104))*COS(RADIANS(Sight2!LHA2_)) -> -0.3686280563 | G104: -0.9135454576 | H104: =F104*COS(RADIANS(90-Sight2!LAT2_))-G104*SIN(RADIANS(90-Sight2!LAT2_)) -> 0.3534390104 | I104: =F104*SIN(RADIANS(90-Sight2!LAT2_))+G104*COS(RADIANS(90-Sight2!LAT2_)) -> -0.9195285819 | K104: =COS(RADIANS(E104))*COS(RADIANS(Sight2!AZ_nord2-180)) -> -0.3700191365 | M104: 325 | N104: =COS(RADIANS(90+M104)) -> 0.5735764364 | O104: =SIN(RADIANS(90+M104)) -> 0.8191520443 | T104: 204 | U104: =COS(RADIANS(Sight2!DEC2_))*COS(RADIANS(T104)) -> -0.8523050301 | V104: =COS(RADIANS(Sight2!DEC2_))*SIN(RADIANS(T104)) -> -0.379470648 | AA104: 204 | AB104: =COS(RADIANS(Sight2!HC2_))*COS(RADIANS(AA104)) -> -0.8675223021 | AC104: =COS(RADIANS(Sight2!HC2_))*SIN(RADIANS(AA104)) -> -0.386245814
A105: 206 | B105: -0.8987940463 | C105: -0.4383711468 | E105: -116 | F105: =COS(RADIANS(E105))*COS(RADIANS(Sight2!LHA2_)) -> -0.3972986121 | G105: -0.8987940463 | H105: =F105*COS(RADIANS(90-Sight2!LAT2_))-G105*SIN(RADIANS(90-Sight2!LAT2_)) -> 0.322410255 | I105: =F105*SIN(RADIANS(90-Sight2!LAT2_))+G105*COS(RADIANS(90-Sight2!LAT2_)) -> -0.9282933547 | K105: =COS(RADIANS(E105))*COS(RADIANS(Sight2!AZ_nord2-180)) -> -0.3987978855 | M105: =SUM(M104+5) -> 330 | N105: 0.5 | O105: 0.8660254038 | T105: 206 | U105: =COS(RADIANS(Sight2!DEC2_))*COS(RADIANS(T105)) -> -0.8385424943 | V105: =COS(RADIANS(Sight2!DEC2_))*SIN(RADIANS(T105)) -> -0.4089845014 | AA105: 206 | AB105: =COS(RADIANS(Sight2!HC2_))*COS(RADIANS(AA105)) -> -0.8535140464 | AC105: =COS(RADIANS(Sight2!HC2_))*SIN(RADIANS(AA105)) -> -0.4162866152
A106: 208 | B106: -0.8829475929 | C106: -0.4694715628 | E106: -118 | F106: =COS(RADIANS(E106))*COS(RADIANS(Sight2!LHA2_)) -> -0.4254851207 | G106: -0.8829475929 | H106: =F106*COS(RADIANS(90-Sight2!LAT2_))-G106*SIN(RADIANS(90-Sight2!LAT2_)) -> 0.2909886923 | I106: =F106*SIN(RADIANS(90-Sight2!LAT2_))+G106*COS(RADIANS(90-Sight2!LAT2_)) -> -0.9359271449 | K106: =COS(RADIANS(E106))*COS(RADIANS(Sight2!AZ_nord2-180)) -> -0.4270907607 | M106: 335 | N106: 0.4226182617 | O106: 0.906307787 | T106: 208 | U106: =COS(RADIANS(Sight2!DEC2_))*COS(RADIANS(T106)) -> -0.8237583236 | V106: =COS(RADIANS(Sight2!DEC2_))*SIN(RADIANS(T106)) -> -0.4380000701 | AA106: 208 | AB106: =COS(RADIANS(Sight2!HC2_))*COS(RADIANS(AA106)) -> -0.8384659153 | AC106: =COS(RADIANS(Sight2!HC2_))*SIN(RADIANS(AA106)) -> -0.4458202353
A107: 210 | B107: -0.8660254038 | C107: -0.5 | E107: -120 | F107: =COS(RADIANS(E107))*COS(RADIANS(Sight2!LHA2_)) -> -0.4531532413 | G107: -0.8660254038 | H107: =F107*COS(RADIANS(90-Sight2!LAT2_))-G107*SIN(RADIANS(90-Sight2!LAT2_)) -> 0.2592126047 | I107: =F107*SIN(RADIANS(90-Sight2!LAT2_))+G107*COS(RADIANS(90-Sight2!LAT2_)) -> -0.9424206522 | K107: =COS(RADIANS(E107))*COS(RADIANS(Sight2!AZ_nord2-180)) -> -0.4548632915 | M107: 340 | N107: 0.3420201433 | O107: 0.9396926208 | T107: 210 | U107: =COS(RADIANS(Sight2!DEC2_))*COS(RADIANS(T107)) -> -0.8079705303 | V107: =COS(RADIANS(Sight2!DEC2_))*SIN(RADIANS(T107)) -> -0.4664820032 | AA107: 210 | AB107: =COS(RADIANS(Sight2!HC2_))*COS(RADIANS(AA107)) -> -0.8223962427 | AC107: =COS(RADIANS(Sight2!HC2_))*SIN(RADIANS(AA107)) -> -0.4748106921
A108: 212 | B108: -0.8480480962 | C108: -0.5299192642 | E108: -122 | F108: =COS(RADIANS(E108))*COS(RADIANS(Sight2!LHA2_)) -> -0.4802692644 | G108: -0.8480480962 | H108: =F108*COS(RADIANS(90-Sight2!LAT2_))-G108*SIN(RADIANS(90-Sight2!LAT2_)) -> 0.2271207065 | I108: =F108*SIN(RADIANS(90-Sight2!LAT2_))+G108*COS(RADIANS(90-Sight2!LAT2_)) -> -0.947765965 | K108: =COS(RADIANS(E108))*COS(RADIANS(Sight2!AZ_nord2-180)) -> -0.4820816415 | M108: 345 | N108: 0.2588190451 | O108: 0.9659258263 | T108: 212 | U108: =COS(RADIANS(Sight2!DEC2_))*COS(RADIANS(T108)) -> -0.7911983493 | V108: =COS(RADIANS(Sight2!DEC2_))*SIN(RADIANS(T108)) -> -0.4943955998 | AA108: 212 | AB108: =COS(RADIANS(Sight2!HC2_))*COS(RADIANS(AA108)) -> -0.805324607 | AC108: =COS(RADIANS(Sight2!HC2_))*SIN(RADIANS(AA108)) -> -0.5032226652
A109: 214 | B109: -0.8290375726 | C109: -0.5591929035 | E109: -124 | F109: =COS(RADIANS(E109))*COS(RADIANS(Sight2!LHA2_)) -> -0.5068001534 | G109: -0.8290375726 | H109: =F109*COS(RADIANS(90-Sight2!LAT2_))-G109*SIN(RADIANS(90-Sight2!LAT2_)) -> 0.1947520967 | I109: =F109*SIN(RADIANS(90-Sight2!LAT2_))+G109*COS(RADIANS(90-Sight2!LAT2_)) -> -0.951956571 | K109: =COS(RADIANS(E109))*COS(RADIANS(Sight2!AZ_nord2-180)) -> -0.5087126493 | M109: 350 | N109: 0.1736481777 | O109: 0.984807753 | T109: 214 | U109: =COS(RADIANS(Sight2!DEC2_))*COS(RADIANS(T109)) -> -0.7734622151 | V109: =COS(RADIANS(Sight2!DEC2_))*SIN(RADIANS(T109)) -> -0.5217068515 | AA109: 214 | AB109: =COS(RADIANS(Sight2!HC2_))*COS(RADIANS(AA109)) -> -0.7872718072 | AC109: =COS(RADIANS(Sight2!HC2_))*SIN(RADIANS(AA109)) -> -0.5310215391
A110: 216 | B110: -0.8090169944 | C110: -0.5877852523 | E110: -126 | F110: =COS(RADIANS(E110))*COS(RADIANS(Sight2!LHA2_)) -> -0.5327135845 | G110: -0.8090169944 | H110: =F110*COS(RADIANS(90-Sight2!LAT2_))-G110*SIN(RADIANS(90-Sight2!LAT2_)) -> 0.1621462115 | I110: =F110*SIN(RADIANS(90-Sight2!LAT2_))+G110*COS(RADIANS(90-Sight2!LAT2_)) -> -0.9549873645 | K110: =COS(RADIANS(E110))*COS(RADIANS(Sight2!AZ_nord2-180)) -> -0.5347238691 | M110: 355 | N110: 0.08715574275 | O110: 0.9961946981 | T110: 216 | U110: =COS(RADIANS(Sight2!DEC2_))*COS(RADIANS(T110)) -> -0.7547837362 | V110: =COS(RADIANS(Sight2!DEC2_))*SIN(RADIANS(T110)) -> -0.5483824838 | AA110: 216 | AB110: =COS(RADIANS(Sight2!HC2_))*COS(RADIANS(AA110)) -> -0.7682598381 | AC110: =COS(RADIANS(Sight2!HC2_))*SIN(RADIANS(AA110)) -> -0.5581734449
A111: 218 | B111: -0.7880107536 | C111: -0.6156614753 | E111: -128 | F111: =COS(RADIANS(E111))*COS(RADIANS(Sight2!LHA2_)) -> -0.5579779861 | G111: -0.7880107536 | H111: =F111*COS(RADIANS(90-Sight2!LAT2_))-G111*SIN(RADIANS(90-Sight2!LAT2_)) -> 0.1293427761 | I111: =F111*SIN(RADIANS(90-Sight2!LAT2_))+G111*COS(RADIANS(90-Sight2!LAT2_)) -> -0.9568546531 | K111: =COS(RADIANS(E111))*COS(RADIANS(Sight2!AZ_nord2-180)) -> -0.5600836103 | T111: 218 | U111: =COS(RADIANS(Sight2!DEC2_))*COS(RADIANS(T111)) -> -0.7351856697 | V111: =COS(RADIANS(Sight2!DEC2_))*SIN(RADIANS(T111)) -> -0.5743899966 | AA111: 218 | AB111: =COS(RADIANS(Sight2!HC2_))*COS(RADIANS(AA111)) -> -0.7483118626 | AC111: =COS(RADIANS(Sight2!HC2_))*SIN(RADIANS(AA111)) -> -0.5846453024
A112: 220 | B112: -0.7660444431 | C112: -0.6427876097 | E112: -130 | F112: =COS(RADIANS(E112))*COS(RADIANS(Sight2!LHA2_)) -> -0.5825625776 | G112: -0.7660444431 | H112: =F112*COS(RADIANS(90-Sight2!LAT2_))-G112*SIN(RADIANS(90-Sight2!LAT2_)) -> 0.09638175641 | I112: =F112*SIN(RADIANS(90-Sight2!LAT2_))+G112*COS(RADIANS(90-Sight2!LAT2_)) -> -0.9575561616 | K112: =COS(RADIANS(E112))*COS(RADIANS(Sight2!AZ_nord2-180)) -> -0.5847609758 | T112: 220 | U112: =COS(RADIANS(Sight2!DEC2_))*COS(RADIANS(T112)) -> -0.7146918927 | V112: =COS(RADIANS(Sight2!DEC2_))*SIN(RADIANS(T112)) -> -0.5996977035 | AA112: 220 | AB112: =COS(RADIANS(Sight2!HC2_))*COS(RADIANS(AA112)) -> -0.7274521845 | AC112: =COS(RADIANS(Sight2!HC2_))*SIN(RADIANS(AA112)) -> -0.6104048597
A113: 222 | B113: -0.7431448255 | C113: -0.6691306064 | E113: -132 | F113: =COS(RADIANS(E113))*COS(RADIANS(Sight2!LHA2_)) -> -0.6064374062 | G113: -0.7431448255 | H113: =F113*COS(RADIANS(90-Sight2!LAT2_))-G113*SIN(RADIANS(90-Sight2!LAT2_)) -> 0.06330331042 | I113: =F113*SIN(RADIANS(90-Sight2!LAT2_))+G113*COS(RADIANS(90-Sight2!LAT2_)) -> -0.9570910355 | K113: =COS(RADIANS(E113))*COS(RADIANS(Sight2!AZ_nord2-180)) -> -0.6087259001 | T113: 222 | U113: =COS(RADIANS(Sight2!DEC2_))*COS(RADIANS(T113)) -> -0.6933273736 | V113: =COS(RADIANS(Sight2!DEC2_))*SIN(RADIANS(T113)) -> -0.6242747713 | AA113: 222 | AB113: =COS(RADIANS(Sight2!HC2_))*COS(RADIANS(AA113)) -> -0.7057062179 | AC113: =COS(RADIANS(Sight2!HC2_))*SIN(RADIANS(AA113)) -> -0.6354207326
A114: 224 | B114: -0.7193398003 | C114: -0.6946583705 | E114: -134 | F114: =COS(RADIANS(E114))*COS(RADIANS(Sight2!LHA2_)) -> -0.6295733843 | G114: -0.7193398003 | H114: =F114*COS(RADIANS(90-Sight2!LAT2_))-G114*SIN(RADIANS(90-Sight2!LAT2_)) -> 0.0301477391 | I114: =F114*SIN(RADIANS(90-Sight2!LAT2_))+G114*COS(RADIANS(90-Sight2!LAT2_)) -> -0.9554598413 | K114: =COS(RADIANS(E114))*COS(RADIANS(Sight2!AZ_nord2-180)) -> -0.6319491858 | T114: 224 | U114: =COS(RADIANS(Sight2!DEC2_))*COS(RADIANS(T114)) -> -0.671118142 | V114: =COS(RADIANS(Sight2!DEC2_))*SIN(RADIANS(T114)) -> -0.6480912563 | AA114: 224 | AB114: =COS(RADIANS(Sight2!HC2_))*COS(RADIANS(AA114)) -> -0.6831004569 | AC114: =COS(RADIANS(Sight2!HC2_))*SIN(RADIANS(AA114)) -> -0.6596624433
A115: 226 | B115: -0.6946583705 | C115: -0.7193398003 | E115: -136 | F115: =COS(RADIANS(E115))*COS(RADIANS(Sight2!LHA2_)) -> -0.6519423242 | G115: -0.6946583705 | H115: =F115*COS(RADIANS(90-Sight2!LAT2_))-G115*SIN(RADIANS(90-Sight2!LAT2_)) -> -0.003044562596 | I115: =F115*SIN(RADIANS(90-Sight2!LAT2_))+G115*COS(RADIANS(90-Sight2!LAT2_)) -> -0.9526645666 | K115: =COS(RADIANS(E115))*COS(RADIANS(Sight2!AZ_nord2-180)) -> -0.6544025386 | T115: 226 | U115: =COS(RADIANS(Sight2!DEC2_))*COS(RADIANS(T115)) -> -0.6480912563 | V115: =COS(RADIANS(Sight2!DEC2_))*SIN(RADIANS(T115)) -> -0.671118142 | AA115: 226 | AB115: =COS(RADIANS(Sight2!HC2_))*COS(RADIANS(AA115)) -> -0.6596624433 | AC115: =COS(RADIANS(Sight2!HC2_))*SIN(RADIANS(AA115)) -> -0.6831004569
A116: 228 | B116: -0.6691306064 | C116: -0.7431448255 | E116: -138 | F116: =COS(RADIANS(E116))*COS(RADIANS(Sight2!LHA2_)) -> -0.6735169728 | G116: -0.6691306064 | H116: =F116*COS(RADIANS(90-Sight2!LAT2_))-G116*SIN(RADIANS(90-Sight2!LAT2_)) -> -0.03623315496 | I116: =F116*SIN(RADIANS(90-Sight2!LAT2_))+G116*COS(RADIANS(90-Sight2!LAT2_)) -> -0.9487086168 | K116: =COS(RADIANS(E116))*COS(RADIANS(Sight2!AZ_nord2-180)) -> -0.6760586028 | T116: 228 | U116: =COS(RADIANS(Sight2!DEC2_))*COS(RADIANS(T116)) -> -0.6242747713 | V116: =COS(RADIANS(Sight2!DEC2_))*SIN(RADIANS(T116)) -> -0.6933273736 | AA116: 228 | AB116: =COS(RADIANS(Sight2!HC2_))*COS(RADIANS(AA116)) -> -0.6354207326 | AC116: =COS(RADIANS(Sight2!HC2_))*SIN(RADIANS(AA116)) -> -0.7057062179
A117: 230 | B117: -0.6427876097 | C117: -0.7660444431 | E117: -140 | F117: =COS(RADIANS(E117))*COS(RADIANS(Sight2!LHA2_)) -> -0.6942710447 | G117: -0.6427876097 | H117: =F117*COS(RADIANS(90-Sight2!LAT2_))-G117*SIN(RADIANS(90-Sight2!LAT2_)) -> -0.06937760281 | I117: =F117*SIN(RADIANS(90-Sight2!LAT2_))+G117*COS(RADIANS(90-Sight2!LAT2_)) -> -0.9435968116 | K117: =COS(RADIANS(E117))*COS(RADIANS(Sight2!AZ_nord2-180)) -> -0.6968909937 | T117: 230 | U117: =COS(RADIANS(Sight2!DEC2_))*COS(RADIANS(T117)) -> -0.5996977035 | V117: =COS(RADIANS(Sight2!DEC2_))*SIN(RADIANS(T117)) -> -0.7146918927 | AA117: 230 | AB117: =COS(RADIANS(Sight2!HC2_))*COS(RADIANS(AA117)) -> -0.6104048597 | AC117: =COS(RADIANS(Sight2!HC2_))*SIN(RADIANS(AA117)) -> -0.7274521845
A118: 232 | B118: -0.6156614753 | C118: -0.7880107536 | E118: -142 | F118: =COS(RADIANS(E118))*COS(RADIANS(Sight2!LHA2_)) -> -0.7141792543 | G118: -0.6156614753 | H118: =F118*COS(RADIANS(90-Sight2!LAT2_))-G118*SIN(RADIANS(90-Sight2!LAT2_)) -> -0.1024375247 | I118: =F118*SIN(RADIANS(90-Sight2!LAT2_))+G118*COS(RADIANS(90-Sight2!LAT2_)) -> -0.9373353792 | K118: =COS(RADIANS(E118))*COS(RADIANS(Sight2!AZ_nord2-180)) -> -0.7168743303 | T118: 232 | U118: =COS(RADIANS(Sight2!DEC2_))*COS(RADIANS(T118)) -> -0.5743899966 | V118: =COS(RADIANS(Sight2!DEC2_))*SIN(RADIANS(T118)) -> -0.7351856697 | AA118: 232 | AB118: =COS(RADIANS(Sight2!HC2_))*COS(RADIANS(AA118)) -> -0.5846453024 | AC118: =COS(RADIANS(Sight2!HC2_))*SIN(RADIANS(AA118)) -> -0.7483118626
A119: 234 | B119: -0.5877852523 | C119: -0.8090169944 | E119: -144 | F119: =COS(RADIANS(E119))*COS(RADIANS(Sight2!LHA2_)) -> -0.7332173465 | G119: -0.5877852523 | H119: =F119*COS(RADIANS(90-Sight2!LAT2_))-G119*SIN(RADIANS(90-Sight2!LAT2_)) -> -0.1353726423 | I119: =F119*SIN(RADIANS(90-Sight2!LAT2_))+G119*COS(RADIANS(90-Sight2!LAT2_)) -> -0.9299319479 | K119: =COS(RADIANS(E119))*COS(RADIANS(Sight2!AZ_nord2-180)) -> -0.7359842659 | T119: 234 | U119: =COS(RADIANS(Sight2!DEC2_))*COS(RADIANS(T119)) -> -0.5483824838 | V119: =COS(RADIANS(Sight2!DEC2_))*SIN(RADIANS(T119)) -> -0.7547837362 | AA119: 234 | AB119: =COS(RADIANS(Sight2!HC2_))*COS(RADIANS(AA119)) -> -0.5581734449 | AC119: =COS(RADIANS(Sight2!HC2_))*SIN(RADIANS(AA119)) -> -0.7682598381
A120: 236 | B120: -0.5591929035 | C120: -0.8290375726 | E120: -146 | F120: =COS(RADIANS(E120))*COS(RADIANS(Sight2!LHA2_)) -> -0.7513621263 | G120: -0.5591929035 | H120: =F120*COS(RADIANS(90-Sight2!LAT2_))-G120*SIN(RADIANS(90-Sight2!LAT2_)) -> -0.1681428292 | I120: =F120*SIN(RADIANS(90-Sight2!LAT2_))+G120*COS(RADIANS(90-Sight2!LAT2_)) -> -0.9213955378 | K120: =COS(RADIANS(E120))*COS(RADIANS(Sight2!AZ_nord2-180)) -> -0.7541975181 | T120: 236 | U120: =COS(RADIANS(Sight2!DEC2_))*COS(RADIANS(T120)) -> -0.5217068515 | V120: =COS(RADIANS(Sight2!DEC2_))*SIN(RADIANS(T120)) -> -0.7734622151 | AA120: 236 | AB120: =COS(RADIANS(Sight2!HC2_))*COS(RADIANS(AA120)) -> -0.5310215391 | AC120: =COS(RADIANS(Sight2!HC2_))*SIN(RADIANS(AA120)) -> -0.7872718072
A121: 238 | B121: -0.5299192642 | C121: -0.8480480962 | E121: -148 | F121: =COS(RADIANS(E121))*COS(RADIANS(Sight2!LHA2_)) -> -0.7685914871 | G121: -0.5299192642 | H121: =F121*COS(RADIANS(90-Sight2!LAT2_))-G121*SIN(RADIANS(90-Sight2!LAT2_)) -> -0.2007081599 | I121: =F121*SIN(RADIANS(90-Sight2!LAT2_))+G121*COS(RADIANS(90-Sight2!LAT2_)) -> -0.9117365492 | K121: =COS(RADIANS(E121))*COS(RADIANS(Sight2!AZ_nord2-180)) -> -0.7714918968 | T121: 238 | U121: =COS(RADIANS(Sight2!DEC2_))*COS(RADIANS(T121)) -> -0.4943955998 | V121: =COS(RADIANS(Sight2!DEC2_))*SIN(RADIANS(T121)) -> -0.7911983493 | AA121: 238 | AB121: =COS(RADIANS(Sight2!HC2_))*COS(RADIANS(AA121)) -> -0.5032226652 | AC121: =COS(RADIANS(Sight2!HC2_))*SIN(RADIANS(AA121)) -> -0.805324607
A122: 240 | B122: -0.5 | C122: -0.8660254038 | E122: -150 | F122: =COS(RADIANS(E122))*COS(RADIANS(Sight2!LHA2_)) -> -0.7848844375 | G122: -0.5 | H122: =F122*COS(RADIANS(90-Sight2!LAT2_))-G122*SIN(RADIANS(90-Sight2!LAT2_)) -> -0.2330289587 | I122: =F122*SIN(RADIANS(90-Sight2!LAT2_))+G122*COS(RADIANS(90-Sight2!LAT2_)) -> -0.90096675 | K122: =COS(RADIANS(E122))*COS(RADIANS(Sight2!AZ_nord2-180)) -> -0.7878463314 | T122: 240 | U122: =COS(RADIANS(Sight2!DEC2_))*COS(RADIANS(T122)) -> -0.4664820032 | V122: =COS(RADIANS(Sight2!DEC2_))*SIN(RADIANS(T122)) -> -0.8079705303 | AA122: 240 | AB122: =COS(RADIANS(Sight2!HC2_))*COS(RADIANS(AA122)) -> -0.4748106921 | AC122: =COS(RADIANS(Sight2!HC2_))*SIN(RADIANS(AA122)) -> -0.8223962427
A123: 242 | B123: -0.4694715628 | C123: -0.8829475929 | E123: -152 | F123: =COS(RADIANS(E123))*COS(RADIANS(Sight2!LHA2_)) -> -0.8002211272 | G123: -0.4694715628 | H123: =F123*COS(RADIANS(90-Sight2!LAT2_))-G123*SIN(RADIANS(90-Sight2!LAT2_)) -> -0.2650658476 | I123: =F123*SIN(RADIANS(90-Sight2!LAT2_))+G123*COS(RADIANS(90-Sight2!LAT2_)) -> -0.8890992617 | K123: =COS(RADIANS(E123))*COS(RADIANS(Sight2!AZ_nord2-180)) -> -0.8032408967 | T123: 242 | U123: =COS(RADIANS(Sight2!DEC2_))*COS(RADIANS(T123)) -> -0.4380000701 | V123: =COS(RADIANS(Sight2!DEC2_))*SIN(RADIANS(T123)) -> -0.8237583236 | AA123: 242 | AB123: =COS(RADIANS(Sight2!HC2_))*COS(RADIANS(AA123)) -> -0.4458202353 | AC123: =COS(RADIANS(Sight2!HC2_))*SIN(RADIANS(AA123)) -> -0.8384659153
A124: 244 | B124: -0.4383711468 | C124: -0.8987940463 | E124: -154 | F124: =COS(RADIANS(E124))*COS(RADIANS(Sight2!LHA2_)) -> -0.8145828706 | G124: -0.4383711468 | H124: =F124*COS(RADIANS(90-Sight2!LAT2_))-G124*SIN(RADIANS(90-Sight2!LAT2_)) -> -0.2967797945 | I124: =F124*SIN(RADIANS(90-Sight2!LAT2_))+G124*COS(RADIANS(90-Sight2!LAT2_)) -> -0.8761485428 | K124: =COS(RADIANS(E124))*COS(RADIANS(Sight2!AZ_nord2-180)) -> -0.8176568366 | T124: 244 | U124: =COS(RADIANS(Sight2!DEC2_))*COS(RADIANS(T124)) -> -0.4089845014 | V124: =COS(RADIANS(Sight2!DEC2_))*SIN(RADIANS(T124)) -> -0.8385424943 | AA124: 244 | AB124: =COS(RADIANS(Sight2!HC2_))*COS(RADIANS(AA124)) -> -0.4162866152 | AC124: =COS(RADIANS(Sight2!HC2_))*SIN(RADIANS(AA124)) -> -0.8535140464
A125: 246 | B125: -0.4067366431 | C125: -0.9135454576 | E125: -156 | F125: =COS(RADIANS(E125))*COS(RADIANS(Sight2!LHA2_)) -> -0.8279521704 | G125: -0.4067366431 | H125: =F125*COS(RADIANS(90-Sight2!LAT2_))-G125*SIN(RADIANS(90-Sight2!LAT2_)) -> -0.328132161 | I125: =F125*SIN(RADIANS(90-Sight2!LAT2_))+G125*COS(RADIANS(90-Sight2!LAT2_)) -> -0.8621303719 | K125: =COS(RADIANS(E125))*COS(RADIANS(Sight2!AZ_nord2-180)) -> -0.8310765877 | T125: 246 | U125: =COS(RADIANS(Sight2!DEC2_))*COS(RADIANS(T125)) -> -0.379470648 | V125: =COS(RADIANS(Sight2!DEC2_))*SIN(RADIANS(T125)) -> -0.8523050301 | AA125: 246 | AB125: =COS(RADIANS(Sight2!HC2_))*COS(RADIANS(AA125)) -> -0.386245814 | AC125: =COS(RADIANS(Sight2!HC2_))*SIN(RADIANS(AA125)) -> -0.8675223021
A126: 248 | B126: -0.3746065934 | C126: -0.9271838546 | E126: -158 | F126: =COS(RADIANS(E126))*COS(RADIANS(Sight2!LHA2_)) -> -0.8403127379 | G126: -0.3746065934 | H126: =F126*COS(RADIANS(90-Sight2!LAT2_))-G126*SIN(RADIANS(90-Sight2!LAT2_)) -> -0.359084749 | I126: =F126*SIN(RADIANS(90-Sight2!LAT2_))+G126*COS(RADIANS(90-Sight2!LAT2_)) -> -0.8470618279 | K126: =COS(RADIANS(E126))*COS(RADIANS(Sight2!AZ_nord2-180)) -> -0.8434837999 | T126: 248 | U126: =COS(RADIANS(Sight2!DEC2_))*COS(RADIANS(T126)) -> -0.3494944682 | V126: =COS(RADIANS(Sight2!DEC2_))*SIN(RADIANS(T126)) -> -0.8650291635 | AA126: 248 | AB126: =COS(RADIANS(Sight2!HC2_))*COS(RADIANS(AA126)) -> -0.3557344318 | AC126: =COS(RADIANS(Sight2!HC2_))*SIN(RADIANS(AA126)) -> -0.8804736154
A127: 250 | B127: -0.3420201433 | C127: -0.9396926208 | E127: -160 | F127: =COS(RADIANS(E127))*COS(RADIANS(Sight2!LHA2_)) -> -0.8516495138 | G127: -0.3420201433 | H127: =F127*COS(RADIANS(90-Sight2!LAT2_))-G127*SIN(RADIANS(90-Sight2!LAT2_)) -> -0.3895998476 | I127: =F127*SIN(RADIANS(90-Sight2!LAT2_))+G127*COS(RADIANS(90-Sight2!LAT2_)) -> -0.8309612696 | K127: =COS(RADIANS(E127))*COS(RADIANS(Sight2!AZ_nord2-180)) -> -0.854863357 | T127: 250 | U127: =COS(RADIANS(Sight2!DEC2_))*COS(RADIANS(T127)) -> -0.3190924832 | V127: =COS(RADIANS(Sight2!DEC2_))*SIN(RADIANS(T127)) -> -0.8766993922 | AA127: 250 | AB127: =COS(RADIANS(Sight2!HC2_))*COS(RADIANS(AA127)) -> -0.3247896419 | AC127: =COS(RADIANS(Sight2!HC2_))*SIN(RADIANS(AA127)) -> -0.8923522073
A128: 252 | B128: -0.3090169944 | C128: -0.9510565163 | E128: -162 | F128: =COS(RADIANS(E128))*COS(RADIANS(Sight2!LHA2_)) -> -0.861948686 | G128: -0.3090169944 | H128: =F128*COS(RADIANS(90-Sight2!LAT2_))-G128*SIN(RADIANS(90-Sight2!LAT2_)) -> -0.4196402787 | I128: =F128*SIN(RADIANS(90-Sight2!LAT2_))+G128*COS(RADIANS(90-Sight2!LAT2_)) -> -0.813848313 | K128: =COS(RADIANS(E128))*COS(RADIANS(Sight2!AZ_nord2-180)) -> -0.8652013949 | T128: 252 | U128: =COS(RADIANS(Sight2!DEC2_))*COS(RADIANS(T128)) -> -0.2883017331 | V128: =COS(RADIANS(Sight2!DEC2_))*SIN(RADIANS(T128)) -> -0.8873014977 | AA128: 252 | AB128: =COS(RADIANS(Sight2!HC2_))*COS(RADIANS(AA128)) -> -0.293449146 | AC128: =COS(RADIANS(Sight2!HC2_))*SIN(RADIANS(AA128)) -> -0.9031436055
A129: 254 | B129: -0.2756373558 | C129: -0.9612616959 | E129: -164 | F129: =COS(RADIANS(E129))*COS(RADIANS(Sight2!LHA2_)) -> -0.8711977065 | G129: -0.2756373558 | H129: =F129*COS(RADIANS(90-Sight2!LAT2_))-G129*SIN(RADIANS(90-Sight2!LAT2_)) -> -0.4491694428 | I129: =F129*SIN(RADIANS(90-Sight2!LAT2_))+G129*COS(RADIANS(90-Sight2!LAT2_)) -> -0.7957438076 | K129: =COS(RADIANS(E129))*COS(RADIANS(Sight2!AZ_nord2-180)) -> -0.8744853181 | T129: 254 | U129: =COS(RADIANS(Sight2!DEC2_))*COS(RADIANS(T129)) -> -0.2571597318 | V129: =COS(RADIANS(Sight2!DEC2_))*SIN(RADIANS(T129)) -> -0.896822563 | AA129: 254 | AB129: =COS(RADIANS(Sight2!HC2_))*COS(RADIANS(AA129)) -> -0.2617511274 | AC129: =COS(RADIANS(Sight2!HC2_))*SIN(RADIANS(AA129)) -> -0.9128346623
A130: 256 | B130: =COS(RADIANS(A130)) -> -0.2419218956 | C130: =SIN(RADIANS(A130)) -> -0.9702957263 | E130: -166 | F130: =COS(RADIANS(E130))*COS(RADIANS(Sight2!LHA2_)) -> -0.8793853067 | G130: -0.2419218956 | H130: =F130*COS(RADIANS(90-Sight2!LAT2_))-G130*SIN(RADIANS(90-Sight2!LAT2_)) -> -0.4781513632 | I130: =F130*SIN(RADIANS(90-Sight2!LAT2_))+G130*COS(RADIANS(90-Sight2!LAT2_)) -> -0.7766698109 | K130: =COS(RADIANS(E130))*COS(RADIANS(Sight2!AZ_nord2-180)) -> -0.8827038156 | T130: 256 | U130: =COS(RADIANS(Sight2!DEC2_))*COS(RADIANS(T130)) -> -0.2257044209 | V130: =COS(RADIANS(Sight2!DEC2_))*SIN(RADIANS(T130)) -> -0.9052509881 | AA130: 256 | AB130: =COS(RADIANS(Sight2!HC2_))*COS(RADIANS(AA130)) -> -0.2297342054 | AC130: =COS(RADIANS(Sight2!HC2_))*SIN(RADIANS(AA130)) -> -0.9214135707
A131: =SUM(A130+2) -> 258 | B131: -0.2079116908 | C131: -0.9781476007 | E131: =SUM(E130-2) -> -168 | F131: =COS(RADIANS(E131))*COS(RADIANS(Sight2!LHA2_)) -> -0.8865015114 | G131: =SIN(RADIANS(E131)) -> -0.2079116908 | H131: =F131*COS(RADIANS(90-Sight2!LAT2_))-G131*SIN(RADIANS(90-Sight2!LAT2_)) -> -0.5065507297 | I131: =F131*SIN(RADIANS(90-Sight2!LAT2_))+G131*COS(RADIANS(90-Sight2!LAT2_)) -> -0.7566495617 | K131: =COS(RADIANS(E131))*COS(RADIANS(Sight2!AZ_nord2-180)) -> -0.8898468745 | T131: 258 | U131: =COS(RADIANS(Sight2!DEC2_))*COS(RADIANS(T131)) -> -0.193974124 | V131: =COS(RADIANS(Sight2!DEC2_))*SIN(RADIANS(T131)) -> -0.9125765043 | AA131: =SUM(AA130+2) -> 258 | AB131: =COS(RADIANS(Sight2!HC2_))*COS(RADIANS(AA131)) -> -0.1974373876 | AC131: =COS(RADIANS(Sight2!HC2_))*SIN(RADIANS(AA131)) -> -0.9288698786
A132: 260 | B132: -0.1736481777 | C132: -0.984807753 | E132: -170 | F132: =COS(RADIANS(E132))*COS(RADIANS(Sight2!LHA2_)) -> -0.8925376506 | G132: -0.1736481777 | H132: =F132*COS(RADIANS(90-Sight2!LAT2_))-G132*SIN(RADIANS(90-Sight2!LAT2_)) -> -0.5343329422 | I132: =F132*SIN(RADIANS(90-Sight2!LAT2_))+G132*COS(RADIANS(90-Sight2!LAT2_)) -> -0.7357074515 | K132: =COS(RADIANS(E132))*COS(RADIANS(Sight2!AZ_nord2-180)) -> -0.8959057921 | T132: 260 | U132: =COS(RADIANS(Sight2!DEC2_))*COS(RADIANS(T132)) -> -0.1620074995 | V132: =COS(RADIANS(Sight2!DEC2_))*SIN(RADIANS(T132)) -> -0.9187901867 | AA132: 260 | AB132: =COS(RADIANS(Sight2!HC2_))*COS(RADIANS(AA132)) -> -0.1649000228 | AC132: =COS(RADIANS(Sight2!HC2_))*SIN(RADIANS(AA132)) -> -0.9351945016
A133: 262 | B133: -0.139173101 | C133: -0.9902680687 | E133: -172 | F133: =COS(RADIANS(E133))*COS(RADIANS(Sight2!LHA2_)) -> -0.8974863702 | G133: -0.139173101 | H133: =F133*COS(RADIANS(90-Sight2!LAT2_))-G133*SIN(RADIANS(90-Sight2!LAT2_)) -> -0.5614641524 | I133: =F133*SIN(RADIANS(90-Sight2!LAT2_))+G133*COS(RADIANS(90-Sight2!LAT2_)) -> -0.7138689952 | K133: =COS(RADIANS(E133))*COS(RADIANS(Sight2!AZ_nord2-180)) -> -0.9008731865 | T133: 262 | U133: =COS(RADIANS(Sight2!DEC2_))*COS(RADIANS(T133)) -> -0.1298434938 | V133: =COS(RADIANS(Sight2!DEC2_))*SIN(RADIANS(T133)) -> -0.9238844647 | AA133: 262 | AB133: =COS(RADIANS(Sight2!HC2_))*COS(RADIANS(AA133)) -> -0.1321617528 | AC133: =COS(RADIANS(Sight2!HC2_))*SIN(RADIANS(AA133)) -> -0.9403797342
A134: 264 | B134: -0.1045284633 | C134: -0.9945218954 | E134: -174 | F134: =COS(RADIANS(E134))*COS(RADIANS(Sight2!LHA2_)) -> -0.9013416408 | G134: -0.1045284633 | H134: =F134*COS(RADIANS(90-Sight2!LAT2_))-G134*SIN(RADIANS(90-Sight2!LAT2_)) -> -0.5879113049 | I134: =F134*SIN(RADIANS(90-Sight2!LAT2_))+G134*COS(RADIANS(90-Sight2!LAT2_)) -> -0.6911607994 | K134: =COS(RADIANS(E134))*COS(RADIANS(Sight2!AZ_nord2-180)) -> -0.9047430057 | T134: 264 | U134: =COS(RADIANS(Sight2!DEC2_))*COS(RADIANS(T134)) -> -0.09752129386 | V134: =COS(RADIANS(Sight2!DEC2_))*SIN(RADIANS(T134)) -> -0.9278531319 | AA134: 264 | AB134: =COS(RADIANS(Sight2!HC2_))*COS(RADIANS(AA134)) -> -0.09926246398 | AC134: =COS(RADIANS(Sight2!HC2_))*SIN(RADIANS(AA134)) -> -0.9444192589
A135: 266 | B135: -0.06975647374 | C135: -0.9975640503 | E135: -176 | F135: =COS(RADIANS(E135))*COS(RADIANS(Sight2!LHA2_)) -> -0.9040987655 | G135: -0.06975647374 | H135: =F135*COS(RADIANS(90-Sight2!LAT2_))-G135*SIN(RADIANS(90-Sight2!LAT2_)) -> -0.6136421781 | I135: =F135*SIN(RADIANS(90-Sight2!LAT2_))+G135*COS(RADIANS(90-Sight2!LAT2_)) -> -0.6676105307 | K135: =COS(RADIANS(E135))*COS(RADIANS(Sight2!AZ_nord2-180)) -> -0.9075105348 | T135: 266 | U135: =COS(RADIANS(Sight2!DEC2_))*COS(RADIANS(T135)) -> -0.06508027921 | V135: =COS(RADIANS(Sight2!DEC2_))*SIN(RADIANS(T135)) -> -0.9306913529 | AA135: 266 | AB135: =COS(RADIANS(Sight2!HC2_))*COS(RADIANS(AA135)) -> -0.06624223916 | AC135: =COS(RADIANS(Sight2!HC2_))*SIN(RADIANS(AA135)) -> -0.9473081543
A136: 268 | B136: -0.0348994967 | C136: -0.999390827 | E136: -178 | F136: =COS(RADIANS(E136))*COS(RADIANS(Sight2!LHA2_)) -> -0.9057543851 | G136: -0.0348994967 | H136: =F136*COS(RADIANS(90-Sight2!LAT2_))-G136*SIN(RADIANS(90-Sight2!LAT2_)) -> -0.6386254228 | I136: =F136*SIN(RADIANS(90-Sight2!LAT2_))+G136*COS(RADIANS(90-Sight2!LAT2_)) -> -0.6432468814 | K136: =COS(RADIANS(E136))*COS(RADIANS(Sight2!AZ_nord2-180)) -> -0.9091724022 | T136: 268 | U136: =COS(RADIANS(Sight2!DEC2_))*COS(RADIANS(T136)) -> -0.03255997426 | V136: =COS(RADIANS(Sight2!DEC2_))*SIN(RADIANS(T136)) -> -0.9323956698 | AA136: 268 | AB136: =COS(RADIANS(Sight2!HC2_))*COS(RADIANS(AA136)) -> -0.03314130837 | AC136: =COS(RADIANS(Sight2!HC2_))*SIN(RADIANS(AA136)) -> -0.9490429006
A137: 270 | B137: -1.837722682e-16 | C137: -1 | E137: -180 | F137: =COS(RADIANS(E137))*COS(RADIANS(Sight2!LHA2_)) -> -0.9063064826 | G137: -1.225148455e-16 | H137: =F137*COS(RADIANS(90-Sight2!LAT2_))-G137*SIN(RADIANS(90-Sight2!LAT2_)) -> -0.6628306008 | I137: =F137*SIN(RADIANS(90-Sight2!LAT2_))+G137*COS(RADIANS(90-Sight2!LAT2_)) -> -0.6180995348 | K137: =COS(RADIANS(E137))*COS(RADIANS(Sight2!AZ_nord2-180)) -> -0.9097265831 | T137: 270 | U137: =COS(RADIANS(Sight2!DEC2_))*COS(RADIANS(T137)) -> -1.714529116e-16 | V137: =COS(RADIANS(Sight2!DEC2_))*SIN(RADIANS(T137)) -> -0.9329640063 | AA137: 270 | AB137: =COS(RADIANS(Sight2!HC2_))*COS(RADIANS(AA137)) -> -1.745140757e-16 | AC137: =COS(RADIANS(Sight2!HC2_))*SIN(RADIANS(AA137)) -> -0.9496213842
A138: 272 | B138: 0.0348994967 | C138: -0.999390827 | E138: -182 | F138: =COS(RADIANS(E138))*COS(RADIANS(Sight2!LHA2_)) -> -0.9057543851 | G138: 0.0348994967 | H138: =F138*COS(RADIANS(90-Sight2!LAT2_))-G138*SIN(RADIANS(90-Sight2!LAT2_)) -> -0.6862282218 | I138: =F138*SIN(RADIANS(90-Sight2!LAT2_))+G138*COS(RADIANS(90-Sight2!LAT2_)) -> -0.5921991292 | K138: =COS(RADIANS(E138))*COS(RADIANS(Sight2!AZ_nord2-180)) -> -0.9091724022 | T138: 272 | U138: =COS(RADIANS(Sight2!DEC2_))*COS(RADIANS(T138)) -> 0.03255997426 | V138: =COS(RADIANS(Sight2!DEC2_))*SIN(RADIANS(T138)) -> -0.9323956698 | AA138: 272 | AB138: =COS(RADIANS(Sight2!HC2_))*COS(RADIANS(AA138)) -> 0.03314130837 | AC138: =COS(RADIANS(Sight2!HC2_))*SIN(RADIANS(AA138)) -> -0.9490429006
A139: 274 | B139: 0.06975647374 | C139: -0.9975640503 | E139: -184 | F139: =COS(RADIANS(E139))*COS(RADIANS(Sight2!LHA2_)) -> -0.9040987655 | G139: 0.06975647374 | H139: =F139*COS(RADIANS(90-Sight2!LAT2_))-G139*SIN(RADIANS(90-Sight2!LAT2_)) -> -0.7087897795 | I139: =F139*SIN(RADIANS(90-Sight2!LAT2_))+G139*COS(RADIANS(90-Sight2!LAT2_)) -> -0.5655772201 | K139: =COS(RADIANS(E139))*COS(RADIANS(Sight2!AZ_nord2-180)) -> -0.9075105348 | T139: 274 | U139: =COS(RADIANS(Sight2!DEC2_))*COS(RADIANS(T139)) -> 0.06508027921 | V139: =COS(RADIANS(Sight2!DEC2_))*SIN(RADIANS(T139)) -> -0.9306913529 | AA139: 274 | AB139: =COS(RADIANS(Sight2!HC2_))*COS(RADIANS(AA139)) -> 0.06624223916 | AC139: =COS(RADIANS(Sight2!HC2_))*SIN(RADIANS(AA139)) -> -0.9473081543
A140: 276 | B140: 0.1045284633 | C140: -0.9945218954 | E140: -186 | F140: =COS(RADIANS(E140))*COS(RADIANS(Sight2!LHA2_)) -> -0.9013416408 | G140: 0.1045284633 | H140: =F140*COS(RADIANS(90-Sight2!LAT2_))-G140*SIN(RADIANS(90-Sight2!LAT2_)) -> -0.730487786 | I140: =F140*SIN(RADIANS(90-Sight2!LAT2_))+G140*COS(RADIANS(90-Sight2!LAT2_)) -> -0.5382662424 | K140: =COS(RADIANS(E140))*COS(RADIANS(Sight2!AZ_nord2-180)) -> -0.9047430057 | T140: 276 | U140: =COS(RADIANS(Sight2!DEC2_))*COS(RADIANS(T140)) -> 0.09752129386 | V140: =COS(RADIANS(Sight2!DEC2_))*SIN(RADIANS(T140)) -> -0.9278531319 | AA140: 276 | AB140: =COS(RADIANS(Sight2!HC2_))*COS(RADIANS(AA140)) -> 0.09926246398 | AC140: =COS(RADIANS(Sight2!HC2_))*SIN(RADIANS(AA140)) -> -0.9444192589
A141: 278 | B141: 0.139173101 | C141: -0.9902680687 | E141: -188 | F141: =COS(RADIANS(E141))*COS(RADIANS(Sight2!LHA2_)) -> -0.8974863702 | G141: 0.139173101 | H141: =F141*COS(RADIANS(90-Sight2!LAT2_))-G141*SIN(RADIANS(90-Sight2!LAT2_)) -> -0.7512958056 | I141: =F141*SIN(RADIANS(90-Sight2!LAT2_))+G141*COS(RADIANS(90-Sight2!LAT2_)) -> -0.5102994701 | K141: =COS(RADIANS(E141))*COS(RADIANS(Sight2!AZ_nord2-180)) -> -0.9008731865 | T141: 278 | U141: =COS(RADIANS(Sight2!DEC2_))*COS(RADIANS(T141)) -> 0.1298434938 | V141: =COS(RADIANS(Sight2!DEC2_))*SIN(RADIANS(T141)) -> -0.9238844647 | AA141: 278 | AB141: =COS(RADIANS(Sight2!HC2_))*COS(RADIANS(AA141)) -> 0.1321617528 | AC141: =COS(RADIANS(Sight2!HC2_))*SIN(RADIANS(AA141)) -> -0.9403797342
A142: 280 | B142: 0.1736481777 | C142: -0.984807753 | E142: -190 | F142: =COS(RADIANS(E142))*COS(RADIANS(Sight2!LHA2_)) -> -0.8925376506 | G142: 0.1736481777 | H142: =F142*COS(RADIANS(90-Sight2!LAT2_))-G142*SIN(RADIANS(90-Sight2!LAT2_)) -> -0.771188487 | I142: =F142*SIN(RADIANS(90-Sight2!LAT2_))+G142*COS(RADIANS(90-Sight2!LAT2_)) -> -0.4817109765 | K142: =COS(RADIANS(E142))*COS(RADIANS(Sight2!AZ_nord2-180)) -> -0.8959057921 | T142: 280 | U142: =COS(RADIANS(Sight2!DEC2_))*COS(RADIANS(T142)) -> 0.1620074995 | V142: =COS(RADIANS(Sight2!DEC2_))*SIN(RADIANS(T142)) -> -0.9187901867 | AA142: 280 | AB142: =COS(RADIANS(Sight2!HC2_))*COS(RADIANS(AA142)) -> 0.1649000228 | AC142: =COS(RADIANS(Sight2!HC2_))*SIN(RADIANS(AA142)) -> -0.9351945016
A143: 282 | B143: 0.2079116908 | C143: -0.9781476007 | E143: -192 | F143: =COS(RADIANS(E143))*COS(RADIANS(Sight2!LHA2_)) -> -0.8865015114 | G143: 0.2079116908 | H143: =F143*COS(RADIANS(90-Sight2!LAT2_))-G143*SIN(RADIANS(90-Sight2!LAT2_)) -> -0.7901415941 | I143: =F143*SIN(RADIANS(90-Sight2!LAT2_))+G143*COS(RADIANS(90-Sight2!LAT2_)) -> -0.4525355923 | K143: =COS(RADIANS(E143))*COS(RADIANS(Sight2!AZ_nord2-180)) -> -0.8898468745 | T143: 282 | U143: =COS(RADIANS(Sight2!DEC2_))*COS(RADIANS(T143)) -> 0.193974124 | V143: =COS(RADIANS(Sight2!DEC2_))*SIN(RADIANS(T143)) -> -0.9125765043 | AA143: 282 | AB143: =COS(RADIANS(Sight2!HC2_))*COS(RADIANS(AA143)) -> 0.1974373876 | AC143: =COS(RADIANS(Sight2!HC2_))*SIN(RADIANS(AA143)) -> -0.9288698786
A144: 284 | B144: 0.2419218956 | C144: -0.9702957263 | E144: -194 | F144: =COS(RADIANS(E144))*COS(RADIANS(Sight2!LHA2_)) -> -0.8793853067 | G144: 0.2419218956 | H144: =F144*COS(RADIANS(90-Sight2!LAT2_))-G144*SIN(RADIANS(90-Sight2!LAT2_)) -> -0.8081320353 | I144: =F144*SIN(RADIANS(90-Sight2!LAT2_))+G144*COS(RADIANS(90-Sight2!LAT2_)) -> -0.4228088632 | K144: =COS(RADIANS(E144))*COS(RADIANS(Sight2!AZ_nord2-180)) -> -0.8827038156 | T144: 284 | U144: =COS(RADIANS(Sight2!DEC2_))*COS(RADIANS(T144)) -> 0.2257044209 | V144: =COS(RADIANS(Sight2!DEC2_))*SIN(RADIANS(T144)) -> -0.9052509881 | AA144: 284 | AB144: =COS(RADIANS(Sight2!HC2_))*COS(RADIANS(AA144)) -> 0.2297342054 | AC144: =COS(RADIANS(Sight2!HC2_))*SIN(RADIANS(AA144)) -> -0.9214135707
A145: 286 | B145: 0.2756373558 | C145: -0.9612616959 | E145: -196 | F145: =COS(RADIANS(E145))*COS(RADIANS(Sight2!LHA2_)) -> -0.8711977065 | G145: 0.2756373558 | H145: =F145*COS(RADIANS(90-Sight2!LAT2_))-G145*SIN(RADIANS(90-Sight2!LAT2_)) -> -0.8251378921 | I145: =F145*SIN(RADIANS(90-Sight2!LAT2_))+G145*COS(RADIANS(90-Sight2!LAT2_)) -> -0.3925670066 | K145: =COS(RADIANS(E145))*COS(RADIANS(Sight2!AZ_nord2-180)) -> -0.8744853181 | T145: 286 | U145: =COS(RADIANS(Sight2!DEC2_))*COS(RADIANS(T145)) -> 0.2571597318 | V145: =COS(RADIANS(Sight2!DEC2_))*SIN(RADIANS(T145)) -> -0.896822563 | AA145: 286 | AB145: =COS(RADIANS(Sight2!HC2_))*COS(RADIANS(AA145)) -> 0.2617511274 | AC145: =COS(RADIANS(Sight2!HC2_))*SIN(RADIANS(AA145)) -> -0.9128346623
A146: 288 | B146: 0.3090169944 | C146: -0.9510565163 | E146: -198 | F146: =COS(RADIANS(E146))*COS(RADIANS(Sight2!LHA2_)) -> -0.861948686 | G146: 0.3090169944 | H146: =F146*COS(RADIANS(90-Sight2!LAT2_))-G146*SIN(RADIANS(90-Sight2!LAT2_)) -> -0.8411384455 | I146: =F146*SIN(RADIANS(90-Sight2!LAT2_))+G146*COS(RADIANS(90-Sight2!LAT2_)) -> -0.3618468676 | K146: =COS(RADIANS(E146))*COS(RADIANS(Sight2!AZ_nord2-180)) -> -0.8652013949 | T146: 288 | U146: =COS(RADIANS(Sight2!DEC2_))*COS(RADIANS(T146)) -> 0.2883017331 | V146: =COS(RADIANS(Sight2!DEC2_))*SIN(RADIANS(T146)) -> -0.8873014977 | AA146: 288 | AB146: =COS(RADIANS(Sight2!HC2_))*COS(RADIANS(AA146)) -> 0.293449146 | AC146: =COS(RADIANS(Sight2!HC2_))*SIN(RADIANS(AA146)) -> -0.9031436055
A147: 290 | B147: 0.3420201433 | C147: -0.9396926208 | E147: -200 | F147: =COS(RADIANS(E147))*COS(RADIANS(Sight2!LHA2_)) -> -0.8516495138 | G147: 0.3420201433 | H147: =F147*COS(RADIANS(90-Sight2!LAT2_))-G147*SIN(RADIANS(90-Sight2!LAT2_)) -> -0.8561142013 | I147: =F147*SIN(RADIANS(90-Sight2!LAT2_))+G147*COS(RADIANS(90-Sight2!LAT2_)) -> -0.3306858739 | K147: =COS(RADIANS(E147))*COS(RADIANS(Sight2!AZ_nord2-180)) -> -0.854863357 | T147: 290 | U147: =COS(RADIANS(Sight2!DEC2_))*COS(RADIANS(T147)) -> 0.3190924832 | V147: =COS(RADIANS(Sight2!DEC2_))*SIN(RADIANS(T147)) -> -0.8766993922 | AA147: 290 | AB147: =COS(RADIANS(Sight2!HC2_))*COS(RADIANS(AA147)) -> 0.3247896419 | AC147: =COS(RADIANS(Sight2!HC2_))*SIN(RADIANS(AA147)) -> -0.8923522073
A148: 292 | B148: 0.3746065934 | C148: -0.9271838546 | E148: -202 | F148: =COS(RADIANS(E148))*COS(RADIANS(Sight2!LHA2_)) -> -0.8403127379 | G148: 0.3746065934 | H148: =F148*COS(RADIANS(90-Sight2!LAT2_))-G148*SIN(RADIANS(90-Sight2!LAT2_)) -> -0.8700469138 | I148: =F148*SIN(RADIANS(90-Sight2!LAT2_))+G148*COS(RADIANS(90-Sight2!LAT2_)) -> -0.2991219905 | K148: =COS(RADIANS(E148))*COS(RADIANS(Sight2!AZ_nord2-180)) -> -0.8434837999 | T148: 292 | U148: =COS(RADIANS(Sight2!DEC2_))*COS(RADIANS(T148)) -> 0.3494944682 | V148: =COS(RADIANS(Sight2!DEC2_))*SIN(RADIANS(T148)) -> -0.8650291635 | AA148: 292 | AB148: =COS(RADIANS(Sight2!HC2_))*COS(RADIANS(AA148)) -> 0.3557344318 | AC148: =COS(RADIANS(Sight2!HC2_))*SIN(RADIANS(AA148)) -> -0.8804736154
A149: 294 | B149: 0.4067366431 | C149: -0.9135454576 | E149: -204 | F149: =COS(RADIANS(E149))*COS(RADIANS(Sight2!LHA2_)) -> -0.8279521704 | G149: 0.4067366431 | H149: =F149*COS(RADIANS(90-Sight2!LAT2_))-G149*SIN(RADIANS(90-Sight2!LAT2_)) -> -0.8829196081 | I149: =F149*SIN(RADIANS(90-Sight2!LAT2_))+G149*COS(RADIANS(90-Sight2!LAT2_)) -> -0.2671936729 | K149: =COS(RADIANS(E149))*COS(RADIANS(Sight2!AZ_nord2-180)) -> -0.8310765877 | T149: 294 | U149: =COS(RADIANS(Sight2!DEC2_))*COS(RADIANS(T149)) -> 0.379470648 | V149: =COS(RADIANS(Sight2!DEC2_))*SIN(RADIANS(T149)) -> -0.8523050301 | AA149: 294 | AB149: =COS(RADIANS(Sight2!HC2_))*COS(RADIANS(AA149)) -> 0.386245814 | AC149: =COS(RADIANS(Sight2!HC2_))*SIN(RADIANS(AA149)) -> -0.8675223021
A150: 296 | B150: 0.4383711468 | C150: -0.8987940463 | E150: -206 | F150: =COS(RADIANS(E150))*COS(RADIANS(Sight2!LHA2_)) -> -0.8145828706 | G150: 0.4383711468 | H150: =F150*COS(RADIANS(90-Sight2!LAT2_))-G150*SIN(RADIANS(90-Sight2!LAT2_)) -> -0.8947166009 | I150: =F150*SIN(RADIANS(90-Sight2!LAT2_))+G150*COS(RADIANS(90-Sight2!LAT2_)) -> -0.234939821 | K150: =COS(RADIANS(E150))*COS(RADIANS(Sight2!AZ_nord2-180)) -> -0.8176568366 | T150: 296 | U150: =COS(RADIANS(Sight2!DEC2_))*COS(RADIANS(T150)) -> 0.4089845014 | V150: =COS(RADIANS(Sight2!DEC2_))*SIN(RADIANS(T150)) -> -0.8385424943 | AA150: 296 | AB150: =COS(RADIANS(Sight2!HC2_))*COS(RADIANS(AA150)) -> 0.4162866152 | AC150: =COS(RADIANS(Sight2!HC2_))*SIN(RADIANS(AA150)) -> -0.8535140464
A151: 298 | B151: 0.4694715628 | C151: -0.8829475929 | E151: -208 | F151: =COS(RADIANS(E151))*COS(RADIANS(Sight2!LHA2_)) -> -0.8002211272 | G151: 0.4694715628 | H151: =F151*COS(RADIANS(90-Sight2!LAT2_))-G151*SIN(RADIANS(90-Sight2!LAT2_)) -> -0.9054235194 | I151: =F151*SIN(RADIANS(90-Sight2!LAT2_))+G151*COS(RADIANS(90-Sight2!LAT2_)) -> -0.2023997312 | K151: =COS(RADIANS(E151))*COS(RADIANS(Sight2!AZ_nord2-180)) -> -0.8032408967 | T151: 298 | U151: =COS(RADIANS(Sight2!DEC2_))*COS(RADIANS(T151)) -> 0.4380000701 | V151: =COS(RADIANS(Sight2!DEC2_))*SIN(RADIANS(T151)) -> -0.8237583236 | AA151: 298 | AB151: =COS(RADIANS(Sight2!HC2_))*COS(RADIANS(AA151)) -> 0.4458202353 | AC151: =COS(RADIANS(Sight2!HC2_))*SIN(RADIANS(AA151)) -> -0.8384659153
A152: 300 | B152: 0.5 | C152: -0.8660254038 | E152: -210 | F152: =COS(RADIANS(E152))*COS(RADIANS(Sight2!LHA2_)) -> -0.7848844375 | G152: 0.5 | H152: =F152*COS(RADIANS(90-Sight2!LAT2_))-G152*SIN(RADIANS(90-Sight2!LAT2_)) -> -0.9150273187 | I152: =F152*SIN(RADIANS(90-Sight2!LAT2_))+G152*COS(RADIANS(90-Sight2!LAT2_)) -> -0.1696130484 | K152: =COS(RADIANS(E152))*COS(RADIANS(Sight2!AZ_nord2-180)) -> -0.7878463314 | T152: 300 | U152: =COS(RADIANS(Sight2!DEC2_))*COS(RADIANS(T152)) -> 0.4664820032 | V152: =COS(RADIANS(Sight2!DEC2_))*SIN(RADIANS(T152)) -> -0.8079705303 | AA152: 300 | AB152: =COS(RADIANS(Sight2!HC2_))*COS(RADIANS(AA152)) -> 0.4748106921 | AC152: =COS(RADIANS(Sight2!HC2_))*SIN(RADIANS(AA152)) -> -0.8223962427
A153: 302 | B153: 0.5299192642 | C153: -0.8480480962 | E153: -212 | F153: =COS(RADIANS(E153))*COS(RADIANS(Sight2!LHA2_)) -> -0.7685914871 | G153: 0.5299192642 | H153: =F153*COS(RADIANS(90-Sight2!LAT2_))-G153*SIN(RADIANS(90-Sight2!LAT2_)) -> -0.9235162983 | I153: =F153*SIN(RADIANS(90-Sight2!LAT2_))+G153*COS(RADIANS(90-Sight2!LAT2_)) -> -0.1366197183 | K153: =COS(RADIANS(E153))*COS(RADIANS(Sight2!AZ_nord2-180)) -> -0.7714918968 | T153: 302 | U153: =COS(RADIANS(Sight2!DEC2_))*COS(RADIANS(T153)) -> 0.4943955998 | V153: =COS(RADIANS(Sight2!DEC2_))*SIN(RADIANS(T153)) -> -0.7911983493 | AA153: 302 | AB153: =COS(RADIANS(Sight2!HC2_))*COS(RADIANS(AA153)) -> 0.5032226652 | AC153: =COS(RADIANS(Sight2!HC2_))*SIN(RADIANS(AA153)) -> -0.805324607
A154: 304 | B154: 0.5591929035 | C154: -0.8290375726 | E154: -214 | F154: =COS(RADIANS(E154))*COS(RADIANS(Sight2!LHA2_)) -> -0.7513621263 | G154: 0.5591929035 | H154: =F154*COS(RADIANS(90-Sight2!LAT2_))-G154*SIN(RADIANS(90-Sight2!LAT2_)) -> -0.9308801154 | I154: =F154*SIN(RADIANS(90-Sight2!LAT2_))+G154*COS(RADIANS(90-Sight2!LAT2_)) -> -0.1034599381 | K154: =COS(RADIANS(E154))*COS(RADIANS(Sight2!AZ_nord2-180)) -> -0.7541975181 | T154: 304 | U154: =COS(RADIANS(Sight2!DEC2_))*COS(RADIANS(T154)) -> 0.5217068515 | V154: =COS(RADIANS(Sight2!DEC2_))*SIN(RADIANS(T154)) -> -0.7734622151 | AA154: 304 | AB154: =COS(RADIANS(Sight2!HC2_))*COS(RADIANS(AA154)) -> 0.5310215391 | AC154: =COS(RADIANS(Sight2!HC2_))*SIN(RADIANS(AA154)) -> -0.7872718072
A155: 306 | B155: 0.5877852523 | C155: -0.8090169944 | E155: -216 | F155: =COS(RADIANS(E155))*COS(RADIANS(Sight2!LHA2_)) -> -0.7332173465 | G155: 0.5877852523 | H155: =F155*COS(RADIANS(90-Sight2!LAT2_))-G155*SIN(RADIANS(90-Sight2!LAT2_)) -> -0.9371097986 | I155: =F155*SIN(RADIANS(90-Sight2!LAT2_))+G155*COS(RADIANS(90-Sight2!LAT2_)) -> -0.07017410786 | K155: =COS(RADIANS(E155))*COS(RADIANS(Sight2!AZ_nord2-180)) -> -0.7359842659 | T155: 306 | U155: =COS(RADIANS(Sight2!DEC2_))*COS(RADIANS(T155)) -> 0.5483824838 | V155: =COS(RADIANS(Sight2!DEC2_))*SIN(RADIANS(T155)) -> -0.7547837362 | AA155: 306 | AB155: =COS(RADIANS(Sight2!HC2_))*COS(RADIANS(AA155)) -> 0.5581734449 | AC155: =COS(RADIANS(Sight2!HC2_))*SIN(RADIANS(AA155)) -> -0.7682598381
A156: 308 | B156: 0.6156614753 | C156: -0.7880107536 | E156: -218 | F156: =COS(RADIANS(E156))*COS(RADIANS(Sight2!LHA2_)) -> -0.7141792543 | G156: 0.6156614753 | H156: =F156*COS(RADIANS(90-Sight2!LAT2_))-G156*SIN(RADIANS(90-Sight2!LAT2_)) -> -0.9421977578 | I156: =F156*SIN(RADIANS(90-Sight2!LAT2_))+G156*COS(RADIANS(90-Sight2!LAT2_)) -> -0.03680278131 | K156: =COS(RADIANS(E156))*COS(RADIANS(Sight2!AZ_nord2-180)) -> -0.7168743303 | T156: 308 | U156: =COS(RADIANS(Sight2!DEC2_))*COS(RADIANS(T156)) -> 0.5743899966 | V156: =COS(RADIANS(Sight2!DEC2_))*SIN(RADIANS(T156)) -> -0.7351856697 | AA156: 308 | AB156: =COS(RADIANS(Sight2!HC2_))*COS(RADIANS(AA156)) -> 0.5846453024 | AC156: =COS(RADIANS(Sight2!HC2_))*SIN(RADIANS(AA156)) -> -0.7483118626
A157: 310 | B157: 0.6427876097 | C157: -0.7660444431 | E157: -220 | F157: =COS(RADIANS(E157))*COS(RADIANS(Sight2!LHA2_)) -> -0.6942710447 | G157: 0.6427876097 | H157: =F157*COS(RADIANS(90-Sight2!LAT2_))-G157*SIN(RADIANS(90-Sight2!LAT2_)) -> -0.9461377942 | I157: =F157*SIN(RADIANS(90-Sight2!LAT2_))+G157*COS(RADIANS(90-Sight2!LAT2_)) -> -0.003386616243 | K157: =COS(RADIANS(E157))*COS(RADIANS(Sight2!AZ_nord2-180)) -> -0.6968909937 | T157: 310 | U157: =COS(RADIANS(Sight2!DEC2_))*COS(RADIANS(T157)) -> 0.5996977035 | V157: =COS(RADIANS(Sight2!DEC2_))*SIN(RADIANS(T157)) -> -0.7146918927 | AA157: 310 | AB157: =COS(RADIANS(Sight2!HC2_))*COS(RADIANS(AA157)) -> 0.6104048597 | AC157: =COS(RADIANS(Sight2!HC2_))*SIN(RADIANS(AA157)) -> -0.7274521845
A158: 312 | B158: 0.6691306064 | C158: -0.7431448255 | E158: -222 | F158: =COS(RADIANS(E158))*COS(RADIANS(Sight2!LHA2_)) -> -0.6735169728 | G158: 0.6691306064 | H158: =F158*COS(RADIANS(90-Sight2!LAT2_))-G158*SIN(RADIANS(90-Sight2!LAT2_)) -> -0.9489251074 | I158: =F158*SIN(RADIANS(90-Sight2!LAT2_))+G158*COS(RADIANS(90-Sight2!LAT2_)) -> 0.0300336749 | K158: =COS(RADIANS(E158))*COS(RADIANS(Sight2!AZ_nord2-180)) -> -0.6760586028 | T158: 312 | U158: =COS(RADIANS(Sight2!DEC2_))*COS(RADIANS(T158)) -> 0.6242747713 | V158: =COS(RADIANS(Sight2!DEC2_))*SIN(RADIANS(T158)) -> -0.6933273736 | AA158: 312 | AB158: =COS(RADIANS(Sight2!HC2_))*COS(RADIANS(AA158)) -> 0.6354207326 | AC158: =COS(RADIANS(Sight2!HC2_))*SIN(RADIANS(AA158)) -> -0.7057062179
A159: 314 | B159: 0.6946583705 | C159: -0.7193398003 | E159: -224 | F159: =COS(RADIANS(E159))*COS(RADIANS(Sight2!LHA2_)) -> -0.6519423242 | G159: 0.6946583705 | H159: =F159*COS(RADIANS(90-Sight2!LAT2_))-G159*SIN(RADIANS(90-Sight2!LAT2_)) -> -0.9505563015 | I159: =F159*SIN(RADIANS(90-Sight2!LAT2_))+G159*COS(RADIANS(90-Sight2!LAT2_)) -> 0.06341737463 | K159: =COS(RADIANS(E159))*COS(RADIANS(Sight2!AZ_nord2-180)) -> -0.6544025386 | T159: 314 | U159: =COS(RADIANS(Sight2!DEC2_))*COS(RADIANS(T159)) -> 0.6480912563 | V159: =COS(RADIANS(Sight2!DEC2_))*SIN(RADIANS(T159)) -> -0.671118142 | AA159: 314 | AB159: =COS(RADIANS(Sight2!HC2_))*COS(RADIANS(AA159)) -> 0.6596624433 | AC159: =COS(RADIANS(Sight2!HC2_))*SIN(RADIANS(AA159)) -> -0.6831004569
A160: 316 | B160: 0.7193398003 | C160: -0.6946583705 | E160: -226 | F160: =COS(RADIANS(E160))*COS(RADIANS(Sight2!LHA2_)) -> -0.6295733843 | G160: 0.7193398003 | H160: =F160*COS(RADIANS(90-Sight2!LAT2_))-G160*SIN(RADIANS(90-Sight2!LAT2_)) -> -0.9510293892 | I160: =F160*SIN(RADIANS(90-Sight2!LAT2_))+G160*COS(RADIANS(90-Sight2!LAT2_)) -> 0.09672381006 | K160: =COS(RADIANS(E160))*COS(RADIANS(Sight2!AZ_nord2-180)) -> -0.6319491858 | T160: 316 | U160: =COS(RADIANS(Sight2!DEC2_))*COS(RADIANS(T160)) -> 0.671118142 | V160: =COS(RADIANS(Sight2!DEC2_))*SIN(RADIANS(T160)) -> -0.6480912563 | AA160: 316 | AB160: =COS(RADIANS(Sight2!HC2_))*COS(RADIANS(AA160)) -> 0.6831004569 | AC160: =COS(RADIANS(Sight2!HC2_))*SIN(RADIANS(AA160)) -> -0.6596624433
A161: 318 | B161: 0.7431448255 | C161: -0.6691306064 | E161: -228 | F161: =COS(RADIANS(E161))*COS(RADIANS(Sight2!LHA2_)) -> -0.6064374062 | G161: 0.7431448255 | H161: =F161*COS(RADIANS(90-Sight2!LAT2_))-G161*SIN(RADIANS(90-Sight2!LAT2_)) -> -0.9503437941 | I161: =F161*SIN(RADIANS(90-Sight2!LAT2_))+G161*COS(RADIANS(90-Sight2!LAT2_)) -> 0.1299124024 | K161: =COS(RADIANS(E161))*COS(RADIANS(Sight2!AZ_nord2-180)) -> -0.6087259001 | T161: 318 | U161: =COS(RADIANS(Sight2!DEC2_))*COS(RADIANS(T161)) -> 0.6933273736 | V161: =COS(RADIANS(Sight2!DEC2_))*SIN(RADIANS(T161)) -> -0.6242747713 | AA161: 318 | AB161: =COS(RADIANS(Sight2!HC2_))*COS(RADIANS(AA161)) -> 0.7057062179 | AC161: =COS(RADIANS(Sight2!HC2_))*SIN(RADIANS(AA161)) -> -0.6354207326
A162: 320 | B162: 0.7660444431 | C162: -0.6427876097 | E162: -230 | F162: =COS(RADIANS(E162))*COS(RADIANS(Sight2!LHA2_)) -> -0.5825625776 | G162: 0.7660444431 | H162: =F162*COS(RADIANS(90-Sight2!LAT2_))-G162*SIN(RADIANS(90-Sight2!LAT2_)) -> -0.9485003515 | I162: =F162*SIN(RADIANS(90-Sight2!LAT2_))+G162*COS(RADIANS(90-Sight2!LAT2_)) -> 0.1629427165 | K162: =COS(RADIANS(E162))*COS(RADIANS(Sight2!AZ_nord2-180)) -> -0.5847609758 | T162: 320 | U162: =COS(RADIANS(Sight2!DEC2_))*COS(RADIANS(T162)) -> 0.7146918927 | V162: =COS(RADIANS(Sight2!DEC2_))*SIN(RADIANS(T162)) -> -0.5996977035 | AA162: 320 | AB162: =COS(RADIANS(Sight2!HC2_))*COS(RADIANS(AA162)) -> 0.7274521845 | AC162: =COS(RADIANS(Sight2!HC2_))*SIN(RADIANS(AA162)) -> -0.6104048597
A163: 322 | B163: 0.7880107536 | C163: -0.6156614753 | E163: -232 | F163: =COS(RADIANS(E163))*COS(RADIANS(Sight2!LHA2_)) -> -0.5579779861 | G163: 0.7880107536 | H163: =F163*COS(RADIANS(90-Sight2!LAT2_))-G163*SIN(RADIANS(90-Sight2!LAT2_)) -> -0.9455013073 | I163: =F163*SIN(RADIANS(90-Sight2!LAT2_))+G163*COS(RADIANS(90-Sight2!LAT2_)) -> 0.1957745101 | K163: =COS(RADIANS(E163))*COS(RADIANS(Sight2!AZ_nord2-180)) -> -0.5600836103 | T163: =SUM(T162+2) -> 322 | U163: =COS(RADIANS(Sight2!DEC2_))*COS(RADIANS(T163)) -> 0.7351856697 | V163: =COS(RADIANS(Sight2!DEC2_))*SIN(RADIANS(T163)) -> -0.5743899966 | AA163: 322 | AB163: =COS(RADIANS(Sight2!HC2_))*COS(RADIANS(AA163)) -> 0.7483118626 | AC163: =COS(RADIANS(Sight2!HC2_))*SIN(RADIANS(AA163)) -> -0.5846453024
A164: 324 | B164: 0.8090169944 | C164: -0.5877852523 | E164: -234 | F164: =COS(RADIANS(E164))*COS(RADIANS(Sight2!LHA2_)) -> -0.5327135845 | G164: 0.8090169944 | H164: =F164*COS(RADIANS(90-Sight2!LAT2_))-G164*SIN(RADIANS(90-Sight2!LAT2_)) -> -0.9413503154 | I164: =F164*SIN(RADIANS(90-Sight2!LAT2_))+G164*COS(RADIANS(90-Sight2!LAT2_)) -> 0.2283677825 | K164: =COS(RADIANS(E164))*COS(RADIANS(Sight2!AZ_nord2-180)) -> -0.5347238691 | T164: 324 | U164: =COS(RADIANS(Sight2!DEC2_))*COS(RADIANS(T164)) -> 0.7547837362 | V164: =COS(RADIANS(Sight2!DEC2_))*SIN(RADIANS(T164)) -> -0.5483824838 | AA164: 324 | AB164: =COS(RADIANS(Sight2!HC2_))*COS(RADIANS(AA164)) -> 0.7682598381 | AC164: =COS(RADIANS(Sight2!HC2_))*SIN(RADIANS(AA164)) -> -0.5581734449
A165: 326 | B165: 0.8290375726 | C165: -0.5591929035 | E165: -236 | F165: =COS(RADIANS(E165))*COS(RADIANS(Sight2!LHA2_)) -> -0.5068001534 | G165: 0.8290375726 | H165: =F165*COS(RADIANS(90-Sight2!LAT2_))-G165*SIN(RADIANS(90-Sight2!LAT2_)) -> -0.9360524331 | I165: =F165*SIN(RADIANS(90-Sight2!LAT2_))+G165*COS(RADIANS(90-Sight2!LAT2_)) -> 0.260682824 | K165: =COS(RADIANS(E165))*COS(RADIANS(Sight2!AZ_nord2-180)) -> -0.5087126493 | T165: 326 | U165: =COS(RADIANS(Sight2!DEC2_))*COS(RADIANS(T165)) -> 0.7734622151 | V165: =COS(RADIANS(Sight2!DEC2_))*SIN(RADIANS(T165)) -> -0.5217068515 | AA165: 326 | AB165: =COS(RADIANS(Sight2!HC2_))*COS(RADIANS(AA165)) -> 0.7872718072 | AC165: =COS(RADIANS(Sight2!HC2_))*SIN(RADIANS(AA165)) -> -0.5310215391
A166: 328 | B166: 0.8480480962 | C166: -0.5299192642 | E166: -238 | F166: =COS(RADIANS(E166))*COS(RADIANS(Sight2!LHA2_)) -> -0.4802692644 | G166: 0.8480480962 | H166: =F166*COS(RADIANS(90-Sight2!LAT2_))-G166*SIN(RADIANS(90-Sight2!LAT2_)) -> -0.9296141151 | I166: =F166*SIN(RADIANS(90-Sight2!LAT2_))+G166*COS(RADIANS(90-Sight2!LAT2_)) -> 0.2926802636 | K166: =COS(RADIANS(E166))*COS(RADIANS(Sight2!AZ_nord2-180)) -> -0.4820816415 | T166: 328 | U166: =COS(RADIANS(Sight2!DEC2_))*COS(RADIANS(T166)) -> 0.7911983493 | V166: =COS(RADIANS(Sight2!DEC2_))*SIN(RADIANS(T166)) -> -0.4943955998 | AA166: 328 | AB166: =COS(RADIANS(Sight2!HC2_))*COS(RADIANS(AA166)) -> 0.805324607 | AC166: =COS(RADIANS(Sight2!HC2_))*SIN(RADIANS(AA166)) -> -0.5032226652
A167: 330 | B167: 0.8660254038 | C167: -0.5 | E167: -240 | F167: =COS(RADIANS(E167))*COS(RADIANS(Sight2!LHA2_)) -> -0.4531532413 | G167: 0.8660254038 | H167: =F167*COS(RADIANS(90-Sight2!LAT2_))-G167*SIN(RADIANS(90-Sight2!LAT2_)) -> -0.9220432056 | I167: =F167*SIN(RADIANS(90-Sight2!LAT2_))+G167*COS(RADIANS(90-Sight2!LAT2_)) -> 0.3243211173 | K167: =COS(RADIANS(E167))*COS(RADIANS(Sight2!AZ_nord2-180)) -> -0.4548632915 | T167: 330 | U167: =COS(RADIANS(Sight2!DEC2_))*COS(RADIANS(T167)) -> 0.8079705303 | V167: =COS(RADIANS(Sight2!DEC2_))*SIN(RADIANS(T167)) -> -0.4664820032 | AA167: 330 | AB167: =COS(RADIANS(Sight2!HC2_))*COS(RADIANS(AA167)) -> 0.8223962427 | AC167: =COS(RADIANS(Sight2!HC2_))*SIN(RADIANS(AA167)) -> -0.4748106921
A168: 332 | B168: 0.8829475929 | C168: -0.4694715628 | E168: -242 | F168: =COS(RADIANS(E168))*COS(RADIANS(Sight2!LHA2_)) -> -0.4254851207 | G168: 0.8829475929 | H168: =F168*COS(RADIANS(90-Sight2!LAT2_))-G168*SIN(RADIANS(90-Sight2!LAT2_)) -> -0.9133489284 | I168: =F168*SIN(RADIANS(90-Sight2!LAT2_))+G168*COS(RADIANS(90-Sight2!LAT2_)) -> 0.3555668358 | K168: =COS(RADIANS(E168))*COS(RADIANS(Sight2!AZ_nord2-180)) -> -0.4270907607 | T168: 332 | U168: =COS(RADIANS(Sight2!DEC2_))*COS(RADIANS(T168)) -> 0.8237583236 | V168: =COS(RADIANS(Sight2!DEC2_))*SIN(RADIANS(T168)) -> -0.4380000701 | AA168: 332 | AB168: =COS(RADIANS(Sight2!HC2_))*COS(RADIANS(AA168)) -> 0.8384659153 | AC168: =COS(RADIANS(Sight2!HC2_))*SIN(RADIANS(AA168)) -> -0.4458202353
A169: 334 | B169: 0.8987940463 | C169: -0.4383711468 | E169: -244 | F169: =COS(RADIANS(E169))*COS(RADIANS(Sight2!LHA2_)) -> -0.3972986121 | G169: 0.8987940463 | H169: =F169*COS(RADIANS(90-Sight2!LAT2_))-G169*SIN(RADIANS(90-Sight2!LAT2_)) -> -0.9035418762 | I169: =F169*SIN(RADIANS(90-Sight2!LAT2_))+G169*COS(RADIANS(90-Sight2!LAT2_)) -> 0.3863793508 | K169: =COS(RADIANS(E169))*COS(RADIANS(Sight2!AZ_nord2-180)) -> -0.3987978855 | T169: 334 | U169: =COS(RADIANS(Sight2!DEC2_))*COS(RADIANS(T169)) -> 0.8385424943 | V169: =COS(RADIANS(Sight2!DEC2_))*SIN(RADIANS(T169)) -> -0.4089845014 | AA169: 334 | AB169: =COS(RADIANS(Sight2!HC2_))*COS(RADIANS(AA169)) -> 0.8535140464 | AC169: =COS(RADIANS(Sight2!HC2_))*SIN(RADIANS(AA169)) -> -0.4162866152
A170: 336 | B170: 0.9135454576 | C170: -0.4067366431 | E170: -246 | F170: =COS(RADIANS(E170))*COS(RADIANS(Sight2!LHA2_)) -> -0.3686280563 | G170: 0.9135454576 | H170: =F170*COS(RADIANS(90-Sight2!LAT2_))-G170*SIN(RADIANS(90-Sight2!LAT2_)) -> -0.8926339975 | I170: =F170*SIN(RADIANS(90-Sight2!LAT2_))+G170*COS(RADIANS(90-Sight2!LAT2_)) -> 0.4167211222 | K170: =COS(RADIANS(E170))*COS(RADIANS(Sight2!AZ_nord2-180)) -> -0.3700191365 | T170: 336 | U170: =COS(RADIANS(Sight2!DEC2_))*COS(RADIANS(T170)) -> 0.8523050301 | V170: =COS(RADIANS(Sight2!DEC2_))*SIN(RADIANS(T170)) -> -0.379470648 | AA170: 336 | AB170: =COS(RADIANS(Sight2!HC2_))*COS(RADIANS(AA170)) -> 0.8675223021 | AC170: =COS(RADIANS(Sight2!HC2_))*SIN(RADIANS(AA170)) -> -0.386245814
A171: 338 | B171: 0.9271838546 | C171: -0.3746065934 | E171: -248 | F171: =COS(RADIANS(E171))*COS(RADIANS(Sight2!LHA2_)) -> -0.339508384 | G171: 0.9271838546 | H171: =F171*COS(RADIANS(90-Sight2!LAT2_))-G171*SIN(RADIANS(90-Sight2!LAT2_)) -> -0.8806385817 | I171: =F171*SIN(RADIANS(90-Sight2!LAT2_))+G171*COS(RADIANS(90-Sight2!LAT2_)) -> 0.446555183 | K171: =COS(RADIANS(E171))*COS(RADIANS(Sight2!AZ_nord2-180)) -> -0.3407895762 | T171: 338 | U171: =COS(RADIANS(Sight2!DEC2_))*COS(RADIANS(T171)) -> 0.8650291635 | V171: =COS(RADIANS(Sight2!DEC2_))*SIN(RADIANS(T171)) -> -0.3494944682 | AA171: 338 | AB171: =COS(RADIANS(Sight2!HC2_))*COS(RADIANS(AA171)) -> 0.8804736154 | AC171: =COS(RADIANS(Sight2!HC2_))*SIN(RADIANS(AA171)) -> -0.3557344318
A172: 340 | B172: 0.9396926208 | C172: -0.3420201433 | E172: -250 | F172: =COS(RADIANS(E172))*COS(RADIANS(Sight2!LHA2_)) -> -0.3099750731 | G172: 0.9396926208 | H172: =F172*COS(RADIANS(90-Sight2!LAT2_))-G172*SIN(RADIANS(90-Sight2!LAT2_)) -> -0.8675702434 | I172: =F172*SIN(RADIANS(90-Sight2!LAT2_))+G172*COS(RADIANS(90-Sight2!LAT2_)) -> 0.4758451851 | K172: =COS(RADIANS(E172))*COS(RADIANS(Sight2!AZ_nord2-180)) -> -0.3111448163 | T172: 340 | U172: =COS(RADIANS(Sight2!DEC2_))*COS(RADIANS(T172)) -> 0.8766993922 | V172: =COS(RADIANS(Sight2!DEC2_))*SIN(RADIANS(T172)) -> -0.3190924832 | AA172: 340 | AB172: =COS(RADIANS(Sight2!HC2_))*COS(RADIANS(AA172)) -> 0.8923522073 | AC172: =COS(RADIANS(Sight2!HC2_))*SIN(RADIANS(AA172)) -> -0.3247896419
A173: 342 | B173: 0.9510565163 | C173: -0.3090169944 | E173: -252 | F173: =COS(RADIANS(E173))*COS(RADIANS(Sight2!LHA2_)) -> -0.2800641052 | G173: 0.9510565163 | H173: =F173*COS(RADIANS(90-Sight2!LAT2_))-G173*SIN(RADIANS(90-Sight2!LAT2_)) -> -0.8534449045 | I173: =F173*SIN(RADIANS(90-Sight2!LAT2_))+G173*COS(RADIANS(90-Sight2!LAT2_)) -> 0.5045554432 | K173: =COS(RADIANS(E173))*COS(RADIANS(Sight2!AZ_nord2-180)) -> -0.2811209744 | T173: 342 | U173: =COS(RADIANS(Sight2!DEC2_))*COS(RADIANS(T173)) -> 0.8873014977 | V173: =COS(RADIANS(Sight2!DEC2_))*SIN(RADIANS(T173)) -> -0.2883017331 | AA173: 342 | AB173: =COS(RADIANS(Sight2!HC2_))*COS(RADIANS(AA173)) -> 0.9031436055 | AC173: =COS(RADIANS(Sight2!HC2_))*SIN(RADIANS(AA173)) -> -0.293449146
A174: 344 | B174: 0.9612616959 | C174: -0.2756373558 | E174: -254 | F174: =COS(RADIANS(E174))*COS(RADIANS(Sight2!LHA2_)) -> -0.2498119224 | G174: 0.9612616959 | H174: =F174*COS(RADIANS(90-Sight2!LAT2_))-G174*SIN(RADIANS(90-Sight2!LAT2_)) -> -0.8382797744 | I174: =F174*SIN(RADIANS(90-Sight2!LAT2_))+G174*COS(RADIANS(90-Sight2!LAT2_)) -> 0.5326509781 | K174: =COS(RADIANS(E174))*COS(RADIANS(Sight2!AZ_nord2-180)) -> -0.2507546299 | T174: 344 | U174: =COS(RADIANS(Sight2!DEC2_))*COS(RADIANS(T174)) -> 0.896822563 | V174: =COS(RADIANS(Sight2!DEC2_))*SIN(RADIANS(T174)) -> -0.2571597318 | AA174: 344 | AB174: =COS(RADIANS(Sight2!HC2_))*COS(RADIANS(AA174)) -> 0.9128346623 | AC174: =COS(RADIANS(Sight2!HC2_))*SIN(RADIANS(AA174)) -> -0.2617511274
A175: 346 | B175: 0.9702957263 | C175: -0.2419218956 | E175: -256 | F175: =COS(RADIANS(E175))*COS(RADIANS(Sight2!LHA2_)) -> -0.2192553823 | G175: 0.9702957263 | H175: =F175*COS(RADIANS(90-Sight2!LAT2_))-G175*SIN(RADIANS(90-Sight2!LAT2_)) -> -0.8220933295 | I175: =F175*SIN(RADIANS(90-Sight2!LAT2_))+G175*COS(RADIANS(90-Sight2!LAT2_)) -> 0.5600975599 | K175: =COS(RADIANS(E175))*COS(RADIANS(Sight2!AZ_nord2-180)) -> -0.2200827795 | T175: 346 | U175: =COS(RADIANS(Sight2!DEC2_))*COS(RADIANS(T175)) -> 0.9052509881 | V175: =COS(RADIANS(Sight2!DEC2_))*SIN(RADIANS(T175)) -> -0.2257044209 | AA175: 346 | AB175: =COS(RADIANS(Sight2!HC2_))*COS(RADIANS(AA175)) -> 0.9214135707 | AC175: =COS(RADIANS(Sight2!HC2_))*SIN(RADIANS(AA175)) -> -0.2297342054
A176: 348 | B176: 0.9781476007 | C176: -0.2079116908 | E176: -258 | F176: =COS(RADIANS(E176))*COS(RADIANS(Sight2!LHA2_)) -> -0.1884317132 | G176: 0.9781476007 | H176: =F176*COS(RADIANS(90-Sight2!LAT2_))-G176*SIN(RADIANS(90-Sight2!LAT2_)) -> -0.8049052905 | I176: =F176*SIN(RADIANS(90-Sight2!LAT2_))+G176*COS(RADIANS(90-Sight2!LAT2_)) -> 0.5868617491 | K176: =COS(RADIANS(E176))*COS(RADIANS(Sight2!AZ_nord2-180)) -> -0.1891427921 | T176: 348 | U176: =COS(RADIANS(Sight2!DEC2_))*COS(RADIANS(T176)) -> 0.9125765043 | V176: =COS(RADIANS(Sight2!DEC2_))*SIN(RADIANS(T176)) -> -0.193974124 | AA176: 348 | AB176: =COS(RADIANS(Sight2!HC2_))*COS(RADIANS(AA176)) -> 0.9288698786 | AC176: =COS(RADIANS(Sight2!HC2_))*SIN(RADIANS(AA176)) -> -0.1974373876
A177: 350 | B177: 0.984807753 | C177: -0.1736481777 | E177: -260 | F177: =COS(RADIANS(E177))*COS(RADIANS(Sight2!LHA2_)) -> -0.1573784691 | G177: 0.984807753 | H177: =F177*COS(RADIANS(90-Sight2!LAT2_))-G177*SIN(RADIANS(90-Sight2!LAT2_)) -> -0.7867365985 | I177: =F177*SIN(RADIANS(90-Sight2!LAT2_))+G177*COS(RADIANS(90-Sight2!LAT2_)) -> 0.6129109377 | K177: =COS(RADIANS(E177))*COS(RADIANS(Sight2!AZ_nord2-180)) -> -0.1579723633 | T177: 350 | U177: =COS(RADIANS(Sight2!DEC2_))*COS(RADIANS(T177)) -> 0.9187901867 | V177: =COS(RADIANS(Sight2!DEC2_))*SIN(RADIANS(T177)) -> -0.1620074995 | AA177: 350 | AB177: =COS(RADIANS(Sight2!HC2_))*COS(RADIANS(AA177)) -> 0.9351945016 | AC177: =COS(RADIANS(Sight2!HC2_))*SIN(RADIANS(AA177)) -> -0.1649000228
A178: 352 | B178: 0.9902680687 | C178: -0.139173101 | E178: -262 | F178: =COS(RADIANS(E178))*COS(RADIANS(Sight2!LHA2_)) -> -0.1261334836 | G178: 0.9902680687 | H178: =F178*COS(RADIANS(90-Sight2!LAT2_))-G178*SIN(RADIANS(90-Sight2!LAT2_)) -> -0.767609389 | I178: =F178*SIN(RADIANS(90-Sight2!LAT2_))+G178*COS(RADIANS(90-Sight2!LAT2_)) -> 0.6382133887 | K178: =COS(RADIANS(E178))*COS(RADIANS(Sight2!AZ_nord2-180)) -> -0.1266094696 | T178: 352 | U178: =COS(RADIANS(Sight2!DEC2_))*COS(RADIANS(T178)) -> 0.9238844647 | V178: =COS(RADIANS(Sight2!DEC2_))*SIN(RADIANS(T178)) -> -0.1298434938 | AA178: 352 | AB178: =COS(RADIANS(Sight2!HC2_))*COS(RADIANS(AA178)) -> 0.9403797342 | AC178: =COS(RADIANS(Sight2!HC2_))*SIN(RADIANS(AA178)) -> -0.1321617528
A179: 354 | B179: 0.9945218954 | C179: -0.1045284633 | E179: -264 | F179: =COS(RADIANS(E179))*COS(RADIANS(Sight2!LHA2_)) -> -0.09473482387 | G179: 0.9945218954 | H179: =F179*COS(RADIANS(90-Sight2!LAT2_))-G179*SIN(RADIANS(90-Sight2!LAT2_)) -> -0.7475469658 | I179: =F179*SIN(RADIANS(90-Sight2!LAT2_))+G179*COS(RADIANS(90-Sight2!LAT2_)) -> 0.662738275 | K179: =COS(RADIANS(E179))*COS(RADIANS(Sight2!AZ_nord2-180)) -> -0.09509232172 | T179: 354 | U179: =COS(RADIANS(Sight2!DEC2_))*COS(RADIANS(T179)) -> 0.9278531319 | V179: =COS(RADIANS(Sight2!DEC2_))*SIN(RADIANS(T179)) -> -0.09752129386 | AA179: 354 | AB179: =COS(RADIANS(Sight2!HC2_))*COS(RADIANS(AA179)) -> 0.9444192589 | AC179: =COS(RADIANS(Sight2!HC2_))*SIN(RADIANS(AA179)) -> -0.09926246398
A180: 356 | B180: 0.9975640503 | C180: -0.06975647374 | E180: -266 | F180: =COS(RADIANS(E180))*COS(RADIANS(Sight2!LHA2_)) -> -0.06322074435 | G180: 0.9975640503 | H180: =F180*COS(RADIANS(90-Sight2!LAT2_))-G180*SIN(RADIANS(90-Sight2!LAT2_)) -> -0.7265737717 | I180: =F180*SIN(RADIANS(90-Sight2!LAT2_))+G180*COS(RADIANS(90-Sight2!LAT2_)) -> 0.6864557168 | K180: =COS(RADIANS(E180))*COS(RADIANS(Sight2!AZ_nord2-180)) -> -0.06345931851 | T180: 356 | U180: =COS(RADIANS(Sight2!DEC2_))*COS(RADIANS(T180)) -> 0.9306913529 | V180: =COS(RADIANS(Sight2!DEC2_))*SIN(RADIANS(T180)) -> -0.06508027921 | AA180: 356 | AB180: =COS(RADIANS(Sight2!HC2_))*COS(RADIANS(AA180)) -> 0.9473081543 | AC180: =COS(RADIANS(Sight2!HC2_))*SIN(RADIANS(AA180)) -> -0.06624223916
A181: 358 | B181: 0.999390827 | C181: -0.0348994967 | E181: -268 | F181: =COS(RADIANS(E181))*COS(RADIANS(Sight2!LHA2_)) -> -0.0316296401 | G181: 0.999390827 | H181: =F181*COS(RADIANS(90-Sight2!LAT2_))-G181*SIN(RADIANS(90-Sight2!LAT2_)) -> -0.7047153595 | I181: =F181*SIN(RADIANS(90-Sight2!LAT2_))+G181*COS(RADIANS(90-Sight2!LAT2_)) -> 0.709336818 | K181: =COS(RADIANS(E181))*COS(RADIANS(Sight2!AZ_nord2-180)) -> -0.03174899989 | T181: 358 | U181: =COS(RADIANS(Sight2!DEC2_))*COS(RADIANS(T181)) -> 0.9323956698 | V181: =COS(RADIANS(Sight2!DEC2_))*SIN(RADIANS(T181)) -> -0.03255997426 | AA181: 358 | AB181: =COS(RADIANS(Sight2!HC2_))*COS(RADIANS(AA181)) -> 0.9490429006 | AC181: =COS(RADIANS(Sight2!HC2_))*SIN(RADIANS(AA181)) -> -0.03314130837
A182: 360 | B182: 1 | C182: -2.45029691e-16 | E182: -270 | F182: =COS(RADIANS(E182))*COS(RADIANS(Sight2!LHA2_)) -> -1.66553998e-16 | G182: 1 | H182: =F182*COS(RADIANS(90-Sight2!LAT2_))-G182*SIN(RADIANS(90-Sight2!LAT2_)) -> -0.6819983601 | I182: =F182*SIN(RADIANS(90-Sight2!LAT2_))+G182*COS(RADIANS(90-Sight2!LAT2_)) -> 0.7313537016 | K182: =COS(RADIANS(E182))*COS(RADIANS(Sight2!AZ_nord2-180)) -> -1.671825176e-16 | T182: 360 | U182: =COS(RADIANS(Sight2!DEC2_))*COS(RADIANS(T182)) -> 0.9329640063 | V182: =COS(RADIANS(Sight2!DEC2_))*SIN(RADIANS(T182)) -> -2.286038822e-16 | AA182: 360 | AB182: =COS(RADIANS(Sight2!HC2_))*COS(RADIANS(AA182)) -> 0.9496213842 | AC182: =COS(RADIANS(Sight2!HC2_))*SIN(RADIANS(AA182)) -> -2.326854343e-16

Sheet CALC3 (hidden)
A1: Plot of local meridian circle | E1: Plot of LHA meridian | K1: Plot of North AZIMUT | N1: Plot of the EQUATOR | Q1: South Pole view | T1: Declination circle | X1: Zenith view | AA1: Altitude circle | AE1: Plot of circle of position (COP3) for body 3 | AK1: slope and offset for linear approx. at Lat or Lon near intersection (n=0: x=my+b; n=1: y=mx+b)
A2: 0 | B2: =COS(RADIANS(A2)) -> 1 | C2: =SIN(RADIANS(A2)) -> 0 | E2: 90 | F2: =COS(RADIANS(E2))*COS(RADIANS(Sight3!LHA3_)) -> 5.825937815e-17 | G2: =SIN(RADIANS(E2)) -> 1 | H2: =F2*COS(RADIANS(90-Sight3!LAT3_))-G2*SIN(RADIANS(90-Sight3!LAT3_)) -> -0.6819983601 | I2: =F2*SIN(RADIANS(90-Sight3!LAT3_))+G2*COS(RADIANS(90-Sight3!LAT3_)) -> 0.7313537016 | K2: =COS(RADIANS(E2))*COS(RADIANS(Sight3!AZ_nord3-180)) -> 5.425669117e-17 | N2: =1.1*COS(RADIANS(90-Sight3!LAT3_)) -> 0.8044890718 | O2: =1.1*SIN(RADIANS(90-Sight3!LAT3_)) -> 0.7501981961 | Q2: 0 | R2: 0 | T2: 0 | U2: =COS(RADIANS(Sight3!DEC3_))*COS(RADIANS(T2)) -> 0.9881392107 | V2: =COS(RADIANS(Sight3!DEC3_))*SIN(RADIANS(T2)) -> 0 | X2: 0 | Y2: 0 | AA2: 0 | AB2: =COS(RADIANS(Sight3!HC3_))*COS(RADIANS(AA2)) -> 0.6577523653 | AC2: =COS(RADIANS(Sight3!HC3_))*SIN(RADIANS(AA2)) -> 0 | AE2: Azimut from body to PLOP3 (great circle) | AK2: m | AL2: b | AM2: n
A3: =SUM(A2+2) -> 2 | B3: 0.999390827 | C3: 0.0348994967 | E3: =SUM(E2-2) -> 88 | F3: =COS(RADIANS(E3))*COS(RADIANS(Sight3!LHA3_)) -> 0.03319145476 | G3: =SIN(RADIANS(E3)) -> 0.999390827 | H3: =F3*COS(RADIANS(90-Sight3!LAT3_))-G3*SIN(RADIANS(90-Sight3!LAT3_)) -> -0.6573082118 | I3: =F3*SIN(RADIANS(90-Sight3!LAT3_))+G3*COS(RADIANS(90-Sight3!LAT3_)) -> 0.7535446984 | K3: =COS(RADIANS(E3))*COS(RADIANS(Sight3!AZ_nord3-180)) -> 0.0309110493 | N3: =1.1*COS(RADIANS(270-Sight3!LAT3_)) -> -0.8044890718 | O3: =1.1*SIN(RADIANS(270-Sight3!LAT3_)) -> -0.7501981961 | T3: =SUM(T2+2) -> 2 | U3: =COS(RADIANS(Sight3!DEC3_))*COS(RADIANS(T3)) -> 0.987537263 | V3: =COS(RADIANS(Sight3!DEC3_))*SIN(RADIANS(T3)) -> 0.03448556112 | AA3: =SUM(AA2+2) -> 2 | AB3: =COS(RADIANS(Sight3!HC3_))*COS(RADIANS(AA3)) -> 0.6573516804 | AC3: =COS(RADIANS(Sight3!HC3_))*SIN(RADIANS(AA3)) -> 0.02295522651 | AE3: acos | AF3: AZ(deg) | AJ3: LOP3: | AK3: -0.3665574918 | AL3: 73.02052891 | AM3: 1
A4: 4 | B4: 0.9975640503 | C4: 0.06975647374 | E4: 86 | F4: =COS(RADIANS(E4))*COS(RADIANS(Sight3!LHA3_)) -> 0.06634247084 | G4: 0.9975640503 | H4: =F4*COS(RADIANS(90-Sight3!LAT3_))-G4*SIN(RADIANS(90-Sight3!LAT3_)) -> -0.6318172347 | I4: =F4*SIN(RADIANS(90-Sight3!LAT3_))+G4*COS(RADIANS(90-Sight3!LAT3_)) -> 0.7748176171 | K4: =COS(RADIANS(E4))*COS(RADIANS(Sight3!AZ_nord3-180)) -> 0.06178443825 | Q4: Zénith | T4: 4 | U4: =COS(RADIANS(Sight3!DEC3_))*COS(RADIANS(T4)) -> 0.9857321532 | V4: =COS(RADIANS(Sight3!DEC3_))*SIN(RADIANS(T4)) -> 0.0689291069 | X4: North Pole | AA4: 4 | AB4: =COS(RADIANS(Sight3!HC3_))*COS(RADIANS(AA4)) -> 0.6561501136 | AC4: =COS(RADIANS(Sight3!HC3_))*SIN(RADIANS(AA4)) -> 0.0458824856 | AE4: =ACOS(IF(AG4>0,IF((ABS(1-AG4))<0.000000000001,1,AG4),IF((ABS(1+AG4))<0.000000000001,-1,AG4))) -> 0.3261536297 | AF4: =DEGREES(AE4) -> 18.68722645 | AG4: =(SIN(RADIANS(LatLP3))-(SIN(RADIANS(LatB3))*SIN(RADIANS(Sight3!HO3_))))/(COS(RADIANS(LatB3))*COS(RADIANS(Sight3!HO3_))) -> 0.9472817318
A5: 6 | B5: 0.9945218954 | C5: 0.1045284633 | E5: 84 | F5: =COS(RADIANS(E5))*COS(RADIANS(Sight3!LHA3_)) -> 0.09941265885 | G5: 0.9945218954 | H5: =F5*COS(RADIANS(90-Sight3!LAT3_))-G5*SIN(RADIANS(90-Sight3!LAT3_)) -> -0.6055564857 | I5: =F5*SIN(RADIANS(90-Sight3!LAT3_))+G5*COS(RADIANS(90-Sight3!LAT3_)) -> 0.7951465398 | K5: =COS(RADIANS(E5))*COS(RADIANS(Sight3!AZ_nord3-180)) -> 0.09258255238 | N5: Plot of POLES | Q5: 0 | R5: =COS(RADIANS(Sight3!LAT3_)) -> 0.6819983601 | T5: 6 | U5: =COS(RADIANS(Sight3!DEC3_))*COS(RADIANS(T5)) -> 0.9827260807 | V5: =COS(RADIANS(Sight3!DEC3_))*SIN(RADIANS(T5)) -> 0.1032886732 | X5: 0 | Y5: =COS(RADIANS(Sight3!LAT3_)) -> 0.6819983601 | AA5: 6 | AB5: =COS(RADIANS(Sight3!HC3_))*COS(RADIANS(AA5)) -> 0.6541491291 | AC5: =COS(RADIANS(Sight3!HC3_))*SIN(RADIANS(AA5)) -> 0.06875384396 | AE5: Azimut North from body to PLOP3 (rad-deg)
A6: 8 | B6: 0.9902680687 | C6: 0.139173101 | E6: 82 | F6: =COS(RADIANS(E6))*COS(RADIANS(Sight3!LHA3_)) -> 0.1323617278 | G6: 0.9902680687 | H6: =F6*COS(RADIANS(90-Sight3!LAT3_))-G6*SIN(RADIANS(90-Sight3!LAT3_)) -> -0.5785579593 | I6: =F6*SIN(RADIANS(90-Sight3!LAT3_))+G6*COS(RADIANS(90-Sight3!LAT3_)) -> 0.814506699 | K6: =COS(RADIANS(E6))*COS(RADIANS(Sight3!AZ_nord3-180)) -> 0.1232678689 | N6: =1.1*COS(RADIANS(180-Sight3!LAT3_)) -> -0.7501981961 | O6: =1.1*SIN(RADIANS(180-Sight3!LAT3_)) -> 0.8044890718 | T6: 8 | U6: =COS(RADIANS(Sight3!DEC3_))*COS(RADIANS(T6)) -> 0.9785227078 | V6: =COS(RADIANS(Sight3!DEC3_))*SIN(RADIANS(T6)) -> 0.1375223981 | AA6: 8 | AB6: =COS(RADIANS(Sight3!HC3_))*COS(RADIANS(AA6)) -> 0.6513511645 | AC6: =COS(RADIANS(Sight3!HC3_))*SIN(RADIANS(AA6)) -> 0.09154143635 | AE6: =IF(AND(LatB3=0,LatLP3=0),IF((LonLP3-LonB3)>0,3*PI()/2,PI()/2),IF(LonLP3=LonB1,IF((LatLP3-LatB3)>0,0,PI()),IF((LonLP3-LonB3)<0,AE4,2*PI()-AE4))) -> 5.957031678 | AF6: =IF(DEGREES(ZB3Nr)>=360,DEGREES(ZB3Nr)-360,IF(LonLP3-LonB3>180,DEGREES(2*PI()-ZB3Nr),IF(LonLP3-LonB3<-180,DEGREES(2*PI()-ZB3Nr),DEGREES(ZB3Nr)))) -> 341.3127735
A7: 10 | B7: 0.984807753 | C7: 0.1736481777 | E7: 80 | F7: =COS(RADIANS(E7))*COS(RADIANS(Sight3!LHA3_)) -> 0.1651495345 | G7: 0.984807753 | H7: =F7*COS(RADIANS(90-Sight3!LAT3_))-G7*SIN(RADIANS(90-Sight3!LAT3_)) -> -0.5508545492 | I7: =F7*SIN(RADIANS(90-Sight3!LAT3_))+G7*COS(RADIANS(90-Sight3!LAT3_)) -> 0.8328745072 | K7: =COS(RADIANS(E7))*COS(RADIANS(Sight3!AZ_nord3-180)) -> 0.1538030026 | N7: =1.1*COS(RADIANS(-Sight3!LAT3_)) -> 0.7501981961 | O7: =1.1*SIN(RADIANS(-Sight3!LAT3_)) -> -0.8044890718 | Q7: Zénith line + label | S7: nadir | T7: 10 | U7: =COS(RADIANS(Sight3!DEC3_))*COS(RADIANS(T7)) -> 0.9731271557 | V7: =COS(RADIANS(Sight3!DEC3_))*SIN(RADIANS(T7)) -> 0.1715885732 | X7: Z meridian | AA7: 10 | AB7: =COS(RADIANS(Sight3!HC3_))*COS(RADIANS(AA7)) -> 0.647759629 | AC7: =COS(RADIANS(Sight3!HC3_))*SIN(RADIANS(AA7)) -> 0.1142174996 | AE7: D | AF7: acosLatv | AG7: LatV | AH7: cs/sndLov | AI7: ifdLov | AJ7: dLoV | AK7: DV | AL7: DVx | AM7: asindLovx | AN7: dLoVx | AO7: AzNB-LOP | AP7: Latx | AQ7: DRLatx | AR7: GHAx | AS7: GHAxcor | AT7: DRLonx | AU7: linLat3 | AV7: linLon3
A8: 12 | B8: 0.9781476007 | C8: 0.2079116908 | E8: 78 | F8: =COS(RADIANS(E8))*COS(RADIANS(Sight3!LHA3_)) -> 0.1977361318 | G8: 0.9781476007 | H8: =F8*COS(RADIANS(90-Sight3!LAT3_))-G8*SIN(RADIANS(90-Sight3!LAT3_)) -> -0.5224800077 | I8: =F8*SIN(RADIANS(90-Sight3!LAT3_))+G8*COS(RADIANS(90-Sight3!LAT3_)) -> 0.8502275861 | K8: =COS(RADIANS(E8))*COS(RADIANS(Sight3!AZ_nord3-180)) -> 0.1841507509 | Q8: 0 | R8: 0 | T8: 12 | U8: =COS(RADIANS(Sight3!DEC3_))*COS(RADIANS(T8)) -> 0.9665459981 | V8: =COS(RADIANS(Sight3!DEC3_))*SIN(RADIANS(T8)) -> 0.2054456941 | X8: 0 | Y8: -1 | AA8: 12 | AB8: =COS(RADIANS(Sight3!HC3_))*COS(RADIANS(AA8)) -> 0.643378898 | AC8: =COS(RADIANS(Sight3!HC3_))*SIN(RADIANS(AA8)) -> 0.1367544064 | AE8: =IF(AO8=0,RADIANS(90-Sight3!HO3_),IF(AO8=180,-RADIANS(90-Sight3!HO3_),IF(AO8<180,-RADIANS(90-Sight3!HO3_),RADIANS(90-Sight3!HO3_)))) -> 0.7165870155 | AF8: =ACOS(COS(RADIANS(LatB3))*SIN(RADIANS(AO8))) -> 1.944597314 | AG8: =IF(OR(AO8=0,AO8=180),RADIANS((LatLP3+LatB3)/2),IF(AND(LatB3=0,LatLP3=0),0,IF(LatB3>=0,AF8,-AF8))) -> 1.944597314 | AH8: =IF(COS(RADIANS(AO8))/SIN(AG8)>0,IF(1-COS(RADIANS(AO8))/SIN(AG8)<0.000000000001,1,COS(RADIANS(AO8))/SIN(AG8)),IF(1+COS(RADIANS(AO8))/SIN(AG8)<0.000000000001,-1,COS(RADIANS(AO8))/SIN(AG8))) -> 0.9981404525 | AI8: =IF(AND(AO8<=180,AO8>0),IF(AH8=1,-PI()/2,IF(AH8=-1,PI()/2,-ASIN(AH8))),IF(AH8=1,PI()/2,IF(AH8=-1,-PI()/2,ASIN(AH8)))) -> 1.50980249 | AJ8: =IF(OR(OR(AO8=0,AO8=180),AND(LatB3<>LatLP3,OR(AO8=90,AO8=270))),0,IF(AND(LatB3=0,LatLP3=0),RADIANS((LonLP3-LonB3)/2),AI8)) -> 1.50980249 | AK8: =IF(AJ8=0,AG8-RADIANS(LatB3),ASIN(COS(RADIANS(LatB3))*SIN(AJ8))) -> 1.405087729 | AL8: =AE8-AK8 -> -0.6885007137 | AM8: =ASIN(SIN(AL8)/COS(RADIANS(AP8))) -> -1.15312077 | AN8: =IF(AL8>PI()/2,PI()-AM8,IF(AL8<-PI()/2,-PI()-AM8,AM8)) -> -1.15312077 | AO8: =IF(AO9-dZB3_<0,360+(AO9-dZB3_),IF(AO9-dZB3_>=360,AO9-dZB3_-360,AO9-dZB3_)) -> 338.3127735 | AP8: =IF(OR(AO8=0,AO8=180),LatB3+DEGREES(AE8),DEGREES(ASIN(SIN(AG8)*COS(AL8)))) -> 45.96176915 | AQ8: =DRLat3+AP8 -> 45.96176915 | AR8: =IF(OR(LatB3=90,LatB3=-90),AR9-dZB3_,IF(OR(AO8=0,AO8=180),LonB3,LonB3+DEGREES(AJ8)+DEGREES(AN8))) -> 73.64001463 | AS8: =IF(AR8<0,360+AR8,AR8) -> 73.64001463 | AT8: =IF(AS8-GHAx3>180,cLOP3+(AS8-GHAx3-360),IF(AS8-GHAx3<-180,cLOP3+(AS8-GHAx3+360),cLOP3+(AS8-GHAx3))) -> 73.64001463 | AU8: 46.02722985
A9: 14 | B9: 0.9702957263 | C9: 0.2419218956 | E9: 76 | F9: =COS(RADIANS(E9))*COS(RADIANS(Sight3!LHA3_)) -> 0.2300818181 | G9: 0.9702957263 | H9: =F9*COS(RADIANS(90-Sight3!LAT3_))-G9*SIN(RADIANS(90-Sight3!LAT3_)) -> -0.4934689047 | I9: =F9*SIN(RADIANS(90-Sight3!LAT3_))+G9*COS(RADIANS(90-Sight3!LAT3_)) -> 0.8665447937 | K9: =COS(RADIANS(E9))*COS(RADIANS(Sight3!AZ_nord3-180)) -> 0.21427414 | N9: Plot of Declination | Q9: 0 | R9: 1 | T9: 14 | U9: =COS(RADIANS(Sight3!DEC3_))*COS(RADIANS(T9)) -> 0.9587872531 | V9: =COS(RADIANS(Sight3!DEC3_))*SIN(RADIANS(T9)) -> 0.239052511 | X9: 0 | Y9: 1 | AA9: 14 | AB9: =COS(RADIANS(Sight3!HC3_))*COS(RADIANS(AA9)) -> 0.638214309 | AC9: =COS(RADIANS(Sight3!HC3_))*SIN(RADIANS(AA9)) -> 0.1591246991 | AE9: =IF(AO9=0,RADIANS(90-Sight3!HO3_),IF(AO9=180,-RADIANS(90-Sight3!HO3_),IF(AO9<180,-RADIANS(90-Sight3!HO3_),RADIANS(90-Sight3!HO3_)))) -> 0.7165870155 | AF9: 1.941154407 | AG9: 1.941154407 | AH9: =IF(COS(RADIANS(AO9))/SIN(AG9)>0,IF(1-COS(RADIANS(AO9))/SIN(AG9)<0.000000000001,1,COS(RADIANS(AO9))/SIN(AG9)),IF(1+COS(RADIANS(AO9))/SIN(AG9)<0.000000000001,-1,COS(RADIANS(AO9))/SIN(AG9))) -> 0.9981779126 | AI9: =IF(AND(AO9<=180,AO9>0),IF(AH9=1,-PI()/2,IF(AH9=-1,PI()/2,-ASIN(AH9))),IF(AH9=1,PI()/2,IF(AH9=-1,-PI()/2,ASIN(AH9)))) -> 1.510420157 | AJ9: 1.510420157 | AK9: 1.405312284 | AL9: =AE9-AK9 -> -0.6887252689 | AM9: -1.156550714 | AN9: =IF(AL9>PI()/2,PI()-AM9,IF(AL9<-PI()/2,-PI()-AM9,AM9)) -> -1.156550714 | AO9: 338.5127735 | AP9: 46.0305139 | AQ9: 46.0305139 | AR9: 73.478883 | AS9: =IF(AR9<0,360+AR9,AR9) -> 73.478883 | AT9: 73.478883 | AU9: 46.08629385
A10: 16 | B10: 0.9612616959 | C10: 0.2756373558 | E10: 74 | F10: =COS(RADIANS(E10))*COS(RADIANS(Sight3!LHA3_)) -> 0.2621471852 | G10: 0.9612616959 | H10: =F10*COS(RADIANS(90-Sight3!LAT3_))-G10*SIN(RADIANS(90-Sight3!LAT3_)) -> -0.463856586 | I10: =F10*SIN(RADIANS(90-Sight3!LAT3_))+G10*COS(RADIANS(90-Sight3!LAT3_)) -> 0.88180625 | K10: =COS(RADIANS(E10))*COS(RADIANS(Sight3!AZ_nord3-180)) -> 0.244136469 | N10: =COS(RADIANS(Sight3!DEC3_+90-Sight3!LAT3_)) -> 0.6179510977 | O10: =SIN(RADIANS(Sight3!DEC3_+90-Sight3!LAT3_)) -> 0.7862165356 | Q10: 0 | R10: 1.1 | S10: -1.1 | T10: 16 | U10: =COS(RADIANS(Sight3!DEC3_))*COS(RADIANS(T10)) -> 0.9498603735 | V10: =COS(RADIANS(Sight3!DEC3_))*SIN(RADIANS(T10)) -> 0.2723680792 | AA10: 16 | AB10: =COS(RADIANS(Sight3!HC3_))*COS(RADIANS(AA10)) -> 0.6322721542 | AC10: =COS(RADIANS(Sight3!HC3_))*SIN(RADIANS(AA10)) -> 0.1813011228 | AE10: =IF(AO10=0,RADIANS(90-Sight3!HO3_),IF(AO10=180,-RADIANS(90-Sight3!HO3_),IF(AO10<180,-RADIANS(90-Sight3!HO3_),RADIANS(90-Sight3!HO3_)))) -> 0.7165870155 | AF10: 1.937711371 | AG10: 1.937711371 | AH10: 0.9982148934 | AI10: 1.511036174 | AJ10: 1.511036174 | AK10: 1.405534263 | AL10: -0.6889472473 | AM10: -1.159990524 | AN10: -1.159990524 | AO10: 338.7127735 | AP10: 46.09873624 | AQ10: 46.09873624 | AR10: 73.31709162 | AS10: 73.31709162 | AT10: 73.31709162 | AU10: 46.1455997
A11: 18 | B11: 0.9510565163 | C11: 0.3090169944 | E11: 72 | F11: =COS(RADIANS(E11))*COS(RADIANS(Sight3!LHA3_)) -> 0.2938931663 | G11: 0.9510565163 | H11: =F11*COS(RADIANS(90-Sight3!LAT3_))-G11*SIN(RADIANS(90-Sight3!LAT3_)) -> -0.4336791294 | I11: =F11*SIN(RADIANS(90-Sight3!LAT3_))+G11*COS(RADIANS(90-Sight3!LAT3_)) -> 0.8959933611 | K11: =COS(RADIANS(E11))*COS(RADIANS(Sight3!AZ_nord3-180)) -> 0.2737013553 | N11: =COS(RADIANS(270-Sight3!DEC3_-Sight3!LAT3_)) -> -0.8274074411 | O11: =SIN(RADIANS(270-Sight3!DEC3_-Sight3!LAT3_)) -> -0.5616021068 | T11: 18 | U11: =COS(RADIANS(Sight3!DEC3_))*COS(RADIANS(T11)) -> 0.9397762353 | V11: =COS(RADIANS(Sight3!DEC3_))*SIN(RADIANS(T11)) -> 0.3053518089 | X11: Azimut line + label | AA11: 18 | AB11: =COS(RADIANS(Sight3!HC3_))*COS(RADIANS(AA11)) -> 0.6255596732 | AC11: =COS(RADIANS(Sight3!HC3_))*SIN(RADIANS(AA11)) -> 0.203256659 | AE11: =IF(AO11=0,RADIANS(90-Sight3!HO3_),IF(AO11=180,-RADIANS(90-Sight3!HO3_),IF(AO11<180,-RADIANS(90-Sight3!HO3_),RADIANS(90-Sight3!HO3_)))) -> 0.7165870155 | AF11: 1.934268209 | AG11: 1.934268209 | AH11: 0.9982513992 | AI11: 1.511650563 | AJ11: 1.511650563 | AK11: 1.40575368 | AL11: -0.6891666645 | AM11: -1.163440182 | AN11: -1.163440182 | AO11: 338.9127735 | AP11: 46.16643349 | AQ11: 46.16643349 | AR11: 73.15464264 | AS11: 73.15464264 | AT11: 73.15464264 | AU11: 46.20514659
A12: 20 | B12: 0.9396926208 | C12: 0.3420201433 | E12: 70 | F12: =COS(RADIANS(E12))*COS(RADIANS(Sight3!LHA3_)) -> 0.3252810839 | G12: 0.9396926208 | H12: =F12*COS(RADIANS(90-Sight3!LAT3_))-G12*SIN(RADIANS(90-Sight3!LAT3_)) -> -0.4029733016 | I12: =F12*SIN(RADIANS(90-Sight3!LAT3_))+G12*COS(RADIANS(90-Sight3!LAT3_)) -> 0.9090888424 | K12: =COS(RADIANS(E12))*COS(RADIANS(Sight3!AZ_nord3-180)) -> 0.3029327787 | Q12: LHA line + label | T12: 20 | U12: =COS(RADIANS(Sight3!DEC3_))*COS(RADIANS(T12)) -> 0.9285471246 | V12: =COS(RADIANS(Sight3!DEC3_))*SIN(RADIANS(T12)) -> 0.3379635145 | X12: 0 | Y12: 0 | AA12: 20 | AB12: =COS(RADIANS(Sight3!HC3_))*COS(RADIANS(AA12)) -> 0.618085044 | AC12: =COS(RADIANS(Sight3!HC3_))*SIN(RADIANS(AA12)) -> 0.2249645583 | AE12: =IF(AO12=0,RADIANS(90-Sight3!HO3_),IF(AO12=180,-RADIANS(90-Sight3!HO3_),IF(AO12<180,-RADIANS(90-Sight3!HO3_),RADIANS(90-Sight3!HO3_)))) -> 0.7165870155 | AF12: 1.930824921 | AG12: 1.930824921 | AH12: 0.9982874341 | AI12: 1.512263345 | AJ12: 1.512263345 | AK12: 1.405970551 | AL12: -0.6893835355 | AM12: -1.166899672 | AN12: -1.166899672 | AO12: 339.1127735 | AP12: 46.23360297 | AQ12: 46.23360297 | AR12: 72.99153829 | AS12: 72.99153829 | AT12: 72.99153829 | AU12: 46.26493371
A13: 22 | B13: 0.9271838546 | C13: 0.3746065934 | E13: 68 | F13: =COS(RADIANS(E13))*COS(RADIANS(Sight3!LHA3_)) -> 0.3562726965 | G13: 0.9271838546 | H13: =F13*COS(RADIANS(90-Sight3!LAT3_))-G13*SIN(RADIANS(90-Sight3!LAT3_)) -> -0.3717765129 | I13: =F13*SIN(RADIANS(90-Sight3!LAT3_))+G13*COS(RADIANS(90-Sight3!LAT3_)) -> 0.9210767389 | K13: =COS(RADIANS(E13))*COS(RADIANS(Sight3!AZ_nord3-180)) -> 0.3317951252 | N13: Plot of Calculated ALTITUDE | Q13: 0 | R13: 0 | T13: 22 | U13: =COS(RADIANS(Sight3!DEC3_))*COS(RADIANS(T13)) -> 0.9161867222 | V13: =COS(RADIANS(Sight3!DEC3_))*SIN(RADIANS(T13)) -> 0.3701634635 | X13: =COS(RADIANS(90-Sight3!AZ_nord3)) -> 0.46422713 | Y13: =SIN(RADIANS(90-Sight3!AZ_nord3)) -> -0.8857161914 | AA13: 22 | AB13: =COS(RADIANS(Sight3!HC3_))*COS(RADIANS(AA13)) -> 0.6098573734 | AC13: =COS(RADIANS(Sight3!HC3_))*SIN(RADIANS(AA13)) -> 0.2463983729 | AE13: =IF(AO13=0,RADIANS(90-Sight3!HO3_),IF(AO13=180,-RADIANS(90-Sight3!HO3_),IF(AO13<180,-RADIANS(90-Sight3!HO3_),RADIANS(90-Sight3!HO3_)))) -> 0.7165870155 | AF13: 1.92738151 | AG13: 1.92738151 | AH13: 0.9983230023 | AI13: 1.512874541 | AJ13: 1.512874541 | AK13: 1.406184891 | AL13: -0.6895978754 | AM13: -1.170368974 | AN13: -1.170368974 | AO13: 339.3127735 | AP13: 46.30024202 | AQ13: 46.30024202 | AR13: 72.82778089 | AS13: 72.82778089 | AT13: 72.82778089 | AU13: 46.32496021
A14: 24 | B14: 0.9135454576 | C14: 0.4067366431 | E14: 66 | F14: =COS(RADIANS(E14))*COS(RADIANS(Sight3!LHA3_)) -> 0.3868302458 | G14: 0.9135454576 | H14: =F14*COS(RADIANS(90-Sight3!LAT3_))-G14*SIN(RADIANS(90-Sight3!LAT3_)) -> -0.3401267718 | I14: =F14*SIN(RADIANS(90-Sight3!LAT3_))+G14*COS(RADIANS(90-Sight3!LAT3_)) -> 0.9319424453 | K14: =COS(RADIANS(E14))*COS(RADIANS(Sight3!AZ_nord3-180)) -> 0.3602532304 | N14: =COS(RADIANS(Sight3!HC3_)) -> 0.6577523653 | O14: =SIN(RADIANS(Sight3!HC3_)) -> 0.7532342437 | Q14: =COS(RADIANS(90+Sight3!LHA3_)) -> 0.3090116145 | R14: =SIN(RADIANS(90+Sight3!LHA3_)) -> 0.9510582643 | T14: 24 | U14: =COS(RADIANS(Sight3!DEC3_))*COS(RADIANS(T14)) -> 0.9027100874 | V14: =COS(RADIANS(Sight3!DEC3_))*SIN(RADIANS(T14)) -> 0.4019124254 | X14: =1.1*COS(RADIANS(90-Sight3!AZ_nord3)) -> 0.5106498431 | Y14: =1.1*SIN(RADIANS(90-Sight3!AZ_nord3)) -> -0.9742878106 | AA14: 24 | AB14: =COS(RADIANS(Sight3!HC3_))*COS(RADIANS(AA14)) -> 0.6008866856 | AC14: =COS(RADIANS(Sight3!HC3_))*SIN(RADIANS(AA14)) -> 0.2675319891 | AE14: =IF(AO14=0,RADIANS(90-Sight3!HO3_),IF(AO14=180,-RADIANS(90-Sight3!HO3_),IF(AO14<180,-RADIANS(90-Sight3!HO3_),RADIANS(90-Sight3!HO3_)))) -> 0.7165870155 | AF14: 1.923937977 | AG14: 1.923937977 | AH14: 0.9983581078 | AI14: 1.51348417 | AJ14: 1.51348417 | AK14: 1.406396715 | AL14: -0.689809699 | AM14: -1.173848065 | AN14: -1.173848065 | AO14: 339.5127735 | AP14: 46.36634798 | AQ14: 46.36634798 | AR14: 72.6633728 | AS14: 72.6633728 | AT14: 72.6633728 | AU14: 46.38522523
A15: 26 | B15: 0.8987940463 | C15: 0.4383711468 | E15: 64 | F15: =COS(RADIANS(E15))*COS(RADIANS(Sight3!LHA3_)) -> 0.416916502 | G15: 0.8987940463 | H15: =F15*COS(RADIANS(90-Sight3!LAT3_))-G15*SIN(RADIANS(90-Sight3!LAT3_)) -> -0.3080626386 | I15: =F15*SIN(RADIANS(90-Sight3!LAT3_))+G15*COS(RADIANS(90-Sight3!LAT3_)) -> 0.9416727234 | K15: =COS(RADIANS(E15))*COS(RADIANS(Sight3!AZ_nord3-180)) -> 0.3882724226 | N15: =COS(RADIANS(180-Sight3!HC3_)) -> -0.6577523653 | O15: =SIN(RADIANS(180-Sight3!HC3_)) -> 0.7532342437 | Q15: =1.1*COS(RADIANS(90+Sight3!LHA3_)) -> 0.339912776 | R15: =1.1*SIN(RADIANS(90+Sight3!LHA3_)) -> 1.046164091 | T15: 26 | U15: =COS(RADIANS(Sight3!DEC3_))*COS(RADIANS(T15)) -> 0.8881336395 | V15: =COS(RADIANS(Sight3!DEC3_))*SIN(RADIANS(T15)) -> 0.433171719 | AA15: 26 | AB15: =COS(RADIANS(Sight3!HC3_))*COS(RADIANS(AA15)) -> 0.5911839099 | AC15: =COS(RADIANS(Sight3!HC3_))*SIN(RADIANS(AA15)) -> 0.2883396587 | AE15: =IF(AO15=0,RADIANS(90-Sight3!HO3_),IF(AO15=180,-RADIANS(90-Sight3!HO3_),IF(AO15<180,-RADIANS(90-Sight3!HO3_),RADIANS(90-Sight3!HO3_)))) -> 0.7165870155 | AF15: 1.920494324 | AG15: 1.920494324 | AH15: 0.9983927548 | AI15: 1.514092254 | AJ15: 1.514092254 | AK15: 1.406606036 | AL15: -0.6900190207 | AM15: -1.177336925 | AN15: -1.177336925 | AO15: 339.7127735 | AP15: 46.4319182 | AQ15: 46.4319182 | AR15: 72.4983165 | AS15: 72.4983165 | AT15: 72.4983165 | AU15: 46.44572785
A16: 28 | B16: 0.8829475929 | C16: 0.4694715628 | E16: 62 | F16: =COS(RADIANS(E16))*COS(RADIANS(Sight3!LHA3_)) -> 0.4464948096 | G16: 0.8829475929 | H16: =F16*COS(RADIANS(90-Sight3!LAT3_))-G16*SIN(RADIANS(90-Sight3!LAT3_)) -> -0.2756231786 | I16: =F16*SIN(RADIANS(90-Sight3!LAT3_))+G16*COS(RADIANS(90-Sight3!LAT3_)) -> 0.9502557183 | K16: =COS(RADIANS(E16))*COS(RADIANS(Sight3!AZ_nord3-180)) -> 0.4158185646 | T16: 28 | U16: =COS(RADIANS(Sight3!DEC3_))*COS(RADIANS(T16)) -> 0.8724751375 | V16: =COS(RADIANS(Sight3!DEC3_))*SIN(RADIANS(T16)) -> 0.4639032595 | AA16: 28 | AB16: =COS(RADIANS(Sight3!HC3_))*COS(RADIANS(AA16)) -> 0.5807608677 | AC16: =COS(RADIANS(Sight3!HC3_))*SIN(RADIANS(AA16)) -> 0.3087960309 | AE16: =IF(AO16=0,RADIANS(90-Sight3!HO3_),IF(AO16=180,-RADIANS(90-Sight3!HO3_),IF(AO16<180,-RADIANS(90-Sight3!HO3_),RADIANS(90-Sight3!HO3_)))) -> 0.7165870155 | AF16: 1.917050553 | AG16: 1.917050553 | AH16: 0.998426947 | AI16: 1.514698812 | AJ16: 1.514698812 | AK16: 1.40681287 | AL16: -0.690225855 | AM16: -1.180835529 | AN16: -1.180835529 | AO16: 339.9127735 | AP16: 46.49695002 | AQ16: 46.49695002 | AR16: 72.33261451 | AS16: 72.33261451 | AT16: 72.33261451 | AU16: 46.50646716
A17: 30 | B17: 0.8660254038 | C17: 0.5 | E17: 60 | F17: =COS(RADIANS(E17))*COS(RADIANS(Sight3!LHA3_)) -> 0.4755291322 | G17: 0.8660254038 | H17: =F17*COS(RADIANS(90-Sight3!LAT3_))-G17*SIN(RADIANS(90-Sight3!LAT3_)) -> -0.2428479141 | I17: =F17*SIN(RADIANS(90-Sight3!LAT3_))+G17*COS(RADIANS(90-Sight3!LAT3_)) -> 0.957680973 | K17: =COS(RADIANS(E17))*COS(RADIANS(Sight3!AZ_nord3-180)) -> 0.4428580957 | N17: Zénith | Q17: Greenwich line + label | T17: 30 | U17: =COS(RADIANS(Sight3!DEC3_))*COS(RADIANS(T17)) -> 0.8557536589 | V17: =COS(RADIANS(Sight3!DEC3_))*SIN(RADIANS(T17)) -> 0.4940696053 | X17: Cardinal points | AA17: 30 | AB17: =COS(RADIANS(Sight3!HC3_))*COS(RADIANS(AA17)) -> 0.5696302578 | AC17: =COS(RADIANS(Sight3!HC3_))*SIN(RADIANS(AA17)) -> 0.3288761827 | AE17: =IF(AO17=0,RADIANS(90-Sight3!HO3_),IF(AO17=180,-RADIANS(90-Sight3!HO3_),IF(AO17<180,-RADIANS(90-Sight3!HO3_),RADIANS(90-Sight3!HO3_)))) -> 0.7165870155 | AF17: 1.913606664 | AG17: 1.913606664 | AH17: 0.9984606884 | AI17: 1.515303865 | AJ17: 1.515303865 | AK17: 1.407017231 | AL17: -0.6904302158 | AM17: -1.184343851 | AN17: -1.184343851 | AO17: 340.1127735 | AP17: 46.5614408 | AQ17: 46.5614408 | AR17: 72.16626945 | AS17: 72.16626945 | AT17: 72.16626945 | AU17: 46.56744219
A18: 32 | B18: 0.8480480962 | C18: 0.5299192642 | E18: 58 | F18: =COS(RADIANS(E18))*COS(RADIANS(Sight3!LHA3_)) -> 0.5039840957 | G18: 0.8480480962 | H18: =F18*COS(RADIANS(90-Sight3!LAT3_))-G18*SIN(RADIANS(90-Sight3!LAT3_)) -> -0.2097767769 | I18: =F18*SIN(RADIANS(90-Sight3!LAT3_))+G18*COS(RADIANS(90-Sight3!LAT3_)) -> 0.963939441 | K18: =COS(RADIANS(E18))*COS(RADIANS(Sight3!AZ_nord3-180)) -> 0.4693580725 | N18: 0 | O18: 1.2 | Q18: 0 | R18: 0 | T18: 32 | U18: =COS(RADIANS(Sight3!DEC3_))*COS(RADIANS(T18)) -> 0.8379895763 | V18: =COS(RADIANS(Sight3!DEC3_))*SIN(RADIANS(T18)) -> 0.5236340035 | X18: -1.15 | Y18: 0 | Z18: W | AA18: 32 | AB18: =COS(RADIANS(Sight3!HC3_))*COS(RADIANS(AA18)) -> 0.5578056412 | AC18: =COS(RADIANS(Sight3!HC3_))*SIN(RADIANS(AA18)) -> 0.3485556495 | AE18: =IF(AO18=0,RADIANS(90-Sight3!HO3_),IF(AO18=180,-RADIANS(90-Sight3!HO3_),IF(AO18<180,-RADIANS(90-Sight3!HO3_),RADIANS(90-Sight3!HO3_)))) -> 0.7165870155 | AF18: 1.910162659 | AG18: 1.910162659 | AH18: 0.9984939828 | AI18: 1.515907432 | AJ18: 1.515907432 | AK18: 1.407219133 | AL18: -0.6906321172 | AM18: -1.187861864 | AN18: -1.187861864 | AO18: 340.3127735 | AP18: 46.62538791 | AQ18: 46.62538791 | AR18: 71.999284 | AS18: 71.999284 | AT18: 71.999284 | AU18: 46.62865195
A19: 34 | B19: 0.8290375726 | C19: 0.5591929035 | E19: 56 | F19: =COS(RADIANS(E19))*COS(RADIANS(Sight3!LHA3_)) -> 0.5318250322 | G19: 0.8290375726 | H19: =F19*COS(RADIANS(90-Sight3!LAT3_))-G19*SIN(RADIANS(90-Sight3!LAT3_)) -> -0.176450059 | I19: =F19*SIN(RADIANS(90-Sight3!LAT3_))+G19*COS(RADIANS(90-Sight3!LAT3_)) -> 0.9690234973 | K19: =COS(RADIANS(E19))*COS(RADIANS(Sight3!AZ_nord3-180)) -> 0.4952862087 | Q19: =COS(RADIANS(90-Sight3!LON3_)) -> 0.9466680072 | R19: =SIN(RADIANS(90-Sight3!LON3_)) -> 0.3222106209 | T19: 34 | U19: =COS(RADIANS(Sight3!DEC3_))*COS(RADIANS(T19)) -> 0.8192045326 | V19: =COS(RADIANS(Sight3!DEC3_))*SIN(RADIANS(T19)) -> 0.5525604342 | X19: 0 | Y19: 1.15 | Z19: N | AA19: 34 | AB19: =COS(RADIANS(Sight3!HC3_))*COS(RADIANS(AA19)) -> 0.5453014243 | AC19: =COS(RADIANS(Sight3!HC3_))*SIN(RADIANS(AA19)) -> 0.3678104549 | AE19: =IF(AO19=0,RADIANS(90-Sight3!HO3_),IF(AO19=180,-RADIANS(90-Sight3!HO3_),IF(AO19<180,-RADIANS(90-Sight3!HO3_),RADIANS(90-Sight3!HO3_)))) -> 0.7165870155 | AF19: 1.90671854 | AG19: 1.90671854 | AH19: 0.9985268339 | AI19: 1.516509534 | AJ19: 1.516509534 | AK19: 1.407418588 | AL19: -0.6908315728 | AM19: -1.19138954 | AN19: -1.19138954 | AO19: 340.5127735 | AP19: 46.68878871 | AQ19: 46.68878871 | AR19: 71.83166093 | AS19: 71.83166093 | AT19: 71.83166093 | AU19: 46.69009544
